Workbook

Sheet CV Rotina <2A - procedência
E1: AO NASCER | I1: MENOR DE 1 ANO | U1: 1 ANO | AB1: MENOR DE 1 ANO
A2: Regional | B2: Município | C2: ¹População < 1 ano e 1 ano anual | D2: ²População < 1 ano e 1 ano proporcional | E2: Doses Aplicadas HB < 30 dias | F2: Cobertura Vacinal HB até 30 dias | G2: Doses Aplicadas BCG | H2: Cobertura Vacinal BCG | I2: Doses Aplicadas Pentavalente | J2: Cobertura Vacinal Pentavalente | K2: Doses Aplicadas Poliomielite | L2: Cobertura Vacinal Poliomielite | M2: Doses Aplicadas Pneumo 10 | N2: Cobertura Vacinal Pneumo 10 | O2: Doses Aplicadas Rotavírus | P2: Cobertura Vacinal Rotavírus | Q2: Doses Aplicadas Meningo C | R2: Cobertura Vacinal Meningo C | S2: Doses Aplicadas Febre Amarela | T2: Cobertura Vacinal Febre Amarela | U2: Doses Aplicadas Hepatite A | V2: Cobertura Vacinal Hepatite A | W2: Doses Aplicadas de Tríplice Viral | X2: Cobertura Vacinal Tríplice Viral | Y2: Doses Aplicadas Varicela | Z2: Cobertura Varicela | AB2: Doses Aplicadas COVID-19 | AC2: Cobertura Vacinal COVID-19 D1 | AD2: Doses Aplicadas COVID-19 | AE2: Cobertura Vacinal COVID-19 D2 | AG2: VACINAS QUE ATINGIRAM A META DE CV | AH2: HOMOGENEIDADE ENTRE AS 10 VACINAS | AI2: VACINAS DO PQA-VS QUE ATINGIRAM A META DE CV | AJ2: HOMOGENEIDADE ENTRE AS VACINAS DO PQA-VS
A3: Metropolitana | B3: Afonso Cláudio | C3: 385 | D3: 307 | E3: 222 | F3: =E3/D3 -> 0.7231270358 | G3: 219 | H3: =G3/D3 -> 0.7133550489 | I3: 268 | J3: =I3/D3 -> 0.8729641694 | K3: 266 | L3: =K3/D3 -> 0.8664495114 | M3: 262 | N3: =M3/D3 -> 0.8534201954 | O3: 256 | P3: =O3/D3 -> 0.8338762215 | Q3: 262 | R3: =Q3/D3 -> 0.8534201954 | S3: 253 | T3: =S3/D3 -> 0.8241042345 | U3: 278 | V3: =U3/D3 -> 0.9055374593 | W3: 291 | X3: =W3/D3 -> 0.9478827362 | Y3: 141 | Z3: =Y3/D3 -> 0.4592833876 | AB3: 9 | AC3: =AB3/D3 -> 0.02931596091 | AD3: 3 | AE3: =AD3/D3 -> 0.009771986971 | AG3: =cálculos1!O3 -> 0 | AH3: =AG3*0.1 -> 0 | AI3: =cálculos1!P3 -> 0 | AJ3: =AI3*0.25 -> 0 | AL3: LEGENDA / HOMOGENEIDADE PQA-VS
A4: Norte | B4: Água Doce do Norte | C4: 202 | D4: 168 | E4: 72 | F4: 0.4285714286 | G4: 76 | H4: 0.4523809524 | I4: 126 | J4: 0.75 | K4: 124 | L4: 0.7380952381 | M4: 136 | N4: 0.8095238095 | O4: 133 | P4: 0.7916666667 | Q4: 127 | R4: 0.755952381 | S4: 88 | T4: 0.5238095238 | U4: 108 | V4: 0.6428571429 | W4: 114 | X4: 0.6785714286 | Y4: 39 | Z4: 0.2321428571 | AB4: 12 | AC4: =AB4/D4 -> 0.07142857143 | AD4: 6 | AE4: =AD4/D4 -> 0.03571428571 | AG4: =cálculos1!O4 -> 0 | AH4: =AG4*0.1 -> 0 | AI4: =cálculos1!P4 -> 0 | AJ4: =AI4*0.25 -> 0 | AL4: PERCENTUAL | AM4: Nº DE MUNICÍPIOS
A5: Central | B5: Águia Branca | C5: 173 | D5: 133 | E5: 67 | F5: 0.5037593985 | G5: 78 | H5: 0.5864661654 | I5: 119 | J5: 0.8947368421 | K5: 118 | L5: 0.8872180451 | M5: 123 | N5: 0.9248120301 | O5: 129 | P5: 0.969924812 | Q5: 125 | R5: 0.9398496241 | S5: 104 | T5: 0.7819548872 | U5: 96 | V5: 0.7218045113 | W5: 114 | X5: 0.8571428571 | Y5: 39 | Z5: 0.2932330827 | AB5: 5 | AC5: 0.03759398496 | AD5: 3 | AE5: 0.02255639098 | AG5: =cálculos1!O5 -> 1 | AH5: 0.1 | AI5: =cálculos1!P5 -> 0 | AJ5: 0 | AL5: 0 | AM5: =COUNTIF($AJ$3:$AJ$80,"=0") -> 15
A6: Sul | B6: Alegre | C6: 323 | D6: 238 | E6: 148 | F6: 0.6218487395 | G6: 156 | H6: 0.6554621849 | I6: 251 | J6: 1.054621849 | K6: 254 | L6: 1.067226891 | M6: 244 | N6: 1.025210084 | O6: 234 | P6: 0.9831932773 | Q6: 241 | R6: 1.012605042 | S6: 226 | T6: 0.9495798319 | U6: 222 | V6: 0.9327731092 | W6: 233 | X6: 0.9789915966 | Y6: 63 | Z6: 0.2647058824 | AB6: 70 | AC6: 0.2941176471 | AD6: 25 | AE6: 0.1050420168 | AG6: =cálculos1!O6 -> 6 | AH6: 0.6 | AI6: =cálculos1!P6 -> 4 | AJ6: 1 | AL6: 0.25 | AM6: =COUNTIF($AJ$3:$AJ$80,"=0,25") -> 12
A7: Sul | B7: Alfredo Chaves | C7: 143 | D7: 104 | E7: 16 | F7: 0.1538461538 | G7: 50 | H7: 0.4807692308 | I7: 115 | J7: 1.105769231 | K7: 111 | L7: 1.067307692 | M7: 111 | N7: 1.067307692 | O7: 113 | P7: 1.086538462 | Q7: 116 | R7: 1.115384615 | S7: 105 | T7: 1.009615385 | U7: 105 | V7: 1.009615385 | W7: 112 | X7: 1.076923077 | Y7: 61 | Z7: 0.5865384615 | AB7: 14 | AC7: 0.1346153846 | AD7: 8 | AE7: 0.07692307692 | AG7: =cálculos1!O7 -> 8 | AH7: 0.8 | AI7: =cálculos1!P7 -> 4 | AJ7: 1 | AL7: 0.5 | AM7: =COUNTIF($AJ$3:$AJ$80,"=0,5") -> 13
A8: Central | B8: Alto Rio Novo | C8: 85 | D8: 65 | E8: 10 | F8: 0.1538461538 | G8: 29 | H8: 0.4461538462 | I8: 69 | J8: 1.061538462 | K8: 67 | L8: 1.030769231 | M8: 75 | N8: 1.153846154 | O8: 74 | P8: 1.138461538 | Q8: 75 | R8: 1.153846154 | S8: 63 | T8: 0.9692307692 | U8: 77 | V8: 1.184615385 | W8: 76 | X8: 1.169230769 | Y8: 36 | Z8: 0.5538461538 | AB8: 0 | AC8: 0 | AD8: 0 | AE8: 0 | AG8: =cálculos1!O8 -> 8 | AH8: 0.8 | AI8: =cálculos1!P8 -> 4 | AJ8: 1 | AL8: 0.75 | AM8: =COUNTIF($AJ$3:$AJ$80,"=0,75") -> 6
A9: Sul | B9: Anchieta | C9: 367 | D9: 280 | E9: 20 | F9: 0.07142857143 | G9: 160 | H9: 0.5714285714 | I9: 284 | J9: 1.014285714 | K9: 286 | L9: 1.021428571 | M9: 289 | N9: 1.032142857 | O9: 284 | P9: 1.014285714 | Q9: 282 | R9: 1.007142857 | S9: 226 | T9: 0.8071428571 | U9: 299 | V9: 1.067857143 | W9: 290 | X9: 1.035714286 | Y9: 120 | Z9: 0.4285714286 | AB9: 54 | AC9: 0.1928571429 | AD9: 26 | AE9: 0.09285714286 | AG9: =cálculos1!O9 -> 7 | AH9: 0.7 | AI9: =cálculos1!P9 -> 4 | AJ9: 1 | AL9: 1 | AM9: =COUNTIF($AJ$3:$AJ$80,"=1,0") -> 32
A10: Sul | B10: Apiacá | C10: 68 | D10: 53 | E10: 27 | F10: 0.5094339623 | G10: 40 | H10: 0.7547169811 | I10: 47 | J10: 0.8867924528 | K10: 48 | L10: 0.9056603774 | M10: 53 | N10: 1 | O10: 55 | P10: 1.037735849 | Q10: 48 | R10: 0.9056603774 | S10: 46 | T10: 0.8679245283 | U10: 50 | V10: 0.9433962264 | W10: 57 | X10: 1.075471698 | Y10: 9 | Z10: 0.1698113208 | AB10: 0 | AC10: 0 | AD10: 0 | AE10: 0 | AG10: =cálculos1!O10 -> 3 | AH10: 0.3 | AI10: =cálculos1!P10 -> 2 | AJ10: 0.5
A11: Metropolitana | B11: Aracruz | C11: 1419 | D11: 1082 | E11: 1016 | F11: 0.9390018484 | G11: 1039 | H11: 0.96025878 | I11: 997 | J11: 0.9214417745 | K11: 997 | L11: 0.9214417745 | M11: 1034 | N11: 0.9556377079 | O11: 1019 | P11: 0.9417744917 | Q11: 991 | R11: 0.915896488 | S11: 866 | T11: 0.8003696858 | U11: 1102 | V11: 1.018484288 | W11: 1116 | X11: 1.03142329 | Y11: 526 | Z11: 0.4861367837 | AB11: 244 | AC11: 0.2255083179 | AD11: 129 | AE11: 0.1192236599 | AG11: =cálculos1!O11 -> 5 | AH11: 0.5 | AI11: =cálculos1!P11 -> 2 | AJ11: 0.5
A12: Sul | B12: Atilio Vivacqua | C12: 144 | D12: 107 | E12: 1 | F12: 0.009345794393 | G12: 4 | H12: 0.03738317757 | I12: 100 | J12: 0.9345794393 | K12: 99 | L12: 0.9252336449 | M12: 102 | N12: 0.953271028 | O12: 101 | P12: 0.9439252336 | Q12: 98 | R12: 0.9158878505 | S12: 82 | T12: 0.7663551402 | U12: 106 | V12: 0.9906542056 | W12: 118 | X12: 1.102803738 | Y12: 50 | Z12: 0.4672897196 | AB12: 0 | AC12: 0 | AD12: 0 | AE12: 0 | AG12: =cálculos1!O12 -> 4 | AH12: 0.4 | AI12: =cálculos1!P12 -> 2 | AJ12: 0.5 | AL12: LEGENDA / HOMOGENEIDADE 10 VACINAS
A13: Central | B13: Baixo Guandu | C13: 388 | D13: 283 | E13: 72 | F13: 0.2544169611 | G13: 160 | H13: 0.5653710247 | I13: 292 | J13: 1.03180212 | K13: 294 | L13: 1.038869258 | M13: 320 | N13: 1.130742049 | O13: 310 | P13: 1.09540636 | Q13: 305 | R13: 1.077738516 | S13: 227 | T13: 0.8021201413 | U13: 285 | V13: 1.007067138 | W13: 294 | X13: 1.038869258 | Y13: 123 | Z13: 0.4346289753 | AB13: 19 | AC13: 0.06713780919 | AD13: 8 | AE13: 0.02826855124 | AG13: =cálculos1!O13 -> 7 | AH13: 0.7 | AI13: =cálculos1!P13 -> 4 | AJ13: 1 | AL13: PERCENTUAL | AM13: Nº DE MUNICÍPIOS
A14: Norte | B14: Barra de São Francisco | C14: 562 | D14: 442 | E14: 341 | F14: 0.7714932127 | G14: 370 | H14: 0.8371040724 | I14: 375 | J14: 0.8484162896 | K14: 375 | L14: 0.8484162896 | M14: 411 | N14: 0.9298642534 | O14: 400 | P14: 0.9049773756 | Q14: 393 | R14: 0.8891402715 | S14: 350 | T14: 0.7918552036 | U14: 328 | V14: 0.742081448 | W14: 424 | X14: 0.9592760181 | Y14: 195 | Z14: 0.4411764706 | AB14: 3 | AC14: 0.006787330317 | AD14: 3 | AE14: 0.006787330317 | AG14: =cálculos1!O14 -> 2 | AH14: 0.2 | AI14: =cálculos1!P14 -> 1 | AJ14: 0.25 | AL14: 0 | AM14: =COUNTIF($AH$3:$AH$80,"=0") -> 9
A15: Norte | B15: Boa Esperança | C15: 205 | D15: 154 | E15: 10 | F15: 0.06493506494 | G15: 53 | H15: 0.3441558442 | I15: 139 | J15: 0.9025974026 | K15: 143 | L15: 0.9285714286 | M15: 148 | N15: 0.961038961 | O15: 155 | P15: 1.006493506 | Q15: 147 | R15: 0.9545454545 | S15: 124 | T15: 0.8051948052 | U15: 110 | V15: 0.7142857143 | W15: 156 | X15: 1.012987013 | Y15: 87 | Z15: 0.5649350649 | AB15: 21 | AC15: 0.1363636364 | AD15: 11 | AE15: 0.07142857143 | AG15: =cálculos1!O15 -> 4 | AH15: 0.4 | AI15: =cálculos1!P15 -> 2 | AJ15: 0.5 | AL15: 0.1 | AM15: =COUNTIFS($AH$3:$AH$80,">=0,10",$AH$3:$AH$80,"<0,20") -> 8
A16: Sul | B16: Bom Jesus do Norte | C16: 88 | D16: 73 | E16: 34 | F16: 0.4657534247 | G16: 62 | H16: 0.8493150685 | I16: 88 | J16: 1.205479452 | K16: 86 | L16: 1.178082192 | M16: 87 | N16: 1.191780822 | O16: 84 | P16: 1.150684932 | Q16: 82 | R16: 1.123287671 | S16: 66 | T16: 0.904109589 | U16: 62 | V16: 0.8493150685 | W16: 107 | X16: 1.465753425 | Y16: 28 | Z16: 0.3835616438 | AB16: 33 | AC16: 0.4520547945 | AD16: 22 | AE16: 0.301369863 | AG16: =cálculos1!O16 -> 6 | AH16: 0.6 | AI16: =cálculos1!P16 -> 4 | AJ16: 1 | AL16: 0.2 | AM16: =COUNTIFS($AH$3:$AH$80,">=0,20",$AH$3:$AH$80,"<0,30") -> 6
A17: Metropolitana | B17: Brejetuba | C17: 198 | D17: 146 | E17: 27 | F17: 0.1849315068 | G17: 116 | H17: 0.7945205479 | I17: 155 | J17: 1.061643836 | K17: 155 | L17: 1.061643836 | M17: 147 | N17: 1.006849315 | O17: 154 | P17: 1.054794521 | Q17: 148 | R17: 1.01369863 | S17: 135 | T17: 0.9246575342 | U17: 112 | V17: 0.7671232877 | W17: 149 | X17: 1.020547945 | Y17: 59 | Z17: 0.404109589 | AB17: 0 | AC17: 0 | AD17: 0 | AE17: 0 | AG17: =cálculos1!O17 -> 6 | AH17: 0.6 | AI17: =cálculos1!P17 -> 4 | AJ17: 1 | AL17: 0.3 | AM17: =COUNTIFS($AH$3:$AH$80,">=0,30",$AH$3:$AH$80,"<0,40") -> 9
A18: Sul | B18: Cachoeiro de Itapemirim | C18: 2424 | D18: 1893 | E18: 3800 | F18: 2.007395668 | G18: 3754 | H18: 1.983095615 | I18: 1633 | J18: 0.8626518753 | K18: 1617 | L18: 0.854199683 | M18: 1756 | N18: 0.9276281035 | O18: 1712 | P18: 0.9043845747 | Q18: 1626 | R18: 0.8589540412 | S18: 1191 | T18: 0.6291600634 | U18: 1529 | V18: 0.8077126255 | W18: 1716 | X18: 0.9064976228 | Y18: 643 | Z18: 0.3396724775 | AB18: 191 | AC18: 0.1008980454 | AD18: 71 | AE18: 0.03750660328 | AG18: =cálculos1!O18 -> 2 | AH18: 0.2 | AI18: =cálculos1!P18 -> 0 | AJ18: 0 | AL18: 0.4 | AM18: =COUNTIFS($AH$3:$AH$80,">=0,40",$AH$3:$AH$80,"<0,50") -> 6
A19: Metropolitana | B19: Cariacica | C19: 4851 | D19: 3710 | E19: 1926 | F19: 0.5191374663 | G19: 1908 | H19: 0.5142857143 | I19: 3124 | J19: 0.8420485175 | K19: 3091 | L19: 0.8331536388 | M19: 3339 | N19: 0.9 | O19: 3209 | P19: 0.8649595687 | Q19: 3139 | R19: 0.8460916442 | S19: 2456 | T19: 0.6619946092 | U19: 2339 | V19: 0.630458221 | W19: 3372 | X19: 0.9088948787 | Y19: 1197 | Z19: 0.3226415094 | AB19: 639 | AC19: 0.1722371968 | AD19: 223 | AE19: 0.06010781671 | AG19: =cálculos1!O19 -> 0 | AH19: 0 | AI19: =cálculos1!P19 -> 0 | AJ19: 0 | AL19: 0.5 | AM19: =COUNTIFS($AH$3:$AH$80,">=0,50",$AH$3:$AH$80,"<0,60") -> 8
A20: Sul | B20: Castelo | C20: 432 | D20: 323 | E20: 173 | F20: 0.5356037152 | G20: 192 | H20: 0.5944272446 | I20: 321 | J20: 0.9938080495 | K20: 322 | L20: 0.9969040248 | M20: 326 | N20: 1.009287926 | O20: 322 | P20: 0.9969040248 | Q20: 311 | R20: 0.9628482972 | S20: 280 | T20: 0.866873065 | U20: 258 | V20: 0.7987616099 | W20: 354 | X20: 1.095975232 | Y20: 153 | Z20: 0.4736842105 | AB20: 31 | AC20: 0.0959752322 | AD20: 9 | AE20: 0.02786377709 | AG20: =cálculos1!O20 -> 6 | AH20: 0.6 | AI20: =cálculos1!P20 -> 4 | AJ20: 1 | AL20: 0.6 | AM20: =COUNTIFS($AH$3:$AH$80,">=0,60",$AH$3:$AH$80,"<0,70") -> 12
A21: Central | B21: Colatina | C21: 1518 | D21: 1171 | E21: 2720 | F21: 2.322801025 | G21: 2479 | H21: 2.116994022 | I21: 1154 | J21: 0.9854824936 | K21: 1143 | L21: 0.976088813 | M21: 1179 | N21: 1.006831768 | O21: 1114 | P21: 0.951323655 | Q21: 1075 | R21: 0.9180187874 | S21: 918 | T21: 0.7839453459 | U21: 846 | V21: 0.7224594364 | W21: 1209 | X21: 1.032450897 | Y21: 586 | Z21: 0.5004269855 | AB21: 89 | AC21: 0.07600341588 | AD21: 40 | AE21: 0.0341588386 | AG21: =cálculos1!O21 -> 6 | AH21: 0.6 | AI21: =cálculos1!P21 -> 4 | AJ21: 1 | AL21: 0.7 | AM21: =COUNTIFS($AH$3:$AH$80,">=0,70",$AH$3:$AH$80,"<0,80") -> 9
A22: Norte | B22: Conceição da Barra | C22: 386 | D22: 284 | E22: 9 | F22: 0.03169014085 | G22: 16 | H22: 0.05633802817 | I22: 271 | J22: 0.9542253521 | K22: 272 | L22: 0.9577464789 | M22: 297 | N22: 1.045774648 | O22: 290 | P22: 1.021126761 | Q22: 282 | R22: 0.9929577465 | S22: 251 | T22: 0.8838028169 | U22: 211 | V22: 0.7429577465 | W22: 290 | X22: 1.021126761 | Y22: 128 | Z22: 0.4507042254 | AB22: 49 | AC22: 0.1725352113 | AD22: 15 | AE22: 0.05281690141 | AG22: =cálculos1!O22 -> 6 | AH22: 0.6 | AI22: =cálculos1!P22 -> 4 | AJ22: 1 | AL22: 0.8 | AM22: =COUNTIFS($AH$3:$AH$80,">=0,80",$AH$3:$AH$80,"<0,90") -> 10
A23: Metropolitana | B23: Conceição do Castelo | C23: 152 | D23: 126 | E23: 0 | F23: 0 | G23: 0 | H23: 0 | I23: 103 | J23: 0.8174603175 | K23: 101 | L23: 0.8015873016 | M23: 102 | N23: 0.8095238095 | O23: 99 | P23: 0.7857142857 | Q23: 100 | R23: 0.7936507937 | S23: 102 | T23: 0.8095238095 | U23: 111 | V23: 0.880952381 | W23: 113 | X23: 0.8968253968 | Y23: 59 | Z23: 0.4682539683 | AB23: 0 | AC23: 0 | AD23: 0 | AE23: 0 | AG23: =cálculos1!O23 -> 0 | AH23: 0 | AI23: =cálculos1!P23 -> 0 | AJ23: 0 | AL23: 0.9 | AM23: =COUNTIFS($AH$3:$AH$80,">=0,90",$AH$3:$AH$80,"<1,0") -> 1
A24: Sul | B24: Divino de São Lourenço | C24: 70 | D24: 55 | E24: 38 | F24: 0.6909090909 | G24: 39 | H24: 0.7090909091 | I24: 58 | J24: 1.054545455 | K24: 57 | L24: 1.036363636 | M24: 66 | N24: 1.2 | O24: 65 | P24: 1.181818182 | Q24: 63 | R24: 1.145454545 | S24: 47 | T24: 0.8545454545 | U24: 41 | V24: 0.7454545455 | W24: 45 | X24: 0.8181818182 | Y24: 25 | Z24: 0.4545454545 | AB24: 11 | AC24: 0.2 | AD24: 0 | AE24: 0 | AG24: =cálculos1!O24 -> 5 | AH24: 0.5 | AI24: =cálculos1!P24 -> 3 | AJ24: 0.75 | AL24: 1 | AM24: =COUNTIF($AH$3:$AH$80,">=1,0") -> 0
A25: Metropolitana | B25: Domingos Martins | C25: 420 | D25: 303 | E25: 28 | F25: 0.09240924092 | G25: 65 | H25: 0.2145214521 | I25: 281 | J25: 0.9273927393 | K25: 282 | L25: 0.9306930693 | M25: 308 | N25: 1.01650165 | O25: 304 | P25: 1.00330033 | Q25: 299 | R25: 0.9867986799 | S25: 273 | T25: 0.900990099 | U25: 277 | V25: 0.9141914191 | W25: 297 | X25: 0.9801980198 | Y25: 188 | Z25: 0.6204620462 | AB25: 55 | AC25: 0.1815181518 | AD25: 33 | AE25: 0.1089108911 | AG25: =cálculos1!O25 -> 4 | AH25: 0.4 | AI25: =cálculos1!P25 -> 2 | AJ25: 0.5
A26: Sul | B26: Dores do Rio Preto | C26: 96 | D26: 74 | E26: 29 | F26: 0.3918918919 | G26: 50 | H26: 0.6756756757 | I26: 77 | J26: 1.040540541 | K26: 80 | L26: 1.081081081 | M26: 82 | N26: 1.108108108 | O26: 79 | P26: 1.067567568 | Q26: 80 | R26: 1.081081081 | S26: 65 | T26: 0.8783783784 | U26: 57 | V26: 0.7702702703 | W26: 80 | X26: 1.081081081 | Y26: 29 | Z26: 0.3918918919 | AB26: 26 | AC26: 0.3513513514 | AD26: 13 | AE26: 0.1756756757 | AG26: =cálculos1!O26 -> 6 | AH26: 0.6 | AI26: =cálculos1!P26 -> 4 | AJ26: 1
A27: Norte | B27: Ecoporanga | C27: 253 | D27: 203 | E27: 104 | F27: 0.5123152709 | G27: 102 | H27: 0.5024630542 | I27: 177 | J27: 0.8719211823 | K27: 174 | L27: 0.8571428571 | M27: 205 | N27: 1.009852217 | O27: 195 | P27: 0.960591133 | Q27: 192 | R27: 0.9458128079 | S27: 154 | T27: 0.7586206897 | U27: 166 | V27: 0.8177339901 | W27: 199 | X27: 0.9802955665 | Y27: 99 | Z27: 0.4876847291 | AB27: 19 | AC27: 0.09359605911 | AD27: 2 | AE27: 0.009852216749 | AG27: =cálculos1!O27 -> 3 | AH27: 0.3 | AI27: =cálculos1!P27 -> 2 | AJ27: 0.5
A28: Metropolitana | B28: Fundão | C28: 221 | D28: 176 | E28: 15 | F28: 0.08522727273 | G28: 74 | H28: 0.4204545455 | I28: 179 | J28: 1.017045455 | K28: 179 | L28: 1.017045455 | M28: 188 | N28: 1.068181818 | O28: 188 | P28: 1.068181818 | Q28: 162 | R28: 0.9204545455 | S28: 132 | T28: 0.75 | U28: 178 | V28: 1.011363636 | W28: 151 | X28: 0.8579545455 | Y28: 96 | Z28: 0.5454545455 | AB28: 15 | AC28: 0.08522727273 | AD28: 4 | AE28: 0.02272727273 | AG28: =cálculos1!O28 -> 5 | AH28: 0.5 | AI28: =cálculos1!P28 -> 3 | AJ28: 0.75
A29: Central | B29: Governador Lindenberg | C29: 130 | D29: 98 | E29: 19 | F29: 0.193877551 | G29: 18 | H29: 0.1836734694 | I29: 90 | J29: 0.9183673469 | K29: 87 | L29: 0.887755102 | M29: 87 | N29: 0.887755102 | O29: 90 | P29: 0.9183673469 | Q29: 94 | R29: 0.9591836735 | S29: 100 | T29: 1.020408163 | U29: 108 | V29: 1.102040816 | W29: 110 | X29: 1.12244898 | Y29: 45 | Z29: 0.4591836735 | AB29: 5 | AC29: 0.05102040816 | AD29: 2 | AE29: 0.02040816327 | AG29: =cálculos1!O29 -> 5 | AH29: 0.5 | AI29: =cálculos1!P29 -> 1 | AJ29: 0.25
A30: Sul | B30: Guaçuí | C30: 384 | D30: 287 | E30: 139 | F30: 0.4843205575 | G30: 164 | H30: 0.5714285714 | I30: 282 | J30: 0.9825783972 | K30: 274 | L30: 0.9547038328 | M30: 278 | N30: 0.968641115 | O30: 261 | P30: 0.9094076655 | Q30: 266 | R30: 0.9268292683 | S30: 223 | T30: 0.7770034843 | U30: 248 | V30: 0.8641114983 | W30: 318 | X30: 1.108013937 | Y30: 103 | Z30: 0.3588850174 | AB30: 59 | AC30: 0.2055749129 | AD30: 12 | AE30: 0.04181184669 | AG30: =cálculos1!O30 -> 5 | AH30: 0.5 | AI30: =cálculos1!P30 -> 4 | AJ30: 1
A31: Metropolitana | B31: Guarapari | C31: 1508 | D31: 1095 | E31: 995 | F31: 0.9086757991 | G31: 1073 | H31: 0.9799086758 | I31: 1020 | J31: 0.9315068493 | K31: 996 | L31: 0.9095890411 | M31: 1170 | N31: 1.068493151 | O31: 1124 | P31: 1.026484018 | Q31: 1068 | R31: 0.9753424658 | S31: 767 | T31: 0.700456621 | U31: 941 | V31: 0.8593607306 | W31: 1094 | X31: 0.999086758 | Y31: 528 | Z31: 0.4821917808 | AB31: 126 | AC31: 0.1150684932 | AD31: 39 | AE31: 0.03561643836 | AG31: =cálculos1!O31 -> 5 | AH31: 0.5 | AI31: =cálculos1!P31 -> 2 | AJ31: 0.5
A32: Metropolitana | B32: Ibatiba | C32: 367 | D32: 288 | E32: 120 | F32: 0.4166666667 | G32: 242 | H32: 0.8402777778 | I32: 279 | J32: 0.96875 | K32: 279 | L32: 0.96875 | M32: 287 | N32: 0.9965277778 | O32: 277 | P32: 0.9618055556 | Q32: 286 | R32: 0.9930555556 | S32: 245 | T32: 0.8506944444 | U32: 252 | V32: 0.875 | W32: 285 | X32: 0.9895833333 | Y32: 56 | Z32: 0.1944444444 | AB32: 104 | AC32: 0.3611111111 | AD32: 51 | AE32: 0.1770833333 | AG32: =cálculos1!O32 -> 6 | AH32: 0.6 | AI32: =cálculos1!P32 -> 4 | AJ32: 1
A33: Metropolitana | B33: Ibiraçu | C33: 151 | D33: 119 | E33: 24 | F33: 0.2016806723 | G33: 22 | H33: 0.1848739496 | I33: 94 | J33: 0.7899159664 | K33: 93 | L33: 0.781512605 | M33: 106 | N33: 0.8907563025 | O33: 105 | P33: 0.8823529412 | Q33: 113 | R33: 0.9495798319 | S33: 94 | T33: 0.7899159664 | U33: 85 | V33: 0.7142857143 | W33: 106 | X33: 0.8907563025 | Y33: 44 | Z33: 0.3697478992 | AB33: 17 | AC33: 0.1428571429 | AD33: 18 | AE33: 0.1512605042 | AG33: =cálculos1!O33 -> 0 | AH33: 0 | AI33: =cálculos1!P33 -> 0 | AJ33: 0
A34: Sul | B34: Ibitirama | C34: 140 | D34: 104 | E34: 56 | F34: 0.5384615385 | G34: 73 | H34: 0.7019230769 | I34: 95 | J34: 0.9134615385 | K34: 100 | L34: 0.9615384615 | M34: 96 | N34: 0.9230769231 | O34: 97 | P34: 0.9326923077 | Q34: 76 | R34: 0.7307692308 | S34: 76 | T34: 0.7307692308 | U34: 91 | V34: 0.875 | W34: 107 | X34: 1.028846154 | Y34: 48 | Z34: 0.4615384615 | AB34: 21 | AC34: 0.2019230769 | AD34: 4 | AE34: 0.03846153846 | AG34: =cálculos1!O34 -> 3 | AH34: 0.3 | AI34: =cálculos1!P34 -> 2 | AJ34: 0.5
A35: Sul | B35: Iconha | C35: 114 | D35: 90 | E35: 7 | F35: =E35/D35 -> 0.07777777778 | G35: 27 | H35: =G35/D35 -> 0.3 | I35: 79 | J35: =I35/D35 -> 0.8777777778 | K35: 77 | L35: =K35/D35 -> 0.8555555556 | M35: 83 | N35: =M35/D35 -> 0.9222222222 | O35: 86 | P35: =O35/D35 -> 0.9555555556 | Q35: 79 | R35: =Q35/D35 -> 0.8777777778 | S35: 96 | T35: =S35/D35 -> 1.066666667 | U35: 103 | V35: =U35/D35 -> 1.144444444 | W35: 114 | X35: =W35/D35 -> 1.266666667 | Y35: 31 | Z35: =Y35/D35 -> 0.3444444444 | AB35: 5 | AC35: 0.05555555556 | AD35: 3 | AE35: 0.03333333333 | AG35: =cálculos1!O35 -> 4 | AH35: 0.4 | AI35: =cálculos1!P35 -> 1 | AJ35: 0.25
A36: Sul | B36: Irupi | C36: 194 | D36: 147 | E36: 86 | F36: 0.5850340136 | G36: 104 | H36: 0.7074829932 | I36: 154 | J36: 1.047619048 | K36: 151 | L36: 1.027210884 | M36: 167 | N36: 1.136054422 | O36: 167 | P36: 1.136054422 | Q36: 167 | R36: 1.136054422 | S36: 134 | T36: 0.9115646259 | U36: 144 | V36: 0.9795918367 | W36: 165 | X36: 1.12244898 | Y36: 30 | Z36: 0.2040816327 | AB36: 54 | AC36: 0.3673469388 | AD36: 33 | AE36: 0.2244897959 | AG36: =cálculos1!O36 -> 7 | AH36: 0.7 | AI36: =cálculos1!P36 -> 4 | AJ36: 1
A37: Metropolitana | B37: Itaguaçu | C37: 137 | D37: 109 | E37: 14 | F37: 0.128440367 | G37: 76 | H37: 0.6972477064 | I37: 96 | J37: 0.880733945 | K37: 96 | L37: 0.880733945 | M37: 113 | N37: 1.036697248 | O37: 112 | P37: 1.027522936 | Q37: 101 | R37: 0.9266055046 | S37: 103 | T37: 0.9449541284 | U37: 117 | V37: 1.073394495 | W37: 114 | X37: 1.04587156 | Y37: 71 | Z37: 0.6513761468 | AB37: 20 | AC37: 0.1834862385 | AD37: 9 | AE37: 0.08256880734 | AG37: =cálculos1!O37 -> 4 | AH37: 0.4 | AI37: =cálculos1!P37 -> 2 | AJ37: 0.5
A38: Sul | B38: Itapemirim | C38: 520 | D38: 372 | E38: 708 | F38: 1.903225806 | G38: 181 | H38: 0.4865591398 | I38: 345 | J38: 0.9274193548 | K38: 343 | L38: 0.9220430108 | M38: 355 | N38: 0.9543010753 | O38: 324 | P38: 0.8709677419 | Q38: 334 | R38: 0.8978494624 | S38: 209 | T38: 0.561827957 | U38: 315 | V38: 0.8467741935 | W38: 364 | X38: 0.9784946237 | Y38: 145 | Z38: 0.3897849462 | AB38: 19 | AC38: 0.05107526882 | AD38: 8 | AE38: 0.02150537634 | AG38: =cálculos1!O38 -> 2 | AH38: 0.2 | AI38: =cálculos1!P38 -> 2 | AJ38: 0.5
A39: Metropolitana | B39: Itarana | C39: 136 | D39: 103 | E39: 14 | F39: 0.1359223301 | G39: 94 | H39: 0.9126213592 | I39: 98 | J39: 0.9514563107 | K39: 98 | L39: 0.9514563107 | M39: 94 | N39: 0.9126213592 | O39: 96 | P39: 0.932038835 | Q39: 93 | R39: 0.9029126214 | S39: 101 | T39: 0.9805825243 | U39: 75 | V39: 0.7281553398 | W39: 105 | X39: 1.019417476 | Y39: 61 | Z39: 0.5922330097 | AB39: 19 | AC39: 0.1844660194 | AD39: 10 | AE39: 0.09708737864 | AG39: =cálculos1!O39 -> 6 | AH39: 0.6 | AI39: =cálculos1!P39 -> 3 | AJ39: 0.75
A40: Sul | B40: Iúna | C40: 477 | D40: 354 | E40: 214 | F40: 0.604519774 | G40: 236 | H40: 0.6666666667 | I40: 322 | J40: 0.9096045198 | K40: 320 | L40: 0.9039548023 | M40: 334 | N40: 0.9435028249 | O40: 331 | P40: 0.9350282486 | Q40: 320 | R40: 0.9039548023 | S40: 311 | T40: 0.8785310734 | U40: 238 | V40: 0.6723163842 | W40: 329 | X40: 0.9293785311 | Y40: 158 | Z40: 0.4463276836 | AB40: 48 | AC40: 0.1355932203 | AD40: 16 | AE40: 0.04519774011 | AG40: =cálculos1!O40 -> 1 | AH40: 0.1 | AI40: =cálculos1!P40 -> 0 | AJ40: 0
A41: Norte | B41: Jaguaré | C41: 495 | D41: 385 | E41: 293 | F41: 0.761038961 | G41: 291 | H41: 0.7558441558 | I41: 342 | J41: 0.8883116883 | K41: 339 | L41: 0.8805194805 | M41: 343 | N41: 0.8909090909 | O41: 339 | P41: 0.8805194805 | Q41: 331 | R41: 0.8597402597 | S41: 313 | T41: 0.812987013 | U41: 287 | V41: 0.7454545455 | W41: 374 | X41: 0.9714285714 | Y41: 132 | Z41: 0.3428571429 | AB41: 47 | AC41: 0.1220779221 | AD41: 14 | AE41: 0.03636363636 | AG41: =cálculos1!O41 -> 1 | AH41: 0.1 | AI41: =cálculos1!P41 -> 1 | AJ41: 0.25
A42: Sul | B42: Jerônimo Monteiro | C42: 150 | D42: 117 | E42: 10 | F42: 0.08547008547 | G42: 11 | H42: 0.09401709402 | I42: 122 | J42: 1.042735043 | K42: 123 | L42: 1.051282051 | M42: 114 | N42: 0.9743589744 | O42: 114 | P42: 0.9743589744 | Q42: 114 | R42: 0.9743589744 | S42: 116 | T42: 0.9914529915 | U42: 124 | V42: 1.05982906 | W42: 124 | X42: 1.05982906 | Y42: 32 | Z42: 0.2735042735 | AB42: 41 | AC42: 0.3504273504 | AD42: 25 | AE42: 0.2136752137 | AG42: =cálculos1!O42 -> 8 | AH42: 0.8 | AI42: =cálculos1!P42 -> 4 | AJ42: 1
A43: Metropolitana | B43: João Neiva | C43: 161 | D43: 120 | E43: 23 | F43: 0.1916666667 | G43: 33 | H43: 0.275 | I43: 115 | J43: 0.9583333333 | K43: 117 | L43: 0.975 | M43: 122 | N43: 1.016666667 | O43: 123 | P43: 1.025 | Q43: 116 | R43: 0.9666666667 | S43: 123 | T43: 1.025 | U43: 113 | V43: 0.9416666667 | W43: 152 | X43: 1.266666667 | Y43: 62 | Z43: 0.5166666667 | AB43: 9 | AC43: 0.075 | AD43: 4 | AE43: 0.03333333333 | AG43: =cálculos1!O43 -> 7 | AH43: 0.7 | AI43: =cálculos1!P43 -> 4 | AJ43: 1
A44: Metropolitana | B44: Laranja da Terra | C44: 84 | D44: 67 | E44: 4 | F44: 0.05970149254 | G44: 60 | H44: 0.8955223881 | I44: 72 | J44: 1.074626866 | K44: 72 | L44: 1.074626866 | M44: 69 | N44: 1.029850746 | O44: 68 | P44: 1.014925373 | Q44: 76 | R44: 1.134328358 | S44: 88 | T44: 1.313432836 | U44: 92 | V44: 1.373134328 | W44: 104 | X44: 1.552238806 | Y44: 65 | Z44: 0.9701492537 | AB44: 19 | AC44: 0.2835820896 | AD44: 12 | AE44: 0.1791044776 | AG44: =cálculos1!O44 -> 9 | AH44: 0.9 | AI44: =cálculos1!P44 -> 4 | AJ44: 1
A45: Central | B45: Linhares | C45: 2598 | D45: 2014 | E45: 1833 | F45: 0.9101290963 | G45: 1889 | H45: 0.9379344588 | I45: 1639 | J45: 0.8138033764 | K45: 1636 | L45: 0.8123138034 | M45: 1737 | N45: 0.8624627607 | O45: 1737 | P45: 0.8624627607 | Q45: 1687 | R45: 0.8376365442 | S45: 1367 | T45: 0.6787487587 | U45: 1588 | V45: 0.7884806356 | W45: 1731 | X45: 0.8594836147 | Y45: 809 | Z45: 0.4016881827 | AB45: 64 | AC45: 0.0317775571 | AD45: 20 | AE45: 0.009930486594 | AG45: =cálculos1!O45 -> 1 | AH45: 0.1 | AI45: =cálculos1!P45 -> 0 | AJ45: 0
A46: Central | B46: Mantenópolis | C46: 153 | D46: 116 | E46: 46 | F46: 0.3965517241 | G46: 58 | H46: 0.5 | I46: 111 | J46: 0.9568965517 | K46: 113 | L46: 0.974137931 | M46: 104 | N46: 0.8965517241 | O46: 102 | P46: 0.8793103448 | Q46: 103 | R46: 0.8879310345 | S46: 110 | T46: 0.9482758621 | U46: 108 | V46: 0.9310344828 | W46: 124 | X46: 1.068965517 | Y46: 55 | Z46: 0.474137931 | AB46: 28 | AC46: 0.2413793103 | AD46: 4 | AE46: 0.03448275862 | AG46: =cálculos1!O46 -> 3 | AH46: 0.3 | AI46: =cálculos1!P46 -> 3 | AJ46: 0.75
A47: Sul | B47: Marataízes | C47: 553 | D47: 432 | E47: 13 | F47: 0.03009259259 | G47: 182 | H47: 0.4212962963 | I47: 432 | J47: 1 | K47: 432 | L47: 1 | M47: 457 | N47: 1.05787037 | O47: 438 | P47: 1.013888889 | Q47: 433 | R47: 1.002314815 | S47: 276 | T47: 0.6388888889 | U47: 396 | V47: 0.9166666667 | W47: 432 | X47: 1 | Y47: 195 | Z47: 0.4513888889 | AB47: 48 | AC47: 0.1111111111 | AD47: 12 | AE47: 0.02777777778 | AG47: =cálculos1!O47 -> 6 | AH47: 0.6 | AI47: =cálculos1!P47 -> 4 | AJ47: 1
A48: Metropolitana | B48: Marechal Floriano | C48: 221 | D48: 158 | E48: 28 | F48: 0.1772151899 | G48: 33 | H48: 0.2088607595 | I48: 154 | J48: 0.9746835443 | K48: 153 | L48: 0.9683544304 | M48: 164 | N48: 1.037974684 | O48: 162 | P48: 1.025316456 | Q48: 160 | R48: 1.012658228 | S48: 125 | T48: 0.7911392405 | U48: 168 | V48: 1.063291139 | W48: 165 | X48: 1.044303797 | Y48: 107 | Z48: 0.6772151899 | AB48: 26 | AC48: 0.164556962 | AD48: 12 | AE48: 0.07594936709 | AG48: =cálculos1!O48 -> 7 | AH48: 0.7 | AI48: =cálculos1!P48 -> 4 | AJ48: 1
A49: Central | B49: Marilândia | C49: 154 | D49: 113 | E49: 38 | F49: 0.3362831858 | G49: 51 | H49: 0.4513274336 | I49: 96 | J49: 0.8495575221 | K49: 96 | L49: 0.8495575221 | M49: 97 | N49: 0.8584070796 | O49: 109 | P49: 0.9646017699 | Q49: 106 | R49: 0.9380530973 | S49: 107 | T49: 0.9469026549 | U49: 104 | V49: 0.9203539823 | W49: 108 | X49: 0.9557522124 | Y49: 68 | Z49: 0.6017699115 | AB49: 35 | AC49: 0.3097345133 | AD49: 13 | AE49: 0.1150442478 | AG49: =cálculos1!O49 -> 2 | AH49: 0.2 | AI49: =cálculos1!P49 -> 1 | AJ49: 0.25
A50: Sul | B50: Mimoso do Sul | C50: 263 | D50: 200 | E50: 29 | F50: 0.145 | G50: 38 | H50: 0.19 | I50: 140 | J50: 0.7 | K50: 139 | L50: 0.695 | M50: 147 | N50: 0.735 | O50: 145 | P50: 0.725 | Q50: 136 | R50: 0.68 | S50: 132 | T50: 0.66 | U50: 132 | V50: 0.66 | W50: 164 | X50: 0.82 | Y50: 83 | Z50: 0.415 | AB50: 6 | AC50: 0.03 | AD50: 2 | AE50: 0.01 | AG50: =cálculos1!O50 -> 0 | AH50: 0 | AI50: =cálculos1!P50 -> 0 | AJ50: 0
A51: Norte | B51: Montanha | C51: 226 | D51: 171 | E51: 62 | F51: 0.3625730994 | G51: 74 | H51: 0.432748538 | I51: 210 | J51: 1.228070175 | K51: 213 | L51: 1.245614035 | M51: 198 | N51: 1.157894737 | O51: 194 | P51: 1.134502924 | Q51: 201 | R51: 1.175438596 | S51: 195 | T51: 1.140350877 | U51: 192 | V51: 1.122807018 | W51: 208 | X51: 1.216374269 | Y51: 102 | Z51: 0.5964912281 | AB51: 91 | AC51: 0.5321637427 | AD51: 36 | AE51: 0.2105263158 | AG51: =cálculos1!O51 -> 8 | AH51: 0.8 | AI51: =cálculos1!P51 -> 4 | AJ51: 1
A52: Norte | B52: Mucurici | C52: 74 | D52: 52 | E52: 9 | F52: 0.1730769231 | G52: 10 | H52: 0.1923076923 | I52: 60 | J52: 1.153846154 | K52: 60 | L52: 1.153846154 | M52: 59 | N52: 1.134615385 | O52: 58 | P52: 1.115384615 | Q52: 56 | R52: 1.076923077 | S52: 68 | T52: 1.307692308 | U52: 49 | V52: 0.9423076923 | W52: 70 | X52: 1.346153846 | Y52: 29 | Z52: 0.5576923077 | AB52: 21 | AC52: 0.4038461538 | AD52: 12 | AE52: 0.2307692308 | AG52: =cálculos1!O52 -> 7 | AH52: 0.7 | AI52: =cálculos1!P52 -> 4 | AJ52: 1
A53: Sul | B53: Muniz Freire | C53: 213 | D53: 161 | E53: 91 | F53: 0.5652173913 | G53: 104 | H53: 0.6459627329 | I53: 170 | J53: 1.055900621 | K53: 165 | L53: 1.02484472 | M53: 173 | N53: 1.074534161 | O53: 174 | P53: 1.080745342 | Q53: 168 | R53: 1.043478261 | S53: 163 | T53: 1.01242236 | U53: 165 | V53: 1.02484472 | W53: 191 | X53: 1.186335404 | Y53: 72 | Z53: 0.4472049689 | AB53: 29 | AC53: 0.1801242236 | AD53: 4 | AE53: 0.0248447205 | AG53: =cálculos1!O53 -> 8 | AH53: 0.8 | AI53: =cálculos1!P53 -> 4 | AJ53: 1
A54: Sul | B54: Muqui | C54: 147 | D54: 116 | E54: 11 | F54: 0.09482758621 | G54: 16 | H54: 0.1379310345 | I54: 133 | J54: 1.146551724 | K54: 133 | L54: 1.146551724 | M54: 116 | N54: 1 | O54: 118 | P54: 1.017241379 | Q54: 117 | R54: 1.00862069 | S54: 122 | T54: 1.051724138 | U54: 95 | V54: 0.8189655172 | W54: 133 | X54: 1.146551724 | Y54: 51 | Z54: 0.4396551724 | AB54: 36 | AC54: 0.3103448276 | AD54: 20 | AE54: 0.1724137931 | AG54: =cálculos1!O54 -> 7 | AH54: 0.7 | AI54: =cálculos1!P54 -> 4 | AJ54: 1
A55: Norte | B55: Nova Venécia | C55: 627 | D55: 485 | E55: 60 | F55: 0.1237113402 | G55: 314 | H55: 0.6474226804 | I55: 471 | J55: 0.9711340206 | K55: 471 | L55: 0.9711340206 | M55: 446 | N55: 0.9195876289 | O55: 451 | P55: 0.9298969072 | Q55: 473 | R55: 0.975257732 | S55: 448 | T55: 0.9237113402 | U55: 403 | V55: 0.8309278351 | W55: 535 | X55: 1.103092784 | Y55: 228 | Z55: 0.4701030928 | AB55: 13 | AC55: 0.02680412371 | AD55: 5 | AE55: 0.01030927835 | AG55: =cálculos1!O55 -> 5 | AH55: 0.5 | AI55: =cálculos1!P55 -> 3 | AJ55: 0.75
A56: Central | B56: Pancas | C56: 208 | D56: 156 | E56: 38 | F56: 0.2435897436 | G56: 77 | H56: 0.4935897436 | I56: 164 | J56: 1.051282051 | K56: 164 | L56: 1.051282051 | M56: 161 | N56: 1.032051282 | O56: 160 | P56: 1.025641026 | Q56: 161 | R56: 1.032051282 | S56: 157 | T56: 1.006410256 | U56: 152 | V56: 0.9743589744 | W56: 156 | X56: 1 | Y56: 115 | Z56: 0.7371794872 | AB56: 11 | AC56: 0.07051282051 | AD56: 4 | AE56: 0.02564102564 | AG56: =cálculos1!O56 -> 8 | AH56: 0.8 | AI56: =cálculos1!P56 -> 4 | AJ56: 1
A57: Norte | B57: Pedro Canário | C57: 316 | D57: 234 | E57: 20 | F57: 0.08547008547 | G57: 17 | H57: 0.07264957265 | I57: 251 | J57: 1.072649573 | K57: 249 | L57: 1.064102564 | M57: 239 | N57: 1.021367521 | O57: 235 | P57: 1.004273504 | Q57: 247 | R57: 1.055555556 | S57: 207 | T57: 0.8846153846 | U57: 169 | V57: 0.7222222222 | W57: 276 | X57: 1.179487179 | Y57: 129 | Z57: 0.5512820513 | AB57: 31 | AC57: 0.1324786325 | AD57: 6 | AE57: 0.02564102564 | AG57: =cálculos1!O57 -> 6 | AH57: 0.6 | AI57: =cálculos1!P57 -> 4 | AJ57: 1
A58: Norte | B58: Pinheiros | C58: 328 | D58: 252 | E58: 10 | F58: 0.03968253968 | G58: 12 | H58: 0.04761904762 | I58: 252 | J58: 1 | K58: 248 | L58: 0.9841269841 | M58: 236 | N58: 0.9365079365 | O58: 237 | P58: 0.9404761905 | Q58: 229 | R58: 0.9087301587 | S58: 205 | T58: 0.8134920635 | U58: 194 | V58: 0.7698412698 | W58: 239 | X58: 0.9484126984 | Y58: 79 | Z58: 0.3134920635 | AB58: 41 | AC58: 0.1626984127 | AD58: 18 | AE58: 0.07142857143 | AG58: =cálculos1!O58 -> 3 | AH58: 0.3 | AI58: =cálculos1!P58 -> 2 | AJ58: 0.5
A59: Sul | B59: Piúma | C59: 288 | D59: 206 | E59: 8 | F59: 0.03883495146 | G59: 125 | H59: 0.6067961165 | I59: 206 | J59: 1 | K59: 205 | L59: 0.9951456311 | M59: 217 | N59: 1.053398058 | O59: 204 | P59: 0.9902912621 | Q59: 186 | R59: 0.9029126214 | S59: 137 | T59: 0.6650485437 | U59: 165 | V59: 0.8009708738 | W59: 193 | X59: 0.9368932039 | Y59: 81 | Z59: 0.3932038835 | AB59: 54 | AC59: 0.2621359223 | AD59: 20 | AE59: 0.09708737864 | AG59: =cálculos1!O59 -> 4 | AH59: 0.4 | AI59: =cálculos1!P59 -> 3 | AJ59: 0.75
A60: Norte | B60: Ponto Belo | C60: 74 | D60: 52 | E60: 15 | F60: 0.2884615385 | G60: 7 | H60: 0.1346153846 | I60: 53 | J60: 1.019230769 | K60: 52 | L60: 1 | M60: 55 | N60: 1.057692308 | O60: 56 | P60: 1.076923077 | Q60: 50 | R60: 0.9615384615 | S60: 57 | T60: 1.096153846 | U60: 36 | V60: 0.6923076923 | W60: 69 | X60: 1.326923077 | Y60: 25 | Z60: 0.4807692308 | AB60: 12 | AC60: 0.2307692308 | AD60: 7 | AE60: 0.1346153846 | AG60: =cálculos1!O60 -> 7 | AH60: 0.7 | AI60: =cálculos1!P60 -> 4 | AJ60: 1
A61: Sul | B61: Presidente Kennedy | C61: 200 | D61: 163 | E61: 5 | F61: 0.03067484663 | G61: 13 | H61: 0.07975460123 | I61: 124 | J61: 0.7607361963 | K61: 126 | L61: 0.773006135 | M61: 137 | N61: 0.8404907975 | O61: 136 | P61: 0.8343558282 | Q61: 143 | R61: 0.8773006135 | S61: 112 | T61: 0.6871165644 | U61: 150 | V61: 0.9202453988 | W61: 171 | X61: 1.049079755 | Y61: 73 | Z61: 0.4478527607 | AB61: 23 | AC61: 0.1411042945 | AD61: 4 | AE61: 0.0245398773 | AG61: =cálculos1!O61 -> 1 | AH61: 0.1 | AI61: =cálculos1!P61 -> 1 | AJ61: 0.25
A62: Central | B62: Rio Bananal | C62: 272 | D62: 215 | E62: 52 | F62: 0.2418604651 | G62: 39 | H62: 0.1813953488 | I62: 217 | J62: 1.009302326 | K62: 216 | L62: 1.004651163 | M62: 209 | N62: 0.9720930233 | O62: 215 | P62: 1 | Q62: 187 | R62: 0.8697674419 | S62: 207 | T62: 0.9627906977 | U62: 234 | V62: 1.088372093 | W62: 254 | X62: 1.181395349 | Y62: 119 | Z62: 0.5534883721 | AB62: 44 | AC62: 0.2046511628 | AD62: 19 | AE62: 0.08837209302 | AG62: =cálculos1!O62 -> 7 | AH62: 0.7 | AI62: =cálculos1!P62 -> 4 | AJ62: 1
A63: Sul | B63: Rio Novo do Sul | C63: 109 | D63: 77 | E63: 5 | F63: 0.06493506494 | G63: 28 | H63: 0.3636363636 | I63: 90 | J63: 1.168831169 | K63: 88 | L63: 1.142857143 | M63: 75 | N63: 0.974025974 | O63: 76 | P63: 0.987012987 | Q63: 81 | R63: 1.051948052 | S63: 75 | T63: 0.974025974 | U63: 84 | V63: 1.090909091 | W63: 88 | X63: 1.142857143 | Y63: 51 | Z63: 0.6623376623 | AB63: 20 | AC63: 0.2597402597 | AD63: 7 | AE63: 0.09090909091 | AG63: =cálculos1!O63 -> 8 | AH63: 0.8 | AI63: =cálculos1!P63 -> 4 | AJ63: 1
A64: Metropolitana | B64: Santa Leopoldina | C64: 99 | D64: 69 | E64: 3 | F64: 0.04347826087 | G64: 20 | H64: 0.2898550725 | I64: 78 | J64: 1.130434783 | K64: 79 | L64: 1.144927536 | M64: 77 | N64: 1.115942029 | O64: 79 | P64: 1.144927536 | Q64: 80 | R64: 1.15942029 | S64: 72 | T64: 1.043478261 | U64: 94 | V64: 1.362318841 | W64: 86 | X64: 1.246376812 | Y64: 15 | Z64: 0.2173913043 | AB64: 4 | AC64: 0.05797101449 | AD64: 0 | AE64: 0 | AG64: =cálculos1!O64 -> 8 | AH64: 0.8 | AI64: =cálculos1!P64 -> 4 | AJ64: 1
A65: Metropolitana | B65: Santa Maria de Jetibá | C65: 656 | D65: 500 | E65: 339 | F65: 0.678 | G65: 381 | H65: 0.762 | I65: 426 | J65: 0.852 | K65: 425 | L65: 0.85 | M65: 434 | N65: 0.868 | O65: 447 | P65: 0.894 | Q65: 437 | R65: 0.874 | S65: 356 | T65: 0.712 | U65: 473 | V65: 0.946 | W65: 459 | X65: 0.918 | Y65: 196 | Z65: 0.392 | AB65: 38 | AC65: 0.076 | AD65: 18 | AE65: 0.036 | AG65: =cálculos1!O65 -> 0 | AH65: 0 | AI65: =cálculos1!P65 -> 0 | AJ65: 0
A66: Metropolitana | B66: Santa Teresa | C66: 310 | D66: 234 | E66: 501 | F66: 2.141025641 | G66: 166 | H66: 0.7094017094 | I66: 210 | J66: 0.8974358974 | K66: 210 | L66: 0.8974358974 | M66: 218 | N66: 0.9316239316 | O66: 210 | P66: 0.8974358974 | Q66: 198 | R66: 0.8461538462 | S66: 169 | T66: 0.7222222222 | U66: 180 | V66: 0.7692307692 | W66: 209 | X66: 0.8931623932 | Y66: 121 | Z66: 0.5170940171 | AB66: 9 | AC66: 0.03846153846 | AD66: 3 | AE66: 0.01282051282 | AG66: =cálculos1!O66 -> 0 | AH66: 0 | AI66: =cálculos1!P66 -> 0 | AJ66: 0
A67: Central | B67: São Domingos do Norte | C67: 118 | D67: 85 | E67: 23 | F67: =E67/D67 -> 0.2705882353 | G67: 41 | H67: =G67/D67 -> 0.4823529412 | I67: 80 | J67: =I67/D67 -> 0.9411764706 | K67: 80 | L67: =K67/D67 -> 0.9411764706 | M67: 88 | N67: =M67/D67 -> 1.035294118 | O67: 86 | P67: =O67/D67 -> 1.011764706 | Q67: 81 | R67: =Q67/D67 -> 0.9529411765 | S67: 81 | T67: =S67/D67 -> 0.9529411765 | U67: 52 | V67: =U67/D67 -> 0.6117647059 | W67: 88 | X67: =W67/D67 -> 1.035294118 | Y67: 33 | Z67: =Y67/D67 -> 0.3882352941 | AB67: 3 | AC67: 0.03529411765 | AD67: 1 | AE67: 0.01176470588 | AG67: =cálculos1!O67 -> 5 | AH67: 0.5 | AI67: =cálculos1!P67 -> 2 | AJ67: 0.5
A68: Central | B68: São Gabriel da Palha | C68: 455 | D68: 346 | E68: 119 | F68: 0.3439306358 | G68: 202 | H68: 0.5838150289 | I68: 314 | J68: 0.9075144509 | K68: 316 | L68: 0.9132947977 | M68: 332 | N68: 0.9595375723 | O68: 321 | P68: 0.9277456647 | Q68: 320 | R68: 0.9248554913 | S68: 253 | T68: 0.7312138728 | U68: 271 | V68: 0.7832369942 | W68: 298 | X68: 0.8612716763 | Y68: 131 | Z68: 0.3786127168 | AB68: 6 | AC68: =AB68/D68 -> 0.01734104046 | AD68: 4 | AE68: =AD68/D68 -> 0.01156069364 | AG68: =cálculos1!O68 -> 2 | AH68: =AG68*0.1 -> 0.2 | AI68: =cálculos1!P68 -> 1 | AJ68: =AI68*0.25 -> 0.25
A69: Sul | B69: São José do Calçado | C69: 99 | D69: 82 | E69: 54 | F69: 0.6585365854 | G69: 59 | H69: 0.7195121951 | I69: 91 | J69: 1.109756098 | K69: 91 | L69: 1.109756098 | M69: 85 | N69: 1.036585366 | O69: 76 | P69: 0.9268292683 | Q69: 92 | R69: 1.12195122 | S69: 72 | T69: 0.8780487805 | U69: 74 | V69: 0.9024390244 | W69: 101 | X69: 1.231707317 | Y69: 43 | Z69: 0.5243902439 | AB69: 0 | AC69: 0 | AD69: 0 | AE69: 0 | AG69: =cálculos1!O69 -> 6 | AH69: 0.6 | AI69: =cálculos1!P69 -> 4 | AJ69: 1
A70: Norte | B70: São Mateus | C70: 1939 | D70: 1478 | E70: 2206 | F70: 1.49255751 | G70: 2112 | H70: 1.428958051 | I70: 1286 | J70: 0.8700947226 | K70: 1262 | L70: 0.8538565629 | M70: 1348 | N70: 0.9120433018 | O70: 1253 | P70: 0.847767253 | Q70: 1203 | R70: 0.8139377537 | S70: 944 | T70: 0.6387009472 | U70: 1055 | V70: 0.7138024357 | W70: 1265 | X70: 0.8558863329 | Y70: 522 | Z70: 0.3531799729 | AB70: 266 | AC70: 0.1799729364 | AD70: 90 | AE70: 0.06089309878 | AG70: =cálculos1!O70 -> 1 | AH70: 0.1 | AI70: =cálculos1!P70 -> 0 | AJ70: 0
A71: Central | B71: São Roque do Canaã | C71: 129 | D71: 108 | E71: 34 | F71: 0.3148148148 | G71: 32 | H71: 0.2962962963 | I71: 88 | J71: 0.8148148148 | K71: 88 | L71: 0.8148148148 | M71: 77 | N71: 0.712962963 | O71: 86 | P71: 0.7962962963 | Q71: 90 | R71: 0.8333333333 | S71: 84 | T71: 0.7777777778 | U71: 95 | V71: 0.8796296296 | W71: 109 | X71: 1.009259259 | Y71: 41 | Z71: 0.3796296296 | AB71: 42 | AC71: 0.3888888889 | AD71: 19 | AE71: 0.1759259259 | AG71: =cálculos1!O71 -> 1 | AH71: 0.1 | AI71: =cálculos1!P71 -> 1 | AJ71: 0.25
A72: Metropolitana | B72: Serra | C72: 7300 | D72: 5643 | E72: 6689 | F72: 1.185362396 | G72: 6446 | H72: 1.142300195 | I72: 4609 | J72: 0.8167641326 | K72: 4566 | L72: 0.8091440723 | M72: 4909 | N72: 0.8699273436 | O72: 4759 | P72: 0.8433457381 | Q72: 4647 | R72: 0.8234981393 | S72: 3618 | T72: 0.6411483254 | U72: 2752 | V72: 0.4876838561 | W72: 4812 | X72: 0.8527379054 | Y72: 1510 | Z72: 0.2675881623 | AB72: 692 | AC72: 0.1226298068 | AD72: 241 | AE72: 0.04270777955 | AG72: =cálculos1!O72 -> 1 | AH72: 0.1 | AI72: =cálculos1!P72 -> 0 | AJ72: 0
A73: Central | B73: Sooretama | C73: 425 | D73: 322 | E73: 30 | F73: 0.09316770186 | G73: 30 | H73: 0.09316770186 | I73: 299 | J73: 0.9285714286 | K73: 301 | L73: 0.9347826087 | M73: 330 | N73: 1.02484472 | O73: 329 | P73: 1.02173913 | Q73: 278 | R73: 0.8633540373 | S73: 264 | T73: 0.8198757764 | U73: 298 | V73: 0.9254658385 | W73: 315 | X73: 0.9782608696 | Y73: 110 | Z73: 0.3416149068 | AB73: 21 | AC73: 0.0652173913 | AD73: 6 | AE73: 0.01863354037 | AG73: =cálculos1!O73 -> 3 | AH73: 0.3 | AI73: =cálculos1!P73 -> 2 | AJ73: 0.5
A74: Sul | B74: Vargem Alta | C74: 264 | D74: 203 | E74: 7 | F74: 0.03448275862 | G74: 20 | H74: 0.09852216749 | I74: 164 | J74: 0.8078817734 | K74: 164 | L74: 0.8078817734 | M74: 177 | N74: 0.8719211823 | O74: 183 | P74: 0.9014778325 | Q74: 178 | R74: 0.8768472906 | S74: 158 | T74: 0.7783251232 | U74: 179 | V74: 0.881773399 | W74: 194 | X74: 0.9556650246 | Y74: 89 | Z74: 0.4384236453 | AB74: 29 | AC74: 0.1428571429 | AD74: 10 | AE74: 0.04926108374 | AG74: =cálculos1!O74 -> 2 | AH74: 0.2 | AI74: =cálculos1!P74 -> 1 | AJ74: 0.25
A75: Metropolitana | B75: Venda Nova do Imigrante | C75: 368 | D75: 272 | E75: 155 | F75: 0.5698529412 | G75: 325 | H75: 1.194852941 | I75: 291 | J75: 1.069852941 | K75: 291 | L75: 1.069852941 | M75: 261 | N75: 0.9595588235 | O75: 255 | P75: 0.9375 | Q75: 264 | R75: 0.9705882353 | S75: 275 | T75: 1.011029412 | U75: 206 | V75: 0.7573529412 | W75: 344 | X75: 1.264705882 | Y75: 133 | Z75: 0.4889705882 | AB75: 50 | AC75: 0.1838235294 | AD75: 33 | AE75: 0.1213235294 | AG75: =cálculos1!O75 -> 8 | AH75: 0.8 | AI75: =cálculos1!P75 -> 4 | AJ75: 1
A76: Metropolitana | B76: Viana | C76: 917 | D76: 688 | E76: 131 | F76: 0.1904069767 | G76: 120 | H76: 0.1744186047 | I76: 646 | J76: 0.9389534884 | K76: 634 | L76: 0.9215116279 | M76: 694 | N76: 1.00872093 | O76: 660 | P76: 0.9593023256 | Q76: 670 | R76: 0.9738372093 | S76: 459 | T76: 0.6671511628 | U76: 572 | V76: 0.8313953488 | W76: 640 | X76: 0.9302325581 | Y76: 185 | Z76: 0.2688953488 | AB76: 115 | AC76: 0.1671511628 | AD76: 48 | AE76: 0.06976744186 | AG76: =cálculos1!O76 -> 3 | AH76: 0.3 | AI76: =cálculos1!P76 -> 1 | AJ76: 0.25
A77: Norte | B77: Vila Pavão | C77: 100 | D77: 82 | E77: 24 | F77: 0.2926829268 | G77: 47 | H77: 0.5731707317 | I77: 75 | J77: 0.9146341463 | K77: 74 | L77: 0.9024390244 | M77: 73 | N77: 0.8902439024 | O77: 73 | P77: 0.8902439024 | Q77: 78 | R77: 0.9512195122 | S77: 75 | T77: 0.9146341463 | U77: 95 | V77: 1.158536585 | W77: 93 | X77: 1.134146341 | Y77: 43 | Z77: 0.5243902439 | AB77: 16 | AC77: 0.1951219512 | AD77: 3 | AE77: 0.03658536585 | AG77: =cálculos1!O77 -> 3 | AH77: 0.3 | AI77: =cálculos1!P77 -> 1 | AJ77: 0.25
A78: Central | B78: Vila Valério | C78: 255 | D78: 188 | E78: 25 | F78: 0.1329787234 | G78: 53 | H78: 0.2819148936 | I78: 167 | J78: 0.8882978723 | K78: 164 | L78: 0.8723404255 | M78: 175 | N78: 0.9308510638 | O78: 177 | P78: 0.9414893617 | Q78: 180 | R78: 0.9574468085 | S78: 166 | T78: 0.8829787234 | U78: 157 | V78: 0.835106383 | W78: 189 | X78: 1.005319149 | Y78: 70 | Z78: 0.3723404255 | AB78: 3 | AC78: 0.01595744681 | AD78: 1 | AE78: 0.005319148936 | AG78: =cálculos1!O78 -> 3 | AH78: 0.3 | AI78: =cálculos1!P78 -> 1 | AJ78: 0.25
A79: Metropolitana | B79: Vila Velha | C79: 5675 | D79: 4304 | E79: 3283 | F79: 0.7627788104 | G79: 3241 | H79: 0.7530204461 | I79: 3449 | J79: 0.8013475836 | K79: 3449 | L79: 0.8013475836 | M79: 3670 | N79: 0.8526951673 | O79: 3605 | P79: 0.8375929368 | Q79: 3553 | R79: 0.8255111524 | S79: 2814 | T79: 0.6538104089 | U79: 3171 | V79: 0.7367565056 | W79: 3804 | X79: 0.8838289963 | Y79: 1584 | Z79: 0.3680297398 | AB79: 618 | AC79: 0.1435873606 | AD79: 276 | AE79: 0.06412639405 | AG79: =cálculos1!O79 -> 0 | AH79: 0 | AI79: =cálculos1!P79 -> 0 | AJ79: 0
A80: Metropolitana | B80: Vitória | C80: 3622 | D80: 2753 | E80: 4913 | F80: 1.78459862 | G80: 5349 | H80: 1.942971304 | I80: 3086 | J80: 1.120958954 | K80: 3085 | L80: 1.120595714 | M80: 3028 | N80: 1.099891028 | O80: 2886 | P80: 1.048310934 | Q80: 2894 | R80: 1.051216854 | S80: 2008 | T80: 0.7293861242 | U80: 3012 | V80: 1.094079186 | W80: 3170 | X80: 1.151471122 | Y80: 1571 | Z80: 0.5706501998 | AB80: 749 | AC80: 0.2720668362 | AD80: 374 | AE80: 0.135851798 | AG80: =cálculos1!O80 -> 8 | AH80: 0.8 | AI80: =cálculos1!P80 -> 4 | AJ80: 1
B82: Total Norte | C82: =SUMIF($A$3:$A$80,"Norte",C$3:C$80) -> 5787 | D82: =SUMIF($A$3:$A$80,"Norte",D$3:D$80) -> 4442 | E82: =SUMIF($A$3:$A$80,"Norte",E$3:E$80) -> 3235 | F82: =E82/D82 -> 0.7282755516 | G82: =SUMIF($A$3:$A$80,"Norte",G$3:G$80) -> 3501 | H82: =G82/D82 -> 0.7881584872 | I82: =SUMIF($A$3:$A$80,"Norte",I$3:I$80) -> 4088 | J82: =I82/D82 -> 0.9203061684 | K82: =SUMIF($A$3:$A$80,"Norte",K$3:K$80) -> 4056 | L82: =K82/D82 -> 0.9131022062 | M82: =SUMIF($A$3:$A$80,"Norte",M$3:M$80) -> 4194 | N82: =M82/D82 -> 0.9441692931 | O82: =SUMIF($A$3:$A$80,"Norte",O$3:O$80) -> 4069 | P82: =O82/D82 -> 0.9160288158 | Q82: =SUMIF($A$3:$A$80,"Norte",Q$3:Q$80) -> 4009 | R82: =Q82/D82 -> 0.9025213868 | S82: =SUMIF($A$3:$A$80,"Norte",S$3:S$80) -> 3479 | T82: =S82/D82 -> 0.7832057632 | U82: =SUMIF($A$3:$A$80,"Norte",U$3:U$80) -> 3403 | V82: =U82/D82 -> 0.766096353 | W82: =SUMIF($A$3:$A$80,"Norte",W$3:W$80) -> 4312 | X82: =W82/D82 -> 0.9707339036 | Y82: =SUMIF($A$3:$A$80,"Norte",Y$3:Y$80) -> 1837 | Z82: =Y82/D82 -> 0.4135524538 | AB82: =SUMIF($A$3:$A$80,"Norte",AB$3:AB$80) -> 642 | AC82: =AB82/D82 -> 0.1445294912 | AD82: =SUMIF($A$3:$A$80,"Norte",AD$3:AD$80) -> 228 | AE82: =AD82/D82 -> 0.05132823053 | AG82: =cálculos1!O82 -> 2 | AH82: =AG82*0.1 -> 0.2 | AI82: =cálculos1!P82 -> 1 | AJ82: 0.25
B83: Total Central | C83: =SUMIF($A$3:$A$80,"Central",C$3:C$80) -> 7061 | D83: =SUMIF($A$3:$A$80,"Central",D$3:D$80) -> 5413 | E83: =SUMIF($A$3:$A$80,"Central",E$3:E$80) -> 5126 | F83: =E83/D83 -> 0.9469794938 | G83: =SUMIF($A$3:$A$80,"Central",G$3:G$80) -> 5236 | H83: =G83/D83 -> 0.9673009422 | I83: =SUMIF($A$3:$A$80,"Central",I$3:I$80) -> 4899 | J83: =I83/D83 -> 0.905043414 | K83: =SUMIF($A$3:$A$80,"Central",K$3:K$80) -> 4883 | L83: =K83/D83 -> 0.902087567 | M83: =SUMIF($A$3:$A$80,"Central",M$3:M$80) -> 5094 | N83: =M83/D83 -> 0.9410677997 | O83: =SUMIF($A$3:$A$80,"Central",O$3:O$80) -> 5039 | P83: =O83/D83 -> 0.9309070756 | Q83: =SUMIF($A$3:$A$80,"Central",Q$3:Q$80) -> 4867 | R83: =Q83/D83 -> 0.8991317199 | S83: =SUMIF($A$3:$A$80,"Central",S$3:S$80) -> 4208 | T83: =S83/D83 -> 0.7773877702 | U83: =SUMIF($A$3:$A$80,"Central",U$3:U$80) -> 4471 | V83: =U83/D83 -> 0.8259745058 | W83: =SUMIF($A$3:$A$80,"Central",W$3:W$80) -> 5175 | X83: =W83/D83 -> 0.9560317754 | Y83: =SUMIF($A$3:$A$80,"Central",Y$3:Y$80) -> 2380 | Z83: =Y83/D83 -> 0.4396822464 | AB83: =SUMIF($A$3:$A$80,"Central",AB$3:AB$80) -> 375 | AC83: =AB83/D83 -> 0.06927766488 | AD83: =SUMIF($A$3:$A$80,"Central",AD$3:AD$80) -> 144 | AE83: =AD83/D83 -> 0.02660262331 | AG83: =cálculos1!O83 -> 3 | AH83: =AG83*0.1 -> 0.3 | AI83: =cálculos1!P83 -> 1 | AJ83: 0.25
B84: Total Metropolitana | C84: =SUMIF($A$3:$A$80,"Metropolitana",C$3:C$80) -> 29358 | D84: =SUMIF($A$3:$A$80,"Metropolitana",D$3:D$80) -> 22372 | E84: =SUMIF($A$3:$A$80,"Metropolitana",E$3:E$80) -> 20470 | F84: =E84/D84 -> 0.9149830145 | G84: =SUMIF($A$3:$A$80,"Metropolitana",G$3:G$80) -> 21102 | H84: =G84/D84 -> 0.9432326122 | I84: =SUMIF($A$3:$A$80,"Metropolitana",I$3:I$80) -> 19830 | J84: =I84/D84 -> 0.8863758269 | K84: =SUMIF($A$3:$A$80,"Metropolitana",K$3:K$80) -> 19714 | L84: =K84/D84 -> 0.8811907742 | M84: =SUMIF($A$3:$A$80,"Metropolitana",M$3:M$80) -> 20796 | N84: =M84/D84 -> 0.9295548006 | O84: =SUMIF($A$3:$A$80,"Metropolitana",O$3:O$80) -> 20197 | P84: =O84/D84 -> 0.902780261 | Q84: =SUMIF($A$3:$A$80,"Metropolitana",Q$3:Q$80) -> 19857 | R84: =Q84/D84 -> 0.8875826927 | S84: =SUMIF($A$3:$A$80,"Metropolitana",S$3:S$80) -> 15634 | T84: =S84/D84 -> 0.6988199535 | U84: =SUMIF($A$3:$A$80,"Metropolitana",U$3:U$80) -> 16700 | V84: =U84/D84 -> 0.7464688003 | W84: =SUMIF($A$3:$A$80,"Metropolitana",W$3:W$80) -> 21138 | X84: =W84/D84 -> 0.9448417665 | Y84: =SUMIF($A$3:$A$80,"Metropolitana",Y$3:Y$80) -> 8575 | Z84: =Y84/D84 -> 0.3832916145 | AB84: =SUMIF($A$3:$A$80,"Metropolitana",AB$3:AB$80) -> 3577 | AC84: 0.1598873592 | AD84: =SUMIF($A$3:$A$80,"Metropolitana",AD$3:AD$80) -> 1540 | AE84: 0.06883604506 | AG84: =cálculos1!O84 -> 2 | AH84: 0.2 | AI84: =cálculos1!P84 -> 0 | AJ84: 0
B85: Total Sul | C85: =SUMIF($A$3:$A$80,"sul",C$3:C$80) -> 8270 | D85: =SUMIF($A$3:$A$80,"sul",D$3:D$80) -> 6311 | E85: =SUMIF($A$3:$A$80,"Sul",E$3:E$80) -> 5729 | F85: =E85/D85 -> 0.9077800666 | G85: =SUMIF($A$3:$A$80,"Sul",G$3:G$80) -> 5888 | H85: =G85/D85 -> 0.9329741721 | I85: =SUMIF($A$3:$A$80,"Sul",I$3:I$80) -> 5923 | J85: =I85/D85 -> 0.9385200444 | K85: =SUMIF($A$3:$A$80,"Sul",K$3:K$80) -> 5891 | L85: =K85/D85 -> 0.9334495326 | M85: =SUMIF($A$3:$A$80,"Sul",M$3:M$80) -> 6127 | N85: =M85/D85 -> 0.9708445571 | O85: =SUMIF($A$3:$A$80,"Sul",O$3:O$80) -> 5979 | P85: =O85/D85 -> 0.94739344 | Q85: =SUMIF($A$3:$A$80,"Sul",Q$3:Q$80) -> 5837 | R85: =Q85/D85 -> 0.9248930439 | S85: =SUMIF($A$3:$A$80,"Sul",S$3:S$80) -> 4746 | T85: =S85/D85 -> 0.752020282 | U85: =SUMIF($A$3:$A$80,"Sul",U$3:U$80) -> 5432 | V85: =U85/D85 -> 0.8607193789 | W85: =SUMIF($A$3:$A$80,"Sul",W$3:W$80) -> 6300 | X85: =W85/D85 -> 0.9982570116 | Y85: =SUMIF($A$3:$A$80,"Sul",Y$3:Y$80) -> 2466 | Z85: =Y85/D85 -> 0.390746316 | AB85: =SUMIF($A$3:$A$80,"Sul",AB$3:AB$80) -> 922 | AC85: 0.1460941214 | AD85: =SUMIF($A$3:$A$80,"Sul",AD$3:AD$80) -> 354 | AE85: 0.05609253684 | AG85: =cálculos1!O85 -> 4 | AH85: 0.4 | AI85: =cálculos1!P85 -> 2 | AJ85: 0.5
B86: Total Espírito Santo | C86: =SUM(C3:C80) -> 50476 | D86: =SUM(D3:D80) -> 38538 | E86: =SUM(E82:E85) -> 34560 | F86: =E86/D86 -> 0.8967772069 | G86: =SUM(G82:G85) -> 35727 | H86: =G86/D86 -> 0.9270590067 | I86: =SUM(I82:I85) -> 34740 | J86: =I86/D86 -> 0.9014479215 | K86: =SUM(K82:K85) -> 34544 | L86: =K86/D86 -> 0.8963620323 | M86: =SUM(M82:M85) -> 36211 | N86: =M86/D86 -> 0.9396180393 | O86: =SUM(O82:O85) -> 35284 | P86: =O86/D86 -> 0.915563859 | Q86: =SUM(Q82:Q85) -> 34570 | R86: =Q86/D86 -> 0.8970366911 | S86: =SUM(S82:S85) -> 28067 | T86: =S86/D86 -> 0.7282941512 | U86: =SUM(U82:U85) -> 30006 | V86: =U86/D86 -> 0.778608127 | W86: =SUM(W82:W85) -> 36925 | X86: =W86/D86 -> 0.9581452073 | Y86: =SUM(Y82:Y85) -> 15258 | Z86: =Y86/D86 -> 0.3959209092 | AB86: =SUM(AB82:AB85) -> 5516 | AC86: 0.1431314547 | AD86: =SUM(AD82:AD85) -> 2266 | AE86: 0.05879910737 | AG86: =cálculos1!O86 -> 3 | AH86: 0.3 | AI86: =cálculos1!P86 -> 1 | AJ86: 0.25
E87: =COUNTIF(F3:F80,">=0,95") -> 7 | G87: =COUNTIF(H3:H80,">=0,9") -> 10 | I87: =COUNTIF(J3:J80,">=0,95") -> 39 | K87: =COUNTIF(L3:L80,">=0,95") -> 40 | M87: =COUNTIF(N3:N80,">=0,95") -> 48 | O87: =COUNTIF(P3:P80,">=0,9") -> 60 | Q87: =COUNTIF(R3:R80,">=0,95") -> 39 | S87: =COUNTIF(T3:T80,">=0,95") -> 19 | U87: =COUNTIF(V3:V80,">=0,95") -> 22 | W87: =COUNTIF(X3:X80,">=0,95") -> 57 | Y87: =COUNTIF(Z3:Z80,">=0,95") -> 1 | AB87: =COUNTIF(AC3:AC80,">=0,9") -> 0 | AD87: =COUNTIF(AE3:AE80,">=0,9") -> 0
B88: HOMOGENEIDADE ENTRE MUNICÍPIOS | E88: =E87/78 -> 0.08974358974 | G88: =G87/78 -> 0.1282051282 | I88: =I87/78 -> 0.5 | K88: =K87/78 -> 0.5128205128 | M88: =M87/78 -> 0.6153846154 | O88: =O87/78 -> 0.7692307692 | Q88: =Q87/78 -> 0.5 | S88: =S87/78 -> 0.2435897436 | U88: =U87/78 -> 0.2820512821 | W88: =W87/78 -> 0.7307692308 | Y88: =Y87/78 -> 0.01282051282 | AB88: =AB87/78 -> 0 | AD88: =AD87/78 -> 0
A90: Fonte: Vacina e Confia, em 09 de Outubro de 2024.**
A91: **Dados referente às doses aplicadas no período de Janeiro a Setembro de 2024
A92: Cobertura Calculada por município de procedência/ocorrência da vacinação
A93: 1 População anual extraída do MS/SVS/DASIS - SINASC/DASIS/SVS/MS 2023 (hoje preliminares) referente ao período de Agosto a dezembro de 2023 e SINASC/DASIS/SVS/MS 2024 referente ao período de janeiro a julho de 2024.
A94: ² População proporcional extraída do MS/SVS/DASIS - SINASC/DASIS/SVS/MS 2023 (hoje preliminares) referente ao período de agosto e Setembro de 2023 somada a população extraída do SINASC/DASIS/SVS/MS 2024 referente ao período de janeiro e julho de 2024.
A95: Sinasc, atualizado em 10 de Outubro de 2024.
A96: Homogeineidade: O cálculo da Homogeineidade entre vacinas é feito de acordo com a pactuação estabelecida no Plano Plurianual (PPA) vigente no período 2024-2027.
A97: Observações:
A98: Imunobiológicos que foram recebidos parcialmente pelo estado no mês da análise, sendo distribuídos em quantidades reduzidas às regionais e municípios: Típlice Bacteriana (DTP),Varicela, Hepatite A - Rotina Pediátrica, COVID-19 Monovalente (XBB) - FRASCO .
A99: Imunobiológicos indisponíveis no mês da análise, não sendo possível a distribuição às regionais e municípios: Meningo C Conjugada, Tríplice Bacteriana Acelular (dTpa - CRIE).
A100: Imunobiológicos em falta e sem previsão de entrega: Febre Amarela, Varicela, Tríplice Viral (SCR), COVID-19 Monovalente (XBB) - FRASCO, Tríplice Bacteriana (DTP).

Sheet CV Rotina <2A - residência
E1: AO NASCER | I1: MENOR DE 1 ANO | U1: 1 ANO | AB1: MENOR DE 1 ANO
A2: Regional | B2: Município | C2: ¹População < 1 ano e 1 ano anual | D2: ²População < 1 ano e 1 ano proporcional | E2: Doses Aplicadas HB < 30 dias | F2: Cobertura Vacinal HB até 30 dias | G2: Doses Aplicadas BCG | H2: Cobertura Vacinal BCG | I2: Doses Aplicadas Pentavalente | J2: Cobertura Vacinal Pentavalente | K2: Doses Aplicadas Poliomielite | L2: Cobertura Vacinal Poliomielite | M2: Doses Aplicadas Pneumo 10 | N2: Cobertura Vacinal Pneumo 10 | O2: Doses Aplicadas Rotavírus | P2: Cobertura Vacinal Rotavírus | Q2: Doses Aplicadas Meningo C | R2: Cobertura Vacinal Meningo C | S2: Doses Aplicadas Febre Amarela | T2: Cobertura Vacinal Febre Amarela | U2: Doses Aplicadas Hepatite A | V2: Cobertura Vacinal Hepatite A | W2: Doses Aplicadas de Tríplice Viral | X2: Cobertura Vacinal Tríplice Viral | Y2: Doses Aplicadas Varicela | Z2: Cobertura Varicela | AB2: Doses Aplicadas COVID-19 | AC2: Cobertura Vacinal COVID-19 D1 | AD2: Doses Aplicadas COVID-19 | AE2: Cobertura Vacinal COVID-19 D2 | AG2: VACINAS QUE ATINGIRAM A META DE CV | AH2: HOMOGENEIDADE ENTRE AS 10 VACINAS | AI2: VACINAS DO PQA-VS QUE ATINGIRAM A META DE CV | AJ2: HOMOGENEIDADE ENTRE AS VACINAS DO PQA-VS
A3: Metropolitana | B3: Afonso Cláudio | C3: 385 | D3: 307 | E3: 246 | F3: =E3/D3 -> 0.8013029316 | G3: 248 | H3: =G3/D3 -> 0.8078175896 | I3: 291 | J3: =I3/D3 -> 0.9478827362 | K3: 297 | L3: =K3/D3 -> 0.9674267101 | M3: 275 | N3: =M3/D3 -> 0.8957654723 | O3: 273 | P3: =O3/D3 -> 0.8892508143 | Q3: 280 | R3: =Q3/D3 -> 0.9120521173 | S3: 277 | T3: =S3/D3 -> 0.9022801303 | U3: 290 | V3: =U3/D3 -> 0.9446254072 | W3: 312 | X3: =W3/D3 -> 1.016286645 | Y3: 146 | Z3: =Y3/D3 -> 0.4755700326 | AB3: 15 | AC3: =AB3/D3 -> 0.04885993485 | AD3: 4 | AE3: =AD3/D3 -> 0.01302931596 | AG3: =cálculos2!O3 -> 2 | AH3: =AG3*0.1 -> 0.2 | AI3: =cálculos2!P3 -> 2 | AJ3: =AI3*0.25 -> 0.5 | AL3: LEGENDA / HOMOGENEIDADE PQA-VS
A4: Norte | B4: Água Doce do Norte | C4: 202 | D4: 168 | E4: 152 | F4: 0.9047619048 | G4: 149 | H4: =G4/D4 -> 0.8869047619 | I4: 132 | J4: 0.7857142857 | K4: 129 | L4: 0.7678571429 | M4: 142 | N4: 0.8452380952 | O4: 138 | P4: 0.8214285714 | Q4: 132 | R4: 0.7857142857 | S4: 91 | T4: 0.5416666667 | U4: 102 | V4: 0.6071428571 | W4: 115 | X4: 0.6845238095 | Y4: 36 | Z4: 0.2142857143 | AB4: 15 | AC4: =AB4/D4 -> 0.08928571429 | AD4: 7 | AE4: =AD4/D4 -> 0.04166666667 | AG4: =cálculos2!O4 -> 0 | AH4: =AG4*0.1 -> 0 | AI4: =cálculos2!P4 -> 0 | AJ4: =AI4*0.25 -> 0 | AL4: PERCENTUAL | AM4: Nº DE MUNICÍPIOS
A5: Central | B5: Águia Branca | C5: 173 | D5: 133 | E5: 113 | F5: 0.8496240602 | G5: 120 | H5: 0.9022556391 | I5: 121 | J5: 0.9097744361 | K5: 122 | L5: 0.9172932331 | M5: 132 | N5: 0.992481203 | O5: 131 | P5: 0.984962406 | Q5: 122 | R5: 0.9172932331 | S5: 104 | T5: 0.7819548872 | U5: 98 | V5: 0.7368421053 | W5: 113 | X5: 0.8496240602 | Y5: 41 | Z5: 0.3082706767 | AB5: 5 | AC5: 0.03759398496 | AD5: 2 | AE5: 0.01503759398 | AG5: =cálculos2!O5 -> 3 | AH5: 0.3 | AI5: =cálculos2!P5 -> 1 | AJ5: 0.25 | AL5: 0 | AM5: =COUNTIF($AJ$3:$AJ$80,"=0") -> 14
A6: Sul | B6: Alegre | C6: 323 | D6: 238 | E6: 221 | F6: 0.9285714286 | G6: 228 | H6: 0.9579831933 | I6: 238 | J6: 1 | K6: 242 | L6: 1.016806723 | M6: 246 | N6: 1.033613445 | O6: 239 | P6: 1.004201681 | Q6: 237 | R6: 0.9957983193 | S6: 227 | T6: 0.9537815126 | U6: 220 | V6: 0.9243697479 | W6: 229 | X6: 0.9621848739 | Y6: 62 | Z6: 0.2605042017 | AB6: 66 | AC6: 0.2773109244 | AD6: 23 | AE6: 0.09663865546 | AG6: =cálculos2!O6 -> 8 | AH6: 0.8 | AI6: =cálculos2!P6 -> 4 | AJ6: 1 | AL6: 0.25 | AM6: =COUNTIF($AJ$3:$AJ$80,"=0,25") -> 12
A7: Sul | B7: Alfredo Chaves | C7: 143 | D7: 104 | E7: 66 | F7: 0.6346153846 | G7: 80 | H7: 0.7692307692 | I7: 110 | J7: 1.057692308 | K7: 110 | L7: 1.057692308 | M7: 110 | N7: 1.057692308 | O7: 112 | P7: 1.076923077 | Q7: 111 | R7: 1.067307692 | S7: 105 | T7: 1.009615385 | U7: 99 | V7: 0.9519230769 | W7: 104 | X7: 1 | Y7: 63 | Z7: 0.6057692308 | AB7: 14 | AC7: 0.1346153846 | AD7: 8 | AE7: 0.07692307692 | AG7: =cálculos2!O7 -> 8 | AH7: 0.8 | AI7: =cálculos2!P7 -> 4 | AJ7: 1 | AL7: 0.5 | AM7: =COUNTIF($AJ$3:$AJ$80,"=0,5") -> 10
A8: Central | B8: Alto Rio Novo | C8: 85 | D8: 65 | E8: 61 | F8: 0.9384615385 | G8: 69 | H8: 1.061538462 | I8: 68 | J8: 1.046153846 | K8: 67 | L8: 1.030769231 | M8: 70 | N8: 1.076923077 | O8: 69 | P8: 1.061538462 | Q8: 71 | R8: 1.092307692 | S8: 59 | T8: 0.9076923077 | U8: 63 | V8: 0.9692307692 | W8: 69 | X8: 1.061538462 | Y8: 29 | Z8: 0.4461538462 | AB8: 1 | AC8: 0.01538461538 | AD8: 1 | AE8: 0.01538461538 | AG8: =cálculos2!O8 -> 8 | AH8: 0.8 | AI8: =cálculos2!P8 -> 4 | AJ8: 1 | AL8: 0.75 | AM8: =COUNTIF($AJ$3:$AJ$80,"=0,75") -> 12
A9: Sul | B9: Anchieta | C9: 367 | D9: 280 | E9: 256 | F9: 0.9142857143 | G9: 265 | H9: 0.9464285714 | I9: 308 | J9: 1.1 | K9: 316 | L9: 1.128571429 | M9: 304 | N9: 1.085714286 | O9: 297 | P9: 1.060714286 | Q9: 300 | R9: 1.071428571 | S9: 242 | T9: 0.8642857143 | U9: 288 | V9: 1.028571429 | W9: 310 | X9: 1.107142857 | Y9: 132 | Z9: 0.4714285714 | AB9: 55 | AC9: 0.1964285714 | AD9: 28 | AE9: 0.1 | AG9: =cálculos2!O9 -> 8 | AH9: 0.8 | AI9: =cálculos2!P9 -> 4 | AJ9: 1 | AL9: 1 | AM9: =COUNTIF($AJ$3:$AJ$80,"=1,0") -> 30
A10: Sul | B10: Apiacá | C10: 68 | D10: 53 | E10: 34 | F10: 0.641509434 | G10: 50 | H10: 0.9433962264 | I10: 49 | J10: 0.9245283019 | K10: 49 | L10: 0.9245283019 | M10: 50 | N10: 0.9433962264 | O10: 51 | P10: 0.9622641509 | Q10: 49 | R10: 0.9245283019 | S10: 43 | T10: 0.8113207547 | U10: 45 | V10: 0.8490566038 | W10: 52 | X10: 0.9811320755 | Y10: 7 | Z10: 0.1320754717 | AB10: 0 | AC10: 0 | AD10: 0 | AE10: 0 | AG10: =cálculos2!O10 -> 3 | AH10: 0.3 | AI10: =cálculos2!P10 -> 1 | AJ10: 0.25
A11: Metropolitana | B11: Aracruz | C11: 1419 | D11: 1082 | E11: 1033 | F11: 0.9547134935 | G11: 1033 | H11: 0.9547134935 | I11: 989 | J11: 0.9140480591 | K11: 1005 | L11: 0.9288354898 | M11: 1037 | N11: 0.9584103512 | O11: 1025 | P11: 0.9473197782 | Q11: 984 | R11: 0.9094269871 | S11: 828 | T11: 0.7652495379 | U11: 1039 | V11: 0.96025878 | W11: 1066 | X11: 0.9852125693 | Y11: 503 | Z11: 0.4648798521 | AB11: 230 | AC11: 0.2125693161 | AD11: 119 | AE11: 0.1099815157 | AG11: =cálculos2!O11 -> 5 | AH11: 0.5 | AI11: =cálculos2!P11 -> 2 | AJ11: 0.5
A12: Sul | B12: Atilio Vivacqua | C12: 144 | D12: 107 | E12: 109 | F12: 1.018691589 | G12: 106 | H12: 0.9906542056 | I12: 97 | J12: 0.9065420561 | K12: 97 | L12: 0.9065420561 | M12: 98 | N12: 0.9158878505 | O12: 97 | P12: 0.9065420561 | Q12: 96 | R12: 0.8971962617 | S12: 76 | T12: 0.7102803738 | U12: 97 | V12: 0.9065420561 | W12: 102 | X12: 0.953271028 | Y12: 45 | Z12: 0.4205607477 | AB12: 1 | AC12: 0.009345794393 | AD12: 0 | AE12: 0 | AG12: =cálculos2!O12 -> 3 | AH12: 0.3 | AI12: =cálculos2!P12 -> 1 | AJ12: 0.25 | AL12: LEGENDA / HOMOGENEIDADE 10 VACINAS
A13: Central | B13: Baixo Guandu | C13: 388 | D13: 283 | E13: 217 | F13: 0.7667844523 | G13: 275 | H13: 0.9717314488 | I13: 283 | J13: 1 | K13: 287 | L13: 1.014134276 | M13: 310 | N13: 1.09540636 | O13: 303 | P13: 1.070671378 | Q13: 299 | R13: 1.056537102 | S13: 227 | T13: 0.8021201413 | U13: 281 | V13: 0.9929328622 | W13: 278 | X13: 0.9823321555 | Y13: 128 | Z13: 0.4522968198 | AB13: 22 | AC13: 0.0777385159 | AD13: 9 | AE13: 0.03180212014 | AG13: =cálculos2!O13 -> 8 | AH13: 0.8 | AI13: =cálculos2!P13 -> 4 | AJ13: 1 | AL13: PERCENTUAL | AM13: Nº DE MUNICÍPIOS
A14: Norte | B14: Barra de São Francisco | C14: 562 | D14: 442 | E14: 420 | F14: 0.9502262443 | G14: 427 | H14: 0.9660633484 | I14: 376 | J14: 0.850678733 | K14: 382 | L14: 0.8642533937 | M14: 402 | N14: 0.9095022624 | O14: 388 | P14: 0.8778280543 | Q14: 400 | R14: 0.9049773756 | S14: 354 | T14: 0.8009049774 | U14: 331 | V14: 0.7488687783 | W14: 420 | X14: 0.9502262443 | Y14: 201 | Z14: 0.4547511312 | AB14: 12 | AC14: 0.02714932127 | AD14: 3 | AE14: 0.006787330317 | AG14: =cálculos2!O14 -> 2 | AH14: 0.2 | AI14: =cálculos2!P14 -> 1 | AJ14: 0.25 | AL14: 0 | AM14: =COUNTIF($AH$3:$AH$80,"=0") -> 6
A15: Norte | B15: Boa Esperança | C15: 205 | D15: 154 | E15: 70 | F15: 0.4545454545 | G15: 110 | H15: 0.7142857143 | I15: 141 | J15: 0.9155844156 | K15: 150 | L15: 0.974025974 | M15: 152 | N15: 0.987012987 | O15: 153 | P15: 0.9935064935 | Q15: 146 | R15: 0.9480519481 | S15: 131 | T15: 0.8506493506 | U15: 105 | V15: 0.6818181818 | W15: 150 | X15: 0.974025974 | Y15: 89 | Z15: 0.5779220779 | AB15: 19 | AC15: 0.1233766234 | AD15: 9 | AE15: 0.05844155844 | AG15: =cálculos2!O15 -> 4 | AH15: 0.4 | AI15: =cálculos2!P15 -> 3 | AJ15: 0.75 | AL15: 0.1 | AM15: =COUNTIFS($AH$3:$AH$80,">=0,10",$AH$3:$AH$80,"<0,20") -> 6
A16: Sul | B16: Bom Jesus do Norte | C16: 88 | D16: 73 | E16: 35 | F16: 0.4794520548 | G16: 54 | H16: 0.7397260274 | I16: 78 | J16: 1.068493151 | K16: 76 | L16: 1.04109589 | M16: 73 | N16: 1 | O16: 71 | P16: 0.9726027397 | Q16: 68 | R16: 0.9315068493 | S16: 64 | T16: 0.8767123288 | U16: 39 | V16: 0.5342465753 | W16: 78 | X16: 1.068493151 | Y16: 13 | Z16: 0.1780821918 | AB16: 31 | AC16: 0.4246575342 | AD16: 22 | AE16: 0.301369863 | AG16: =cálculos2!O16 -> 5 | AH16: 0.5 | AI16: =cálculos2!P16 -> 4 | AJ16: 1 | AL16: 0.2 | AM16: =COUNTIFS($AH$3:$AH$80,">=0,20",$AH$3:$AH$80,"<0,30") -> 6
A17: Metropolitana | B17: Brejetuba | C17: 198 | D17: 146 | E17: 74 | F17: 0.5068493151 | G17: 139 | H17: 0.9520547945 | I17: 153 | J17: 1.047945205 | K17: 153 | L17: 1.047945205 | M17: 145 | N17: 0.9931506849 | O17: 151 | P17: 1.034246575 | Q17: 148 | R17: 1.01369863 | S17: 135 | T17: 0.9246575342 | U17: 117 | V17: 0.801369863 | W17: 145 | X17: 0.9931506849 | Y17: 58 | Z17: 0.397260274 | AB17: 0 | AC17: 0 | AD17: 0 | AE17: 0 | AG17: =cálculos2!O17 -> 7 | AH17: 0.7 | AI17: =cálculos2!P17 -> 4 | AJ17: 1 | AL17: 0.3 | AM17: =COUNTIFS($AH$3:$AH$80,">=0,30",$AH$3:$AH$80,"<0,40") -> 10
A18: Sul | B18: Cachoeiro de Itapemirim | C18: 2424 | D18: 1893 | E18: 2051 | F18: 1.083465399 | G18: 2054 | H18: 1.085050185 | I18: 1595 | J18: 0.8425779186 | K18: 1609 | L18: 0.8499735869 | M18: 1708 | N18: 0.9022715267 | O18: 1680 | P18: 0.8874801902 | Q18: 1575 | R18: 0.8320126783 | S18: 1207 | T18: 0.6376122557 | U18: 1570 | V18: 0.8293713682 | W18: 1721 | X18: 0.9091389329 | Y18: 655 | Z18: 0.3460116218 | AB18: 199 | AC18: 0.1051241416 | AD18: 71 | AE18: 0.03750660328 | AG18: =cálculos2!O18 -> 1 | AH18: 0.1 | AI18: =cálculos2!P18 -> 0 | AJ18: 0 | AL18: 0.4 | AM18: =COUNTIFS($AH$3:$AH$80,">=0,40",$AH$3:$AH$80,"<0,50") -> 6
A19: Metropolitana | B19: Cariacica | C19: 4851 | D19: 3710 | E19: 3369 | F19: 0.9080862534 | G19: 3394 | H19: 0.9148247978 | I19: 3223 | J19: 0.8687331536 | K19: 3234 | L19: 0.8716981132 | M19: 3432 | N19: 0.9250673854 | O19: 3265 | P19: 0.8800539084 | Q19: 3194 | R19: 0.860916442 | S19: 2450 | T19: 0.6603773585 | U19: 2493 | V19: 0.671967655 | W19: 3380 | X19: 0.9110512129 | Y19: 1276 | Z19: 0.34393531 | AB19: 637 | AC19: 0.1716981132 | AD19: 223 | AE19: 0.06010781671 | AG19: =cálculos2!O19 -> 1 | AH19: 0.1 | AI19: =cálculos2!P19 -> 0 | AJ19: 0 | AL19: 0.5 | AM19: =COUNTIFS($AH$3:$AH$80,">=0,50",$AH$3:$AH$80,"<0,60") -> 13
A20: Sul | B20: Castelo | C20: 432 | D20: 323 | E20: 261 | F20: 0.8080495356 | G20: 268 | H20: 0.8297213622 | I20: 329 | J20: 1.018575851 | K20: 353 | L20: 1.092879257 | M20: 330 | N20: 1.021671827 | O20: 321 | P20: 0.9938080495 | Q20: 317 | R20: 0.9814241486 | S20: 285 | T20: 0.8823529412 | U20: 259 | V20: 0.8018575851 | W20: 335 | X20: 1.037151703 | Y20: 150 | Z20: 0.4643962848 | AB20: 36 | AC20: 0.1114551084 | AD20: 13 | AE20: 0.04024767802 | AG20: =cálculos2!O20 -> 6 | AH20: 0.6 | AI20: =cálculos2!P20 -> 4 | AJ20: 1 | AL20: 0.6 | AM20: =COUNTIFS($AH$3:$AH$80,">=0,60",$AH$3:$AH$80,"<0,70") -> 6
A21: Central | B21: Colatina | C21: 1518 | D21: 1171 | E21: 1160 | F21: 0.9906063194 | G21: 1163 | H21: 0.9931682323 | I21: 1101 | J21: 0.9402220325 | K21: 1150 | L21: 0.9820666097 | M21: 1111 | N21: 0.9487617421 | O21: 1089 | P21: 0.9299743809 | Q21: 1059 | R21: 0.9043552519 | S21: 922 | T21: 0.7873612297 | U21: 869 | V21: 0.7421007686 | W21: 1148 | X21: 0.9803586678 | Y21: 567 | Z21: 0.4842015371 | AB21: 88 | AC21: 0.07514944492 | AD21: 41 | AE21: 0.03501280956 | AG21: =cálculos2!O21 -> 4 | AH21: 0.4 | AI21: =cálculos2!P21 -> 2 | AJ21: 0.5 | AL21: 0.7 | AM21: =COUNTIFS($AH$3:$AH$80,">=0,70",$AH$3:$AH$80,"<0,80") -> 9
A22: Norte | B22: Conceição da Barra | C22: 386 | D22: 284 | E22: 151 | F22: 0.5316901408 | G22: 150 | H22: 0.5281690141 | I22: 276 | J22: 0.9718309859 | K22: 285 | L22: 1.003521127 | M22: 285 | N22: 1.003521127 | O22: 274 | P22: 0.9647887324 | Q22: 278 | R22: 0.9788732394 | S22: 257 | T22: 0.9049295775 | U22: 222 | V22: 0.7816901408 | W22: 295 | X22: 1.038732394 | Y22: 134 | Z22: 0.4718309859 | AB22: 45 | AC22: 0.1584507042 | AD22: 15 | AE22: 0.05281690141 | AG22: =cálculos2!O22 -> 6 | AH22: 0.6 | AI22: =cálculos2!P22 -> 4 | AJ22: 1 | AL22: 0.8 | AM22: =COUNTIFS($AH$3:$AH$80,">=0,80",$AH$3:$AH$80,"<0,90") -> 12
A23: Metropolitana | B23: Conceição do Castelo | C23: 152 | D23: 126 | E23: 46 | F23: 0.3650793651 | G23: 105 | H23: 0.8333333333 | I23: 91 | J23: 0.7222222222 | K23: 89 | L23: 0.7063492063 | M23: 91 | N23: 0.7222222222 | O23: 89 | P23: 0.7063492063 | Q23: 90 | R23: 0.7142857143 | S23: 90 | T23: 0.7142857143 | U23: 101 | V23: 0.8015873016 | W23: 104 | X23: 0.8253968254 | Y23: 55 | Z23: 0.4365079365 | AB23: 0 | AC23: 0 | AD23: 0 | AE23: 0 | AG23: =cálculos2!O23 -> 0 | AH23: 0 | AI23: =cálculos2!P23 -> 0 | AJ23: 0 | AL23: 0.9 | AM23: =COUNTIFS($AH$3:$AH$80,">=0,90",$AH$3:$AH$80,"<1,0") -> 4
A24: Sul | B24: Divino de São Lourenço | C24: 70 | D24: 55 | E24: 47 | F24: 0.8545454545 | G24: 49 | H24: 0.8909090909 | I24: 59 | J24: 1.072727273 | K24: 59 | L24: 1.072727273 | M24: 66 | N24: 1.2 | O24: 65 | P24: 1.181818182 | Q24: 63 | R24: 1.145454545 | S24: 47 | T24: 0.8545454545 | U24: 38 | V24: 0.6909090909 | W24: 42 | X24: 0.7636363636 | Y24: 21 | Z24: 0.3818181818 | AB24: 14 | AC24: 0.2545454545 | AD24: 4 | AE24: 0.07272727273 | AG24: =cálculos2!O24 -> 5 | AH24: 0.5 | AI24: =cálculos2!P24 -> 3 | AJ24: 0.75 | AL24: 1 | AM24: =COUNTIF($AH$3:$AH$80,">=1,0") -> 0
A25: Metropolitana | B25: Domingos Martins | C25: 420 | D25: 303 | E25: 245 | F25: 0.8085808581 | G25: 293 | H25: 0.9669966997 | I25: 283 | J25: 0.9339933993 | K25: 289 | L25: 0.9537953795 | M25: 312 | N25: 1.02970297 | O25: 306 | P25: 1.00990099 | Q25: 295 | R25: 0.9735973597 | S25: 255 | T25: 0.8415841584 | U25: 274 | V25: 0.904290429 | W25: 286 | X25: 0.9438943894 | Y25: 189 | Z25: 0.6237623762 | AB25: 49 | AC25: 0.1617161716 | AD25: 32 | AE25: 0.1056105611 | AG25: =cálculos2!O25 -> 5 | AH25: 0.5 | AI25: =cálculos2!P25 -> 2 | AJ25: 0.5
A26: Sul | B26: Dores do Rio Preto | C26: 96 | D26: 74 | E26: 42 | F26: 0.5675675676 | G26: 48 | H26: 0.6486486486 | I26: 65 | J26: 0.8783783784 | K26: 68 | L26: 0.9189189189 | M26: 73 | N26: 0.9864864865 | O26: 70 | P26: 0.9459459459 | Q26: 71 | R26: 0.9594594595 | S26: 57 | T26: 0.7702702703 | U26: 51 | V26: 0.6891891892 | W26: 55 | X26: 0.7432432432 | Y26: 22 | Z26: 0.2972972973 | AB26: 21 | AC26: 0.2837837838 | AD26: 10 | AE26: 0.1351351351 | AG26: =cálculos2!O26 -> 3 | AH26: 0.3 | AI26: =cálculos2!P26 -> 1 | AJ26: 0.25
A27: Norte | B27: Ecoporanga | C27: 253 | D27: 203 | E27: 200 | F27: 0.9852216749 | G27: 203 | H27: 1 | I27: 185 | J27: 0.9113300493 | K27: 183 | L27: 0.9014778325 | M27: 215 | N27: 1.0591133 | O27: 205 | P27: 1.009852217 | Q27: 198 | R27: 0.9753694581 | S27: 160 | T27: 0.7881773399 | U27: 172 | V27: 0.8472906404 | W27: 193 | X27: 0.9507389163 | Y27: 100 | Z27: 0.4926108374 | AB27: 20 | AC27: 0.09852216749 | AD27: 3 | AE27: 0.01477832512 | AG27: =cálculos2!O27 -> 5 | AH27: 0.5 | AI27: =cálculos2!P27 -> 2 | AJ27: 0.5
A28: Metropolitana | B28: Fundão | C28: 221 | D28: 176 | E28: 151 | F28: 0.8579545455 | G28: 154 | H28: 0.875 | I28: 169 | J28: 0.9602272727 | K28: 170 | L28: 0.9659090909 | M28: 173 | N28: 0.9829545455 | O28: 175 | P28: 0.9943181818 | Q28: 150 | R28: 0.8522727273 | S28: 135 | T28: 0.7670454545 | U28: 163 | V28: 0.9261363636 | W28: 156 | X28: 0.8863636364 | Y28: 93 | Z28: 0.5284090909 | AB28: 17 | AC28: 0.09659090909 | AD28: 6 | AE28: 0.03409090909 | AG28: =cálculos2!O28 -> 4 | AH28: 0.4 | AI28: =cálculos2!P28 -> 3 | AJ28: 0.75
A29: Central | B29: Governador Lindenberg | C29: 130 | D29: 98 | E29: 77 | F29: 0.7857142857 | G29: 76 | H29: 0.7755102041 | I29: 94 | J29: 0.9591836735 | K29: 94 | L29: 0.9591836735 | M29: 97 | N29: 0.9897959184 | O29: 98 | P29: 1 | Q29: 97 | R29: 0.9897959184 | S29: 109 | T29: 1.112244898 | U29: 105 | V29: 1.071428571 | W29: 112 | X29: 1.142857143 | Y29: 52 | Z29: 0.5306122449 | AB29: 9 | AC29: 0.09183673469 | AD29: 3 | AE29: 0.0306122449 | AG29: =cálculos2!O29 -> 8 | AH29: 0.8 | AI29: =cálculos2!P29 -> 4 | AJ29: 1
A30: Sul | B30: Guaçuí | C30: 384 | D30: 287 | E30: 214 | F30: 0.7456445993 | G30: 230 | H30: 0.8013937282 | I30: 295 | J30: 1.027874564 | K30: 292 | L30: 1.017421603 | M30: 289 | N30: 1.006968641 | O30: 269 | P30: 0.93728223 | Q30: 280 | R30: 0.9756097561 | S30: 228 | T30: 0.7944250871 | U30: 253 | V30: 0.881533101 | W30: 223 | X30: 0.7770034843 | Y30: 112 | Z30: 0.3902439024 | AB30: 61 | AC30: 0.212543554 | AD30: 11 | AE30: 0.03832752613 | AG30: =cálculos2!O30 -> 5 | AH30: 0.5 | AI30: =cálculos2!P30 -> 3 | AJ30: 0.75
A31: Metropolitana | B31: Guarapari | C31: 1508 | D31: 1095 | E31: 1177 | F31: 1.074885845 | G31: 1255 | H31: 1.146118721 | I31: 1064 | J31: 0.9716894977 | K31: 1064 | L31: 0.9716894977 | M31: 1223 | N31: 1.116894977 | O31: 1179 | P31: 1.076712329 | Q31: 1112 | R31: 1.015525114 | S31: 814 | T31: 0.7433789954 | U31: 971 | V31: 0.8867579909 | W31: 1109 | X31: 1.012785388 | Y31: 525 | Z31: 0.4794520548 | AB31: 136 | AC31: 0.1242009132 | AD31: 45 | AE31: 0.04109589041 | AG31: =cálculos2!O31 -> 7 | AH31: 0.7 | AI31: =cálculos2!P31 -> 4 | AJ31: 1
A32: Metropolitana | B32: Ibatiba | C32: 367 | D32: 288 | E32: 171 | F32: 0.59375 | G32: 289 | H32: 1.003472222 | I32: 270 | J32: 0.9375 | K32: 269 | L32: 0.9340277778 | M32: 285 | N32: 0.9895833333 | O32: 275 | P32: 0.9548611111 | Q32: 279 | R32: 0.96875 | S32: 239 | T32: 0.8298611111 | U32: 242 | V32: 0.8402777778 | W32: 265 | X32: 0.9201388889 | Y32: 65 | Z32: 0.2256944444 | AB32: 96 | AC32: 0.3333333333 | AD32: 44 | AE32: 0.1527777778 | AG32: =cálculos2!O32 -> 4 | AH32: 0.4 | AI32: =cálculos2!P32 -> 1 | AJ32: 0.25
A33: Metropolitana | B33: Ibiraçu | C33: 151 | D33: 119 | E33: 113 | F33: 0.9495798319 | G33: 113 | H33: 0.9495798319 | I33: 97 | J33: 0.8151260504 | K33: 98 | L33: 0.8235294118 | M33: 106 | N33: 0.8907563025 | O33: 105 | P33: 0.8823529412 | Q33: 106 | R33: 0.8907563025 | S33: 94 | T33: 0.7899159664 | U33: 84 | V33: 0.7058823529 | W33: 97 | X33: 0.8151260504 | Y33: 35 | Z33: 0.2941176471 | AB33: 19 | AC33: 0.1596638655 | AD33: 17 | AE33: 0.1428571429 | AG33: =cálculos2!O33 -> 1 | AH33: 0.1 | AI33: =cálculos2!P33 -> 0 | AJ33: 0
A34: Sul | B34: Ibitirama | C34: 140 | D34: 104 | E34: 87 | F34: 0.8365384615 | G34: 103 | H34: 0.9903846154 | I34: 93 | J34: 0.8942307692 | K34: 94 | L34: 0.9038461538 | M34: 93 | N34: 0.8942307692 | O34: 95 | P34: 0.9134615385 | Q34: 78 | R34: 0.75 | S34: 76 | T34: 0.7307692308 | U34: 84 | V34: 0.8076923077 | W34: 91 | X34: 0.875 | Y34: 41 | Z34: 0.3942307692 | AB34: 18 | AC34: 0.1730769231 | AD34: 3 | AE34: 0.02884615385 | AG34: =cálculos2!O34 -> 2 | AH34: 0.2 | AI34: =cálculos2!P34 -> 0 | AJ34: 0
A35: Sul | B35: Iconha | C35: 114 | D35: 90 | E35: 63 | F35: =E35/D35 -> 0.7 | G35: 62 | H35: 0.6888888889 | I35: 85 | J35: =I35/D35 -> 0.9444444444 | K35: 88 | L35: =K35/D35 -> 0.9777777778 | M35: 84 | N35: =M35/D35 -> 0.9333333333 | O35: 84 | P35: =O35/D35 -> 0.9333333333 | Q35: 77 | R35: =Q35/D35 -> 0.8555555556 | S35: 87 | T35: =S35/D35 -> 0.9666666667 | U35: 102 | V35: =U35/D35 -> 1.133333333 | W35: 112 | X35: =W35/D35 -> 1.244444444 | Y35: 46 | Z35: =Y35/D35 -> 0.5111111111 | AB35: 5 | AC35: 0.05555555556 | AD35: 2 | AE35: 0.02222222222 | AG35: =cálculos2!O35 -> 5 | AH35: 0.5 | AI35: =cálculos2!P35 -> 2 | AJ35: 0.5
A36: Sul | B36: Irupi | C36: 194 | D36: 147 | E36: 105 | F36: 0.7142857143 | G36: 121 | H36: 0.8231292517 | I36: 148 | J36: 1.006802721 | K36: 144 | L36: 0.9795918367 | M36: 159 | N36: 1.081632653 | O36: 159 | P36: 1.081632653 | Q36: 156 | R36: 1.06122449 | S36: 133 | T36: 0.9047619048 | U36: 141 | V36: 0.9591836735 | W36: 157 | X36: 1.068027211 | Y36: 39 | Z36: 0.2653061224 | AB36: 50 | AC36: 0.3401360544 | AD36: 30 | AE36: 0.2040816327 | AG36: =cálculos2!O36 -> 7 | AH36: 0.7 | AI36: =cálculos2!P36 -> 4 | AJ36: 1
A37: Metropolitana | B37: Itaguaçu | C37: 137 | D37: 109 | E37: 108 | F37: 0.9908256881 | G37: 113 | H37: 1.036697248 | I37: 101 | J37: 0.9266055046 | K37: 103 | L37: 0.9449541284 | M37: 112 | N37: 1.027522936 | O37: 110 | P37: 1.009174312 | Q37: 101 | R37: 0.9266055046 | S37: 96 | T37: 0.880733945 | U37: 116 | V37: 1.064220183 | W37: 111 | X37: 1.018348624 | Y37: 66 | Z37: 0.6055045872 | AB37: 22 | AC37: 0.2018348624 | AD37: 10 | AE37: 0.09174311927 | AG37: =cálculos2!O37 -> 5 | AH37: 0.5 | AI37: =cálculos2!P37 -> 2 | AJ37: 0.5
A38: Sul | B38: Itapemirim | C38: 520 | D38: 372 | E38: 337 | F38: 0.9059139785 | G38: 333 | H38: 0.8951612903 | I38: 357 | J38: 0.9596774194 | K38: 359 | L38: 0.9650537634 | M38: 377 | N38: 1.01344086 | O38: 340 | P38: 0.9139784946 | Q38: 353 | R38: 0.9489247312 | S38: 227 | T38: 0.6102150538 | U38: 338 | V38: 0.9086021505 | W38: 362 | X38: 0.9731182796 | Y38: 152 | Z38: 0.4086021505 | AB38: 23 | AC38: 0.06182795699 | AD38: 11 | AE38: 0.02956989247 | AG38: =cálculos2!O38 -> 5 | AH38: 0.5 | AI38: =cálculos2!P38 -> 4 | AJ38: 1
A39: Metropolitana | B39: Itarana | C39: 136 | D39: 103 | E39: 107 | F39: 1.038834951 | G39: 117 | H39: 1.13592233 | I39: 101 | J39: 0.9805825243 | K39: 103 | L39: 1 | M39: 107 | N39: 1.038834951 | O39: 104 | P39: 1.009708738 | Q39: 100 | R39: 0.9708737864 | S39: 100 | T39: 0.9708737864 | U39: 75 | V39: 0.7281553398 | W39: 104 | X39: 1.009708738 | Y39: 61 | Z39: 0.5922330097 | AB39: 19 | AC39: 0.1844660194 | AD39: 9 | AE39: 0.08737864078 | AG39: =cálculos2!O39 -> 8 | AH39: 0.8 | AI39: =cálculos2!P39 -> 4 | AJ39: 1
A40: Sul | B40: Iúna | C40: 477 | D40: 354 | E40: 246 | F40: 0.6949152542 | G40: 250 | H40: 0.7062146893 | I40: 320 | J40: 0.9039548023 | K40: 320 | L40: 0.9039548023 | M40: 333 | N40: 0.9406779661 | O40: 329 | P40: 0.9293785311 | Q40: 320 | R40: 0.9039548023 | S40: 302 | T40: 0.8531073446 | U40: 252 | V40: 0.7118644068 | W40: 338 | X40: 0.9548022599 | Y40: 148 | Z40: 0.418079096 | AB40: 53 | AC40: 0.1497175141 | AD40: 21 | AE40: 0.0593220339 | AG40: =cálculos2!O40 -> 2 | AH40: 0.2 | AI40: =cálculos2!P40 -> 1 | AJ40: 0.25
A41: Norte | B41: Jaguaré | C41: 495 | D41: 385 | E41: 350 | F41: 0.9090909091 | G41: 349 | H41: 0.9064935065 | I41: 368 | J41: 0.9558441558 | K41: 369 | L41: 0.9584415584 | M41: 371 | N41: 0.9636363636 | O41: 362 | P41: 0.9402597403 | Q41: 344 | R41: 0.8935064935 | S41: 313 | T41: 0.812987013 | U41: 296 | V41: 0.7688311688 | W41: 365 | X41: 0.9480519481 | Y41: 142 | Z41: 0.3688311688 | AB41: 45 | AC41: 0.1168831169 | AD41: 14 | AE41: 0.03636363636 | AG41: =cálculos2!O41 -> 5 | AH41: 0.5 | AI41: =cálculos2!P41 -> 3 | AJ41: 0.75
A42: Sul | B42: Jerônimo Monteiro | C42: 150 | D42: 117 | E42: 94 | F42: 0.8034188034 | G42: 97 | H42: 0.8290598291 | I42: 125 | J42: 1.068376068 | K42: 126 | L42: 1.076923077 | M42: 124 | N42: 1.05982906 | O42: 122 | P42: 1.042735043 | Q42: 115 | R42: 0.9829059829 | S42: 116 | T42: 0.9914529915 | U42: 116 | V42: 0.9914529915 | W42: 109 | X42: 0.9316239316 | Y42: 34 | Z42: 0.2905982906 | AB42: 37 | AC42: 0.3162393162 | AD42: 20 | AE42: 0.1709401709 | AG42: =cálculos2!O42 -> 7 | AH42: 0.7 | AI42: =cálculos2!P42 -> 3 | AJ42: 0.75
A43: Metropolitana | B43: João Neiva | C43: 161 | D43: 120 | E43: 111 | F43: 0.925 | G43: 112 | H43: 0.9333333333 | I43: 114 | J43: 0.95 | K43: 116 | L43: 0.9666666667 | M43: 121 | N43: 1.008333333 | O43: 121 | P43: 1.008333333 | Q43: 116 | R43: 0.9666666667 | S43: 117 | T43: 0.975 | U43: 116 | V43: 0.9666666667 | W43: 147 | X43: 1.225 | Y43: 65 | Z43: 0.5416666667 | AB43: 9 | AC43: 0.075 | AD43: 2 | AE43: 0.01666666667 | AG43: =cálculos2!O43 -> 9 | AH43: 0.9 | AI43: =cálculos2!P43 -> 4 | AJ43: 1
A44: Metropolitana | B44: Laranja da Terra | C44: 84 | D44: 67 | E44: 73 | F44: 1.089552239 | G44: 73 | H44: 1.089552239 | I44: 64 | J44: 0.9552238806 | K44: 65 | L44: 0.9701492537 | M44: 62 | N44: 0.9253731343 | O44: 61 | P44: 0.9104477612 | Q44: 70 | R44: 1.044776119 | S44: 76 | T44: 1.134328358 | U44: 88 | V44: 1.313432836 | W44: 96 | X44: 1.432835821 | Y44: 60 | Z44: 0.8955223881 | AB44: 16 | AC44: 0.2388059701 | AD44: 10 | AE44: 0.1492537313 | AG44: =cálculos2!O44 -> 8 | AH44: 0.8 | AI44: =cálculos2!P44 -> 3 | AJ44: 0.75
A45: Central | B45: Linhares | C45: 2598 | D45: 2014 | E45: 1459 | F45: 0.724428997 | G45: 1483 | H45: 0.7363455809 | I45: 1662 | J45: 0.8252234359 | K45: 1706 | L45: 0.8470705065 | M45: 1737 | N45: 0.8624627607 | O45: 1750 | P45: 0.868917577 | Q45: 1685 | R45: 0.8366434955 | S45: 1388 | T45: 0.6891757696 | U45: 1605 | V45: 0.7969215492 | W45: 1730 | X45: 0.8589870904 | Y45: 783 | Z45: 0.3887785501 | AB45: 78 | AC45: 0.03872889772 | AD45: 28 | AE45: 0.01390268123 | AG45: =cálculos2!O45 -> 0 | AH45: 0 | AI45: =cálculos2!P45 -> 0 | AJ45: 0
A46: Central | B46: Mantenópolis | C46: 153 | D46: 116 | E46: 110 | F46: 0.9482758621 | G46: 119 | H46: 1.025862069 | I46: 109 | J46: 0.9396551724 | K46: 111 | L46: 0.9568965517 | M46: 108 | N46: 0.9310344828 | O46: 104 | P46: 0.8965517241 | Q46: 102 | R46: 0.8793103448 | S46: 110 | T46: 0.9482758621 | U46: 107 | V46: 0.9224137931 | W46: 123 | X46: 1.060344828 | Y46: 51 | Z46: 0.4396551724 | AB46: 27 | AC46: 0.2327586207 | AD46: 4 | AE46: 0.03448275862 | AG46: =cálculos2!O46 -> 3 | AH46: 0.3 | AI46: =cálculos2!P46 -> 2 | AJ46: 0.5
A47: Sul | B47: Marataízes | C47: 553 | D47: 432 | E47: 397 | F47: 0.9189814815 | G47: 384 | H47: 0.8888888889 | I47: 416 | J47: 0.962962963 | K47: 421 | L47: 0.974537037 | M47: 446 | N47: 1.032407407 | O47: 432 | P47: 1 | Q47: 424 | R47: 0.9814814815 | S47: 262 | T47: 0.6064814815 | U47: 356 | V47: 0.8240740741 | W47: 415 | X47: 0.9606481481 | Y47: 175 | Z47: 0.4050925926 | AB47: 42 | AC47: 0.09722222222 | AD47: 11 | AE47: 0.02546296296 | AG47: =cálculos2!O47 -> 6 | AH47: 0.6 | AI47: =cálculos2!P47 -> 4 | AJ47: 1
A48: Metropolitana | B48: Marechal Floriano | C48: 221 | D48: 158 | E48: 129 | F48: 0.8164556962 | G48: 142 | H48: 0.8987341772 | I48: 163 | J48: 1.03164557 | K48: 164 | L48: 1.037974684 | M48: 166 | N48: 1.050632911 | O48: 164 | P48: 1.037974684 | Q48: 166 | R48: 1.050632911 | S48: 123 | T48: 0.7784810127 | U48: 160 | V48: 1.012658228 | W48: 155 | X48: 0.9810126582 | Y48: 95 | Z48: 0.6012658228 | AB48: 27 | AC48: 0.1708860759 | AD48: 12 | AE48: 0.07594936709 | AG48: =cálculos2!O48 -> 7 | AH48: 0.7 | AI48: =cálculos2!P48 -> 4 | AJ48: 1
A49: Central | B49: Marilândia | C49: 154 | D49: 113 | E49: 109 | F49: 0.9646017699 | G49: 108 | H49: 0.9557522124 | I49: 121 | J49: 1.07079646 | K49: 126 | L49: 1.115044248 | M49: 113 | N49: 1 | O49: 115 | P49: 1.017699115 | Q49: 127 | R49: 1.123893805 | S49: 113 | T49: 1 | U49: 109 | V49: 0.9646017699 | W49: 119 | X49: 1.053097345 | Y49: 73 | Z49: 0.6460176991 | AB49: 33 | AC49: 0.2920353982 | AD49: 15 | AE49: 0.1327433628 | AG49: =cálculos2!O49 -> 9 | AH49: 0.9 | AI49: =cálculos2!P49 -> 4 | AJ49: 1
A50: Sul | B50: Mimoso do Sul | C50: 263 | D50: 200 | E50: 168 | F50: 0.84 | G50: 172 | H50: 0.86 | I50: 168 | J50: 0.84 | K50: 170 | L50: 0.85 | M50: 170 | N50: 0.85 | O50: 170 | P50: 0.85 | Q50: 161 | R50: 0.805 | S50: 145 | T50: 0.725 | U50: 145 | V50: 0.725 | W50: 177 | X50: 0.885 | Y50: 87 | Z50: 0.435 | AB50: 10 | AC50: 0.05 | AD50: 2 | AE50: 0.01 | AG50: =cálculos2!O50 -> 0 | AH50: 0 | AI50: =cálculos2!P50 -> 0 | AJ50: 0
A51: Norte | B51: Montanha | C51: 226 | D51: 171 | E51: 121 | F51: 0.7076023392 | G51: 120 | H51: 0.701754386 | I51: 184 | J51: 1.076023392 | K51: 187 | L51: 1.093567251 | M51: 158 | N51: 0.9239766082 | O51: 158 | P51: 0.9239766082 | Q51: 164 | R51: 0.9590643275 | S51: 185 | T51: 1.081871345 | U51: 177 | V51: 1.035087719 | W51: 191 | X51: 1.116959064 | Y51: 90 | Z51: 0.5263157895 | AB51: 85 | AC51: 0.4970760234 | AD51: 36 | AE51: 0.2105263158 | AG51: =cálculos2!O51 -> 7 | AH51: 0.7 | AI51: =cálculos2!P51 -> 3 | AJ51: 0.75
A52: Norte | B52: Mucurici | C52: 74 | D52: 52 | E52: 33 | F52: 0.6346153846 | G52: 34 | H52: 0.6538461538 | I52: 61 | J52: 1.173076923 | K52: 61 | L52: 1.173076923 | M52: 58 | N52: 1.115384615 | O52: 58 | P52: 1.115384615 | Q52: 55 | R52: 1.057692308 | S52: 67 | T52: 1.288461538 | U52: 51 | V52: 0.9807692308 | W52: 64 | X52: 1.230769231 | Y52: 32 | Z52: 0.6153846154 | AB52: 22 | AC52: 0.4230769231 | AD52: 12 | AE52: 0.2307692308 | AG52: =cálculos2!O52 -> 8 | AH52: 0.8 | AI52: =cálculos2!P52 -> 4 | AJ52: 1
A53: Sul | B53: Muniz Freire | C53: 213 | D53: 161 | E53: 145 | F53: 0.900621118 | G53: 158 | H53: 0.9813664596 | I53: 170 | J53: 1.055900621 | K53: 170 | L53: 1.055900621 | M53: 176 | N53: 1.093167702 | O53: 172 | P53: 1.068322981 | Q53: 170 | R53: 1.055900621 | S53: 161 | T53: 1 | U53: 154 | V53: 0.9565217391 | W53: 173 | X53: 1.074534161 | Y53: 66 | Z53: 0.4099378882 | AB53: 26 | AC53: 0.1614906832 | AD53: 5 | AE53: 0.03105590062 | AG53: =cálculos2!O53 -> 9 | AH53: 0.9 | AI53: =cálculos2!P53 -> 4 | AJ53: 1
A54: Sul | B54: Muqui | C54: 147 | D54: 116 | E54: 101 | F54: 0.8706896552 | G54: 99 | H54: 0.8534482759 | I54: 122 | J54: 1.051724138 | K54: 123 | L54: 1.060344828 | M54: 105 | N54: 0.9051724138 | O54: 107 | P54: 0.9224137931 | Q54: 109 | R54: 0.9396551724 | S54: 116 | T54: 1 | U54: 97 | V54: 0.8362068966 | W54: 117 | X54: 1.00862069 | Y54: 49 | Z54: 0.4224137931 | AB54: 38 | AC54: 0.3275862069 | AD54: 21 | AE54: 0.1810344828 | AG54: =cálculos2!O54 -> 5 | AH54: 0.5 | AI54: =cálculos2!P54 -> 3 | AJ54: 0.75
A55: Norte | B55: Nova Venécia | C55: 627 | D55: 485 | E55: 238 | F55: 0.4907216495 | G55: 459 | H55: 0.9463917526 | I55: 506 | J55: 1.043298969 | K55: 519 | L55: 1.070103093 | M55: 491 | N55: 1.012371134 | O55: 470 | P55: 0.9690721649 | Q55: 500 | R55: 1.030927835 | S55: 451 | T55: 0.9298969072 | U55: 401 | V55: 0.8268041237 | W55: 533 | X55: 1.098969072 | Y55: 246 | Z55: 0.5072164948 | AB55: 14 | AC55: 0.02886597938 | AD55: 3 | AE55: 0.00618556701 | AG55: =cálculos2!O55 -> 7 | AH55: 0.7 | AI55: =cálculos2!P55 -> 4 | AJ55: 1
A56: Central | B56: Pancas | C56: 208 | D56: 156 | E56: 144 | F56: 0.9230769231 | G56: 149 | H56: 0.9551282051 | I56: 179 | J56: 1.147435897 | K56: 182 | L56: 1.166666667 | M56: 174 | N56: 1.115384615 | O56: 173 | P56: 1.108974359 | Q56: 170 | R56: 1.08974359 | S56: 158 | T56: 1.012820513 | U56: 160 | V56: 1.025641026 | W56: 171 | X56: 1.096153846 | Y56: 123 | Z56: 0.7884615385 | AB56: 10 | AC56: 0.0641025641 | AD56: 4 | AE56: 0.02564102564 | AG56: =cálculos2!O56 -> 9 | AH56: 0.9 | AI56: =cálculos2!P56 -> 4 | AJ56: 1
A57: Norte | B57: Pedro Canário | C57: 316 | D57: 234 | E57: 150 | F57: 0.641025641 | G57: 147 | H57: 0.6282051282 | I57: 244 | J57: 1.042735043 | K57: 242 | L57: 1.034188034 | M57: 210 | N57: 0.8974358974 | O57: 204 | P57: 0.8717948718 | Q57: 226 | R57: 0.9658119658 | S57: 202 | T57: 0.8632478632 | U57: 186 | V57: 0.7948717949 | W57: 282 | X57: 1.205128205 | Y57: 137 | Z57: 0.5854700855 | AB57: 36 | AC57: 0.1538461538 | AD57: 7 | AE57: 0.02991452991 | AG57: =cálculos2!O57 -> 4 | AH57: 0.4 | AI57: =cálculos2!P57 -> 3 | AJ57: 0.75
A58: Norte | B58: Pinheiros | C58: 328 | D58: 252 | E58: 107 | F58: 0.4246031746 | G58: 103 | H58: 0.4087301587 | I58: 234 | J58: 0.9285714286 | K58: 233 | L58: 0.9246031746 | M58: 193 | N58: 0.7658730159 | O58: 190 | P58: 0.753968254 | Q58: 203 | R58: 0.8055555556 | S58: 194 | T58: 0.7698412698 | U58: 196 | V58: 0.7777777778 | W58: 229 | X58: 0.9087301587 | Y58: 84 | Z58: 0.3333333333 | AB58: 38 | AC58: 0.1507936508 | AD58: 17 | AE58: 0.06746031746 | AG58: =cálculos2!O58 -> 0 | AH58: 0 | AI58: =cálculos2!P58 -> 0 | AJ58: 0
A59: Sul | B59: Piúma | C59: 288 | D59: 206 | E59: 193 | F59: 0.9368932039 | G59: 181 | H59: 0.8786407767 | I59: 207 | J59: 1.004854369 | K59: 209 | L59: 1.014563107 | M59: 215 | N59: 1.04368932 | O59: 202 | P59: 0.9805825243 | Q59: 193 | R59: 0.9368932039 | S59: 138 | T59: 0.6699029126 | U59: 168 | V59: 0.8155339806 | W59: 200 | X59: 0.9708737864 | Y59: 88 | Z59: 0.427184466 | AB59: 53 | AC59: 0.2572815534 | AD59: 21 | AE59: 0.1019417476 | AG59: =cálculos2!O59 -> 5 | AH59: 0.5 | AI59: =cálculos2!P59 -> 4 | AJ59: 1
A60: Norte | B60: Ponto Belo | C60: 74 | D60: 52 | E60: 32 | F60: 0.6153846154 | G60: 30 | H60: 0.5769230769 | I60: 51 | J60: 0.9807692308 | K60: 52 | L60: 1 | M60: 47 | N60: 0.9038461538 | O60: 48 | P60: 0.9230769231 | Q60: 50 | R60: 0.9615384615 | S60: 57 | T60: 1.096153846 | U60: 39 | V60: 0.75 | W60: 56 | X60: 1.076923077 | Y60: 27 | Z60: 0.5192307692 | AB60: 11 | AC60: 0.2115384615 | AD60: 5 | AE60: 0.09615384615 | AG60: =cálculos2!O60 -> 6 | AH60: 0.6 | AI60: =cálculos2!P60 -> 3 | AJ60: 0.75
A61: Sul | B61: Presidente Kennedy | C61: 200 | D61: 163 | E61: 163 | F61: 1 | G61: 166 | H61: 1.018404908 | I61: 134 | J61: 0.8220858896 | K61: 140 | L61: 0.8588957055 | M61: 144 | N61: 0.8834355828 | O61: 144 | P61: 0.8834355828 | Q61: 144 | R61: 0.8834355828 | S61: 112 | T61: 0.6871165644 | U61: 151 | V61: 0.9263803681 | W61: 167 | X61: 1.024539877 | Y61: 77 | Z61: 0.472392638 | AB61: 22 | AC61: 0.1349693252 | AD61: 4 | AE61: 0.0245398773 | AG61: =cálculos2!O61 -> 2 | AH61: 0.2 | AI61: =cálculos2!P61 -> 1 | AJ61: 0.25
A62: Central | B62: Rio Bananal | C62: 272 | D62: 215 | E62: 174 | F62: 0.8093023256 | G62: 178 | H62: 0.8279069767 | I62: 208 | J62: 0.9674418605 | K62: 213 | L62: 0.9906976744 | M62: 207 | N62: 0.9627906977 | O62: 209 | P62: 0.9720930233 | Q62: 193 | R62: 0.8976744186 | S62: 201 | T62: 0.9348837209 | U62: 227 | V62: 1.055813953 | W62: 234 | X62: 1.088372093 | Y62: 136 | Z62: 0.6325581395 | AB62: 38 | AC62: 0.176744186 | AD62: 18 | AE62: 0.08372093023 | AG62: =cálculos2!O62 -> 6 | AH62: 0.6 | AI62: =cálculos2!P62 -> 4 | AJ62: 1
A63: Sul | B63: Rio Novo do Sul | C63: 109 | D63: 77 | E63: 62 | F63: 0.8051948052 | G63: 60 | H63: 0.7792207792 | I63: 87 | J63: 1.12987013 | K63: 85 | L63: 1.103896104 | M63: 78 | N63: 1.012987013 | O63: 80 | P63: 1.038961039 | Q63: 83 | R63: 1.077922078 | S63: 81 | T63: 1.051948052 | U63: 75 | V63: 0.974025974 | W63: 88 | X63: 1.142857143 | Y63: 42 | Z63: 0.5454545455 | AB63: 18 | AC63: 0.2337662338 | AD63: 6 | AE63: 0.07792207792 | AG63: =cálculos2!O63 -> 8 | AH63: 0.8 | AI63: =cálculos2!P63 -> 4 | AJ63: 1
A64: Metropolitana | B64: Santa Leopoldina | C64: 99 | D64: 69 | E64: 52 | F64: 0.7536231884 | G64: 49 | H64: 0.7101449275 | I64: 76 | J64: 1.101449275 | K64: 77 | L64: 1.115942029 | M64: 73 | N64: 1.057971014 | O64: 72 | P64: 1.043478261 | Q64: 75 | R64: 1.086956522 | S64: 71 | T64: 1.028985507 | U64: 88 | V64: 1.275362319 | W64: 91 | X64: 1.31884058 | Y64: 17 | Z64: 0.2463768116 | AB64: 4 | AC64: 0.05797101449 | AD64: 0 | AE64: 0 | AG64: =cálculos2!O64 -> 8 | AH64: 0.8 | AI64: =cálculos2!P64 -> 4 | AJ64: 1
A65: Metropolitana | B65: Santa Maria de Jetibá | C65: 656 | D65: 500 | E65: 445 | F65: 0.89 | G65: 453 | H65: 0.906 | I65: 406 | J65: 0.812 | K65: 411 | L65: 0.822 | M65: 441 | N65: 0.882 | O65: 445 | P65: 0.89 | Q65: 428 | R65: 0.856 | S65: 346 | T65: 0.692 | U65: 463 | V65: 0.926 | W65: 444 | X65: 0.888 | Y65: 206 | Z65: 0.412 | AB65: 37 | AC65: 0.074 | AD65: 20 | AE65: 0.04 | AG65: =cálculos2!O65 -> 1 | AH65: 0.1 | AI65: =cálculos2!P65 -> 0 | AJ65: 0
A66: Metropolitana | B66: Santa Teresa | C66: 310 | D66: 234 | E66: 220 | F66: 0.9401709402 | G66: 218 | H66: 0.9316239316 | I66: 230 | J66: 0.9829059829 | K66: 233 | L66: 0.9957264957 | M66: 227 | N66: 0.9700854701 | O66: 227 | P66: 0.9700854701 | Q66: 212 | R66: 0.905982906 | S66: 193 | T66: 0.8247863248 | U66: 187 | V66: 0.7991452991 | W66: 210 | X66: 0.8974358974 | Y66: 118 | Z66: 0.5042735043 | AB66: 14 | AC66: 0.05982905983 | AD66: 8 | AE66: 0.03418803419 | AG66: =cálculos2!O66 -> 5 | AH66: 0.5 | AI66: =cálculos2!P66 -> 3 | AJ66: 0.75
A67: Central | B67: São Domingos do Norte | C67: 118 | D67: 85 | E67: 93 | F67: =E67/D67 -> 1.094117647 | G67: 94 | H67: 1.105882353 | I67: 92 | J67: =I67/D67 -> 1.082352941 | K67: 93 | L67: =K67/D67 -> 1.094117647 | M67: 91 | N67: =M67/D67 -> 1.070588235 | O67: 87 | P67: =O67/D67 -> 1.023529412 | Q67: 88 | R67: =Q67/D67 -> 1.035294118 | S67: 83 | T67: =S67/D67 -> 0.9764705882 | U67: 60 | V67: =U67/D67 -> 0.7058823529 | W67: 87 | X67: =W67/D67 -> 1.023529412 | Y67: 36 | Z67: =Y67/D67 -> 0.4235294118 | AB67: 3 | AC67: 0.03529411765 | AD67: 1 | AE67: 0.01176470588 | AG67: =cálculos2!O67 -> 8 | AH67: 0.8 | AI67: =cálculos2!P67 -> 4 | AJ67: 1
A68: Central | B68: São Gabriel da Palha | C68: 455 | D68: 346 | E68: 298 | F68: 0.8612716763 | G68: 329 | H68: =G68/D68 -> 0.950867052 | I68: 306 | J68: 0.8843930636 | K68: 314 | L68: 0.9075144509 | M68: 335 | N68: 0.9682080925 | O68: 330 | P68: 0.9537572254 | Q68: 319 | R68: 0.9219653179 | S68: 252 | T68: 0.7283236994 | U68: 257 | V68: 0.7427745665 | W68: 298 | X68: 0.8612716763 | Y68: 121 | Z68: 0.3497109827 | AB68: 7 | AC68: =AB68/D68 -> 0.02023121387 | AD68: 3 | AE68: =AD68/D68 -> 0.008670520231 | AG68: =cálculos2!O68 -> 3 | AH68: =AG68*0.1 -> 0.3 | AI68: =cálculos2!P68 -> 1 | AJ68: =AI68*0.25 -> 0.25
A69: Sul | B69: São José do Calçado | C69: 99 | D69: 82 | E69: 74 | F69: 0.9024390244 | G69: 79 | H69: 0.9634146341 | I69: 86 | J69: 1.048780488 | K69: 88 | L69: 1.073170732 | M69: 83 | N69: 1.012195122 | O69: 74 | P69: 0.9024390244 | Q69: 88 | R69: 1.073170732 | S69: 69 | T69: 0.8414634146 | U69: 77 | V69: 0.9390243902 | W69: 93 | X69: 1.134146341 | Y69: 46 | Z69: 0.5609756098 | AB69: 1 | AC69: 0.01219512195 | AD69: 0 | AE69: 0 | AG69: =cálculos2!O69 -> 7 | AH69: 0.7 | AI69: =cálculos2!P69 -> 4 | AJ69: 1
A70: Norte | B70: São Mateus | C70: 1939 | D70: 1478 | E70: 1724 | F70: 1.166441137 | G70: 1668 | H70: 1.128552097 | I70: 1297 | J70: 0.8775372124 | K70: 1302 | L70: 0.8809201624 | M70: 1461 | N70: 0.9884979702 | O70: 1391 | P70: 0.9411366712 | Q70: 1283 | R70: 0.8680649526 | S70: 952 | T70: 0.6441136671 | U70: 1049 | V70: 0.7097428958 | W70: 1223 | X70: 0.8274695535 | Y70: 484 | Z70: 0.3274695535 | AB70: 265 | AC70: 0.1792963464 | AD70: 90 | AE70: 0.06089309878 | AG70: =cálculos2!O70 -> 3 | AH70: 0.3 | AI70: =cálculos2!P70 -> 1 | AJ70: 0.25
A71: Central | B71: São Roque do Canaã | C71: 129 | D71: 108 | E71: 111 | F71: 1.027777778 | G71: 108 | H71: 1 | I71: 84 | J71: 0.7777777778 | K71: 87 | L71: 0.8055555556 | M71: 86 | N71: 0.7962962963 | O71: 88 | P71: 0.8148148148 | Q71: 87 | R71: 0.8055555556 | S71: 76 | T71: 0.7037037037 | U71: 93 | V71: 0.8611111111 | W71: 95 | X71: 0.8796296296 | Y71: 48 | Z71: 0.4444444444 | AB71: 33 | AC71: 0.3055555556 | AD71: 16 | AE71: 0.1481481481 | AG71: =cálculos2!O71 -> 1 | AH71: 0.1 | AI71: =cálculos2!P71 -> 0 | AJ71: 0
A72: Metropolitana | B72: Serra | C72: 7300 | D72: 5643 | E72: 5342 | F72: 0.9466595782 | G72: 5365 | H72: 0.9507354244 | I72: 4758 | J72: 0.8431685274 | K72: 4845 | L72: 0.8585858586 | M72: 5036 | N72: 0.892433103 | O72: 4858 | P72: 0.8608895977 | Q72: 4771 | R72: 0.8454722665 | S72: 3627 | T72: 0.6427432217 | U72: 3031 | V72: 0.5371256424 | W72: 4855 | X72: 0.8603579656 | Y72: 1682 | Z72: 0.2980684033 | AB72: 715 | AC72: 0.126705653 | AD72: 245 | AE72: 0.04341662236 | AG72: =cálculos2!O72 -> 1 | AH72: 0.1 | AI72: =cálculos2!P72 -> 0 | AJ72: 0
A73: Central | B73: Sooretama | C73: 425 | D73: 322 | E73: 250 | F73: 0.7763975155 | G73: 255 | H73: 0.7919254658 | I73: 296 | J73: 0.9192546584 | K73: 303 | L73: 0.9409937888 | M73: 321 | N73: 0.9968944099 | O73: 316 | P73: 0.9813664596 | Q73: 273 | R73: 0.847826087 | S73: 253 | T73: 0.7857142857 | U73: 285 | V73: 0.8850931677 | W73: 307 | X73: 0.9534161491 | Y73: 118 | Z73: 0.3664596273 | AB73: 24 | AC73: 0.07453416149 | AD73: 8 | AE73: 0.0248447205 | AG73: =cálculos2!O73 -> 3 | AH73: 0.3 | AI73: =cálculos2!P73 -> 2 | AJ73: 0.5
A74: Sul | B74: Vargem Alta | C74: 264 | D74: 203 | E74: 187 | F74: 0.921182266 | G74: 194 | H74: 0.9556650246 | I74: 174 | J74: 0.8571428571 | K74: 176 | L74: 0.8669950739 | M74: 191 | N74: 0.9408866995 | O74: 190 | P74: 0.9359605911 | Q74: 184 | R74: 0.9064039409 | S74: 152 | T74: 0.7487684729 | U74: 182 | V74: 0.8965517241 | W74: 191 | X74: 0.9408866995 | Y74: 95 | Z74: 0.4679802956 | AB74: 27 | AC74: 0.1330049261 | AD74: 10 | AE74: 0.04926108374 | AG74: =cálculos2!O74 -> 2 | AH74: 0.2 | AI74: =cálculos2!P74 -> 0 | AJ74: 0
A75: Metropolitana | B75: Venda Nova do Imigrante | C75: 368 | D75: 272 | E75: 111 | F75: 0.4080882353 | G75: 239 | H75: 0.8786764706 | I75: 289 | J75: 1.0625 | K75: 303 | L75: 1.113970588 | M75: 273 | N75: 1.003676471 | O75: 269 | P75: 0.9889705882 | Q75: 272 | R75: 1 | S75: 276 | T75: 1.014705882 | U75: 216 | V75: 0.7941176471 | W75: 329 | X75: 1.209558824 | Y75: 137 | Z75: 0.5036764706 | AB75: 50 | AC75: 0.1838235294 | AD75: 32 | AE75: 0.1176470588 | AG75: =cálculos2!O75 -> 7 | AH75: 0.7 | AI75: =cálculos2!P75 -> 4 | AJ75: 1
A76: Metropolitana | B76: Viana | C76: 917 | D76: 688 | E76: 644 | F76: 0.9360465116 | G76: 643 | H76: 0.9345930233 | I76: 662 | J76: 0.9622093023 | K76: 659 | L76: 0.9578488372 | M76: 691 | N76: 1.004360465 | O76: 652 | P76: 0.9476744186 | Q76: 652 | R76: 0.9476744186 | S76: 467 | T76: 0.6787790698 | U76: 582 | V76: 0.8459302326 | W76: 680 | X76: 0.988372093 | Y76: 208 | Z76: 0.3023255814 | AB76: 113 | AC76: 0.164244186 | AD76: 46 | AE76: 0.06686046512 | AG76: =cálculos2!O76 -> 6 | AH76: 0.6 | AI76: =cálculos2!P76 -> 4 | AJ76: 1
A77: Norte | B77: Vila Pavão | C77: 100 | D77: 82 | E77: 68 | F77: 0.8292682927 | G77: 92 | H77: 1.12195122 | I77: 66 | J77: 0.8048780488 | K77: 66 | L77: 0.8048780488 | M77: 70 | N77: 0.8536585366 | O77: 70 | P77: 0.8536585366 | Q77: 70 | R77: 0.8536585366 | S77: 68 | T77: 0.8292682927 | U77: 81 | V77: 0.987804878 | W77: 80 | X77: 0.9756097561 | Y77: 36 | Z77: 0.4390243902 | AB77: 12 | AC77: 0.1463414634 | AD77: 3 | AE77: 0.03658536585 | AG77: =cálculos2!O77 -> 3 | AH77: 0.3 | AI77: =cálculos2!P77 -> 1 | AJ77: 0.25
A78: Central | B78: Vila Valério | C78: 255 | D78: 188 | E78: 151 | F78: 0.8031914894 | G78: 166 | H78: 0.8829787234 | I78: 178 | J78: 0.9468085106 | K78: 182 | L78: 0.9680851064 | M78: 183 | N78: 0.9734042553 | O78: 179 | P78: 0.9521276596 | Q78: 184 | R78: 0.9787234043 | S78: 160 | T78: 0.8510638298 | U78: 148 | V78: 0.7872340426 | W78: 168 | X78: 0.8936170213 | Y78: 78 | Z78: 0.414893617 | AB78: 4 | AC78: 0.02127659574 | AD78: 1 | AE78: 0.005319148936 | AG78: =cálculos2!O78 -> 4 | AH78: 0.4 | AI78: =cálculos2!P78 -> 2 | AJ78: 0.5
A79: Metropolitana | B79: Vila Velha | C79: 5675 | D79: 4304 | E79: 3872 | F79: 0.8996282528 | G79: 3873 | H79: 0.8998605948 | I79: 3569 | J79: 0.8292286245 | K79: 3792 | L79: 0.8810408922 | M79: 3682 | N79: 0.8554832714 | O79: 3607 | P79: 0.8380576208 | Q79: 3607 | R79: 0.8380576208 | S79: 2859 | T79: 0.6642657993 | U79: 3226 | V79: 0.749535316 | W79: 3748 | X79: 0.8708178439 | Y79: 1612 | Z79: 0.374535316 | AB79: 626 | AC79: 0.1454460967 | AD79: 277 | AE79: 0.06435873606 | AG79: =cálculos2!O79 -> 0 | AH79: 0 | AI79: =cálculos2!P79 -> 0 | AJ79: 0
A80: Metropolitana | B80: Vitória | C80: 3622 | D80: 2753 | E80: 2520 | F80: 0.9153650563 | G80: 2566 | H80: 0.932074101 | I80: 2524 | J80: 0.9168180167 | K80: 2817 | L80: 1.023247367 | M80: 2577 | N80: 0.9360697421 | O80: 2530 | P80: 0.9189974573 | Q80: 2506 | R80: 0.9102796949 | S80: 1862 | T80: 0.6763530694 | U80: 2465 | V80: 0.8953868507 | W80: 2529 | X80: 0.9186342172 | Y80: 1201 | Z80: 0.4362513622 | AB80: 701 | AC80: 0.2546313113 | AD80: 361 | AE80: 0.1311296767 | AG80: =cálculos2!O80 -> 3 | AH80: 0.3 | AI80: =cálculos2!P80 -> 1 | AJ80: 0.25
B82: Total Norte | C82: =SUMIF($A$3:$A$80,"Norte",C$3:C$80) -> 5787 | D82: =SUMIF($A$3:$A$80,"Norte",D$3:D$80) -> 4442 | E82: =SUMIF($A$3:$A$80,"Norte",E$3:E$80) -> 3816 | F82: =E82/D82 -> 0.8590724899 | G82: =SUMIF($A$3:$A$80,"Norte",G$3:G$80) -> 4041 | H82: =G82/D82 -> 0.9097253489 | I82: =SUMIF($A$3:$A$80,"Norte",I$3:I$80) -> 4121 | J82: =I82/D82 -> 0.9277352544 | K82: =SUMIF($A$3:$A$80,"Norte",K$3:K$80) -> 4160 | L82: =K82/D82 -> 0.9365150833 | M82: =SUMIF($A$3:$A$80,"Norte",M$3:M$80) -> 4255 | N82: =M82/D82 -> 0.957901846 | O82: =SUMIF($A$3:$A$80,"Norte",O$3:O$80) -> 4109 | P82: =O82/D82 -> 0.9250337686 | Q82: =SUMIF($A$3:$A$80,"Norte",Q$3:Q$80) -> 4049 | R82: =Q82/D82 -> 0.9115263395 | S82: =SUMIF($A$3:$A$80,"Norte",S$3:S$80) -> 3482 | T82: =S82/D82 -> 0.7838811346 | U82: =SUMIF($A$3:$A$80,"Norte",U$3:U$80) -> 3408 | V82: =U82/D82 -> 0.7672219721 | W82: =SUMIF($A$3:$A$80,"Norte",W$3:W$80) -> 4196 | X82: =W82/D82 -> 0.9446195407 | Y82: =SUMIF($A$3:$A$80,"Norte",Y$3:Y$80) -> 1838 | Z82: =Y82/D82 -> 0.4137775777 | AB82: =SUMIF($A$3:$A$80,"Norte",AB$3:AB$80) -> 639 | AC82: =AB82/D82 -> 0.1438541198 | AD82: =SUMIF($A$3:$A$80,"Norte",AD$3:AD$80) -> 224 | AE82: =AD82/D82 -> 0.05042773525 | AG82: =cálculos2!O82 -> 3 | AH82: =AG82*0.1 -> 0.3 | AI82: =cálculos2!P82 -> 1 | AJ82: 0.25
B83: Total Central | C83: =SUMIF($A$3:$A$80,"Central",C$3:C$80) -> 7061 | D83: =SUMIF($A$3:$A$80,"Central",D$3:D$80) -> 5413 | E83: =SUMIF($A$3:$A$80,"Central",E$3:E$80) -> 4527 | F83: =E83/D83 -> 0.8363199704 | G83: =SUMIF($A$3:$A$80,"Central",G$3:G$80) -> 4692 | H83: =G83/D83 -> 0.866802143 | I83: =SUMIF($A$3:$A$80,"Central",I$3:I$80) -> 4902 | J83: =I83/D83 -> 0.9055976353 | K83: =SUMIF($A$3:$A$80,"Central",K$3:K$80) -> 5037 | L83: =K83/D83 -> 0.9305375947 | M83: =SUMIF($A$3:$A$80,"Central",M$3:M$80) -> 5075 | N83: =M83/D83 -> 0.9375577314 | O83: =SUMIF($A$3:$A$80,"Central",O$3:O$80) -> 5041 | P83: =O83/D83 -> 0.9312765564 | Q83: =SUMIF($A$3:$A$80,"Central",Q$3:Q$80) -> 4876 | R83: =Q83/D83 -> 0.9007943839 | S83: =SUMIF($A$3:$A$80,"Central",S$3:S$80) -> 4215 | T83: =S83/D83 -> 0.7786809533 | U83: =SUMIF($A$3:$A$80,"Central",U$3:U$80) -> 4467 | V83: =U83/D83 -> 0.8252355441 | W83: =SUMIF($A$3:$A$80,"Central",W$3:W$80) -> 5052 | X83: =W83/D83 -> 0.9333087013 | Y83: =SUMIF($A$3:$A$80,"Central",Y$3:Y$80) -> 2384 | Z83: =Y83/D83 -> 0.4404212082 | AB83: =SUMIF($A$3:$A$80,"Central",AB$3:AB$80) -> 382 | AC83: =AB83/D83 -> 0.07057084796 | AD83: =SUMIF($A$3:$A$80,"Central",AD$3:AD$80) -> 154 | AE83: =AD83/D83 -> 0.02845002771 | AG83: =cálculos2!O83 -> 1 | AH83: =AG83*0.1 -> 0.1 | AI83: =cálculos2!P83 -> 0 | AJ83: 0
B84: Total Metropolitana | C84: =SUMIF($A$3:$A$80,"Metropolitana",C$3:C$80) -> 29358 | D84: =SUMIF($A$3:$A$80,"Metropolitana",D$3:D$80) -> 22372 | E84: =SUMIF($A$3:$A$80,"Metropolitana",E$3:E$80) -> 20359 | F84: =E84/D84 -> 0.9100214554 | G84: =SUMIF($A$3:$A$80,"Metropolitana",G$3:G$80) -> 20986 | H84: =G84/D84 -> 0.9380475594 | I84: =SUMIF($A$3:$A$80,"Metropolitana",I$3:I$80) -> 19687 | J84: =I84/D84 -> 0.8799839085 | K84: =SUMIF($A$3:$A$80,"Metropolitana",K$3:K$80) -> 20356 | L84: =K84/D84 -> 0.9098873592 | M84: =SUMIF($A$3:$A$80,"Metropolitana",M$3:M$80) -> 20647 | N84: =M84/D84 -> 0.9228946898 | O84: =SUMIF($A$3:$A$80,"Metropolitana",O$3:O$80) -> 20063 | P84: =O84/D84 -> 0.8967906311 | Q84: =SUMIF($A$3:$A$80,"Metropolitana",Q$3:Q$80) -> 19714 | R84: =Q84/D84 -> 0.8811907742 | S84: =SUMIF($A$3:$A$80,"Metropolitana",S$3:S$80) -> 15530 | T84: =S84/D84 -> 0.6941712855 | U84: =SUMIF($A$3:$A$80,"Metropolitana",U$3:U$80) -> 16587 | V84: =U84/D84 -> 0.7414178437 | W84: =SUMIF($A$3:$A$80,"Metropolitana",W$3:W$80) -> 20419 | X84: =W84/D84 -> 0.9127033792 | Y84: =SUMIF($A$3:$A$80,"Metropolitana",Y$3:Y$80) -> 8473 | Z84: =Y84/D84 -> 0.378732344 | AB84: =SUMIF($A$3:$A$80,"Metropolitana",AB$3:AB$80) -> 3552 | AC84: 0.1587698909 | AD84: =SUMIF($A$3:$A$80,"Metropolitana",AD$3:AD$80) -> 1522 | AE84: 0.06803146791 | AG84: =cálculos2!O84 -> 1 | AH84: 0.1 | AI84: =cálculos2!P84 -> 0 | AJ84: 0
B85: Total Sul | C85: =SUMIF($A$3:$A$80,"sul",C$3:C$80) -> 8270 | D85: =SUMIF($A$3:$A$80,"sul",D$3:D$80) -> 6311 | E85: =SUMIF($A$3:$A$80,"Sul",E$3:E$80) -> 5758 | F85: =E85/D85 -> 0.9123752179 | G85: =SUMIF($A$3:$A$80,"Sul",G$3:G$80) -> 5891 | H85: =G85/D85 -> 0.9334495326 | I85: =SUMIF($A$3:$A$80,"Sul",I$3:I$80) -> 5915 | J85: =I85/D85 -> 0.9372524164 | K85: =SUMIF($A$3:$A$80,"Sul",K$3:K$80) -> 5984 | L85: =K85/D85 -> 0.9481857075 | M85: =SUMIF($A$3:$A$80,"Sul",M$3:M$80) -> 6125 | N85: =M85/D85 -> 0.9705276501 | O85: =SUMIF($A$3:$A$80,"Sul",O$3:O$80) -> 5972 | P85: =O85/D85 -> 0.9462842656 | Q85: =SUMIF($A$3:$A$80,"Sul",Q$3:Q$80) -> 5822 | R85: =Q85/D85 -> 0.9225162415 | S85: =SUMIF($A$3:$A$80,"Sul",S$3:S$80) -> 4758 | T85: =S85/D85 -> 0.753921724 | U85: =SUMIF($A$3:$A$80,"Sul",U$3:U$80) -> 5397 | V85: =U85/D85 -> 0.8551735066 | W85: =SUMIF($A$3:$A$80,"Sul",W$3:W$80) -> 6041 | X85: =W85/D85 -> 0.9572175566 | Y85: =SUMIF($A$3:$A$80,"Sul",Y$3:Y$80) -> 2467 | Z85: =Y85/D85 -> 0.3909047695 | AB85: =SUMIF($A$3:$A$80,"Sul",AB$3:AB$80) -> 921 | AC85: 0.1459356679 | AD85: =SUMIF($A$3:$A$80,"Sul",AD$3:AD$80) -> 357 | AE85: 0.05656789732 | AG85: =cálculos2!O85 -> 4 | AH85: 0.4 | AI85: =cálculos2!P85 -> 2 | AJ85: 0.5
B86: Total Espírito Santo | C86: =SUM(C3:C80) -> 50476 | D86: =SUM(D3:D80) -> 38538 | E86: =SUM(E82:E85) -> 34460 | F86: =E86/D86 -> 0.8941823655 | G86: =SUM(G82:G85) -> 35610 | H86: =G86/D86 -> 0.9240230422 | I86: =SUM(I82:I85) -> 34625 | J86: =I86/D86 -> 0.8984638539 | K86: =SUM(K82:K85) -> 35537 | L86: =K86/D86 -> 0.9221288079 | M86: =SUM(M82:M85) -> 36102 | N86: =M86/D86 -> 0.9367896622 | O86: =SUM(O82:O85) -> 35185 | P86: =O86/D86 -> 0.912994966 | Q86: =SUM(Q82:Q85) -> 34461 | R86: =Q86/D86 -> 0.8942083139 | S86: =SUM(S82:S85) -> 27985 | T86: =S86/D86 -> 0.7261663812 | U86: =SUM(U82:U85) -> 29859 | V86: =U86/D86 -> 0.7747937101 | W86: =SUM(W82:W85) -> 35708 | X86: =W86/D86 -> 0.9265659868 | Y86: =SUM(Y82:Y85) -> 15162 | Z86: =Y86/D86 -> 0.3934298614 | AB86: =SUM(AB82:AB85) -> 5494 | AC86: 0.1425605895 | AD86: =SUM(AD82:AD85) -> 2257 | AE86: 0.05856557164 | AG86: =cálculos2!O86 -> 2 | AH86: 0.2 | AI86: =cálculos2!P86 -> 0 | AJ86: 0
E87: =COUNTIF(F3:F80,">=0,95") -> 15 | G87: =COUNTIF(H3:H80,">=0,9") -> 42 | I87: =COUNTIF(J3:J80,">=0,95") -> 41 | K87: =COUNTIF(L3:L80,">=0,95") -> 49 | M87: =COUNTIF(N3:N80,">=0,95") -> 48 | O87: =COUNTIF(P3:P80,">=0,9") -> 60 | Q87: =COUNTIF(R3:R80,">=0,95") -> 37 | S87: =COUNTIF(T3:T80,">=0,95") -> 19 | U87: =COUNTIF(V3:V80,">=0,95") -> 22 | W87: =COUNTIF(X3:X80,">=0,95") -> 50 | Y87: =COUNTIF(Z3:Z80,">=0,95") -> 0 | AB87: =COUNTIF(AC3:AC80,">=0,9") -> 0 | AD87: =COUNTIF(AE3:AE80,">=0,9") -> 0
B88: HOMOGENEIDADE ENTRE MUNICÍPIOS | E88: =E87/78 -> 0.1923076923 | G88: =G87/78 -> 0.5384615385 | I88: =I87/78 -> 0.5256410256 | K88: =K87/78 -> 0.6282051282 | M88: =M87/78 -> 0.6153846154 | O88: =O87/78 -> 0.7692307692 | Q88: =Q87/78 -> 0.4743589744 | S88: =S87/78 -> 0.2435897436 | U88: =U87/78 -> 0.2820512821 | W88: =W87/78 -> 0.641025641 | Y88: =Y87/78 -> 0 | AB88: =AB87/78 -> 0 | AD88: =AD87/78 -> 0
A90: Fonte: Vacina e Confia, em 09 de Outubro de 2024.**
A91: **Dados referente às doses aplicadas no período de Janeiro a Setembro de 2024
A92: Cobertura Calculada por município de residência do cidadão (no Vacina e Confia, a origem da informação é o endereço que consta no cadastro do cidadão preenchido manualmente por meio do autocadastro ou pelo cadastro realizado por um profissional de saúde no momento do atendimento).
A93: 1 População anual extraída do MS/SVS/DASIS - SINASC/DASIS/SVS/MS 2023 (hoje preliminares) referente ao período de Agosto a dezembro de 2023 e SINASC/DASIS/SVS/MS 2024 referente ao período de janeiro a julho de 2024.
A94: ² População proporcional extraída do MS/SVS/DASIS - SINASC/DASIS/SVS/MS 2023 (hoje preliminares) referente ao período de agosto e Setembro de 2023 somada a população extraída do SINASC/DASIS/SVS/MS 2024 referente ao período de janeiro e julho de 2024.
A95: Sinasc, atualizado em 10 de Outubro de 2024.
A96: Homogeineidade: O cálculo da Homogeineidade entre vacinas é feito de acordo com a pactuação estabelecida no Plano Plurianual (PPA) vigente no período 2024-2027.
A97: Observações:
A98: Imunobiológicos que foram recebidos parcialmente pelo estado no mês da análise, sendo distribuídos em quantidades reduzidas às regionais e municípios: Típlice Bacteriana (DTP),, Hepatite A - Rotina Pediátrica, COVID-19 Monovalente (XBB) - FRASCO .
A99: Imunobiológicos indisponíveis no mês da análise, não sendo possível a distribuição às regionais e municípios: Meningo C Conjugada, Tríplice Bacteriana Acelular (dTpa - CRIE).
A100: Imunobiológicos em falta e sem previsão de entrega: Febre Amarela, Varicela, Tríplice Viral (SCR), COVID-19 Monovalente (XBB) - FRASCO, Tríplice Bacteriana (DTP).

Sheet CV REF 1A e 4A - procedência
G1: D2 | K1: REFORÇOS 1 ANO | S1: REFORÇOS 4 ANOS
A2: Regional | B2: Município | C2: ¹População 1 ano anual | D2: ²População 1 ano proporcional | E2: ³População 4 anos anual | F2: ³População 4 anos proporcional | G2: DOSES APLICADAS D2 TRÍPLICE VIRAL | H2: COBERTURA D2 TRÍPLICE VIRAL | I2: DOSES APLICADAS D2 VARICELA | J2: COBERTURA D2 VARICELA | K2: DOSES APLICADAS REF PNEUMO | L2: COBERTURA REF PNEUMO | M2: DOSES APLICADAS REF MENINGO | N2: COBERTURA REF MENINGO | O2: DOSES APLICADAS R1 POLIO | P2: COBERTURA R1 POLIO | Q2: DOSES APLICADAS R1 TRÍPLICE BACTERIANA | R2: COBERTURA R1 TRÍPLICE BACTERIANA | S2: DOSES APLICADAS REF FEBRE AMARELA | T2: COBERTURA REF FEBRE AMARELA | U2: DOSES APLICADAS R2 POLIO | V2: COBERTURA R2 POLIO | W2: DOSES APLICADAS R2 TRÍPLICE BACTERIANA | X2: COBERTURA R2 TRÍPLICE BACTERIANA
A3: Metropolitana | B3: Afonso Cláudio | C3: 385 | D3: 307 | E3: 416 | F3: =E3/12*8 -> 277.3333333 | G3: 269 | H3: =G3/D3 -> 0.8762214984 | I3: 83 | J3: =I3/F3 -> 0.2992788462 | K3: 260 | L3: =K3/D3 -> 0.8469055375 | M3: 269 | N3: =M3/D3 -> 0.8762214984 | O3: 580 | P3: =O3/D3 -> 1.889250814 | Q3: 271 | R3: =Q3/D3 -> 0.8827361564 | S3: 204 | T3: =S3/F3 -> 0.7355769231 | U3: 503 | V3: =U3/F3 -> 1.813701923 | W3: 226 | X3: =W3/F3 -> 0.8149038462
A4: Norte | B4: Água Doce do Norte | C4: 202 | D4: 168 | E4: 151 | F4: =E4/12*8 -> 100.6666667 | G4: 93 | H4: 0.5535714286 | I4: 39 | J4: 0.3874172185 | K4: 113 | L4: 0.6726190476 | M4: 116 | N4: 0.6904761905 | O4: 171 | P4: 1.017857143 | Q4: 106 | R4: 0.630952381 | S4: 85 | T4: 0.8443708609 | U4: 152 | V4: 1.509933775 | W4: 100 | X4: 0.9933774834
A5: Central | B5: Águia Branca | C5: 173 | D5: 133 | E5: 129 | F5: 86 | G5: 77 | H5: 0.5789473684 | I5: 32 | J5: 0.3720930233 | K5: 104 | L5: 0.7819548872 | M5: 109 | N5: 0.8195488722 | O5: 113 | P5: 0.8496240602 | Q5: 93 | R5: 0.6992481203 | S5: 77 | T5: 0.8953488372 | U5: 121 | V5: 1.406976744 | W5: 93 | X5: 1.081395349
A6: Sul | B6: Alegre | C6: 323 | D6: 238 | E6: 372 | F6: 248 | G6: 207 | H6: 0.8697478992 | I6: 107 | J6: 0.4314516129 | K6: 231 | L6: 0.9705882353 | M6: 233 | N6: 0.9789915966 | O6: 446 | P6: 1.87394958 | Q6: 228 | R6: 0.9579831933 | S6: 228 | T6: 0.9193548387 | U6: 477 | V6: 1.923387097 | W6: 251 | X6: 1.012096774
A7: Sul | B7: Alfredo Chaves | C7: 143 | D7: 104 | E7: 138 | F7: 92 | G7: 78 | H7: 0.75 | I7: 48 | J7: 0.5217391304 | K7: 112 | L7: 1.076923077 | M7: 117 | N7: 1.125 | O7: 204 | P7: 1.961538462 | Q7: 100 | R7: 0.9615384615 | S7: 95 | T7: 1.032608696 | U7: 246 | V7: 2.673913043 | W7: 105 | X7: 1.141304348
A8: Central | B8: Alto Rio Novo | C8: 85 | D8: 65 | E8: 102 | F8: 68 | G8: 68 | H8: 1.046153846 | I8: 26 | J8: 0.3823529412 | K8: 74 | L8: 1.138461538 | M8: 74 | N8: 1.138461538 | O8: 116 | P8: 1.784615385 | Q8: 70 | R8: 1.076923077 | S8: 50 | T8: 0.7352941176 | U8: 100 | V8: 1.470588235 | W8: 49 | X8: 0.7205882353
A9: Sul | B9: Anchieta | C9: 367 | D9: 280 | E9: 390 | F9: 260 | G9: 237 | H9: 0.8464285714 | I9: 114 | J9: 0.4384615385 | K9: 310 | L9: 1.107142857 | M9: 315 | N9: 1.125 | O9: 503 | P9: 1.796428571 | Q9: 300 | R9: 1.071428571 | S9: 234 | T9: 0.9 | U9: 521 | V9: 2.003846154 | W9: 314 | X9: 1.207692308
A10: Sul | B10: Apiacá | C10: 68 | D10: 53 | E10: 90 | F10: 60 | G10: 41 | H10: 0.7735849057 | I10: 23 | J10: 0.3833333333 | K10: 48 | L10: 0.9056603774 | M10: 55 | N10: 1.037735849 | O10: 87 | P10: 1.641509434 | Q10: 49 | R10: 0.9245283019 | S10: 5 | T10: 0.08333333333 | U10: 94 | V10: 1.566666667 | W10: 52 | X10: 0.8666666667
A11: Metropolitana | B11: Aracruz | C11: 1419 | D11: 1082 | E11: 1420 | F11: 946.6666667 | G11: 923 | H11: 0.8530499076 | I11: 454 | J11: 0.4795774648 | K11: 1147 | L11: 1.060073937 | M11: 1183 | N11: 1.093345656 | O11: 1655 | P11: 1.529574861 | Q11: 1103 | R11: 1.019408503 | S11: 776 | T11: 0.8197183099 | U11: 1484 | V11: 1.567605634 | W11: 1005 | X11: 1.061619718
A12: Sul | B12: Atilio Vivacqua | C12: 144 | D12: 107 | E12: 138 | F12: 92 | G12: 92 | H12: 0.8598130841 | I12: 28 | J12: 0.3043478261 | K12: 118 | L12: 1.102803738 | M12: 119 | N12: 1.112149533 | O12: 195 | P12: 1.822429907 | Q12: 118 | R12: 1.102803738 | S12: 90 | T12: 0.9782608696 | U12: 152 | V12: 1.652173913 | W12: 106 | X12: 1.152173913
A13: Central | B13: Baixo Guandu | C13: 388 | D13: 283 | E13: 427 | F13: 284.6666667 | G13: 236 | H13: 0.8339222615 | I13: 109 | J13: 0.3829039813 | K13: 264 | L13: 0.9328621908 | M13: 268 | N13: 0.9469964664 | O13: 512 | P13: 1.809187279 | Q13: 280 | R13: 0.9893992933 | S13: 220 | T13: 0.7728337237 | U13: 486 | V13: 1.707259953 | W13: 271 | X13: 0.9519906323
A14: Norte | B14: Barra de São Francisco | C14: 562 | D14: 442 | E14: 589 | F14: 392.6666667 | G14: 367 | H14: 0.8303167421 | I14: 174 | J14: 0.4431239389 | K14: 406 | L14: 0.9185520362 | M14: 406 | N14: 0.9185520362 | O14: 544 | P14: 1.230769231 | Q14: 373 | R14: 0.8438914027 | S14: 342 | T14: 0.8709677419 | U14: 478 | V14: 1.217317487 | W14: 348 | X14: 0.8862478778
A15: Norte | B15: Boa Esperança | C15: 205 | D15: 154 | E15: 200 | F15: 133.3333333 | G15: 103 | H15: 0.6688311688 | I15: 51 | J15: 0.3825 | K15: 145 | L15: 0.9415584416 | M15: 150 | N15: 0.974025974 | O15: 265 | P15: 1.720779221 | Q15: 156 | R15: 1.012987013 | S15: 103 | T15: 0.7725 | U15: 229 | V15: 1.7175 | W15: 141 | X15: 1.0575
A16: Sul | B16: Bom Jesus do Norte | C16: 88 | D16: 73 | E16: 146 | F16: 97.33333333 | G16: 65 | H16: 0.8904109589 | I16: 31 | J16: 0.3184931507 | K16: 105 | L16: 1.438356164 | M16: 108 | N16: 1.479452055 | O16: 154 | P16: 2.109589041 | Q16: 98 | R16: 1.342465753 | S16: 76 | T16: 0.7808219178 | U16: 151 | V16: 1.551369863 | W16: 91 | X16: 0.9349315068
A17: Metropolitana | B17: Brejetuba | C17: 198 | D17: 146 | E17: 169 | F17: 112.6666667 | G17: 146 | H17: 1 | I17: 61 | J17: 0.5414201183 | K17: 147 | L17: 1.006849315 | M17: 152 | N17: 1.04109589 | O17: 286 | P17: 1.95890411 | Q17: 146 | R17: 1 | S17: 142 | T17: 1.26035503 | U17: 311 | V17: 2.76035503 | W17: 159 | X17: 1.411242604
A18: Sul | B18: Cachoeiro de Itapemirim | C18: 2424 | D18: 1893 | E18: 2417 | F18: 1611.333333 | G18: 1339 | H18: 0.707342842 | I18: 580 | J18: 0.3599503517 | K18: 1739 | L18: 0.9186476492 | M18: 1799 | N18: 0.9503433703 | O18: 2328 | P18: 1.229793978 | Q18: 1656 | R18: 0.8748019017 | S18: 1025 | T18: 0.636119156 | U18: 1872 | V18: 1.16177079 | W18: 1404 | X18: 0.8713280927
A19: Metropolitana | B19: Cariacica | C19: 4851 | D19: 3710 | E19: 5005 | F19: 3336.666667 | G19: 2400 | H19: 0.6469002695 | I19: 1229 | J19: 0.3683316683 | K19: 3453 | L19: 0.9307277628 | M19: 3502 | N19: 0.94393531 | O19: 4115 | P19: 1.10916442 | Q19: 3120 | R19: 0.8409703504 | S19: 2645 | T19: 0.7927072927 | U19: 4251 | V19: 1.274025974 | W19: 3403 | X19: 1.01988012
A20: Sul | B20: Castelo | C20: 432 | D20: 323 | E20: 399 | F20: 266 | G20: 272 | H20: 0.8421052632 | I20: 101 | J20: 0.3796992481 | K20: 340 | L20: 1.052631579 | M20: 338 | N20: 1.046439628 | O20: 598 | P20: 1.851393189 | Q20: 330 | R20: 1.021671827 | S20: 223 | T20: 0.8383458647 | U20: 498 | V20: 1.872180451 | W20: 282 | X20: 1.060150376
A21: Central | B21: Colatina | C21: 1518 | D21: 1171 | E21: 1561 | F21: 1040.666667 | G21: 880 | H21: 0.7514944492 | I21: 292 | J21: 0.2805893658 | K21: 1111 | L21: 0.9487617421 | M21: 1153 | N21: 0.9846285226 | O21: 1284 | P21: 1.096498719 | Q21: 1019 | R21: 0.8701964133 | S21: 664 | T21: 0.6380525304 | U21: 1083 | V21: 1.040679052 | W21: 831 | X21: 0.7985265855
A22: Norte | B22: Conceição da Barra | C22: 386 | D22: 284 | E22: 391 | F22: 260.6666667 | G22: 231 | H22: 0.8133802817 | I22: 117 | J22: 0.4488491049 | K22: 295 | L22: 1.038732394 | M22: 302 | N22: 1.063380282 | O22: 517 | P22: 1.820422535 | Q22: 287 | R22: 1.01056338 | S22: 287 | T22: 1.101023018 | U22: 573 | V22: 2.198209719 | W22: 356 | X22: 1.3657289
A23: Metropolitana | B23: Conceição do Castelo | C23: 152 | D23: 126 | E23: 144 | F23: 96 | G23: 107 | H23: 0.8492063492 | I23: 53 | J23: 0.5520833333 | K23: 103 | L23: 0.8174603175 | M23: 109 | N23: 0.8650793651 | O23: 207 | P23: 1.642857143 | Q23: 107 | R23: 0.8492063492 | S23: 91 | T23: 0.9479166667 | U23: 214 | V23: 2.229166667 | W23: 100 | X23: 1.041666667
A24: Sul | B24: Divino de São Lourenço | C24: 70 | D24: 55 | E24: 68 | F24: 45.33333333 | G24: 39 | H24: 0.7090909091 | I24: 30 | J24: 0.6617647059 | K24: 44 | L24: 0.8 | M24: 44 | N24: 0.8 | O24: 76 | P24: 1.381818182 | Q24: 41 | R24: 0.7454545455 | S24: 60 | T24: 1.323529412 | U24: 80 | V24: 1.764705882 | W24: 53 | X24: 1.169117647
A25: Metropolitana | B25: Domingos Martins | C25: 420 | D25: 303 | E25: 411 | F25: 274 | G25: 268 | H25: 0.8844884488 | I25: 158 | J25: 0.5766423358 | K25: 299 | L25: 0.9867986799 | M25: 291 | N25: 0.9603960396 | O25: 560 | P25: 1.848184818 | Q25: 322 | R25: 1.062706271 | S25: 255 | T25: 0.9306569343 | U25: 523 | V25: 1.908759124 | W25: 312 | X25: 1.138686131
A26: Sul | B26: Dores do Rio Preto | C26: 96 | D26: 74 | E26: 92 | F26: 61.33333333 | G26: 45 | H26: 0.6081081081 | I26: 21 | J26: 0.3423913043 | K26: 90 | L26: 1.216216216 | M26: 92 | N26: 1.243243243 | O26: 114 | P26: 1.540540541 | Q26: 68 | R26: 0.9189189189 | S26: 44 | T26: 0.7173913043 | U26: 91 | V26: 1.483695652 | W26: 54 | X26: 0.8804347826
A27: Norte | B27: Ecoporanga | C27: 253 | D27: 203 | E27: 283 | F27: 188.6666667 | G27: 170 | H27: 0.8374384236 | I27: 89 | J27: 0.4717314488 | K27: 189 | L27: 0.9310344828 | M27: 197 | N27: 0.9704433498 | O27: 276 | P27: 1.359605911 | Q27: 174 | R27: 0.8571428571 | S27: 185 | T27: 0.980565371 | U27: 274 | V27: 1.45229682 | W27: 196 | X27: 1.038869258
A28: Metropolitana | B28: Fundão | C28: 221 | D28: 176 | E28: 218 | F28: 145.3333333 | G28: 143 | H28: 0.8125 | I28: 82 | J28: 0.5642201835 | K28: 164 | L28: 0.9318181818 | M28: 167 | N28: 0.9488636364 | O28: 267 | P28: 1.517045455 | Q28: 160 | R28: 0.9090909091 | S28: 117 | T28: 0.8050458716 | U28: 220 | V28: 1.513761468 | W28: 152 | X28: 1.04587156
A29: Central | B29: Governador Lindenberg | C29: 130 | D29: 98 | E29: 142 | F29: 94.66666667 | G29: 89 | H29: 0.9081632653 | I29: 46 | J29: 0.485915493 | K29: 108 | L29: 1.102040816 | M29: 111 | N29: 1.132653061 | O29: 189 | P29: 1.928571429 | Q29: 104 | R29: 1.06122449 | S29: 87 | T29: 0.9190140845 | U29: 154 | V29: 1.626760563 | W29: 97 | X29: 1.024647887
A30: Sul | B30: Guaçuí | C30: 384 | D30: 287 | E30: 407 | F30: 271.3333333 | G30: 191 | H30: 0.6655052265 | I30: 75 | J30: 0.2764127764 | K30: 300 | L30: 1.045296167 | M30: 310 | N30: 1.080139373 | O30: 467 | P30: 1.6271777 | Q30: 280 | R30: 0.9756097561 | S30: 211 | T30: 0.7776412776 | U30: 393 | V30: 1.448402948 | W30: 245 | X30: 0.9029484029
A31: Metropolitana | B31: Guarapari | C31: 1508 | D31: 1095 | E31: 1557 | F31: 1038 | G31: 799 | H31: 0.7296803653 | I31: 411 | J31: 0.3959537572 | K31: 1197 | L31: 1.093150685 | M31: 1174 | N31: 1.072146119 | O31: 1469 | P31: 1.341552511 | Q31: 1084 | R31: 0.9899543379 | S31: 699 | T31: 0.6734104046 | U31: 1290 | V31: 1.242774566 | W31: 1014 | X31: 0.9768786127
A32: Metropolitana | B32: Ibatiba | C32: 367 | D32: 288 | E32: 354 | F32: 236 | G32: 220 | H32: 0.7638888889 | I32: 65 | J32: 0.2754237288 | K32: 287 | L32: 0.9965277778 | M32: 292 | N32: 1.013888889 | O32: 387 | P32: 1.34375 | Q32: 270 | R32: 0.9375 | S32: 193 | T32: 0.8177966102 | U32: 285 | V32: 1.207627119 | W32: 216 | X32: 0.9152542373
A33: Metropolitana | B33: Ibiraçu | C33: 151 | D33: 119 | E33: 160 | F33: 106.6666667 | G33: 59 | H33: 0.4957983193 | I33: 50 | J33: 0.46875 | K33: 101 | L33: 0.8487394958 | M33: 102 | N33: 0.8571428571 | O33: 188 | P33: 1.579831933 | Q33: 81 | R33: 0.6806722689 | S33: 96 | T33: 0.9 | U33: 241 | V33: 2.259375 | W33: 112 | X33: 1.05
A34: Sul | B34: Ibitirama | C34: 140 | D34: 104 | E34: 148 | F34: 98.66666667 | G34: 80 | H34: 0.7692307692 | I34: 21 | J34: 0.2128378378 | K34: 107 | L34: 1.028846154 | M34: 112 | N34: 1.076923077 | O34: 173 | P34: 1.663461538 | Q34: 108 | R34: 1.038461538 | S34: 35 | T34: 0.3547297297 | U34: 130 | V34: 1.317567568 | W34: 48 | X34: 0.4864864865
A35: Sul | B35: Iconha | C35: 114 | D35: 90 | E35: 156 | F35: 104 | G35: 108 | H35: =G35/D35 -> 1.2 | I35: 36 | J35: =I35/F35 -> 0.3461538462 | K35: 105 | L35: =K35/D35 -> 1.166666667 | M35: 112 | N35: =M35/D35 -> 1.244444444 | O35: 150 | P35: =O35/D35 -> 1.666666667 | Q35: 97 | R35: =Q35/D35 -> 1.077777778 | S35: 106 | T35: =S35/F35 -> 1.019230769 | U35: 153 | V35: =U35/F35 -> 1.471153846 | W35: 106 | X35: =W35/F35 -> 1.019230769
A36: Sul | B36: Irupi | C36: 194 | D36: 147 | E36: 200 | F36: 133.3333333 | G36: 120 | H36: 0.8163265306 | I36: 47 | J36: 0.3525 | K36: 168 | L36: 1.142857143 | M36: 170 | N36: 1.156462585 | O36: 233 | P36: 1.585034014 | Q36: 145 | R36: 0.9863945578 | S36: 148 | T36: 1.11 | U36: 236 | V36: 1.77 | W36: 159 | X36: 1.1925
A37: Metropolitana | B37: Itaguaçu | C37: 137 | D37: 109 | E37: 154 | F37: 102.6666667 | G37: 119 | H37: 1.091743119 | I37: 44 | J37: 0.4285714286 | K37: 109 | L37: 1 | M37: 115 | N37: 1.055045872 | O37: 192 | P37: 1.76146789 | Q37: 111 | R37: 1.018348624 | S37: 82 | T37: 0.7987012987 | U37: 178 | V37: 1.733766234 | W37: 100 | X37: 0.974025974
A38: Sul | B38: Itapemirim | C38: 520 | D38: 372 | E38: 556 | F38: 370.6666667 | G38: 272 | H38: 0.7311827957 | I38: 136 | J38: 0.3669064748 | K38: 366 | L38: 0.9838709677 | M38: 379 | N38: 1.018817204 | O38: 540 | P38: 1.451612903 | Q38: 346 | R38: 0.9301075269 | S38: 196 | T38: 0.5287769784 | U38: 519 | V38: 1.400179856 | W38: 363 | X38: 0.9793165468
A39: Metropolitana | B39: Itarana | C39: 136 | D39: 103 | E39: 128 | F39: 85.33333333 | G39: 80 | H39: 0.7766990291 | I39: 51 | J39: 0.59765625 | K39: 98 | L39: 0.9514563107 | M39: 101 | N39: 0.9805825243 | O39: 183 | P39: 1.776699029 | Q39: 91 | R39: 0.8834951456 | S39: 92 | T39: 1.078125 | U39: 183 | V39: 2.14453125 | W39: 97 | X39: 1.13671875
A40: Sul | B40: Iúna | C40: 477 | D40: 354 | E40: 410 | F40: 273.3333333 | G40: 259 | H40: 0.7316384181 | I40: 94 | J40: 0.343902439 | K40: 331 | L40: 0.9350282486 | M40: 345 | N40: 0.9745762712 | O40: 450 | P40: 1.271186441 | Q40: 285 | R40: 0.8050847458 | S40: 214 | T40: 0.7829268293 | U40: 435 | V40: 1.591463415 | W40: 265 | X40: 0.9695121951
A41: Norte | B41: Jaguaré | C41: 495 | D41: 385 | E41: 445 | F41: 296.6666667 | G41: 272 | H41: 0.7064935065 | I41: 121 | J41: 0.4078651685 | K41: 376 | L41: 0.9766233766 | M41: 382 | N41: 0.9922077922 | O41: 543 | P41: 1.41038961 | Q41: 344 | R41: 0.8935064935 | S41: 322 | T41: 1.085393258 | U41: 569 | V41: 1.917977528 | W41: 383 | X41: 1.291011236
A42: Sul | B42: Jerônimo Monteiro | C42: 150 | D42: 117 | E42: 157 | F42: 104.6666667 | G42: 100 | H42: 0.8547008547 | I42: 22 | J42: 0.2101910828 | K42: 127 | L42: 1.085470085 | M42: 127 | N42: 1.085470085 | O42: 187 | P42: 1.598290598 | Q42: 126 | R42: 1.076923077 | S42: 87 | T42: 0.8312101911 | U42: 158 | V42: 1.50955414 | W42: 99 | X42: 0.9458598726
A43: Metropolitana | B43: João Neiva | C43: 161 | D43: 120 | E43: 142 | F43: 94.66666667 | G43: 107 | H43: 0.8916666667 | I43: 36 | J43: 0.3802816901 | K43: 139 | L43: 1.158333333 | M43: 148 | N43: 1.233333333 | O43: 184 | P43: 1.533333333 | Q43: 113 | R43: 0.9416666667 | S43: 84 | T43: 0.8873239437 | U43: 159 | V43: 1.679577465 | W43: 96 | X43: 1.014084507
A44: Metropolitana | B44: Laranja da Terra | C44: 84 | D44: 67 | E44: 133 | F44: 88.66666667 | G44: 93 | H44: 1.388059701 | I44: 65 | J44: 0.7330827068 | K44: 96 | L44: 1.432835821 | M44: 103 | N44: 1.537313433 | O44: 197 | P44: 2.940298507 | Q44: 96 | R44: 1.432835821 | S44: 82 | T44: 0.9248120301 | U44: 187 | V44: 2.109022556 | W44: 86 | X44: 0.969924812
A45: Central | B45: Linhares | C45: 2598 | D45: 2014 | E45: 2452 | F45: 1634.666667 | G45: 1400 | H45: 0.6951340616 | I45: 558 | J45: 0.3413539967 | K45: 1610 | L45: 0.7994041708 | M45: 1710 | N45: 0.8490566038 | O45: 2540 | P45: 1.261171797 | Q45: 1690 | R45: 0.8391261172 | S45: 1163 | T45: 0.7114600326 | U45: 2273 | V45: 1.390497553 | W45: 1619 | X45: 0.9904159869
A46: Central | B46: Mantenópolis | C46: 153 | D46: 116 | E46: 166 | F46: 110.6666667 | G46: 100 | H46: 0.8620689655 | I46: 46 | J46: 0.4156626506 | K46: 126 | L46: 1.086206897 | M46: 125 | N46: 1.077586207 | O46: 192 | P46: 1.655172414 | Q46: 118 | R46: 1.017241379 | S46: 105 | T46: 0.9487951807 | U46: 180 | V46: 1.626506024 | W46: 112 | X46: 1.012048193
A47: Sul | B47: Marataízes | C47: 553 | D47: 432 | E47: 579 | F47: 386 | G47: 345 | H47: 0.7986111111 | I47: 145 | J47: 0.3756476684 | K47: 474 | L47: 1.097222222 | M47: 470 | N47: 1.087962963 | O47: 585 | P47: 1.354166667 | Q47: 429 | R47: 0.9930555556 | S47: 240 | T47: 0.621761658 | U47: 564 | V47: 1.461139896 | W47: 416 | X47: 1.077720207
A48: Metropolitana | B48: Marechal Floriano | C48: 221 | D48: 158 | E48: 236 | F48: 157.3333333 | G48: 136 | H48: 0.8607594937 | I48: 95 | J48: 0.6038135593 | K48: 159 | L48: 1.006329114 | M48: 156 | N48: 0.9873417722 | O48: 252 | P48: 1.594936709 | Q48: 160 | R48: 1.012658228 | S48: 124 | T48: 0.7881355932 | U48: 253 | V48: 1.608050847 | W48: 138 | X48: 0.8771186441
A49: Central | B49: Marilândia | C49: 154 | D49: 113 | E49: 164 | F49: 109.3333333 | G49: 96 | H49: 0.8495575221 | I49: 50 | J49: 0.4573170732 | K49: 98 | L49: 0.8672566372 | M49: 103 | N49: 0.9115044248 | O49: 188 | P49: 1.663716814 | Q49: 98 | R49: 0.8672566372 | S49: 93 | T49: 0.8506097561 | U49: 210 | V49: 1.920731707 | W49: 102 | X49: 0.9329268293
A50: Sul | B50: Mimoso do Sul | C50: 263 | D50: 200 | E50: 276 | F50: 184 | G50: 119 | H50: 0.595 | I50: 96 | J50: 0.5217391304 | K50: 156 | L50: 0.78 | M50: 165 | N50: 0.825 | O50: 209 | P50: 1.045 | Q50: 132 | R50: 0.66 | S50: 148 | T50: 0.8043478261 | U50: 239 | V50: 1.298913043 | W50: 156 | X50: 0.847826087
A51: Norte | B51: Montanha | C51: 226 | D51: 171 | E51: 278 | F51: 185.3333333 | G51: 174 | H51: 1.01754386 | I51: 88 | J51: 0.4748201439 | K51: 195 | L51: 1.140350877 | M51: 203 | N51: 1.187134503 | O51: 333 | P51: 1.947368421 | Q51: 188 | R51: 1.099415205 | S51: 173 | T51: 0.9334532374 | U51: 351 | V51: 1.893884892 | W51: 191 | X51: 1.03057554
A52: Norte | B52: Mucurici | C52: 74 | D52: 52 | E52: 97 | F52: 64.66666667 | G52: 49 | H52: 0.9423076923 | I52: 27 | J52: 0.4175257732 | K52: 69 | L52: 1.326923077 | M52: 71 | N52: 1.365384615 | O52: 63 | P52: 1.211538462 | Q52: 49 | R52: 0.9423076923 | S52: 48 | T52: 0.7422680412 | U52: 78 | V52: 1.206185567 | W52: 51 | X52: 0.7886597938
A53: Sul | B53: Muniz Freire | C53: 213 | D53: 161 | E53: 275 | F53: 183.3333333 | G53: 171 | H53: 1.062111801 | I53: 29 | J53: 0.1581818182 | K53: 189 | L53: 1.173913043 | M53: 187 | N53: 1.161490683 | O53: 307 | P53: 1.906832298 | Q53: 178 | R53: 1.105590062 | S53: 171 | T53: 0.9327272727 | U53: 358 | V53: 1.952727273 | W53: 180 | X53: 0.9818181818
A54: Sul | B54: Muqui | C54: 147 | D54: 116 | E54: 152 | F54: 101.3333333 | G54: 91 | H54: 0.7844827586 | I54: 63 | J54: 0.6217105263 | K54: 133 | L54: 1.146551724 | M54: 132 | N54: 1.137931034 | O54: 235 | P54: 2.025862069 | Q54: 94 | R54: 0.8103448276 | S54: 100 | T54: 0.9868421053 | U54: 221 | V54: 2.180921053 | W54: 101 | X54: 0.9967105263
A55: Norte | B55: Nova Venécia | C55: 627 | D55: 485 | E55: 656 | F55: 437.3333333 | G55: 468 | H55: 0.9649484536 | I55: 150 | J55: 0.3429878049 | K55: 499 | L55: 1.028865979 | M55: 530 | N55: 1.092783505 | O55: 704 | P55: 1.451546392 | Q55: 461 | R55: 0.9505154639 | S55: 364 | T55: 0.8323170732 | U55: 602 | V55: 1.37652439 | W55: 420 | X55: 0.9603658537
A56: Central | B56: Pancas | C56: 208 | D56: 156 | E56: 244 | F56: 162.6666667 | G56: 152 | H56: 0.9743589744 | I56: 52 | J56: 0.3196721311 | K56: 155 | L56: 0.9935897436 | M56: 163 | N56: 1.044871795 | O56: 294 | P56: 1.884615385 | Q56: 157 | R56: 1.006410256 | S56: 130 | T56: 0.7991803279 | U56: 263 | V56: 1.616803279 | W56: 150 | X56: 0.9221311475
A57: Norte | B57: Pedro Canário | C57: 316 | D57: 234 | E57: 338 | F57: 225.3333333 | G57: 217 | H57: 0.9273504274 | I57: 115 | J57: 0.5103550296 | K57: 266 | L57: 1.136752137 | M57: 268 | N57: 1.145299145 | O57: 413 | P57: 1.764957265 | Q57: 272 | R57: 1.162393162 | S57: 191 | T57: 0.8476331361 | U57: 368 | V57: 1.633136095 | W57: 240 | X57: 1.065088757
A58: Norte | B58: Pinheiros | C58: 328 | D58: 252 | E58: 383 | F58: 255.3333333 | G58: 158 | H58: 0.626984127 | I58: 104 | J58: 0.407310705 | K58: 232 | L58: 0.9206349206 | M58: 237 | N58: 0.9404761905 | O58: 304 | P58: 1.206349206 | Q58: 194 | R58: 0.7698412698 | S58: 180 | T58: 0.7049608355 | U58: 294 | V58: 1.151436031 | W58: 212 | X58: 0.8302872063
A59: Sul | B59: Piúma | C59: 288 | D59: 206 | E59: 311 | F59: 207.3333333 | G59: 138 | H59: 0.6699029126 | I59: 69 | J59: 0.3327974277 | K59: 201 | L59: 0.9757281553 | M59: 188 | N59: 0.9126213592 | O59: 315 | P59: 1.529126214 | Q59: 188 | R59: 0.9126213592 | S59: 151 | T59: 0.7282958199 | U59: 311 | V59: 1.5 | W59: 229 | X59: 1.104501608
A60: Norte | B60: Ponto Belo | C60: 74 | D60: 52 | E60: 85 | F60: 56.66666667 | G60: 55 | H60: 1.057692308 | I60: 25 | J60: 0.4411764706 | K60: 66 | L60: 1.269230769 | M60: 68 | N60: 1.307692308 | O60: 123 | P60: 2.365384615 | Q60: 65 | R60: 1.25 | S60: 62 | T60: 1.094117647 | U60: 115 | V60: 2.029411765 | W60: 64 | X60: 1.129411765
A61: Sul | B61: Presidente Kennedy | C61: 200 | D61: 163 | E61: 239 | F61: 159.3333333 | G61: 156 | H61: 0.9570552147 | I61: 61 | J61: 0.3828451883 | K61: 174 | L61: 1.067484663 | M61: 173 | N61: 1.061349693 | O61: 280 | P61: 1.717791411 | Q61: 154 | R61: 0.9447852761 | S61: 142 | T61: 0.8912133891 | U61: 255 | V61: 1.60041841 | W61: 155 | X61: 0.9728033473
A62: Central | B62: Rio Bananal | C62: 272 | D62: 215 | E62: 229 | F62: 152.6666667 | G62: 233 | H62: 1.08372093 | I62: 66 | J62: 0.4323144105 | K62: 230 | L62: 1.069767442 | M62: 246 | N62: 1.144186047 | O62: 467 | P62: 2.172093023 | Q62: 230 | R62: 1.069767442 | S62: 199 | T62: 1.30349345 | U62: 397 | V62: 2.600436681 | W62: 203 | X62: 1.329694323
A63: Sul | B63: Rio Novo do Sul | C63: 109 | D63: 77 | E63: 144 | F63: 96 | G63: 81 | H63: 1.051948052 | I63: 54 | J63: 0.5625 | K63: 100 | L63: 1.298701299 | M63: 97 | N63: 1.25974026 | O63: 157 | P63: 2.038961039 | Q63: 95 | R63: 1.233766234 | S63: 67 | T63: 0.6979166667 | U63: 159 | V63: 1.65625 | W63: 91 | X63: 0.9479166667
A64: Metropolitana | B64: Santa Leopoldina | C64: 99 | D64: 69 | E64: 155 | F64: 103.3333333 | G64: 57 | H64: 0.8260869565 | I64: 17 | J64: 0.164516129 | K64: 88 | L64: 1.275362319 | M64: 89 | N64: 1.289855072 | O64: 162 | P64: 2.347826087 | Q64: 87 | R64: 1.260869565 | S64: 68 | T64: 0.6580645161 | U64: 165 | V64: 1.596774194 | W64: 87 | X64: 0.8419354839
A65: Metropolitana | B65: Santa Maria de Jetibá | C65: 656 | D65: 500 | E65: 685 | F65: 456.6666667 | G65: 436 | H65: 0.872 | I65: 142 | J65: 0.3109489051 | K65: 483 | L65: 0.966 | M65: 505 | N65: 1.01 | O65: 752 | P65: 1.504 | Q65: 497 | R65: 0.994 | S65: 332 | T65: 0.7270072993 | U65: 626 | V65: 1.37080292 | W65: 440 | X65: 0.9635036496
A66: Metropolitana | B66: Santa Teresa | C66: 310 | D66: 234 | E66: 260 | F66: 173.3333333 | G66: 152 | H66: 0.6495726496 | I66: 117 | J66: 0.675 | K66: 210 | L66: 0.8974358974 | M66: 207 | N66: 0.8846153846 | O66: 305 | P66: 1.303418803 | Q66: 167 | R66: 0.7136752137 | S66: 170 | T66: 0.9807692308 | U66: 293 | V66: 1.690384615 | W66: 169 | X66: 0.975
A67: Central | B67: São Domingos do Norte | C67: 118 | D67: 85 | E67: 117 | F67: 78 | G67: 70 | H67: =G67/D67 -> 0.8235294118 | I67: 29 | J67: =I67/F67 -> 0.3717948718 | K67: 90 | L67: =K67/D67 -> 1.058823529 | M67: 91 | N67: =M67/D67 -> 1.070588235 | O67: 103 | P67: =O67/D67 -> 1.211764706 | Q67: 65 | R67: =Q67/D67 -> 0.7647058824 | S67: 64 | T67: =S67/F67 -> 0.8205128205 | U67: 100 | V67: =U67/F67 -> 1.282051282 | W67: 67 | X67: =W67/F67 -> 0.858974359
A68: Central | B68: São Gabriel da Palha | C68: 455 | D68: 346 | E68: 426 | F68: =E68/12*8 -> 284 | G68: 265 | H68: 0.7658959538 | I68: 122 | J68: 0.4295774648 | K68: 298 | L68: 0.8612716763 | M68: 298 | N68: 0.8612716763 | O68: 434 | P68: 1.25433526 | Q68: 279 | R68: 0.8063583815 | S68: 293 | T68: 1.031690141 | U68: 473 | V68: 1.665492958 | W68: 294 | X68: 1.035211268
A69: Sul | B69: São José do Calçado | C69: 99 | D69: 82 | E69: 150 | F69: 100 | G69: 78 | H69: 0.9512195122 | I69: 35 | J69: 0.35 | K69: 104 | L69: 1.268292683 | M69: 101 | N69: 1.231707317 | O69: 115 | P69: 1.402439024 | Q69: 81 | R69: 0.987804878 | S69: 99 | T69: 0.99 | U69: 153 | V69: 1.53 | W69: 102 | X69: 1.02
A70: Norte | B70: São Mateus | C70: 1939 | D70: 1478 | E70: 1766 | F70: 1177.333333 | G70: 873 | H70: 0.5906630582 | I70: 474 | J70: 0.4026047565 | K70: 1328 | L70: 0.898511502 | M70: 1299 | N70: 0.8788903924 | O70: 1605 | P70: 1.085926928 | Q70: 1130 | R70: 0.7645466847 | S70: 826 | T70: 0.701585504 | U70: 1439 | V70: 1.222253681 | W70: 1071 | X70: 0.9096828992
A71: Central | B71: São Roque do Canaã | C71: 129 | D71: 108 | E71: 100 | F71: 66.66666667 | G71: 88 | H71: 0.8148148148 | I71: 47 | J71: 0.705 | K71: 96 | L71: 0.8888888889 | M71: 101 | N71: 0.9351851852 | O71: 169 | P71: 1.564814815 | Q71: 96 | R71: 0.8888888889 | S71: 65 | T71: 0.975 | U71: 164 | V71: 2.46 | W71: 71 | X71: 1.065
A72: Metropolitana | B72: Serra | C72: 7300 | D72: 5643 | E72: 7550 | F72: 5033.333333 | G72: 3573 | H72: 0.6331738437 | I72: 1424 | J72: 0.2829139073 | K72: 4869 | L72: 0.8628389155 | M72: 4909 | N72: 0.8699273436 | O72: 5594 | P72: 0.9913166755 | Q72: 4393 | R72: 0.7784866206 | S72: 4081 | T72: 0.810794702 | U72: 5711 | V72: 1.134635762 | W72: 4807 | X72: 0.9550331126
A73: Central | B73: Sooretama | C73: 425 | D73: 322 | E73: 415 | F73: 276.6666667 | G73: 240 | H73: 0.7453416149 | I73: 119 | J73: 0.4301204819 | K73: 313 | L73: 0.9720496894 | M73: 323 | N73: 1.00310559 | O73: 547 | P73: 1.698757764 | Q73: 291 | R73: 0.9037267081 | S73: 352 | T73: 1.272289157 | U73: 679 | V73: 2.454216867 | W73: 335 | X73: 1.210843373
A74: Sul | B74: Vargem Alta | C74: 264 | D74: 203 | E74: 278 | F74: 185.3333333 | G74: 175 | H74: 0.8620689655 | I74: 70 | J74: 0.3776978417 | K74: 195 | L74: 0.960591133 | M74: 195 | N74: 0.960591133 | O74: 340 | P74: 1.674876847 | Q74: 184 | R74: 0.9064039409 | S74: 140 | T74: 0.7553956835 | U74: 340 | V74: 1.834532374 | W74: 172 | X74: 0.928057554
A75: Metropolitana | B75: Venda Nova do Imigrante | C75: 368 | D75: 272 | E75: 328 | F75: 218.6666667 | G75: 266 | H75: 0.9779411765 | I75: 66 | J75: 0.3018292683 | K75: 323 | L75: 1.1875 | M75: 317 | N75: 1.165441176 | O75: 563 | P75: 2.069852941 | Q75: 300 | R75: 1.102941176 | S75: 184 | T75: 0.8414634146 | U75: 395 | V75: 1.806402439 | W75: 199 | X75: 0.9100609756
A76: Metropolitana | B76: Viana | C76: 917 | D76: 688 | E76: 1064 | F76: 709.3333333 | G76: 282 | H76: 0.4098837209 | I76: 208 | J76: 0.2932330827 | K76: 740 | L76: 1.075581395 | M76: 749 | N76: 1.088662791 | O76: 839 | P76: 1.219476744 | Q76: 626 | R76: 0.9098837209 | S76: 560 | T76: 0.7894736842 | U76: 965 | V76: 1.360432331 | W76: 724 | X76: 1.020676692
A77: Norte | B77: Vila Pavão | C77: 100 | D77: 82 | E77: 127 | F77: 84.66666667 | G77: 83 | H77: 1.012195122 | I77: 24 | J77: 0.2834645669 | K77: 84 | L77: 1.024390244 | M77: 89 | N77: 1.085365854 | O77: 161 | P77: 1.963414634 | Q77: 88 | R77: 1.073170732 | S77: 77 | T77: 0.9094488189 | U77: 180 | V77: 2.125984252 | W77: 83 | X77: 0.9803149606
A78: Central | B78: Vila Valério | C78: 255 | D78: 188 | E78: 169 | F78: 112.6666667 | G78: 145 | H78: 0.7712765957 | I78: 65 | J78: 0.5769230769 | K78: 171 | L78: 0.9095744681 | M78: 155 | N78: 0.8244680851 | O78: 292 | P78: 1.553191489 | Q78: 156 | R78: 0.829787234 | S78: 152 | T78: 1.349112426 | U78: 312 | V78: 2.769230769 | W78: 187 | X78: 1.659763314
A79: Metropolitana | B79: Vila Velha | C79: 5675 | D79: 4304 | E79: 5675 | F79: 3783.333333 | G79: 2892 | H79: 0.6719330855 | I79: 1247 | J79: 0.3296035242 | K79: 3625 | L79: 0.842239777 | M79: 3658 | N79: 0.8499070632 | O79: 4477 | P79: 1.040195167 | Q79: 3287 | R79: 0.7637081784 | S79: 3017 | T79: 0.7974449339 | U79: 4306 | V79: 1.13814978 | W79: 3309 | X79: 0.8746255507
A80: Metropolitana | B80: Vitória | C80: 3622 | D80: 2753 | E80: 3833 | F80: 2555.333333 | G80: 2151 | H80: 0.7813294588 | I80: 918 | J80: 0.3592486303 | K80: 2791 | L80: 1.013803124 | M80: 2567 | N80: 0.9324373411 | O80: 3654 | P80: 1.327279332 | Q80: 2821 | R80: 1.024700327 | S80: 1785 | T80: 0.6985390034 | U80: 3108 | V80: 1.216279676 | W80: 2470 | X80: 0.9666057918
B82: Total Norte | C82: =SUMIF($A$3:$A$80,"Norte",C$3:C$80) -> 5787 | D82: =SUMIF($A$3:$A$80,"Norte",D$3:D$80) -> 4442 | E82: =SUMIF($A$3:$A$80,"Norte",E$3:E$80) -> 5789 | F82: =SUMIF($A$3:$A$80,"Norte",F$3:F$80) -> 3859.333333 | G82: =SUMIF($A$3:$A$80,"Norte",G$3:G$80) -> 3313 | H82: =G82/D82 -> 0.7458352094 | I82: =SUMIF($A$3:$A$80,"Norte",I$3:I$80) -> 1598 | J82: =I82/F82 -> 0.4140611505 | K82: =SUMIF($A$3:$A$80,"Norte",K$3:K$80) -> 4263 | L82: =K82/D82 -> 0.9597028366 | M82: =SUMIF($A$3:$A$80,"Norte",M$3:M$80) -> 4318 | N82: =M82/D82 -> 0.9720846466 | O82: =SUMIF($A$3:$A$80,"Norte",O$3:O$80) -> 6022 | P82: =O82/D82 -> 1.355695633 | Q82: =SUMIF($A$3:$A$80,"Norte",Q$3:Q$80) -> 3887 | R82: =Q82/D82 -> 0.875056281 | S82: =SUMIF($A$3:$A$80,"Norte",S$3:S$80) -> 3245 | T82: =S82/F82 -> 0.8408187943 | U82: =SUMIF($A$3:$A$80,"Norte",U$3:U$80) -> 5702 | V82: =U82/F82 -> 1.477457247 | W82: =SUMIF($A$3:$A$80,"Norte",W$3:W$80) -> 3856 | X82: =W82/F82 -> 0.999136293
B83: Total Central | C83: =SUMIF($A$3:$A$80,"Central",C$3:C$80) -> 7061 | D83: =SUMIF($A$3:$A$80,"Central",D$3:D$80) -> 5413 | E83: =SUMIF($A$3:$A$80,"Central",E$3:E$80) -> 6843 | F83: =SUMIF($A$3:$A$80,"Central",F$3:F$80) -> 4562 | G83: =SUMIF($A$3:$A$80,"Central",G$3:G$80) -> 4139 | H83: =G83/D83 -> 0.7646406798 | I83: =SUMIF($A$3:$A$80,"Central",I$3:I$80) -> 1659 | J83: =I83/F83 -> 0.3636562911 | K83: =SUMIF($A$3:$A$80,"Central",K$3:K$80) -> 4848 | L83: =K83/D83 -> 0.8956216516 | M83: =SUMIF($A$3:$A$80,"Central",M$3:M$80) -> 5030 | N83: =M83/D83 -> 0.9292444116 | O83: =SUMIF($A$3:$A$80,"Central",O$3:O$80) -> 7440 | P83: =O83/D83 -> 1.374468871 | Q83: =SUMIF($A$3:$A$80,"Central",Q$3:Q$80) -> 4746 | R83: =Q83/D83 -> 0.8767781267 | S83: =SUMIF($A$3:$A$80,"Central",S$3:S$80) -> 3714 | T83: =S83/F83 -> 0.8141166155 | U83: =SUMIF($A$3:$A$80,"Central",U$3:U$80) -> 6995 | V83: =U83/F83 -> 1.53331872 | W83: =SUMIF($A$3:$A$80,"Central",W$3:W$80) -> 4481 | X83: =W83/F83 -> 0.9822446295
B84: Total Metropolitana | C84: =SUMIF($A$3:$A$80,"Metropolitana",C$3:C$80) -> 29358 | D84: =SUMIF($A$3:$A$80,"Metropolitana",D$3:D$80) -> 22372 | E84: =SUMIF($A$3:$A$80,"Metropolitana",E$3:E$80) -> 30197 | F84: =SUMIF($A$3:$A$80,"Metropolitana",F$3:F$80) -> 20131.33333 | G84: =SUMIF($A$3:$A$80,"Metropolitana",G$3:G$80) -> 15678 | H84: =G84/D84 -> 0.7007866977 | I84: =SUMIF($A$3:$A$80,"Metropolitana",I$3:I$80) -> 7076 | J84: =I84/F84 -> 0.3514918701 | K84: =SUMIF($A$3:$A$80,"Metropolitana",K$3:K$80) -> 20888 | L84: =K84/D84 -> 0.9336670839 | M84: =SUMIF($A$3:$A$80,"Metropolitana",M$3:M$80) -> 20865 | N84: =M84/D84 -> 0.9326390131 | O84: =SUMIF($A$3:$A$80,"Metropolitana",O$3:O$80) -> 27068 | P84: =O84/D84 -> 1.209905239 | Q84: =SUMIF($A$3:$A$80,"Metropolitana",Q$3:Q$80) -> 19413 | R84: =Q84/D84 -> 0.8677364563 | S84: =SUMIF($A$3:$A$80,"Metropolitana",S$3:S$80) -> 15879 | T84: =S84/F84 -> 0.7887704077 | U84: =SUMIF($A$3:$A$80,"Metropolitana",U$3:U$80) -> 25851 | V84: =U84/F84 -> 1.284117628 | W84: =SUMIF($A$3:$A$80,"Metropolitana",W$3:W$80) -> 19421 | X84: =W84/F84 -> 0.9647150379
B85: Total Sul | C85: =SUMIF($A$3:$A$80,"sul",C$3:C$80) -> 8270 | D85: =SUMIF($A$3:$A$80,"sul",D$3:D$80) -> 6311 | E85: =SUMIF($A$3:$A$80,"sul",E$3:E$80) -> 8688 | F85: =SUMIF($A$3:$A$80,"sul",F$3:F$80) -> 5792 | G85: =SUMIF($A$3:$A$80,"sul",G$3:G$80) -> 4899 | H85: =G85/D85 -> 0.7762636666 | I85: =SUMIF($A$3:$A$80,"sul",I$3:I$80) -> 2136 | J85: =I85/F85 -> 0.3687845304 | K85: =SUMIF($A$3:$A$80,"sul",K$3:K$80) -> 6367 | L85: =K85/D85 -> 1.008873396 | M85: =SUMIF($A$3:$A$80,"sul",M$3:M$80) -> 6483 | N85: =M85/D85 -> 1.027254001 | O85: =SUMIF($A$3:$A$80,"sul",O$3:O$80) -> 9448 | P85: =O85/D85 -> 1.49706861 | Q85: =SUMIF($A$3:$A$80,"sul",Q$3:Q$80) -> 5910 | R85: =Q85/D85 -> 0.9364601489 | S85: =SUMIF($A$3:$A$80,"sul",S$3:S$80) -> 4335 | T85: =S85/F85 -> 0.7484461326 | U85: =SUMIF($A$3:$A$80,"sul",U$3:U$80) -> 8806 | V85: =U85/F85 -> 1.520372928 | W85: =SUMIF($A$3:$A$80,"sul",W$3:W$80) -> 5599 | X85: =W85/F85 -> 0.9666781768
B86: Total Espírito Santo | C86: =SUM(C3:C80) -> 50476 | D86: =SUM(D3:D80) -> 38538 | E86: =SUM(E3:E80) -> 51517 | F86: =SUM(F3:F80) -> 34344.66667 | G86: =SUM(G3:G80) -> 28029 | H86: =G86/D86 -> 0.7273081115 | I86: =SUM(I3:I80) -> 12469 | J86: =I86/F86 -> 0.3630549139 | K86: =SUM(K3:K80) -> 36366 | L86: =K86/D86 -> 0.9436400436 | M86: =SUM(M3:M80) -> 36696 | N86: =M86/D86 -> 0.9522030204 | O86: =SUM(O3:O80) -> 49978 | P86: =O86/D86 -> 1.296849862 | Q86: =SUM(Q3:Q80) -> 33956 | R86: =Q86/D86 -> 0.8811043645 | S86: =SUM(S3:S80) -> 27173 | T86: =S86/F86 -> 0.7911854339 | U86: =SUM(U3:U80) -> 47354 | V86: =U86/F86 -> 1.378787585 | W86: =SUM(W3:W80) -> 33357 | X86: =W86/F86 -> 0.9712425025
A90: Fonte: Vacina e Confia, em 09 de Outubro de 2024.**
A91: **Dados referente às doses aplicadas no período de Setembro de 2024
A92: Cobertura Calculada por município de procedência da vacinação
A93: 1 População anual extraída do MS/SVS/DASIS - SINASC/DASIS/SVS/MS 2023 (hoje preliminares) referente ao período de Agosto a dezembro de 2023 e SINASC/DASIS/SVS/MS 2024 referente ao período de janeiro a julho de 2024.
A94: ² População proporcional extraída do MS/SVS/DASIS - SINASC/DASIS/SVS/MS 2023 (hoje preliminares) referente ao período de agosto e Setembro de 2023 somada a população extraída do SINASC/DASIS/SVS/MS 2024 referente ao período de janeiro e julho de 2024.
A95: Sinasc, atualizado em 10 de Outubro de 2024.
A96: ³ População anual e proporcional extraída do Censo IBGE 2022.
A97: Observações:
A98: Imunobiológicos que foram recebidos parcialmente pelo estado no mês da análise, sendo distribuídos em quantidades reduzidas às regionais e municípios: Típlice Bacteriana (DTP),Varicela, Hepatite A - Rotina Pediátrica, COVID-19 Monovalente (XBB) - FRASCO .
A99: Imunobiológicos indisponíveis no mês da análise, não sendo possível a distribuição às regionais e municípios: Meningo C Conjugada, Tríplice Bacteriana Acelular (dTpa - CRIE).
A100: Imunobiológicos em falta e sem previsão de entrega: Febre Amarela, Varicela, Tríplice Viral (SCR), COVID-19 Monovalente (XBB) - FRASCO, Tríplice Bacteriana (DTP).

Sheet CV REF 1A e 4A - residência
G1: D2 | K1: REFORÇOS 1 ANO | S1: REFORÇOS 4 ANOS
A2: Regional | B2: Município | C2: ¹População 1 ano anual | D2: ²População 1 ano proporcional | E2: ³População 4 anos anual | F2: ³População 4 anos proporcional | G2: DOSES APLICADAS D2 TRÍPLICE VIRAL | H2: COBERTURA D2 TRÍPLICE VIRAL | I2: DOSES APLICADAS D2 VARICELA | J2: COBERTURA D2 VARICELA | K2: DOSES APLICADAS REF PNEUMO | L2: COBERTURA REF PNEUMO | M2: DOSES APLICADAS REF MENINGO | N2: COBERTURA REF MENINGO | O2: DOSES APLICADAS R1 POLIO | P2: COBERTURA R1 POLIO | Q2: DOSES APLICADAS R1 TRÍPLICE BACTERIANA | R2: COBERTURA R1 TRÍPLICE BACTERIANA | S2: DOSES APLICADAS REF FEBRE AMARELA | T2: COBERTURA REF FEBRE AMARELA | U2: DOSES APLICADAS R2 POLIO | V2: COBERTURA R2 POLIO | W2: DOSES APLICADAS R2 TRÍPLICE BACTERIANA | X2: COBERTURA R2 TRÍPLICE BACTERIANA
A3: Metropolitana | B3: Afonso Cláudio | C3: 385 | D3: 307 | E3: 416 | F3: 277.3333333 | G3: 289 | H3: =G3/D3 -> 0.9413680782 | I3: 91 | J3: =I3/F3 -> 0.328125 | K3: 289 | L3: =K3/D3 -> 0.9413680782 | M3: 294 | N3: =M3/D3 -> 0.9576547231 | O3: 612 | P3: =O3/D3 -> 1.993485342 | Q3: 294 | R3: =Q3/D3 -> 0.9576547231 | S3: 219 | T3: =S3/F3 -> 0.7896634615 | U3: 534 | V3: =U3/F3 -> 1.925480769 | W3: 179 | X3: =W3/F3 -> 0.6454326923
A4: Norte | B4: Água Doce do Norte | C4: 202 | D4: 168 | E4: 151 | F4: 100.6666667 | G4: 85 | H4: 0.505952381 | I4: 36 | J4: 0.357615894 | K4: 115 | L4: 0.6845238095 | M4: 118 | N4: 0.7023809524 | O4: 155 | P4: 0.9226190476 | Q4: 98 | R4: 0.5833333333 | S4: 80 | T4: 0.7947019868 | U4: 147 | V4: 1.460264901 | W4: 66 | X4: 0.6556291391
A5: Central | B5: Águia Branca | C5: 173 | D5: 133 | E5: 129 | F5: 86 | G5: 83 | H5: 0.6240601504 | I5: 28 | J5: 0.3255813953 | K5: 106 | L5: 0.7969924812 | M5: 110 | N5: 0.8270676692 | O5: 123 | P5: 0.9248120301 | Q5: 98 | R5: 0.7368421053 | S5: 66 | T5: 0.7674418605 | U5: 113 | V5: 1.313953488 | W5: 54 | X5: 0.6279069767
A6: Sul | B6: Alegre | C6: 323 | D6: 238 | E6: 372 | F6: 248 | G6: 200 | H6: 0.8403361345 | I6: 103 | J6: 0.4153225806 | K6: 232 | L6: 0.974789916 | M6: 235 | N6: 0.987394958 | O6: 435 | P6: 1.827731092 | Q6: 227 | R6: 0.9537815126 | S6: 228 | T6: 0.9193548387 | U6: 475 | V6: 1.915322581 | W6: 209 | X6: 0.8427419355
A7: Sul | B7: Alfredo Chaves | C7: 143 | D7: 104 | E7: 138 | F7: 92 | G7: 74 | H7: 0.7115384615 | I7: 54 | J7: 0.5869565217 | K7: 116 | L7: 1.115384615 | M7: 117 | N7: 1.125 | O7: 189 | P7: 1.817307692 | Q7: 103 | R7: 0.9903846154 | S7: 101 | T7: 1.097826087 | U7: 259 | V7: 2.815217391 | W7: 80 | X7: 0.8695652174
A8: Central | B8: Alto Rio Novo | C8: 85 | D8: 65 | E8: 102 | F8: 68 | G8: 55 | H8: 0.8461538462 | I8: 27 | J8: 0.3970588235 | K8: 72 | L8: 1.107692308 | M8: 71 | N8: 1.092307692 | O8: 93 | P8: 1.430769231 | Q8: 58 | R8: 0.8923076923 | S8: 50 | T8: 0.7352941176 | U8: 101 | V8: 1.485294118 | W8: 34 | X8: 0.5
A9: Sul | B9: Anchieta | C9: 367 | D9: 280 | E9: 390 | F9: 260 | G9: 237 | H9: 0.8464285714 | I9: 117 | J9: 0.45 | K9: 328 | L9: 1.171428571 | M9: 323 | N9: 1.153571429 | O9: 499 | P9: 1.782142857 | Q9: 297 | R9: 1.060714286 | S9: 232 | T9: 0.8923076923 | U9: 509 | V9: 1.957692308 | W9: 234 | X9: 0.9
A10: Sul | B10: Apiacá | C10: 68 | D10: 53 | E10: 90 | F10: 60 | G10: 34 | H10: 0.641509434 | I10: 24 | J10: 0.4 | K10: 45 | L10: 0.8490566038 | M10: 50 | N10: 0.9433962264 | O10: 75 | P10: 1.41509434 | Q10: 45 | R10: 0.8490566038 | S10: 12 | T10: 0.2 | U10: 88 | V10: 1.466666667 | W10: 38 | X10: 0.6333333333
A11: Metropolitana | B11: Aracruz | C11: 1419 | D11: 1082 | E11: 1420 | F11: 946.6666667 | G11: 877 | H11: 0.8105360444 | I11: 420 | J11: 0.4436619718 | K11: 1103 | L11: 1.019408503 | M11: 1146 | N11: 1.059149723 | O11: 1601 | P11: 1.479667283 | Q11: 1049 | R11: 0.9695009242 | S11: 738 | T11: 0.7795774648 | U11: 1409 | V11: 1.488380282 | W11: 625 | X11: 0.6602112676
A12: Sul | B12: Atilio Vivacqua | C12: 144 | D12: 107 | E12: 138 | F12: 92 | G12: 85 | H12: 0.7943925234 | I12: 34 | J12: 0.3695652174 | K12: 109 | L12: 1.018691589 | M12: 109 | N12: 1.018691589 | O12: 185 | P12: 1.728971963 | Q12: 111 | R12: 1.037383178 | S12: 89 | T12: 0.9673913043 | U12: 149 | V12: 1.619565217 | W12: 58 | X12: 0.6304347826
A13: Central | B13: Baixo Guandu | C13: 388 | D13: 283 | E13: 427 | F13: 284.6666667 | G13: 243 | H13: 0.8586572438 | I13: 105 | J13: 0.368852459 | K13: 253 | L13: 0.8939929329 | M13: 260 | N13: 0.9187279152 | O13: 501 | P13: 1.770318021 | Q13: 280 | R13: 0.9893992933 | S13: 217 | T13: 0.762295082 | U13: 472 | V13: 1.658079625 | W13: 189 | X13: 0.6639344262
A14: Norte | B14: Barra de São Francisco | C14: 562 | D14: 442 | E14: 589 | F14: 392.6666667 | G14: 365 | H14: 0.8257918552 | I14: 161 | J14: 0.4100169779 | K14: 405 | L14: 0.9162895928 | M14: 405 | N14: 0.9162895928 | O14: 568 | P14: 1.285067873 | Q14: 370 | R14: 0.8371040724 | S14: 324 | T14: 0.8251273345 | U14: 464 | V14: 1.181663837 | W14: 249 | X14: 0.6341256367
A15: Norte | B15: Boa Esperança | C15: 205 | D15: 154 | E15: 200 | F15: 133.3333333 | G15: 99 | H15: 0.6428571429 | I15: 56 | J15: 0.42 | K15: 146 | L15: 0.9480519481 | M15: 149 | N15: 0.9675324675 | O15: 257 | P15: 1.668831169 | Q15: 149 | R15: 0.9675324675 | S15: 102 | T15: 0.765 | U15: 223 | V15: 1.6725 | W15: 86 | X15: 0.645
A16: Sul | B16: Bom Jesus do Norte | C16: 88 | D16: 73 | E16: 146 | F16: 97.33333333 | G16: 40 | H16: 0.5479452055 | I16: 16 | J16: 0.1643835616 | K16: 86 | L16: 1.178082192 | M16: 86 | N16: 1.178082192 | O16: 106 | P16: 1.452054795 | Q16: 63 | R16: 0.8630136986 | S16: 39 | T16: 0.4006849315 | U16: 83 | V16: 0.852739726 | W16: 31 | X16: 0.3184931507
A17: Metropolitana | B17: Brejetuba | C17: 198 | D17: 146 | E17: 169 | F17: 112.6666667 | G17: 149 | H17: 1.020547945 | I17: 55 | J17: 0.4881656805 | K17: 145 | L17: 0.9931506849 | M17: 148 | N17: 1.01369863 | O17: 285 | P17: 1.952054795 | Q17: 152 | R17: 1.04109589 | S17: 138 | T17: 1.224852071 | U17: 294 | V17: 2.609467456 | W17: 106 | X17: 0.9408284024
A18: Sul | B18: Cachoeiro de Itapemirim | C18: 2424 | D18: 1893 | E18: 2417 | F18: 1611.333333 | G18: 1365 | H18: 0.7210776545 | I18: 586 | J18: 0.363673976 | K18: 1763 | L18: 0.9313259377 | M18: 1806 | N18: 0.9540412044 | O18: 2415 | P18: 1.275752773 | Q18: 1691 | R18: 0.8932910724 | S18: 1047 | T18: 0.6497724452 | U18: 1952 | V18: 1.211419115 | W18: 1002 | X18: 0.6218452627
A19: Metropolitana | B19: Cariacica | C19: 4851 | D19: 3710 | E19: 5005 | F19: 3336.666667 | G19: 2455 | H19: 0.6617250674 | I19: 1240 | J19: 0.3716283716 | K19: 3504 | L19: 0.9444743935 | M19: 3497 | N19: 0.9425876011 | O19: 4254 | P19: 1.146630728 | Q19: 3212 | R19: 0.8657681941 | S19: 2622 | T19: 0.7858141858 | U19: 4242 | V19: 1.271328671 | W19: 2418 | X19: 0.7246753247
A20: Sul | B20: Castelo | C20: 432 | D20: 323 | E20: 399 | F20: 266 | G20: 267 | H20: 0.826625387 | I20: 104 | J20: 0.3909774436 | K20: 333 | L20: 1.030959752 | M20: 325 | N20: 1.00619195 | O20: 572 | P20: 1.770897833 | Q20: 319 | R20: 0.9876160991 | S20: 214 | T20: 0.8045112782 | U20: 475 | V20: 1.785714286 | W20: 188 | X20: 0.7067669173
A21: Central | B21: Colatina | C21: 1518 | D21: 1171 | E21: 1561 | F21: 1040.666667 | G21: 894 | H21: 0.7634500427 | I21: 284 | J21: 0.2729019859 | K21: 1061 | L21: 0.9060631939 | M21: 1121 | N21: 0.9573014518 | O21: 1344 | P21: 1.147736977 | Q21: 1014 | R21: 0.8659265585 | S21: 651 | T21: 0.6255605381 | U21: 1086 | V21: 1.043561819 | W21: 535 | X21: 0.5140935298
A22: Norte | B22: Conceição da Barra | C22: 386 | D22: 284 | E22: 391 | F22: 260.6666667 | G22: 241 | H22: 0.8485915493 | I22: 113 | J22: 0.4335038363 | K22: 315 | L22: 1.10915493 | M22: 317 | N22: 1.116197183 | O22: 542 | P22: 1.908450704 | Q22: 303 | R22: 1.066901408 | S22: 276 | T22: 1.058823529 | U22: 557 | V22: 2.136828645 | W22: 236 | X22: 0.905370844
A23: Metropolitana | B23: Conceição do Castelo | C23: 152 | D23: 126 | E23: 144 | F23: 96 | G23: 94 | H23: 0.746031746 | I23: 48 | J23: 0.5 | K23: 94 | L23: 0.746031746 | M23: 100 | N23: 0.7936507937 | O23: 183 | P23: 1.452380952 | Q23: 99 | R23: 0.7857142857 | S23: 81 | T23: 0.84375 | U23: 201 | V23: 2.09375 | W23: 61 | X23: 0.6354166667
A24: Sul | B24: Divino de São Lourenço | C24: 70 | D24: 55 | E24: 68 | F24: 45.33333333 | G24: 33 | H24: 0.6 | I24: 24 | J24: 0.5294117647 | K24: 41 | L24: 0.7454545455 | M24: 42 | N24: 0.7636363636 | O24: 70 | P24: 1.272727273 | Q24: 38 | R24: 0.6909090909 | S24: 53 | T24: 1.169117647 | U24: 78 | V24: 1.720588235 | W24: 36 | X24: 0.7941176471
A25: Metropolitana | B25: Domingos Martins | C25: 420 | D25: 303 | E25: 411 | F25: 274 | G25: 262 | H25: 0.8646864686 | I25: 142 | J25: 0.5182481752 | K25: 298 | L25: 0.9834983498 | M25: 287 | N25: 0.9471947195 | O25: 547 | P25: 1.805280528 | Q25: 318 | R25: 1.04950495 | S25: 244 | T25: 0.8905109489 | U25: 513 | V25: 1.872262774 | W25: 207 | X25: 0.7554744526
A26: Sul | B26: Dores do Rio Preto | C26: 96 | D26: 74 | E26: 92 | F26: 61.33333333 | G26: 39 | H26: 0.527027027 | I26: 15 | J26: 0.2445652174 | K26: 79 | L26: 1.067567568 | M26: 80 | N26: 1.081081081 | O26: 103 | P26: 1.391891892 | Q26: 61 | R26: 0.8243243243 | S26: 33 | T26: 0.5380434783 | U26: 70 | V26: 1.141304348 | W26: 30 | X26: 0.4891304348
A27: Norte | B27: Ecoporanga | C27: 253 | D27: 203 | E27: 283 | F27: 188.6666667 | G27: 176 | H27: 0.8669950739 | I27: 91 | J27: 0.4823321555 | K27: 197 | L27: 0.9704433498 | M27: 205 | N27: 1.009852217 | O27: 290 | P27: 1.428571429 | Q27: 188 | R27: 0.9261083744 | S27: 180 | T27: 0.9540636042 | U27: 268 | V27: 1.4204947 | W27: 119 | X27: 0.6307420495
A28: Metropolitana | B28: Fundão | C28: 221 | D28: 176 | E28: 218 | F28: 145.3333333 | G28: 139 | H28: 0.7897727273 | I28: 65 | J28: 0.4472477064 | K28: 162 | L28: 0.9204545455 | M28: 166 | N28: 0.9431818182 | O28: 252 | P28: 1.431818182 | Q28: 155 | R28: 0.8806818182 | S28: 95 | T28: 0.6536697248 | U28: 178 | V28: 1.224770642 | W28: 83 | X28: 0.5711009174
A29: Central | B29: Governador Lindenberg | C29: 130 | D29: 98 | E29: 142 | F29: 94.66666667 | G29: 91 | H29: 0.9285714286 | I29: 47 | J29: 0.4964788732 | K29: 112 | L29: 1.142857143 | M29: 114 | N29: 1.163265306 | O29: 178 | P29: 1.816326531 | Q29: 104 | R29: 1.06122449 | S29: 91 | T29: 0.9612676056 | U29: 158 | V29: 1.669014085 | W29: 72 | X29: 0.7605633803
A30: Sul | B30: Guaçuí | C30: 384 | D30: 287 | E30: 407 | F30: 271.3333333 | G30: 205 | H30: 0.7142857143 | I30: 75 | J30: 0.2764127764 | K30: 313 | L30: 1.090592334 | M30: 325 | N30: 1.132404181 | O30: 483 | P30: 1.682926829 | Q30: 288 | R30: 1.003484321 | S30: 202 | T30: 0.7444717445 | U30: 383 | V30: 1.411547912 | W30: 145 | X30: 0.5343980344
A31: Metropolitana | B31: Guarapari | C31: 1508 | D31: 1095 | E31: 1557 | F31: 1038 | G31: 818 | H31: 0.7470319635 | I31: 393 | J31: 0.3786127168 | K31: 1210 | L31: 1.105022831 | M31: 1200 | N31: 1.095890411 | O31: 1510 | P31: 1.378995434 | Q31: 1103 | R31: 1.007305936 | S31: 694 | T31: 0.6685934489 | U31: 1264 | V31: 1.217726397 | W31: 718 | X31: 0.6917148362
A32: Metropolitana | B32: Ibatiba | C32: 367 | D32: 288 | E32: 354 | F32: 236 | G32: 217 | H32: 0.7534722222 | I32: 66 | J32: 0.2796610169 | K32: 285 | L32: 0.9895833333 | M32: 288 | N32: 1 | O32: 391 | P32: 1.357638889 | Q32: 260 | R32: 0.9027777778 | S32: 181 | T32: 0.7669491525 | U32: 283 | V32: 1.199152542 | W32: 156 | X32: 0.6610169492
A33: Metropolitana | B33: Ibiraçu | C33: 151 | D33: 119 | E33: 160 | F33: 106.6666667 | G33: 54 | H33: 0.4537815126 | I33: 49 | J33: 0.459375 | K33: 105 | L33: 0.8823529412 | M33: 105 | N33: 0.8823529412 | O33: 173 | P33: 1.453781513 | Q33: 81 | R33: 0.6806722689 | S33: 97 | T33: 0.909375 | U33: 230 | V33: 2.15625 | W33: 69 | X33: 0.646875
A34: Sul | B34: Ibitirama | C34: 140 | D34: 104 | E34: 148 | F34: 98.66666667 | G34: 73 | H34: 0.7019230769 | I34: 31 | J34: 0.3141891892 | K34: 100 | L34: 0.9615384615 | M34: 104 | N34: 1 | O34: 157 | P34: 1.509615385 | Q34: 100 | R34: 0.9615384615 | S34: 50 | T34: 0.5067567568 | U34: 140 | V34: 1.418918919 | W34: 32 | X34: 0.3243243243
A35: Sul | B35: Iconha | C35: 114 | D35: 90 | E35: 156 | F35: 104 | G35: 102 | H35: =G35/D35 -> 1.133333333 | I35: 34 | J35: =I35/F35 -> 0.3269230769 | K35: 108 | L35: =K35/D35 -> 1.2 | M35: 115 | N35: =M35/D35 -> 1.277777778 | O35: 148 | P35: =O35/D35 -> 1.644444444 | Q35: 98 | R35: =Q35/D35 -> 1.088888889 | S35: 97 | T35: =S35/F35 -> 0.9326923077 | U35: 135 | V35: =U35/F35 -> 1.298076923 | W35: 64 | X35: =W35/F35 -> 0.6153846154
A36: Sul | B36: Irupi | C36: 194 | D36: 147 | E36: 200 | F36: 133.3333333 | G36: 125 | H36: 0.8503401361 | I36: 49 | J36: 0.3675 | K36: 161 | L36: 1.095238095 | M36: 163 | N36: 1.108843537 | O36: 234 | P36: 1.591836735 | Q36: 143 | R36: 0.9727891156 | S36: 146 | T36: 1.095 | U36: 228 | V36: 1.71 | W36: 114 | X36: 0.855
A37: Metropolitana | B37: Itaguaçu | C37: 137 | D37: 109 | E37: 154 | F37: 102.6666667 | G37: 121 | H37: 1.110091743 | I37: 43 | J37: 0.4188311688 | K37: 112 | L37: 1.027522936 | M37: 115 | N37: 1.055045872 | O37: 196 | P37: 1.798165138 | Q37: 115 | R37: 1.055045872 | S37: 83 | T37: 0.8084415584 | U37: 177 | V37: 1.724025974 | W37: 70 | X37: 0.6818181818
A38: Sul | B38: Itapemirim | C38: 520 | D38: 372 | E38: 556 | F38: 370.6666667 | G38: 299 | H38: 0.8037634409 | I38: 138 | J38: 0.3723021583 | K38: 372 | L38: 1 | M38: 381 | N38: 1.024193548 | O38: 560 | P38: 1.505376344 | Q38: 367 | R38: 0.9865591398 | S38: 222 | T38: 0.5989208633 | U38: 545 | V38: 1.470323741 | W38: 280 | X38: 0.7553956835
A39: Metropolitana | B39: Itarana | C39: 136 | D39: 103 | E39: 128 | F39: 85.33333333 | G39: 80 | H39: 0.7766990291 | I39: 48 | J39: 0.5625 | K39: 98 | L39: 0.9514563107 | M39: 100 | N39: 0.9708737864 | O39: 169 | P39: 1.640776699 | Q39: 89 | R39: 0.8640776699 | S39: 79 | T39: 0.92578125 | U39: 168 | V39: 1.96875 | W39: 57 | X39: 0.66796875
A40: Sul | B40: Iúna | C40: 477 | D40: 354 | E40: 410 | F40: 273.3333333 | G40: 262 | H40: 0.7401129944 | I40: 85 | J40: 0.3109756098 | K40: 340 | L40: 0.9604519774 | M40: 357 | N40: 1.008474576 | O40: 464 | P40: 1.310734463 | Q40: 301 | R40: 0.8502824859 | S40: 193 | T40: 0.706097561 | U40: 409 | V40: 1.496341463 | W40: 176 | X40: 0.643902439
A41: Norte | B41: Jaguaré | C41: 495 | D41: 385 | E41: 445 | F41: 296.6666667 | G41: 281 | H41: 0.7298701299 | I41: 118 | J41: 0.397752809 | K41: 377 | L41: 0.9792207792 | M41: 384 | N41: 0.9974025974 | O41: 562 | P41: 1.45974026 | Q41: 357 | R41: 0.9272727273 | S41: 318 | T41: 1.071910112 | U41: 561 | V41: 1.891011236 | W41: 237 | X41: 0.7988764045
A42: Sul | B42: Jerônimo Monteiro | C42: 150 | D42: 117 | E42: 157 | F42: 104.6666667 | G42: 95 | H42: 0.811965812 | I42: 29 | J42: 0.2770700637 | K42: 127 | L42: 1.085470085 | M42: 131 | N42: 1.11965812 | O42: 178 | P42: 1.521367521 | Q42: 115 | R42: 0.9829059829 | S42: 81 | T42: 0.7738853503 | U42: 151 | V42: 1.442675159 | W42: 69 | X42: 0.6592356688
A43: Metropolitana | B43: João Neiva | C43: 161 | D43: 120 | E43: 142 | F43: 94.66666667 | G43: 108 | H43: 0.9 | I43: 40 | J43: 0.4225352113 | K43: 136 | L43: 1.133333333 | M43: 142 | N43: 1.183333333 | O43: 185 | P43: 1.541666667 | Q43: 118 | R43: 0.9833333333 | S43: 88 | T43: 0.9295774648 | U43: 160 | V43: 1.690140845 | W43: 69 | X43: 0.7288732394
A44: Metropolitana | B44: Laranja da Terra | C44: 84 | D44: 67 | E44: 133 | F44: 88.66666667 | G44: 86 | H44: 1.28358209 | I44: 56 | J44: 0.6315789474 | K44: 91 | L44: 1.358208955 | M44: 95 | N44: 1.417910448 | O44: 187 | P44: 2.791044776 | Q44: 90 | R44: 1.343283582 | S44: 77 | T44: 0.8684210526 | U44: 173 | V44: 1.95112782 | W44: 54 | X44: 0.6090225564
A45: Central | B45: Linhares | C45: 2598 | D45: 2014 | E45: 2452 | F45: 1634.666667 | G45: 1430 | H45: 0.7100297915 | I45: 603 | J45: 0.3688825449 | K45: 1665 | L45: 0.8267130089 | M45: 1739 | N45: 0.8634558093 | O45: 2586 | P45: 1.284011917 | Q45: 1715 | R45: 0.8515392254 | S45: 1225 | T45: 0.7493882545 | U45: 2410 | V45: 1.474306688 | W45: 1175 | X45: 0.7188009788
A46: Central | B46: Mantenópolis | C46: 153 | D46: 116 | E46: 166 | F46: 110.6666667 | G46: 96 | H46: 0.8275862069 | I46: 45 | J46: 0.406626506 | K46: 127 | L46: 1.094827586 | M46: 125 | N46: 1.077586207 | O46: 191 | P46: 1.646551724 | Q46: 119 | R46: 1.025862069 | S46: 98 | T46: 0.8855421687 | U46: 165 | V46: 1.490963855 | W46: 66 | X46: 0.5963855422
A47: Sul | B47: Marataízes | C47: 553 | D47: 432 | E47: 579 | F47: 386 | G47: 315 | H47: 0.7291666667 | I47: 136 | J47: 0.3523316062 | K47: 450 | L47: 1.041666667 | M47: 455 | N47: 1.053240741 | O47: 540 | P47: 1.25 | Q47: 396 | R47: 0.9166666667 | S47: 225 | T47: 0.5829015544 | U47: 519 | V47: 1.344559585 | W47: 263 | X47: 0.6813471503
A48: Metropolitana | B48: Marechal Floriano | C48: 221 | D48: 158 | E48: 236 | F48: 157.3333333 | G48: 133 | H48: 0.8417721519 | I48: 76 | J48: 0.4830508475 | K48: 157 | L48: 0.9936708861 | M48: 154 | N48: 0.9746835443 | O48: 242 | P48: 1.53164557 | Q48: 159 | R48: 1.006329114 | S48: 117 | T48: 0.7436440678 | U48: 222 | V48: 1.411016949 | W48: 85 | X48: 0.5402542373
A49: Central | B49: Marilândia | C49: 154 | D49: 113 | E49: 164 | F49: 109.3333333 | G49: 101 | H49: 0.8938053097 | I49: 51 | J49: 0.4664634146 | K49: 118 | L49: 1.044247788 | M49: 120 | N49: 1.061946903 | O49: 200 | P49: 1.769911504 | Q49: 112 | R49: 0.9911504425 | S49: 87 | T49: 0.7957317073 | U49: 189 | V49: 1.728658537 | W49: 69 | X49: 0.631097561
A50: Sul | B50: Mimoso do Sul | C50: 263 | D50: 200 | E50: 276 | F50: 184 | G50: 132 | H50: 0.66 | I50: 109 | J50: 0.5923913043 | K50: 167 | L50: 0.835 | M50: 177 | N50: 0.885 | O50: 237 | P50: 1.185 | Q50: 147 | R50: 0.735 | S50: 166 | T50: 0.902173913 | U50: 272 | V50: 1.47826087 | W50: 125 | X50: 0.6793478261
A51: Norte | B51: Montanha | C51: 226 | D51: 171 | E51: 278 | F51: 185.3333333 | G51: 167 | H51: 0.9766081871 | I51: 85 | J51: 0.4586330935 | K51: 189 | L51: 1.105263158 | M51: 195 | N51: 1.140350877 | O51: 316 | P51: 1.847953216 | Q51: 183 | R51: 1.070175439 | S51: 170 | T51: 0.9172661871 | U51: 328 | V51: 1.769784173 | W51: 125 | X51: 0.6744604317
A52: Norte | B52: Mucurici | C52: 74 | D52: 52 | E52: 97 | F52: 64.66666667 | G52: 51 | H52: 0.9807692308 | I52: 31 | J52: 0.4793814433 | K52: 72 | L52: 1.384615385 | M52: 72 | N52: 1.384615385 | O52: 70 | P52: 1.346153846 | Q52: 51 | R52: 0.9807692308 | S52: 54 | T52: 0.8350515464 | U52: 91 | V52: 1.407216495 | W52: 41 | X52: 0.6340206186
A53: Sul | B53: Muniz Freire | C53: 213 | D53: 161 | E53: 275 | F53: 183.3333333 | G53: 160 | H53: 0.9937888199 | I53: 38 | J53: 0.2072727273 | K53: 180 | L53: 1.118012422 | M53: 180 | N53: 1.118012422 | O53: 288 | P53: 1.788819876 | Q53: 169 | R53: 1.049689441 | S53: 176 | T53: 0.96 | U53: 348 | V53: 1.898181818 | W53: 128 | X53: 0.6981818182
A54: Sul | B54: Muqui | C54: 147 | D54: 116 | E54: 152 | F54: 101.3333333 | G54: 89 | H54: 0.7672413793 | I54: 50 | J54: 0.4934210526 | K54: 131 | L54: 1.129310345 | M54: 133 | N54: 1.146551724 | O54: 223 | P54: 1.922413793 | Q54: 95 | R54: 0.8189655172 | S54: 76 | T54: 0.75 | U54: 184 | V54: 1.815789474 | W54: 54 | X54: 0.5328947368
A55: Norte | B55: Nova Venécia | C55: 627 | D55: 485 | E55: 656 | F55: 437.3333333 | G55: 449 | H55: 0.9257731959 | I55: 144 | J55: 0.3292682927 | K55: 526 | L55: 1.084536082 | M55: 524 | N55: 1.080412371 | O55: 701 | P55: 1.445360825 | Q55: 470 | R55: 0.9690721649 | S55: 354 | T55: 0.8094512195 | U55: 591 | V55: 1.351371951 | W55: 282 | X55: 0.6448170732
A56: Central | B56: Pancas | C56: 208 | D56: 156 | E56: 244 | F56: 162.6666667 | G56: 160 | H56: 1.025641026 | I56: 56 | J56: 0.3442622951 | K56: 176 | L56: 1.128205128 | M56: 180 | N56: 1.153846154 | O56: 291 | P56: 1.865384615 | Q56: 162 | R56: 1.038461538 | S56: 134 | T56: 0.8237704918 | U56: 264 | V56: 1.62295082 | W56: 111 | X56: 0.6823770492
A57: Norte | B57: Pedro Canário | C57: 316 | D57: 234 | E57: 338 | F57: 225.3333333 | G57: 223 | H57: 0.952991453 | I57: 113 | J57: 0.5014792899 | K57: 273 | L57: 1.166666667 | M57: 275 | N57: 1.175213675 | O57: 418 | P57: 1.786324786 | Q57: 284 | R57: 1.213675214 | S57: 184 | T57: 0.8165680473 | U57: 369 | V57: 1.637573964 | W57: 163 | X57: 0.7233727811
A58: Norte | B58: Pinheiros | C58: 328 | D58: 252 | E58: 383 | F58: 255.3333333 | G58: 160 | H58: 0.6349206349 | I58: 103 | J58: 0.4033942559 | K58: 234 | L58: 0.9285714286 | M58: 233 | N58: 0.9246031746 | O58: 307 | P58: 1.218253968 | Q58: 203 | R58: 0.8055555556 | S58: 184 | T58: 0.7206266319 | U58: 290 | V58: 1.135770235 | W58: 142 | X58: 0.5561357702
A59: Sul | B59: Piúma | C59: 288 | D59: 206 | E59: 311 | F59: 207.3333333 | G59: 144 | H59: 0.6990291262 | I59: 67 | J59: 0.3231511254 | K59: 207 | L59: 1.004854369 | M59: 196 | N59: 0.9514563107 | O59: 312 | P59: 1.514563107 | Q59: 193 | R59: 0.9368932039 | S59: 134 | T59: 0.6463022508 | U59: 282 | V59: 1.360128617 | W59: 138 | X59: 0.6655948553
A60: Norte | B60: Ponto Belo | C60: 74 | D60: 52 | E60: 85 | F60: 56.66666667 | G60: 55 | H60: 1.057692308 | I60: 21 | J60: 0.3705882353 | K60: 61 | L60: 1.173076923 | M60: 64 | N60: 1.230769231 | O60: 120 | P60: 2.307692308 | Q60: 65 | R60: 1.25 | S60: 51 | T60: 0.9 | U60: 104 | V60: 1.835294118 | W60: 36 | X60: 0.6352941176
A61: Sul | B61: Presidente Kennedy | C61: 200 | D61: 163 | E61: 239 | F61: 159.3333333 | G61: 153 | H61: 0.9386503067 | I61: 60 | J61: 0.3765690377 | K61: 173 | L61: 1.061349693 | M61: 172 | N61: 1.055214724 | O61: 275 | P61: 1.687116564 | Q61: 154 | R61: 0.9447852761 | S61: 148 | T61: 0.9288702929 | U61: 249 | V61: 1.562761506 | W61: 120 | X61: 0.7531380753
A62: Central | B62: Rio Bananal | C62: 272 | D62: 215 | E62: 229 | F62: 152.6666667 | G62: 213 | H62: 0.9906976744 | I62: 72 | J62: 0.4716157205 | K62: 210 | L62: 0.976744186 | M62: 227 | N62: 1.055813953 | O62: 430 | P62: 2 | Q62: 219 | R62: 1.018604651 | S62: 204 | T62: 1.336244541 | U62: 401 | V62: 2.626637555 | W62: 151 | X62: 0.9890829694
A63: Sul | B63: Rio Novo do Sul | C63: 109 | D63: 77 | E63: 144 | F63: 96 | G63: 69 | H63: 0.8961038961 | I63: 54 | J63: 0.5625 | K63: 94 | L63: 1.220779221 | M63: 94 | N63: 1.220779221 | O63: 145 | P63: 1.883116883 | Q63: 85 | R63: 1.103896104 | S63: 71 | T63: 0.7395833333 | U63: 160 | V63: 1.666666667 | W63: 67 | X63: 0.6979166667
A64: Metropolitana | B64: Santa Leopoldina | C64: 99 | D64: 69 | E64: 155 | F64: 103.3333333 | G64: 54 | H64: 0.7826086957 | I64: 22 | J64: 0.2129032258 | K64: 95 | L64: 1.376811594 | M64: 95 | N64: 1.376811594 | O64: 149 | P64: 2.15942029 | Q64: 87 | R64: 1.260869565 | S64: 77 | T64: 0.7451612903 | U64: 163 | V64: 1.577419355 | W64: 62 | X64: 0.6
A65: Metropolitana | B65: Santa Maria de Jetibá | C65: 656 | D65: 500 | E65: 685 | F65: 456.6666667 | G65: 426 | H65: 0.852 | I65: 149 | J65: 0.3262773723 | K65: 470 | L65: 0.94 | M65: 479 | N65: 0.958 | O65: 753 | P65: 1.506 | Q65: 481 | R65: 0.962 | S65: 327 | T65: 0.7160583942 | U65: 612 | V65: 1.340145985 | W65: 289 | X65: 0.6328467153
A66: Metropolitana | B66: Santa Teresa | C66: 310 | D66: 234 | E66: 260 | F66: 173.3333333 | G66: 162 | H66: 0.6923076923 | I66: 115 | J66: 0.6634615385 | K66: 215 | L66: 0.9188034188 | M66: 222 | N66: 0.9487179487 | O66: 316 | P66: 1.35042735 | Q66: 182 | R66: 0.7777777778 | S66: 176 | T66: 1.015384615 | U66: 309 | V66: 1.782692308 | W66: 123 | X66: 0.7096153846
A67: Central | B67: São Domingos do Norte | C67: 118 | D67: 85 | E67: 117 | F67: 78 | G67: 74 | H67: =G67/D67 -> 0.8705882353 | I67: 30 | J67: =I67/F67 -> 0.3846153846 | K67: 89 | L67: =K67/D67 -> 1.047058824 | M67: 91 | N67: =M67/D67 -> 1.070588235 | O67: 108 | P67: =O67/D67 -> 1.270588235 | Q67: 70 | R67: =Q67/D67 -> 0.8235294118 | S67: 72 | T67: =S67/F67 -> 0.9230769231 | U67: 112 | V67: =U67/F67 -> 1.435897436 | W67: 50 | X67: =W67/F67 -> 0.641025641
A68: Central | B68: São Gabriel da Palha | C68: 455 | D68: 346 | E68: 426 | F68: 284 | G68: 247 | H68: 0.7138728324 | I68: 116 | J68: 0.4084507042 | K68: 291 | L68: 0.8410404624 | M68: 294 | N68: 0.8497109827 | O68: 408 | P68: 1.179190751 | Q68: 262 | R68: 0.7572254335 | S68: 276 | T68: 0.9718309859 | U68: 456 | V68: 1.605633803 | W68: 186 | X68: 0.6549295775
A69: Sul | B69: São José do Calçado | C69: 99 | D69: 82 | E69: 150 | F69: 100 | G69: 79 | H69: 0.9634146341 | I69: 30 | J69: 0.3 | K69: 101 | L69: 1.231707317 | M69: 98 | N69: 1.195121951 | O69: 117 | P69: 1.426829268 | Q69: 85 | R69: 1.036585366 | S69: 95 | T69: 0.95 | U69: 145 | V69: 1.45 | W69: 64 | X69: 0.64
A70: Norte | B70: São Mateus | C70: 1939 | D70: 1478 | E70: 1766 | F70: 1177.333333 | G70: 886 | H70: 0.599458728 | I70: 468 | J70: 0.3975084938 | K70: 1289 | L70: 0.8721244926 | M70: 1313 | N70: 0.8883626522 | O70: 1591 | P70: 1.076454668 | Q70: 1098 | R70: 0.7428958051 | S70: 837 | T70: 0.7109286523 | U70: 1433 | V70: 1.217157418 | W70: 754 | X70: 0.6404303511
A71: Central | B71: São Roque do Canaã | C71: 129 | D71: 108 | E71: 100 | F71: 66.66666667 | G71: 85 | H71: 0.787037037 | I71: 42 | J71: 0.63 | K71: 99 | L71: 0.9166666667 | M71: 100 | N71: 0.9259259259 | O71: 163 | P71: 1.509259259 | Q71: 99 | R71: 0.9166666667 | S71: 62 | T71: 0.93 | U71: 152 | V71: 2.28 | W71: 53 | X71: 0.795
A72: Metropolitana | B72: Serra | C72: 7300 | D72: 5643 | E72: 7550 | F72: 5033.333333 | G72: 3666 | H72: 0.6496544391 | I72: 1431 | J72: 0.2843046358 | K72: 4954 | L72: 0.8779018253 | M72: 4965 | N72: 0.879851143 | O72: 5806 | P72: 1.028885345 | Q72: 4542 | R72: 0.8048910154 | S72: 4011 | T72: 0.7968874172 | U72: 5690 | V72: 1.130463576 | W72: 3413 | X72: 0.6780794702
A73: Central | B73: Sooretama | C73: 425 | D73: 322 | E73: 415 | F73: 276.6666667 | G73: 236 | H73: 0.7329192547 | I73: 124 | J73: 0.4481927711 | K73: 307 | L73: 0.9534161491 | M73: 312 | N73: 0.9689440994 | O73: 516 | P73: 1.602484472 | Q73: 284 | R73: 0.8819875776 | S73: 343 | T73: 1.239759036 | U73: 664 | V73: 2.4 | W73: 241 | X73: 0.8710843373
A74: Sul | B74: Vargem Alta | C74: 264 | D74: 203 | E74: 278 | F74: 185.3333333 | G74: 183 | H74: 0.9014778325 | I74: 73 | J74: 0.3938848921 | K74: 195 | L74: 0.960591133 | M74: 197 | N74: 0.9704433498 | O74: 346 | P74: 1.704433498 | Q74: 195 | R74: 0.960591133 | S74: 140 | T74: 0.7553956835 | U74: 340 | V74: 1.834532374 | W74: 126 | X74: 0.6798561151
A75: Metropolitana | B75: Venda Nova do Imigrante | C75: 368 | D75: 272 | E75: 328 | F75: 218.6666667 | G75: 271 | H75: 0.9963235294 | I75: 68 | J75: 0.3109756098 | K75: 306 | L75: 1.125 | M75: 306 | N75: 1.125 | O75: 572 | P75: 2.102941176 | Q75: 298 | R75: 1.095588235 | S75: 188 | T75: 0.8597560976 | U75: 406 | V75: 1.856707317 | W75: 142 | X75: 0.6493902439
A76: Metropolitana | B76: Viana | C76: 917 | D76: 688 | E76: 1064 | F76: 709.3333333 | G76: 329 | H76: 0.4781976744 | I76: 234 | J76: 0.329887218 | K76: 762 | L76: 1.10755814 | M76: 767 | N76: 1.114825581 | O76: 868 | P76: 1.261627907 | Q76: 655 | R76: 0.9520348837 | S76: 606 | T76: 0.8543233083 | U76: 1000 | V76: 1.409774436 | W76: 506 | X76: 0.7133458647
A77: Norte | B77: Vila Pavão | C77: 100 | D77: 82 | E77: 127 | F77: 84.66666667 | G77: 69 | H77: 0.8414634146 | I77: 25 | J77: 0.2952755906 | K77: 76 | L77: 0.9268292683 | M77: 76 | N77: 0.9268292683 | O77: 133 | P77: 1.62195122 | Q77: 75 | R77: 0.9146341463 | S77: 76 | T77: 0.8976377953 | U77: 168 | V77: 1.984251969 | W77: 62 | X77: 0.7322834646
A78: Central | B78: Vila Valério | C78: 255 | D78: 188 | E78: 169 | F78: 112.6666667 | G78: 144 | H78: 0.7659574468 | I78: 60 | J78: 0.5325443787 | K78: 173 | L78: 0.920212766 | M78: 154 | N78: 0.8191489362 | O78: 281 | P78: 1.494680851 | Q78: 152 | R78: 0.8085106383 | S78: 143 | T78: 1.269230769 | U78: 280 | V78: 2.485207101 | W78: 116 | X78: 1.029585799
A79: Metropolitana | B79: Vila Velha | C79: 5675 | D79: 4304 | E79: 5675 | F79: 3783.333333 | G79: 2890 | H79: 0.6714684015 | I79: 1231 | J79: 0.3253744493 | K79: 3693 | L79: 0.8580390335 | M79: 3728 | N79: 0.8661710037 | O79: 4526 | P79: 1.051579926 | Q79: 3328 | R79: 0.7732342007 | S79: 2970 | T79: 0.7850220264 | U79: 4336 | V79: 1.146079295 | W79: 2372 | X79: 0.6269603524
A80: Metropolitana | B80: Vitória | C80: 3622 | D80: 2753 | E80: 3833 | F80: 2555.333333 | G80: 1885 | H80: 0.6847075917 | I80: 849 | J80: 0.3322462823 | K80: 2448 | L80: 0.889211769 | M80: 2348 | N80: 0.8528877588 | O80: 3144 | P80: 1.14202688 | Q80: 2383 | R80: 0.8656011624 | S80: 1713 | T80: 0.6703626402 | U80: 2898 | V80: 1.134098617 | W80: 1673 | X80: 0.6547091051
B82: Total Norte | C82: =SUMIF($A$3:$A$80,"Norte",C$3:C$80) -> 5787 | D82: =SUMIF($A$3:$A$80,"Norte",D$3:D$80) -> 4442 | E82: =SUMIF($A$3:$A$80,"Norte",E$3:E$80) -> 5789 | F82: =SUMIF($A$3:$A$80,"Norte",F$3:F$80) -> 3859.333333 | G82: =SUMIF($A$3:$A$80,"Norte",G$3:G$80) -> 3307 | H82: =G82/D82 -> 0.7444844665 | I82: =SUMIF($A$3:$A$80,"Norte",I$3:I$80) -> 1565 | J82: =I82/F82 -> 0.4055104509 | K82: =SUMIF($A$3:$A$80,"Norte",K$3:K$80) -> 4275 | L82: =K82/D82 -> 0.9624043224 | M82: =SUMIF($A$3:$A$80,"Norte",M$3:M$80) -> 4330 | N82: =M82/D82 -> 0.9747861324 | O82: =SUMIF($A$3:$A$80,"Norte",O$3:O$80) -> 6030 | P82: =O82/D82 -> 1.357496623 | Q82: =SUMIF($A$3:$A$80,"Norte",Q$3:Q$80) -> 3894 | R82: =Q82/D82 -> 0.8766321477 | S82: =SUMIF($A$3:$A$80,"Norte",S$3:S$80) -> 3190 | T82: =S82/F82 -> 0.8265676283 | U82: =SUMIF($A$3:$A$80,"Norte",U$3:U$80) -> 5594 | V82: =U82/F82 -> 1.449473139 | W82: =SUMIF($A$3:$A$80,"Norte",W$3:W$80) -> 2598 | X82: =W82/F82 -> 0.6731732596
B83: Total Central | C83: =SUMIF($A$3:$A$80,"Central",C$3:C$80) -> 7061 | D83: =SUMIF($A$3:$A$80,"Central",D$3:D$80) -> 5413 | E83: =SUMIF($A$3:$A$80,"Central",E$3:E$80) -> 6843 | F83: =SUMIF($A$3:$A$80,"Central",F$3:F$80) -> 4562 | G83: =SUMIF($A$3:$A$80,"Central",G$3:G$80) -> 4152 | H83: =G83/D83 -> 0.7670423056 | I83: =SUMIF($A$3:$A$80,"Central",I$3:I$80) -> 1690 | J83: =I83/F83 -> 0.3704515563 | K83: =SUMIF($A$3:$A$80,"Central",K$3:K$80) -> 4859 | L83: =K83/D83 -> 0.8976537964 | M83: =SUMIF($A$3:$A$80,"Central",M$3:M$80) -> 5018 | N83: =M83/D83 -> 0.9270275263 | O83: =SUMIF($A$3:$A$80,"Central",O$3:O$80) -> 7413 | P83: =O83/D83 -> 1.369480879 | Q83: =SUMIF($A$3:$A$80,"Central",Q$3:Q$80) -> 4748 | R83: =Q83/D83 -> 0.8771476076 | S83: =SUMIF($A$3:$A$80,"Central",S$3:S$80) -> 3719 | T83: =S83/F83 -> 0.815212626 | U83: =SUMIF($A$3:$A$80,"Central",U$3:U$80) -> 7023 | V83: =U83/F83 -> 1.539456379 | W83: =SUMIF($A$3:$A$80,"Central",W$3:W$80) -> 3102 | X83: =W83/F83 -> 0.6799649277
B84: Total Metropolitana | C84: =SUMIF($A$3:$A$80,"Metropolitana",C$3:C$80) -> 29358 | D84: =SUMIF($A$3:$A$80,"Metropolitana",D$3:D$80) -> 22372 | E84: =SUMIF($A$3:$A$80,"Metropolitana",E$3:E$80) -> 30197 | F84: =SUMIF($A$3:$A$80,"Metropolitana",F$3:F$80) -> 20131.33333 | G84: =SUMIF($A$3:$A$80,"Metropolitana",G$3:G$80) -> 15565 | H84: =G84/D84 -> 0.6957357411 | I84: =SUMIF($A$3:$A$80,"Metropolitana",I$3:I$80) -> 6931 | J84: =I84/F84 -> 0.3442891678 | K84: =SUMIF($A$3:$A$80,"Metropolitana",K$3:K$80) -> 20732 | L84: =K84/D84 -> 0.9266940819 | M84: =SUMIF($A$3:$A$80,"Metropolitana",M$3:M$80) -> 20747 | N84: =M84/D84 -> 0.9273645628 | O84: =SUMIF($A$3:$A$80,"Metropolitana",O$3:O$80) -> 26921 | P84: =O84/D84 -> 1.203334525 | Q84: =SUMIF($A$3:$A$80,"Metropolitana",Q$3:Q$80) -> 19250 | R84: =Q84/D84 -> 0.8604505632 | S84: =SUMIF($A$3:$A$80,"Metropolitana",S$3:S$80) -> 15621 | T84: =S84/F84 -> 0.775954565 | U84: =SUMIF($A$3:$A$80,"Metropolitana",U$3:U$80) -> 25462 | V84: =U84/F84 -> 1.264794516 | W84: =SUMIF($A$3:$A$80,"Metropolitana",W$3:W$80) -> 13537 | X84: =W84/F84 -> 0.6724343478
B85: Total Sul | C85: =SUMIF($A$3:$A$80,"sul",C$3:C$80) -> 8270 | D85: =SUMIF($A$3:$A$80,"sul",D$3:D$80) -> 6311 | E85: =SUMIF($A$3:$A$80,"sul",E$3:E$80) -> 8688 | F85: =SUMIF($A$3:$A$80,"sul",F$3:F$80) -> 5792 | G85: =SUMIF($A$3:$A$80,"sul",G$3:G$80) -> 4859 | H85: =G85/D85 -> 0.7699255269 | I85: =SUMIF($A$3:$A$80,"sul",I$3:I$80) -> 2135 | J85: =I85/F85 -> 0.3686118785 | K85: =SUMIF($A$3:$A$80,"sul",K$3:K$80) -> 6351 | L85: =K85/D85 -> 1.00633814 | M85: =SUMIF($A$3:$A$80,"sul",M$3:M$80) -> 6451 | N85: =M85/D85 -> 1.022183489 | O85: =SUMIF($A$3:$A$80,"sul",O$3:O$80) -> 9356 | P85: =O85/D85 -> 1.482490889 | Q85: =SUMIF($A$3:$A$80,"sul",Q$3:Q$80) -> 5886 | R85: =Q85/D85 -> 0.9326572651 | S85: =SUMIF($A$3:$A$80,"sul",S$3:S$80) -> 4270 | T85: =S85/F85 -> 0.7372237569 | U85: =SUMIF($A$3:$A$80,"sul",U$3:U$80) -> 8628 | V85: =U85/F85 -> 1.489640884 | W85: =SUMIF($A$3:$A$80,"sul",W$3:W$80) -> 3871 | X85: =W85/F85 -> 0.6683356354
B86: Total Espírito Santo | C86: =SUM(C3:C80) -> 50476 | D86: =SUM(D3:D80) -> 38538 | E86: =SUM(E3:E80) -> 51517 | F86: =SUM(F3:F80) -> 34344.66667 | G86: =SUM(G3:G80) -> 27883 | H86: =G86/D86 -> 0.7235196429 | I86: =SUM(I3:I80) -> 12321 | J86: =I86/F86 -> 0.3587456568 | K86: =SUM(K3:K80) -> 36217 | L86: =K86/D86 -> 0.9397737298 | M86: =SUM(M3:M80) -> 36546 | N86: =M86/D86 -> 0.9483107582 | O86: =SUM(O3:O80) -> 49720 | P86: =O86/D86 -> 1.290155172 | Q86: =SUM(Q3:Q80) -> 33778 | R86: =Q86/D86 -> 0.8764855467 | S86: =SUM(S3:S80) -> 26800 | T86: =S86/F86 -> 0.7803249413 | U86: =SUM(U3:U80) -> 46707 | V86: =U86/F86 -> 1.359949143 | W86: =SUM(W3:W80) -> 23108 | X86: =W86/F86 -> 0.6728264456
A90: Fonte: Vacina e Confia, em 09 de Outubro de 2024.**
A91: **Dados referente às doses aplicadas no período de Setembro de 2024
A92: Cobertura Calculada por município de residência do cidadão (no Vacina e Confia, a origem da informação é o endereço que consta no cadastro do cidadão preenchido manualmente por meio do autocadastro ou pelo cadastro realizado por um profissional de saúde no momento do atendimento).
A93: ² População proporcional extraída do MS/SVS/DASIS - SINASC/DASIS/SVS/MS 2023 (hoje preliminares) referente ao período de agosto e Setembro de 2023 somada a população extraída do SINASC/DASIS/SVS/MS 2024 referente ao período de janeiro e julho de 2024.
A95: Sinasc, atualizado em 10 de Outubro de 2024.
A96: ³ População anual e proporcional extraída do Censo IBGE 2022.
A97: Observações:
A98: Imunobiológicos que foram recebidos parcialmente pelo estado no mês da análise, sendo distribuídos em quantidades reduzidas às regionais e municípios: Típlice Bacteriana (DTP),Varicela, Hepatite A - Rotina Pediátrica, COVID-19 Monovalente (XBB) - FRASCO .
A99: Imunobiológicos indisponíveis no mês da análise, não sendo possível a distribuição às regionais e municípios: Meningo C Conjugada, Tríplice Bacteriana Acelular (dTpa - CRIE).
A100: Imunobiológicos em falta e sem previsão de entrega: Febre Amarela, Varicela, Tríplice Viral (SCR), COVID-19 Monovalente (XBB) - FRASCO, Tríplice Bacteriana (DTP).

Sheet Cobert. COVID-19 Menores 4 anos (hidden)
A1: Regional | B1: Município | C1: Série Histórica
A2: Região Metropolitana | B2: Afonso Cláudio
A3: Região Norte | B3: Água Doce do Norte
A4: Região Central | B4: Águia Branca
A5: Região Sul | B5: Alegre
A6: Região Sul | B6: Alfredo Chaves
A7: Região Central | B7: Alto Rio Novo
A8: Região Sul | B8: Anchieta
A9: Região Sul | B9: Apiacá
A10: Região Metropolitana | B10: Aracruz
A11: Região Sul | B11: Atilio Vivacqua
A12: Região Central | B12: Baixo Guandu
A13: Região Norte | B13: Barra de São Francisco
A14: Região Norte | B14: Boa Esperança
A15: Região Sul | B15: Bom Jesus do Norte
A16: Região Metropolitana | B16: Brejetuba
A17: Região Sul | B17: Cachoeiro de Itapemirim
A18: Região Metropolitana | B18: Cariacica
A19: Região Sul | B19: Castelo
A20: Região Central | B20: Colatina
A21: Região Norte | B21: Conceição da Barra
A22: Região Metropolitana | B22: Conceição do Castelo
A23: Região Sul | B23: Divino de São Lourenço
A24: Região Metropolitana | B24: Domingos Martins
A25: Região Sul | B25: Dores do Rio Preto
A26: Região Norte | B26: Ecoporanga
A27: Região Metropolitana | B27: Fundão
A28: Região Central | B28: Governador Lindenberg
A29: Região Sul | B29: Guaçuí
A30: Região Metropolitana | B30: Guarapari
A31: Região Metropolitana | B31: Ibatiba
A32: Região Metropolitana | B32: Ibiraçu
A33: Região Sul | B33: Ibitirama
A34: Região Sul | B34: Iconha
A35: Região Sul | B35: Irupi
A36: Região Metropolitana | B36: Itaguaçu
A37: Região Sul | B37: Itapemirim
A38: Região Metropolitana | B38: Itarana
A39: Região Sul | B39: Iúna
A40: Região Norte | B40: Jaguaré
A41: Região Sul | B41: Jerônimo Monteiro
A42: Região Metropolitana | B42: João Neiva
A43: Região Metropolitana | B43: Laranja da Terra
A44: Região Central | B44: Linhares
A45: Região Central | B45: Mantenópolis
A46: Região Sul | B46: Marataízes
A47: Região Metropolitana | B47: Marechal Floriano
A48: Região Central | B48: Marilândia
A49: Região Sul | B49: Mimoso do Sul
A50: Região Norte | B50: Montanha
A51: Região Norte | B51: Mucurici
A52: Região Sul | B52: Muniz Freire
A53: Região Sul | B53: Muqui
A54: Região Norte | B54: Nova Venécia
A55: Região Central | B55: Pancas
A56: Região Norte | B56: Pedro Canário
A57: Região Norte | B57: Pinheiros
A58: Região Sul | B58: Piúma
A59: Região Norte | B59: Ponto Belo
A60: Região Sul | B60: Presidente Kennedy
A61: Região Central | B61: Rio Bananal
A62: Região Sul | B62: Rio Novo do Sul
A63: Região Metropolitana | B63: Santa Leopoldina
A64: Região Metropolitana | B64: Santa Maria de Jetibá
A65: Região Metropolitana | B65: Santa Teresa
A66: Região Central | B66: São Domingos do Norte
A67: Região Central | B67: São Gabriel da Palha
A68: Região Sul | B68: São José do Calçado
A69: Região Norte | B69: São Mateus
A70: Região Central | B70: São Roque do Canaã
A71: Região Metropolitana | B71: Serra
A72: Região Central | B72: Sooretama
A73: Região Sul | B73: Vargem Alta
A74: Região Metropolitana | B74: Venda Nova do Imigrante
A75: Região Metropolitana | B75: Viana
A76: Região Norte | B76: Vila Pavão
A77: Região Central | B77: Vila Valério
A78: Região Metropolitana | B78: Vila Velha
A79: Região Metropolitana | B79: Vitória
B81: Espírito Santo
B82: Região Norte
B83: Região Central
B84: Região Metropolitana
B85: Região Sul
A87: Pfizer Pediátrica Menor de 5 anos e Coronavac
A88: Período avaliado: 2021-2024
A89: Fonte: https://www.vacinaeconfia.es.gov.br
A90: *Dados de janeiro/2024 extraídos do Vacina e Confia em 04/01/2024
A91: População proporcional extraída do SINASC 2022 (menores de 1 ano) e Censo IBGE 2022 (demais idades)
A92: Cobertura Calculada por município de procedência da vacinação

Sheet Cobert. Meningo C Adolescentes
A1: Regional | B1: Município | C1: Série Histórica
A2: Metropolitana | B2: Afonso Cláudio | C2: 58.02089736
A3: Central Norte | B3: Água Doce do Norte | C3: 69.87951807
A4: Central Norte | B4: Águia Branca | C4: 62.3015873
A5: Sul | B5: Alegre | C5: 74.8334567
A6: Sul | B6: Alfredo Chaves | C6: 47.31012658
A7: Central Norte | B7: Alto Rio Novo | C7: 91.01941748
A8: Sul | B8: Anchieta | C8: 79.89417989
A9: Sul | B9: Apiacá | C9: 30.49450549
A10: Metropolitana | B10: Aracruz | C10: 81.34494257
A11: Sul | B11: Atilio Vivacqua | C11: 81.640625
A12: Central Norte | B12: Baixo Guandu | C12: 66.95137976
A13: Central Norte | B13: Barra de São Francisco | C13: 68.08326106
A14: Central Norte | B14: Boa Esperança | C14: 62.13183731
A15: Sul | B15: Bom Jesus do Norte | C15: 53.7428023
A16: Metropolitana | B16: Brejetuba | C16: 83.9309429
A17: Sul | B17: Cachoeiro de Itapemirim | C17: 79.16159717
A18: Metropolitana | B18: Cariacica | C18: 75.47675654
A19: Sul | B19: Castelo | C19: 79.21914358
A20: Central Norte | B20: Colatina | C20: 64.68896081
A21: Central Norte | B21: Conceição da Barra | C21: 59.52927669
A22: Metropolitana | B22: Conceição do Castelo | C22: 79.89864865
A23: Sul | B23: Divino de São Lourenço | C23: 63.23529412
A24: Metropolitana | B24: Domingos Martins | C24: 79.44250871
A25: Sul | B25: Dores do Rio Preto | C25: 77.69028871
A26: Central Norte | B26: Ecoporanga | C26: 63.41248901
A27: Metropolitana | B27: Fundão | C27: 79.14046122
A28: Central Norte | B28: Governador Lindenberg | C28: 80.90909091
A29: Sul | B29: Guaçuí | C29: 67.90450928
A30: Metropolitana | B30: Guarapari | C30: 71.82775996
A31: Metropolitana | B31: Ibatiba | C31: 71.90201729
A32: Metropolitana | B32: Ibiraçu | C32: 77.00348432
A33: Sul | B33: Ibitirama | C33: 74.17102967
A34: Sul | B34: Iconha | C34: 74.80314961
A35: Sul | B35: Irupi | C35: 67.99468792
A36: Metropolitana | B36: Itaguaçu | C36: 67.04545455
A37: Sul | B37: Itapemirim | C37: 61.53187848
A38: Metropolitana | B38: Itarana | C38: 68.92523364
A39: Sul | B39: Iúna | C39: 64.96163683
A40: Central Norte | B40: Jaguaré | C40: 63.8238573
A41: Sul | B41: Jerônimo Monteiro | C41: 82.77087034
A42: Metropolitana | B42: João Neiva | C42: 73.59635812
A43: Metropolitana | B43: Laranja da Terra | C43: 68.23770492
A44: Central Norte | B44: Linhares | C44: 72.68925584
A45: Central Norte | B45: Mantenópolis | C45: 78.87323944
A46: Sul | B46: Marataízes | C46: 84.10004466
A47: Metropolitana | B47: Marechal Floriano | C47: 78.74186551
A48: Central Norte | B48: Marilândia | C48: 74.18181818
A49: Sul | B49: Mimoso do Sul | C49: 69.80155306
A50: Central Norte | B50: Montanha | C50: 76.95238095
A51: Central Norte | B51: Mucurici | C51: 66.00790514
A52: Sul | B52: Muniz Freire | C52: 69.48051948
A53: Sul | B53: Muqui | C53: 70.24169184
A54: Central Norte | B54: Nova Venécia | C54: 54.22680412
A55: Central Norte | B55: Pancas | C55: 68.60465116
A56: Central Norte | B56: Pedro Canário | C56: 73.34397446
A57: Central Norte | B57: Pinheiros | C57: 62.10303458
A58: Sul | B58: Piúma | C58: 69.24493554
A59: Central Norte | B59: Ponto Belo | C59: 62.87878788
A60: Sul | B60: Presidente Kennedy | C60: 89.8630137
A61: Central Norte | B61: Rio Bananal | C61: 82.92929293
A62: Sul | B62: Rio Novo do Sul | C62: 62.45210728
A63: Metropolitana | B63: Santa Leopoldina | C63: 52.44094488
A64: Metropolitana | B64: Santa Maria de Jetibá | C64: 76.81839512
A65: Metropolitana | B65: Santa Teresa | C65: 78.08349146
A66: Central Norte | B66: São Domingos do Norte | C66: 72.68292683
A67: Central Norte | B67: São Gabriel da Palha | C67: 57.05445545
A68: Sul | B68: São José do Calçado | C68: 67.57246377
A69: Central Norte | B69: São Mateus | C69: 64.86077482
A70: Central Norte | B70: São Roque do Canaã | C70: 79.13978495
A71: Metropolitana | B71: Serra | C71: 71.17944485
A72: Central Norte | B72: Sooretama | C72: 80.52478134
A73: Sul | B73: Vargem Alta | C73: 74.9034749
A74: Metropolitana | B74: Venda Nova do Imigrante | C74: 72.81639929
A75: Metropolitana | B75: Viana | C75: 75.5404726
A76: Central Norte | B76: Vila Pavão | C76: 84.71615721
A77: Central Norte | B77: Vila Valério | C77: 89.23303835
A78: Metropolitana | B78: Vila Velha | C78: 77.32539646
A79: Metropolitana | B79: Vitória | C79: 81.33967943
A80: Total | C80: 77.53250956
A82: Meningocócica Conjudada C e Meningocócica ACWY
A83: Período avaliado: 2016-2024
A84: Fonte: http://tabnet.datasus.gov.br/ e https://www.vacinaeconfia.es.gov.br
A85: *Dados parciais. Dados de janeiro/2022 a abril/2022 extraídos do TABNET em 10/05/2024
A86: *Dados de Setembro/2024 extraídos do Vacina e Confia em Outubro/2024
A87: População proporcional extraída do Censo IBGE 2022
A88: Cobertura Calculada por município de procedência da vacinação
A90: Observações:
A91: Imunobiológicos que foram recebidos parcialmente pelo estado no mês da análise, sendo distribuídos em quantidades reduzidas às regionais e municípios: Típlice Bacteriana (DTP),Varicela, Hepatite A - Rotina Pediátrica, COVID-19 Monovalente (XBB) - FRASCO .
A92: Imunobiológicos indisponíveis no mês da análise, não sendo possível a distribuição às regionais e municípios: Meningo C Conjugada, Tríplice Bacteriana Acelular (dTpa - CRIE).
A93: Imunobiológicos em falta e sem previsão de entrega: Febre Amarela, Varicela, Tríplice Viral (SCR), COVID-19 Monovalente (XBB) - FRASCO, Tríplice Bacteriana (DTP).

Sheet Cobert. HPV
A1: REGIONAL | B1: MUNICÍPIO | C1: HPV* Quadrivalente D1 Total - Feminino | D1: HPV* Quadrivalente D1 Total - Masculino
A2: METROPOLITANA | B2: Afonso Cláudio | C2: 85.63049853 | D2: 79.01131127
A3: CENTRAL-NORTE | B3: Água Doce do Norte | C3: 86.72745694 | D3: 61.19554205
A4: CENTRAL-NORTE | B4: Águia Branca | C4: 71.40902873 | D4: 76.88098495
A5: SUL | B5: Alegre | C5: 85.07097406 | D5: 67.35193343
A6: SUL | B6: Alfredo Chaves | C6: 82.40165631 | D6: 60.04140787
A7: CENTRAL-NORTE | B7: Alto Rio Novo | C7: 103.1509121 | D7: 91.87396352
A8: SUL | B8: Anchieta | C8: 94.59576308 | D8: 84.30609598
A9: SUL | B9: Apiacá | C9: 72.42026266 | D9: 51.78236398
A10: METROPOLITANA | B10: Aracruz | C10: 86.23471883 | D10: 72.05378973
A11: SUL | B11: Atílio Vivácqua | C11: 103.2663317 | D11: 92.46231156
A12: CENTRAL-NORTE | B12: Baixo Guandu | C12: 85.2158744 | D12: 68.55647623
A13: CENTRAL-NORTE | B13: Barra de São Francisco | C13: 76.9053782 | D13: 60.74201898
A14: CENTRAL-NORTE | B14: Boa Esperança | C14: 88.08388942 | D14: 51.66825548
A15: SUL | B15: Bom Jesus do Norte | C15: 86.97916667 | D15: 67.1875
A16: METROPOLITANA | B16: Brejetuba | C16: 92.81961471 | D16: 74.25569177
A17: SUL | B17: Cachoeiro de Itapemirim | C17: 88.69936034 | D17: 87.46415705
A18: METROPOLITANA | B18: Cariacica | C18: 85.01471769 | D18: 50.12041745
A19: SUL | B19: Castelo | C19: 94.17637271 | D19: 87.85357737
A20: CENTRAL-NORTE | B20: Colatina | C20: 55.29116346 | D20: 45.98828172
A21: CENTRAL-NORTE | B21: Conceição da Barra | C21: 82.76131045 | D21: 69.42277691
A22: METROPOLITANA | B22: Conceição do Castelo | C22: 99.67141292 | D22: 84.3373494
A23: SUL | B23: Divino de São Lourenço | C23: 77.77777778 | D23: 89.39393939
A24: METROPOLITANA | B24: Domingos Martins | C24: 93.50249904 | D24: 78.12379854
A25: SUL | B25: Dores do Rio Preto | C25: 96.51376147 | D25: 86.23853211
A26: CENTRAL-NORTE | B26: Ecoporanga | C26: 84.85958486 | D26: 68.98656899
A27: METROPOLITANA | B27: Fundão | C27: 83.53188507 | D27: 65.59215137
A28: CENTRAL-NORTE | B28: Governador Lindenberg | C28: 90.88669951 | D28: 83.49753695
A29: SUL | B29: Guaçuí | C29: 89.04531456 | D29: 72.23933128
A30: METROPOLITANA | B30: Guarapari | C30: 77.74486774 | D30: 44.81666837
A31: METROPOLITANA | B31: Ibatiba | C31: 89.9315738 | D31: 78.0058651
A32: METROPOLITANA | B32: Ibiraçu | C32: 92.46344207 | D32: 67.0416198
A33: SUL | B33: Ibitirama | C33: 50.64782097 | D33: 62.19081272
A34: SUL | B34: Iconha | C34: 95.11568123 | D34: 88.68894602
A35: SUL | B35: Irupi | C35: 70.3374778 | D35: 84.54706927
A36: METROPOLITANA | B36: Itaguaçu | C36: 94.79638009 | D36: 47.28506787
A37: SUL | B37: Itapemirim | C37: 70.342426 | D37: 70.45850261
A38: METROPOLITANA | B38: Itarana | C38: 86.33540373 | D38: 78.26086957
A39: SUL | B39: Iúna | C39: 78.26832405 | D39: 81.52593228
A40: CENTRAL-NORTE | B40: Jaguaré | C40: 93.1292009 | D40: 76.92307692
A41: SUL | B41: Jerônimo Monteiro | C41: 96.46772229 | D41: 87.69792935
A42: METROPOLITANA | B42: João Neiva | C42: 97.09543568 | D42: 75.5186722
A43: METROPOLITANA | B43: Laranja da Terra | C43: 81.67115903 | D43: 65.22911051
A44: CENTRAL-NORTE | B44: Linhares | C44: 78.35772938 | D44: 62.3348804
A45: CENTRAL-NORTE | B45: Mantenópolis | C45: 91.45052834 | D45: 61.67146974
A46: SUL | B46: Marataízes | C46: 97.08970897 | D46: 98.34983498
A47: METROPOLITANA | B47: Marechal Floriano | C47: 96.71641791 | D47: 68.05970149
A48: CENTRAL-NORTE | B48: Marilândia | C48: 102.9925187 | D48: 92.01995012
A49: SUL | B49: Mimoso do Sul | C49: 81.56956005 | D49: 71.70035672
A50: CENTRAL-NORTE | B50: Montanha | C50: 95.39052497 | D50: 86.1715749
A51: CENTRAL-NORTE | B51: Mucurici | C51: 98.32402235 | D51: 77.09497207
A52: SUL | B52: Muniz Freire | C52: 92.5872093 | D52: 93.45930233
A53: SUL | B53: Muqui | C53: 85.17034068 | D53: 75.95190381
A54: CENTRAL-NORTE | B54: Nova Venécia | C54: 89.40016434 | D54: 80.47110381
A55: CENTRAL-NORTE | B55: Pancas | C55: 89.37677054 | D55: 79.74504249
A56: CENTRAL-NORTE | B56: Pedro Canário | C56: 91.63090129 | D56: 76.60944206
A57: CENTRAL-NORTE | B57: Pinheiros | C57: 79.9047619 | D57: 60.57142857
A58: SUL | B58: Piúma | C58: 72.85464098 | D58: 64.09807356
A59: CENTRAL-NORTE | B59: Ponto Belo | C59: 93.68421053 | D59: 77.54385965
A60: SUL | B60: Presidente Kennedy | C60: 87.04663212 | D60: 85.14680484
A61: CENTRAL-NORTE | B61: Rio Bananal | C61: 102.8420357 | D61: 101.6523463
A62: SUL | B62: Rio Novo do Sul | C62: 74.36548223 | D62: 84.26395939
A63: METROPOLITANA | B63: Santa Leopoldina | C63: 65.60846561 | D63: 38.30687831
A64: METROPOLITANA | B64: Santa Maria de Jetibá | C64: 91.12574475 | D64: 55.00156789
A65: METROPOLITANA | B65: Santa Teresa | C65: 103.879027 | D65: 74.68770546
A66: CENTRAL-NORTE | B66: São Domingos do Norte | C66: 98.84297521 | D66: 80.99173554
A67: CENTRAL-NORTE | B67: São Gabriel da Palha | C67: 82.67117498 | D67: 72.9501268
A68: SUL | B68: São José do Calçado | C68: 83.80024361 | D68: 86.96711328
A69: CENTRAL-NORTE | B69: São Mateus | C69: 85.48500351 | D69: 64.78082054
A70: CENTRAL-NORTE | B70: São Roque do Canaã | C70: 106.6473988 | D70: 75.43352601
A71: METROPOLITANA | B71: Serra | C71: 82.95755818 | D71: 42.96752849
A72: CENTRAL-NORTE | B72: Sooretama | C72: 85.16932659 | D72: 79.48618139
A73: SUL | B73: Vargem Alta | C73: 87.91500664 | D73: 88.18061089
A74: METROPOLITANA | B74: Venda Nova do Imigrante | C74: 100.3076923 | D74: 88.73846154
A75: METROPOLITANA | B75: Viana | C75: 91.4929388 | D75: 69.199731
A76: CENTRAL-NORTE | B76: Vila Pavão | C76: 97.6945245 | D76: 71.75792507
A77: CENTRAL-NORTE | B77: Vila Valério | C77: 105.7768924 | D77: 86.05577689
A78: METROPOLITANA | B78: Vila Velha | C78: 90.34066928 | D78: 65.43261984
A79: METROPOLITANA | B79: Vitória | C79: 101.8952479 | D79: 66.89384745
A80: TOTAL | C80: 86.43815101 | D80: 80.80232891
A83: Cobertura Vacinal HPV 2024
A84: Período avaliado: 2013-2024
A85: Fonte: http://tabnet.datasus.gov.br/
A86: Fonte: https://www.vacinaeconfia.es.gov.br
A87: *Dados parciais. Dados de janeiro/2022 a abril/2022 extraídos do TABNET em 10/05/2024
A88: *Dados de Setembro/2024 extraídos do Vacina e Confia em Outubro/2024
A89: População proporcional extraída do Censo IBGE 2022
A90: Cobertura Calculada por município de procedência da vacinação
A92: Observações:
A93: Imunobiológicos que foram recebidos parcialmente pelo estado no mês da análise, sendo distribuídos em quantidades reduzidas às regionais e municípios: Típlice Bacteriana (DTP),Varicela, Hepatite A - Rotina Pediátrica, COVID-19 Monovalente (XBB) - FRASCO .
A94: Imunobiológicos indisponíveis no mês da análise, não sendo possível a distribuição às regionais e municípios: Meningo C Conjugada, Tríplice Bacteriana Acelular (dTpa - CRIE).
A95: Imunobiológicos em falta e sem previsão de entrega: Febre Amarela, Varicela, Tríplice Viral (SCR), COVID-19 Monovalente (XBB) - FRASCO, Tríplice Bacteriana (DTP).

Sheet dTpa gestantes - procedência
A1: REGIONAL | B1: MUNICÍPIO | C1: ¹POPULAÇÃO GESTANTE ANUAL | D1: ²POPULAÇÃO PROPORCIONAL | E1: DOSES APLICADAS dTpa GESTANTES | F1: COBERTURA VACINAL dTpa GESTANTES
A2: Metropolitana | B2: Afonso Cláudio | C2: 385 | D2: 307 | E2: 202 | F2: =E2/D2 -> 0.657980456
A3: Norte | B3: Água Doce do Norte | C3: 202 | D3: 168 | E3: 110 | F3: =E3/D3 -> 0.6547619048
A4: Central | B4: Águia Branca | C4: 173 | D4: 133 | E4: 90 | F4: 0.6766917293
A5: Sul | B5: Alegre | C5: 323 | D5: 238 | E5: 215 | F5: 0.9033613445
A6: Sul | B6: Alfredo Chaves | C6: 143 | D6: 104 | E6: 88 | F6: 0.8461538462
A7: Central | B7: Alto Rio Novo | C7: 85 | D7: 65 | E7: 62 | F7: 0.9538461538
A8: Sul | B8: Anchieta | C8: 367 | D8: 280 | E8: 248 | F8: 0.8857142857
A9: Sul | B9: Apiacá | C9: 68 | D9: 53 | E9: 45 | F9: 0.8490566038
A10: Metropolitana | B10: Aracruz | C10: 1419 | D10: 1082 | E10: 935 | F10: 0.8641404806
A11: Sul | B11: Atilio Vivacqua | C11: 144 | D11: 107 | E11: 114 | F11: 1.065420561
A12: Central | B12: Baixo Guandu | C12: 388 | D12: 283 | E12: 206 | F12: 0.7279151943
A13: Norte | B13: Barra de São Francisco | C13: 562 | D13: 442 | E13: 330 | F13: 0.7466063348
A14: Norte | B14: Boa Esperança | C14: 205 | D14: 154 | E14: 132 | F14: 0.8571428571
A15: Sul | B15: Bom Jesus do Norte | C15: 88 | D15: 73 | E15: 64 | F15: 0.8767123288
A16: Metropolitana | B16: Brejetuba | C16: 198 | D16: 146 | E16: 141 | F16: 0.9657534247
A17: Sul | B17: Cachoeiro de Itapemirim | C17: 2424 | D17: 1893 | E17: 1466 | F17: 0.7744321183
A18: Metropolitana | B18: Cariacica | C18: 4851 | D18: 3710 | E18: 2817 | F18: 0.7592991914
A19: Sul | B19: Castelo | C19: 432 | D19: 323 | E19: 278 | F19: 0.8606811146
A20: Central | B20: Colatina | C20: 1518 | D20: 1171 | E20: 1015 | F20: 0.8667805295
A21: Norte | B21: Conceição da Barra | C21: 386 | D21: 284 | E21: 260 | F21: 0.9154929577
A22: Metropolitana | B22: Conceição do Castelo | C22: 152 | D22: 126 | E22: 106 | F22: 0.8412698413
A23: Sul | B23: Divino de São Lourenço | C23: 70 | D23: 55 | E23: 26 | F23: 0.4727272727
A24: Metropolitana | B24: Domingos Martins | C24: 420 | D24: 303 | E24: 312 | F24: 1.02970297
A25: Sul | B25: Dores do Rio Preto | C25: 96 | D25: 74 | E25: 63 | F25: 0.8513513514
A26: Norte | B26: Ecoporanga | C26: 253 | D26: 203 | E26: 173 | F26: 0.8522167488
A27: Metropolitana | B27: Fundão | C27: 221 | D27: 176 | E27: 148 | F27: 0.8409090909
A28: Central | B28: Governador Lindenberg | C28: 130 | D28: 98 | E28: 82 | F28: 0.8367346939
A29: Sul | B29: Guaçuí | C29: 384 | D29: 287 | E29: 217 | F29: 0.756097561
A30: Metropolitana | B30: Guarapari | C30: 1508 | D30: 1095 | E30: 1038 | F30: 0.9479452055
A31: Metropolitana | B31: Ibatiba | C31: 367 | D31: 288 | E31: 276 | F31: 0.9583333333
A32: Metropolitana | B32: Ibiraçu | C32: 151 | D32: 119 | E32: 110 | F32: 0.9243697479
A33: Sul | B33: Ibitirama | C33: 140 | D33: 104 | E33: 104 | F33: 1
A34: Sul | B34: Iconha | C34: 114 | D34: 90 | E34: 86 | F34: 0.9555555556
A35: Sul | B35: Irupi | C35: 194 | D35: 147 | E35: 136 | F35: 0.925170068
A36: Metropolitana | B36: Itaguaçu | C36: 137 | D36: 109 | E36: 99 | F36: 0.9082568807
A37: Sul | B37: Itapemirim | C37: 520 | D37: 372 | E37: 314 | F37: 0.8440860215
A38: Metropolitana | B38: Itarana | C38: 136 | D38: 103 | E38: 99 | F38: 0.9611650485
A39: Sul | B39: Iúna | C39: 477 | D39: 354 | E39: 260 | F39: 0.7344632768
A40: Norte | B40: Jaguaré | C40: 495 | D40: 385 | E40: 321 | F40: 0.8337662338
A41: Sul | B41: Jerônimo Monteiro | C41: 150 | D41: 117 | E41: 91 | F41: 0.7777777778
A42: Metropolitana | B42: João Neiva | C42: 161 | D42: 120 | E42: 107 | F42: 0.8916666667
A43: Metropolitana | B43: Laranja da Terra | C43: 84 | D43: 67 | E43: 82 | F43: 1.223880597
A44: Central | B44: Linhares | C44: 2598 | D44: 2014 | E44: 1607 | F44: 0.7979145978
A45: Central | B45: Mantenópolis | C45: 153 | D45: 116 | E45: 91 | F45: 0.7844827586
A46: Sul | B46: Marataízes | C46: 553 | D46: 432 | E46: 399 | F46: 0.9236111111
A47: Metropolitana | B47: Marechal Floriano | C47: 221 | D47: 158 | E47: 146 | F47: 0.9240506329
A48: Central | B48: Marilândia | C48: 154 | D48: 113 | E48: 99 | F48: 0.8761061947
A49: Sul | B49: Mimoso do Sul | C49: 263 | D49: 200 | E49: 161 | F49: 0.805
A50: Norte | B50: Montanha | C50: 226 | D50: 171 | E50: 148 | F50: 0.865497076
A51: Norte | B51: Mucurici | C51: 74 | D51: 52 | E51: 53 | F51: 1.019230769
A52: Sul | B52: Muniz Freire | C52: 213 | D52: 161 | E52: 161 | F52: 1
A53: Sul | B53: Muqui | C53: 147 | D53: 116 | E53: 117 | F53: 1.00862069
A54: Norte | B54: Nova Venécia | C54: 627 | D54: 485 | E54: 437 | F54: 0.9010309278
A55: Central | B55: Pancas | C55: 208 | D55: 156 | E55: 146 | F55: 0.9358974359
A56: Norte | B56: Pedro Canário | C56: 316 | D56: 234 | E56: 208 | F56: 0.8888888889
A57: Norte | B57: Pinheiros | C57: 328 | D57: 252 | E57: 190 | F57: 0.753968254
A58: Sul | B58: Piúma | C58: 288 | D58: 206 | E58: 207 | F58: 1.004854369
A59: Norte | B59: Ponto Belo | C59: 74 | D59: 52 | E59: 59 | F59: 1.134615385
A60: Sul | B60: Presidente Kennedy | C60: 200 | D60: 163 | E60: 134 | F60: 0.8220858896
A61: Central | B61: Rio Bananal | C61: 272 | D61: 215 | E61: 201 | F61: 0.9348837209
A62: Sul | B62: Rio Novo do Sul | C62: 109 | D62: 77 | E62: 73 | F62: 0.9480519481
A63: Metropolitana | B63: Santa Leopoldina | C63: 99 | D63: 69 | E63: 55 | F63: 0.7971014493
A64: Metropolitana | B64: Santa Maria de Jetibá | C64: 656 | D64: 500 | E64: 451 | F64: 0.902
A65: Metropolitana | B65: Santa Teresa | C65: 310 | D65: 234 | E65: 182 | F65: 0.7777777778
A66: Central | B66: São Domingos do Norte | C66: 118 | D66: 85 | E66: 64 | F66: 0.7529411765
A67: Central | B67: São Gabriel da Palha | C67: 455 | D67: 346 | E67: 280 | F67: =E67/D67 -> 0.8092485549
A68: Sul | B68: São José do Calçado | C68: 99 | D68: 82 | E68: 61 | F68: 0.743902439
A69: Norte | B69: São Mateus | C69: 1939 | D69: 1478 | E69: 969 | F69: 0.6556156969
A70: Central | B70: São Roque do Canaã | C70: 129 | D70: 108 | E70: 85 | F70: 0.787037037
A71: Metropolitana | B71: Serra | C71: 7300 | D71: 5643 | E71: 4370 | F71: 0.7744107744
A72: Central | B72: Sooretama | C72: 425 | D72: 322 | E72: 295 | F72: 0.9161490683
A73: Sul | B73: Vargem Alta | C73: 264 | D73: 203 | E73: 165 | F73: 0.8128078818
A74: Metropolitana | B74: Venda Nova do Imigrante | C74: 368 | D74: 272 | E74: 248 | F74: 0.9117647059
A75: Metropolitana | B75: Viana | C75: 917 | D75: 688 | E75: 646 | F75: 0.9389534884
A76: Norte | B76: Vila Pavão | C76: 100 | D76: 82 | E76: 83 | F76: 1.012195122
A77: Central | B77: Vila Valério | C77: 255 | D77: 188 | E77: 157 | F77: 0.835106383
A78: Metropolitana | B78: Vila Velha | C78: 5675 | D78: 4304 | E78: 3212 | F78: 0.7462825279
A79: Metropolitana | B79: Vitória | C79: 3622 | D79: 2753 | E79: 2478 | F79: 0.900108972
B81: Total Norte | C81: =SUMIF($A$2:$A$79,"Norte",C$2:C$79) -> 5787 | D81: =SUMIF($A$2:$A$79,"Norte",D$2:D$79) -> 4442 | E81: =SUMIF($A$2:$A$79,"Norte",E$2:E$79) -> 3473 | F81: 0.7818550203
B82: Total Central | C82: =SUMIF($A$2:$A$79,"CENTRAL",C$2:C$79) -> 7061 | D82: =SUMIF($A$2:$A$79,"CENTRAL",D$2:D$79) -> 5413 | E82: =SUMIF($A$2:$A$79,"CENTRAL",E$2:E$79) -> 4480 | F82: 0.8276371698
B83: Total Metropolitana | C83: =SUMIF($A$2:$A$79,"METROPOLITANA",C$2:C$79) -> 29358 | D83: =SUMIF($A$2:$A$79,"METROPOLITANA",D$2:D$79) -> 22372 | E83: =SUMIF($A$2:$A$79,"METROPOLITANA",E$2:E$79) -> 18260 | F83: 0.81619882
B84: Total Sul | C84: =SUMIF($A$2:$A$79,"SUL",C$2:C$79) -> 8270 | D84: =SUMIF($A$2:$A$79,"SUL",D$2:D$79) -> 6311 | E84: =SUMIF($A$2:$A$79,"SUL",E$2:E$79) -> 5293 | F84: 0.8386943432
B85: TOTAL ES | C85: =SUM(C2:C79) -> 50476 | D85: =SUM(D2:D79) -> 38538 | E85: =SUM(E2:E79) -> 31506 | F85: =E85/D85 -> 0.8175307489
B86: HOMOGENEIDADE ENTRE MUNICÍPIOS | E86: =COUNTIF(F2:F79,">=0,95") -> 15 | F86: =E86/78 -> 0.1923076923
A89: Fonte: Vacina e Confia, em 09 de Outubro de 2024.**
A90: **Dados referente às doses aplicadas no período de Janeiro a Setembro de 2024
A91: Cobertura Calculada por município de procedência/ocorrência da vacinação
A92: 1 População anual extraída do MS/SVS/DASIS - SINASC/DASIS/SVS/MS 2023 (hoje preliminares) referente ao período de Agosto a dezembro de 2023 e SINASC/DASIS/SVS/MS 2024 referente ao período de janeiro a julho de 2024.
A93: ² População proporcional extraída do MS/SVS/DASIS - SINASC/DASIS/SVS/MS 2023 (hoje preliminares) referente ao período de agosto e Setembro de 2023 somada a população extraída do SINASC/DASIS/SVS/MS 2024 referente ao período de janeiro e julho de 2024.
A94: Sinasc, atualizado em 10 de Outubro de 2024.
A95: Homogeineidade: O cálculo da Homogeineidade entre vacinas é feito de acordo com a pactuação estabelecida no Plano Plurianual (PPA) vigente no período 2024-2027.
A97: Observações:
A98: Imunobiológicos que foram recebidos parcialmente pelo estado no mês da análise, sendo distribuídos em quantidades reduzidas às regionais e municípios: Típlice Bacteriana (DTP),Varicela, Hepatite A - Rotina Pediátrica, COVID-19 Monovalente (XBB) - FRASCO .
A99: Imunobiológicos indisponíveis no mês da análise, não sendo possível a distribuição às regionais e municípios: Meningo C Conjugada, Tríplice Bacteriana Acelular (dTpa - CRIE).
A100: Imunobiológicos em falta e sem previsão de entrega: Febre Amarela, Varicela, Tríplice Viral (SCR), COVID-19 Monovalente (XBB) - FRASCO, Tríplice Bacteriana (DTP).

Sheet dTpa gestantes - residência
A1: REGIONAL | B1: MUNICÍPIO | C1: ¹POPULAÇÃO GESTANTE ANUAL | D1: ¹POPULAÇÃO PROPORCIONAL | E1: DOSES APLICADAS dTpa GESTANTES | F1: COBERTURA VACINAL dTpa GESTANTES
A2: Metropolitana | B2: Afonso Cláudio | C2: 385 | D2: 307 | E2: 209 | F2: =E2/D2 -> 0.680781759
A3: Norte | B3: Água Doce do Norte | C3: 202 | D3: 168 | E3: 89 | F3: =E3/D3 -> 0.5297619048
A4: Central | B4: Águia Branca | C4: 173 | D4: 133 | E4: 75 | F4: 0.5639097744
A5: Sul | B5: Alegre | C5: 323 | D5: 238 | E5: 236 | F5: 0.9915966387
A6: Sul | B6: Alfredo Chaves | C6: 143 | D6: 104 | E6: 103 | F6: 0.9903846154
A7: Central | B7: Alto Rio Novo | C7: 85 | D7: 65 | E7: 61 | F7: 0.9384615385
A8: Sul | B8: Anchieta | C8: 367 | D8: 280 | E8: 226 | F8: 0.8071428571
A9: Sul | B9: Apiacá | C9: 68 | D9: 53 | E9: 43 | F9: 0.8113207547
A10: Metropolitana | B10: Aracruz | C10: 1419 | D10: 1082 | E10: 843 | F10: 0.7791127542
A11: Sul | B11: Atilio Vivacqua | C11: 144 | D11: 107 | E11: 102 | F11: 0.953271028
A12: Central | B12: Baixo Guandu | C12: 388 | D12: 283 | E12: 209 | F12: 0.7385159011
A13: Norte | B13: Barra de São Francisco | C13: 562 | D13: 442 | E13: 335 | F13: 0.757918552
A14: Norte | B14: Boa Esperança | C14: 205 | D14: 154 | E14: 129 | F14: 0.8376623377
A15: Sul | B15: Bom Jesus do Norte | C15: 88 | D15: 73 | E15: 41 | F15: 0.5616438356
A16: Metropolitana | B16: Brejetuba | C16: 198 | D16: 146 | E16: 129 | F16: 0.8835616438
A17: Sul | B17: Cachoeiro de Itapemirim | C17: 2424 | D17: 1893 | E17: 1442 | F17: 0.7617538299
A18: Metropolitana | B18: Cariacica | C18: 4851 | D18: 3710 | E18: 3193 | F18: 0.8606469003
A19: Sul | B19: Castelo | C19: 432 | D19: 323 | E19: 287 | F19: 0.8885448916
A20: Central | B20: Colatina | C20: 1518 | D20: 1171 | E20: 908 | F20: 0.7754056362
A21: Norte | B21: Conceição da Barra | C21: 386 | D21: 284 | E21: 247 | F21: 0.8697183099
A22: Metropolitana | B22: Conceição do Castelo | C22: 152 | D22: 126 | E22: 123 | F22: 0.9761904762
A23: Sul | B23: Divino de São Lourenço | C23: 70 | D23: 55 | E23: 33 | F23: 0.6
A24: Metropolitana | B24: Domingos Martins | C24: 420 | D24: 303 | E24: 328 | F24: 1.082508251
A25: Sul | B25: Dores do Rio Preto | C25: 96 | D25: 74 | E25: 47 | F25: 0.6351351351
A26: Norte | B26: Ecoporanga | C26: 253 | D26: 203 | E26: 181 | F26: 0.8916256158
A27: Metropolitana | B27: Fundão | C27: 221 | D27: 176 | E27: 130 | F27: 0.7386363636
A28: Central | B28: Governador Lindenberg | C28: 130 | D28: 98 | E28: 101 | F28: 1.030612245
A29: Sul | B29: Guaçuí | C29: 384 | D29: 287 | E29: 198 | F29: 0.6898954704
A30: Metropolitana | B30: Guarapari | C30: 1508 | D30: 1095 | E30: 975 | F30: 0.8904109589
A31: Metropolitana | B31: Ibatiba | C31: 367 | D31: 288 | E31: 269 | F31: 0.9340277778
A32: Metropolitana | B32: Ibiraçu | C32: 151 | D32: 119 | E32: 115 | F32: 0.9663865546
A33: Sul | B33: Ibitirama | C33: 140 | D33: 104 | E33: 88 | F33: 0.8461538462
A34: Sul | B34: Iconha | C34: 114 | D34: 90 | E34: 101 | F34: 1.122222222
A35: Sul | B35: Irupi | C35: 194 | D35: 147 | E35: 103 | F35: 0.7006802721
A36: Metropolitana | B36: Itaguaçu | C36: 137 | D36: 109 | E36: 89 | F36: 0.8165137615
A37: Sul | B37: Itapemirim | C37: 520 | D37: 372 | E37: 339 | F37: 0.9112903226
A38: Metropolitana | B38: Itarana | C38: 136 | D38: 103 | E38: 89 | F38: 0.8640776699
A39: Sul | B39: Iúna | C39: 477 | D39: 354 | E39: 272 | F39: 0.7683615819
A40: Norte | B40: Jaguaré | C40: 495 | D40: 385 | E40: 312 | F40: 0.8103896104
A41: Sul | B41: Jerônimo Monteiro | C41: 150 | D41: 117 | E41: 78 | F41: 0.6666666667
A42: Metropolitana | B42: João Neiva | C42: 161 | D42: 120 | E42: 108 | F42: 0.9
A43: Metropolitana | B43: Laranja da Terra | C43: 84 | D43: 67 | E43: 75 | F43: 1.119402985
A44: Central | B44: Linhares | C44: 2598 | D44: 2014 | E44: 1551 | F44: 0.7701092354
A45: Central | B45: Mantenópolis | C45: 153 | D45: 116 | E45: 75 | F45: 0.6465517241
A46: Sul | B46: Marataízes | C46: 553 | D46: 432 | E46: 350 | F46: 0.8101851852
A47: Metropolitana | B47: Marechal Floriano | C47: 221 | D47: 158 | E47: 140 | F47: 0.8860759494
A48: Central | B48: Marilândia | C48: 154 | D48: 113 | E48: 100 | F48: 0.8849557522
A49: Sul | B49: Mimoso do Sul | C49: 263 | D49: 200 | E49: 165 | F49: 0.825
A50: Norte | B50: Montanha | C50: 226 | D50: 171 | E50: 148 | F50: 0.865497076
A51: Norte | B51: Mucurici | C51: 74 | D51: 52 | E51: 58 | F51: 1.115384615
A52: Sul | B52: Muniz Freire | C52: 213 | D52: 161 | E52: 132 | F52: 0.8198757764
A53: Sul | B53: Muqui | C53: 147 | D53: 116 | E53: 120 | F53: 1.034482759
A54: Norte | B54: Nova Venécia | C54: 627 | D54: 485 | E54: 495 | F54: 1.020618557
A55: Central | B55: Pancas | C55: 208 | D55: 156 | E55: 159 | F55: 1.019230769
A56: Norte | B56: Pedro Canário | C56: 316 | D56: 234 | E56: 227 | F56: 0.9700854701
A57: Norte | B57: Pinheiros | C57: 328 | D57: 252 | E57: 172 | F57: 0.6825396825
A58: Sul | B58: Piúma | C58: 288 | D58: 206 | E58: 199 | F58: 0.9660194175
A59: Norte | B59: Ponto Belo | C59: 74 | D59: 52 | E59: 63 | F59: 1.211538462
A60: Sul | B60: Presidente Kennedy | C60: 200 | D60: 163 | E60: 127 | F60: 0.7791411043
A61: Central | B61: Rio Bananal | C61: 272 | D61: 215 | E61: 214 | F61: 0.9953488372
A62: Sul | B62: Rio Novo do Sul | C62: 109 | D62: 77 | E62: 79 | F62: 1.025974026
A63: Metropolitana | B63: Santa Leopoldina | C63: 99 | D63: 69 | E63: 67 | F63: 0.9710144928
A64: Metropolitana | B64: Santa Maria de Jetibá | C64: 656 | D64: 500 | E64: 383 | F64: 0.766
A65: Metropolitana | B65: Santa Teresa | C65: 310 | D65: 234 | E65: 198 | F65: 0.8461538462
A66: Central | B66: São Domingos do Norte | C66: 118 | D66: 85 | E66: 74 | F66: 0.8705882353
A67: Central | B67: São Gabriel da Palha | C67: 455 | D67: 346 | E67: 264 | F67: =E67/D67 -> 0.7630057803
A68: Sul | B68: São José do Calçado | C68: 99 | D68: 82 | E68: 68 | F68: 0.8292682927
A69: Norte | B69: São Mateus | C69: 1939 | D69: 1478 | E69: 871 | F69: 0.5893098782
A70: Central | B70: São Roque do Canaã | C70: 129 | D70: 108 | E70: 105 | F70: 0.9722222222
A71: Metropolitana | B71: Serra | C71: 7300 | D71: 5643 | E71: 4093 | F71: 0.7253234095
A72: Central | B72: Sooretama | C72: 425 | D72: 322 | E72: 307 | F72: 0.9534161491
A73: Sul | B73: Vargem Alta | C73: 264 | D73: 203 | E73: 158 | F73: 0.7783251232
A74: Metropolitana | B74: Venda Nova do Imigrante | C74: 368 | D74: 272 | E74: 249 | F74: 0.9154411765
A75: Metropolitana | B75: Viana | C75: 917 | D75: 688 | E75: 660 | F75: 0.9593023256
A76: Norte | B76: Vila Pavão | C76: 100 | D76: 82 | E76: 85 | F76: 1.036585366
A77: Central | B77: Vila Valério | C77: 255 | D77: 188 | E77: 141 | F77: 0.75
A78: Metropolitana | B78: Vila Velha | C78: 5675 | D78: 4304 | E78: 2945 | F78: 0.6842472119
A79: Metropolitana | B79: Vitória | C79: 3622 | D79: 2753 | E79: 2111 | F79: 0.7667998547
B81: Total Norte | C81: =SUMIF($A$2:$A$79,"Norte",C$2:C$79) -> 5787 | D81: =SUMIF($A$2:$A$79,"Norte",D$2:D$79) -> 4442 | E81: =SUMIF($A$2:$A$79,"Norte",E$2:E$79) -> 3412 | F81: 0.7681224674
B82: Total Central | C82: =SUMIF($A$2:$A$79,"CENTRAL",C$2:C$79) -> 7061 | D82: =SUMIF($A$2:$A$79,"CENTRAL",D$2:D$79) -> 5413 | E82: =SUMIF($A$2:$A$79,"CENTRAL",E$2:E$79) -> 4344 | F82: 0.80251247
B83: Total Metropolitana | C83: =SUMIF($A$2:$A$79,"METROPOLITANA",C$2:C$79) -> 29358 | D83: =SUMIF($A$2:$A$79,"METROPOLITANA",D$2:D$79) -> 22372 | E83: =SUMIF($A$2:$A$79,"METROPOLITANA",E$2:E$79) -> 17521 | F83: 0.7831664581
B84: Total Sul | C84: =SUMIF($A$2:$A$79,"SUL",C$2:C$79) -> 8270 | D84: =SUMIF($A$2:$A$79,"SUL",D$2:D$79) -> 6311 | E84: =SUMIF($A$2:$A$79,"SUL",E$2:E$79) -> 5137 | F84: 0.8139755982
B85: TOTAL ES | C85: =SUM(C2:C79) -> 50476 | D85: =SUM(D2:D79) -> 38538 | E85: =SUM(E2:E79) -> 30414 | F85: =E85/D85 -> 0.7891950802
B86: HOMOGENEIDADE ENTRE MUNICÍPIOS | E86: =COUNTIF(F2:F79,">=0,95") -> 23 | F86: =E86/78 -> 0.2948717949
A89: Fonte: Vacina e Confia, em09 de Outubro de 2024.**
A90: **Dados referente às doses aplicadas no período de Janeiro a Setembro de 2024
A91: Cobertura Calculada por município de residência do cidadão (no Vacina e Confia, a origem da informação é o endereço que consta no cadastro do cidadão preenchido manualmente por meio do autocadastro ou pelo cadastro realizado por um profissional de saúde no momento do atendimento).
A92: 1 População anual extraída do MS/SVS/DASIS - SINASC/DASIS/SVS/MS 2023 (hoje preliminares) referente ao período de Agosto e Dezembro de 2023 e SINASC/DASIS/SVS/MS 2024 referente ao período de janeiro a julho de 2024.
A93: ² População proporcional extraída do MS/SVS/DASIS - SINASC/DASIS/SVS/MS 2023 (hoje preliminares) referente ao período de Agosto e Setembro de 2023 somada a população extraída do SINASC/DASIS/SVS/MS 2024 referente ao período de janeiro e julho de 2024.
A94: Sinasc, atualizado em 10 de Outubro de 2024.
A95: Homogeineidade: O cálculo da Homogeineidade entre vacinas é feito de acordo com a pactuação estabelecida no Plano Plurianual (PPA) vigente no período 2024-2027.
A97: Observações:
A98: Imunobiológicos que foram recebidos parcialmente pelo estado no mês da análise, sendo distribuídos em quantidades reduzidas às regionais e municípios: Típlice Bacteriana (DTP),Varicela, Hepatite A - Rotina Pediátrica, COVID-19 Monovalente (XBB) - FRASCO .
A99: Imunobiológicos indisponíveis no mês da análise, não sendo possível a distribuição às regionais e municípios: Meningo C Conjugada, Tríplice Bacteriana Acelular (dTpa - CRIE).
A100: Imunobiológicos em falta e sem previsão de entrega: Febre Amarela, Varicela, Tríplice Viral (SCR), COVID-19 Monovalente (XBB) - FRASCO, Tríplice Bacteriana (DTP).

Sheet PROTEÇÃO

Sheet cálculos1 (hidden)
C1: 0.9 | E1: 0.95
A2: Regional | B2: Município | C2: Cobertura Vacinal BCG | D2: Cobertura Vacinal Rotavírus | E2: Cobertura Vacinal Pentavalente | F2: Cobertura Vacinal Poliomielite | G2: Cobertura Vacinal Pneumo 10 | H2: Cobertura Vacinal Tríplice Viral | I2: Cobertura Vacinal Meningo C | J2: Cobertura Vacinal Febre Amarela | K2: Cobertura Vacinal Hepatite A | L2: Cobertura Varicela | M2: META 90% | N2: META 95% | O2: ATINGIRAM META | P2: PQA-VS
A3: Metropolitana | B3: Afonso Cláudio | C3: ='CV Rotina <2A - procedência'!H3 -> 0.7133550489 | D3: ='CV Rotina <2A - procedência'!P3 -> 0.8338762215 | E3: ='CV Rotina <2A - procedência'!J3 -> 0.8729641694 | F3: ='CV Rotina <2A - procedência'!L3 -> 0.8664495114 | G3: ='CV Rotina <2A - procedência'!N3 -> 0.8534201954 | H3: ='CV Rotina <2A - procedência'!X3 -> 0.9478827362 | I3: ='CV Rotina <2A - procedência'!R3 -> 0.8534201954 | J3: ='CV Rotina <2A - procedência'!T3 -> 0.8241042345 | K3: ='CV Rotina <2A - procedência'!V3 -> 0.9055374593 | L3: ='CV Rotina <2A - procedência'!Z3 -> 0.4592833876 | M3: =COUNTIF(C3:D3,">=0,9") -> 0 | N3: =COUNTIFS(E3:L3,">=0,95") -> 0 | O3: =SUM(M3:N3) -> 0 | P3: =COUNTIF(E3:H3,">=0,95") -> 0
A4: Norte | B4: Água Doce do Norte | C4: ='CV Rotina <2A - procedência'!H4 -> 0.4523809524 | D4: ='CV Rotina <2A - procedência'!P4 -> 0.7916666667 | E4: ='CV Rotina <2A - procedência'!J4 -> 0.75 | F4: ='CV Rotina <2A - procedência'!L4 -> 0.7380952381 | G4: ='CV Rotina <2A - procedência'!N4 -> 0.8095238095 | H4: ='CV Rotina <2A - procedência'!X4 -> 0.6785714286 | I4: ='CV Rotina <2A - procedência'!R4 -> 0.755952381 | J4: ='CV Rotina <2A - procedência'!T4 -> 0.5238095238 | K4: ='CV Rotina <2A - procedência'!V4 -> 0.6428571429 | L4: ='CV Rotina <2A - procedência'!Z4 -> 0.2321428571 | M4: 0 | N4: 0 | O4: =SUM(M4:N4) -> 0 | P4: =COUNTIF(E4:H4,">=0,95") -> 0
A5: Central | B5: Águia Branca | C5: ='CV Rotina <2A - procedência'!H5 -> 0.5864661654 | D5: ='CV Rotina <2A - procedência'!P5 -> 0.969924812 | E5: ='CV Rotina <2A - procedência'!J5 -> 0.8947368421 | F5: ='CV Rotina <2A - procedência'!L5 -> 0.8872180451 | G5: ='CV Rotina <2A - procedência'!N5 -> 0.9248120301 | H5: ='CV Rotina <2A - procedência'!X5 -> 0.8571428571 | I5: ='CV Rotina <2A - procedência'!R5 -> 0.9398496241 | J5: ='CV Rotina <2A - procedência'!T5 -> 0.7819548872 | K5: ='CV Rotina <2A - procedência'!V5 -> 0.7218045113 | L5: ='CV Rotina <2A - procedência'!Z5 -> 0.2932330827 | M5: 1 | N5: 0 | O5: 1 | P5: 0
A6: Sul | B6: Alegre | C6: ='CV Rotina <2A - procedência'!H6 -> 0.6554621849 | D6: ='CV Rotina <2A - procedência'!P6 -> 0.9831932773 | E6: ='CV Rotina <2A - procedência'!J6 -> 1.054621849 | F6: ='CV Rotina <2A - procedência'!L6 -> 1.067226891 | G6: ='CV Rotina <2A - procedência'!N6 -> 1.025210084 | H6: ='CV Rotina <2A - procedência'!X6 -> 0.9789915966 | I6: ='CV Rotina <2A - procedência'!R6 -> 1.012605042 | J6: ='CV Rotina <2A - procedência'!T6 -> 0.9495798319 | K6: ='CV Rotina <2A - procedência'!V6 -> 0.9327731092 | L6: ='CV Rotina <2A - procedência'!Z6 -> 0.2647058824 | M6: 1 | N6: 5 | O6: 6 | P6: 4
A7: Sul | B7: Alfredo Chaves | C7: ='CV Rotina <2A - procedência'!H7 -> 0.4807692308 | D7: ='CV Rotina <2A - procedência'!P7 -> 1.086538462 | E7: ='CV Rotina <2A - procedência'!J7 -> 1.105769231 | F7: ='CV Rotina <2A - procedência'!L7 -> 1.067307692 | G7: ='CV Rotina <2A - procedência'!N7 -> 1.067307692 | H7: ='CV Rotina <2A - procedência'!X7 -> 1.076923077 | I7: ='CV Rotina <2A - procedência'!R7 -> 1.115384615 | J7: ='CV Rotina <2A - procedência'!T7 -> 1.009615385 | K7: ='CV Rotina <2A - procedência'!V7 -> 1.009615385 | L7: ='CV Rotina <2A - procedência'!Z7 -> 0.5865384615 | M7: 1 | N7: 7 | O7: 8 | P7: 4
A8: Central | B8: Alto Rio Novo | C8: ='CV Rotina <2A - procedência'!H8 -> 0.4461538462 | D8: ='CV Rotina <2A - procedência'!P8 -> 1.138461538 | E8: ='CV Rotina <2A - procedência'!J8 -> 1.061538462 | F8: ='CV Rotina <2A - procedência'!L8 -> 1.030769231 | G8: ='CV Rotina <2A - procedência'!N8 -> 1.153846154 | H8: ='CV Rotina <2A - procedência'!X8 -> 1.169230769 | I8: ='CV Rotina <2A - procedência'!R8 -> 1.153846154 | J8: ='CV Rotina <2A - procedência'!T8 -> 0.9692307692 | K8: ='CV Rotina <2A - procedência'!V8 -> 1.184615385 | L8: ='CV Rotina <2A - procedência'!Z8 -> 0.5538461538 | M8: 1 | N8: 7 | O8: 8 | P8: 4
A9: Sul | B9: Anchieta | C9: ='CV Rotina <2A - procedência'!H9 -> 0.5714285714 | D9: ='CV Rotina <2A - procedência'!P9 -> 1.014285714 | E9: ='CV Rotina <2A - procedência'!J9 -> 1.014285714 | F9: ='CV Rotina <2A - procedência'!L9 -> 1.021428571 | G9: ='CV Rotina <2A - procedência'!N9 -> 1.032142857 | H9: ='CV Rotina <2A - procedência'!X9 -> 1.035714286 | I9: ='CV Rotina <2A - procedência'!R9 -> 1.007142857 | J9: ='CV Rotina <2A - procedência'!T9 -> 0.8071428571 | K9: ='CV Rotina <2A - procedência'!V9 -> 1.067857143 | L9: ='CV Rotina <2A - procedência'!Z9 -> 0.4285714286 | M9: 1 | N9: 6 | O9: 7 | P9: 4
A10: Sul | B10: Apiacá | C10: ='CV Rotina <2A - procedência'!H10 -> 0.7547169811 | D10: ='CV Rotina <2A - procedência'!P10 -> 1.037735849 | E10: ='CV Rotina <2A - procedência'!J10 -> 0.8867924528 | F10: ='CV Rotina <2A - procedência'!L10 -> 0.9056603774 | G10: ='CV Rotina <2A - procedência'!N10 -> 1 | H10: ='CV Rotina <2A - procedência'!X10 -> 1.075471698 | I10: ='CV Rotina <2A - procedência'!R10 -> 0.9056603774 | J10: ='CV Rotina <2A - procedência'!T10 -> 0.8679245283 | K10: ='CV Rotina <2A - procedência'!V10 -> 0.9433962264 | L10: ='CV Rotina <2A - procedência'!Z10 -> 0.1698113208 | M10: 1 | N10: 2 | O10: 3 | P10: 2
A11: Metropolitana | B11: Aracruz | C11: ='CV Rotina <2A - procedência'!H11 -> 0.96025878 | D11: ='CV Rotina <2A - procedência'!P11 -> 0.9417744917 | E11: ='CV Rotina <2A - procedência'!J11 -> 0.9214417745 | F11: ='CV Rotina <2A - procedência'!L11 -> 0.9214417745 | G11: ='CV Rotina <2A - procedência'!N11 -> 0.9556377079 | H11: ='CV Rotina <2A - procedência'!X11 -> 1.03142329 | I11: ='CV Rotina <2A - procedência'!R11 -> 0.915896488 | J11: ='CV Rotina <2A - procedência'!T11 -> 0.8003696858 | K11: ='CV Rotina <2A - procedência'!V11 -> 1.018484288 | L11: ='CV Rotina <2A - procedência'!Z11 -> 0.4861367837 | M11: 2 | N11: 3 | O11: 5 | P11: 2
A12: Sul | B12: Atilio Vivacqua | C12: ='CV Rotina <2A - procedência'!H12 -> 0.03738317757 | D12: ='CV Rotina <2A - procedência'!P12 -> 0.9439252336 | E12: ='CV Rotina <2A - procedência'!J12 -> 0.9345794393 | F12: ='CV Rotina <2A - procedência'!L12 -> 0.9252336449 | G12: ='CV Rotina <2A - procedência'!N12 -> 0.953271028 | H12: ='CV Rotina <2A - procedência'!X12 -> 1.102803738 | I12: ='CV Rotina <2A - procedência'!R12 -> 0.9158878505 | J12: ='CV Rotina <2A - procedência'!T12 -> 0.7663551402 | K12: ='CV Rotina <2A - procedência'!V12 -> 0.9906542056 | L12: ='CV Rotina <2A - procedência'!Z12 -> 0.4672897196 | M12: 1 | N12: 3 | O12: 4 | P12: 2
A13: Central | B13: Baixo Guandu | C13: ='CV Rotina <2A - procedência'!H13 -> 0.5653710247 | D13: ='CV Rotina <2A - procedência'!P13 -> 1.09540636 | E13: ='CV Rotina <2A - procedência'!J13 -> 1.03180212 | F13: ='CV Rotina <2A - procedência'!L13 -> 1.038869258 | G13: ='CV Rotina <2A - procedência'!N13 -> 1.130742049 | H13: ='CV Rotina <2A - procedência'!X13 -> 1.038869258 | I13: ='CV Rotina <2A - procedência'!R13 -> 1.077738516 | J13: ='CV Rotina <2A - procedência'!T13 -> 0.8021201413 | K13: ='CV Rotina <2A - procedência'!V13 -> 1.007067138 | L13: ='CV Rotina <2A - procedência'!Z13 -> 0.4346289753 | M13: 1 | N13: 6 | O13: 7 | P13: 4
A14: Norte | B14: Barra de São Francisco | C14: ='CV Rotina <2A - procedência'!H14 -> 0.8371040724 | D14: ='CV Rotina <2A - procedência'!P14 -> 0.9049773756 | E14: ='CV Rotina <2A - procedência'!J14 -> 0.8484162896 | F14: ='CV Rotina <2A - procedência'!L14 -> 0.8484162896 | G14: ='CV Rotina <2A - procedência'!N14 -> 0.9298642534 | H14: ='CV Rotina <2A - procedência'!X14 -> 0.9592760181 | I14: ='CV Rotina <2A - procedência'!R14 -> 0.8891402715 | J14: ='CV Rotina <2A - procedência'!T14 -> 0.7918552036 | K14: ='CV Rotina <2A - procedência'!V14 -> 0.742081448 | L14: ='CV Rotina <2A - procedência'!Z14 -> 0.4411764706 | M14: 1 | N14: 1 | O14: 2 | P14: 1
A15: Norte | B15: Boa Esperança | C15: ='CV Rotina <2A - procedência'!H15 -> 0.3441558442 | D15: ='CV Rotina <2A - procedência'!P15 -> 1.006493506 | E15: ='CV Rotina <2A - procedência'!J15 -> 0.9025974026 | F15: ='CV Rotina <2A - procedência'!L15 -> 0.9285714286 | G15: ='CV Rotina <2A - procedência'!N15 -> 0.961038961 | H15: ='CV Rotina <2A - procedência'!X15 -> 1.012987013 | I15: ='CV Rotina <2A - procedência'!R15 -> 0.9545454545 | J15: ='CV Rotina <2A - procedência'!T15 -> 0.8051948052 | K15: ='CV Rotina <2A - procedência'!V15 -> 0.7142857143 | L15: ='CV Rotina <2A - procedência'!Z15 -> 0.5649350649 | M15: 1 | N15: 3 | O15: 4 | P15: 2
A16: Sul | B16: Bom Jesus do Norte | C16: ='CV Rotina <2A - procedência'!H16 -> 0.8493150685 | D16: ='CV Rotina <2A - procedência'!P16 -> 1.150684932 | E16: ='CV Rotina <2A - procedência'!J16 -> 1.205479452 | F16: ='CV Rotina <2A - procedência'!L16 -> 1.178082192 | G16: ='CV Rotina <2A - procedência'!N16 -> 1.191780822 | H16: ='CV Rotina <2A - procedência'!X16 -> 1.465753425 | I16: ='CV Rotina <2A - procedência'!R16 -> 1.123287671 | J16: ='CV Rotina <2A - procedência'!T16 -> 0.904109589 | K16: ='CV Rotina <2A - procedência'!V16 -> 0.8493150685 | L16: ='CV Rotina <2A - procedência'!Z16 -> 0.3835616438 | M16: 1 | N16: 5 | O16: 6 | P16: 4
A17: Metropolitana | B17: Brejetuba | C17: ='CV Rotina <2A - procedência'!H17 -> 0.7945205479 | D17: ='CV Rotina <2A - procedência'!P17 -> 1.054794521 | E17: ='CV Rotina <2A - procedência'!J17 -> 1.061643836 | F17: ='CV Rotina <2A - procedência'!L17 -> 1.061643836 | G17: ='CV Rotina <2A - procedência'!N17 -> 1.006849315 | H17: ='CV Rotina <2A - procedência'!X17 -> 1.020547945 | I17: ='CV Rotina <2A - procedência'!R17 -> 1.01369863 | J17: ='CV Rotina <2A - procedência'!T17 -> 0.9246575342 | K17: ='CV Rotina <2A - procedência'!V17 -> 0.7671232877 | L17: ='CV Rotina <2A - procedência'!Z17 -> 0.404109589 | M17: 1 | N17: 5 | O17: 6 | P17: 4
A18: Sul | B18: Cachoeiro de Itapemirim | C18: ='CV Rotina <2A - procedência'!H18 -> 1.983095615 | D18: ='CV Rotina <2A - procedência'!P18 -> 0.9043845747 | E18: ='CV Rotina <2A - procedência'!J18 -> 0.8626518753 | F18: ='CV Rotina <2A - procedência'!L18 -> 0.854199683 | G18: ='CV Rotina <2A - procedência'!N18 -> 0.9276281035 | H18: ='CV Rotina <2A - procedência'!X18 -> 0.9064976228 | I18: ='CV Rotina <2A - procedência'!R18 -> 0.8589540412 | J18: ='CV Rotina <2A - procedência'!T18 -> 0.6291600634 | K18: ='CV Rotina <2A - procedência'!V18 -> 0.8077126255 | L18: ='CV Rotina <2A - procedência'!Z18 -> 0.3396724775 | M18: 2 | N18: 0 | O18: 2 | P18: 0
A19: Metropolitana | B19: Cariacica | C19: ='CV Rotina <2A - procedência'!H19 -> 0.5142857143 | D19: ='CV Rotina <2A - procedência'!P19 -> 0.8649595687 | E19: ='CV Rotina <2A - procedência'!J19 -> 0.8420485175 | F19: ='CV Rotina <2A - procedência'!L19 -> 0.8331536388 | G19: ='CV Rotina <2A - procedência'!N19 -> 0.9 | H19: ='CV Rotina <2A - procedência'!X19 -> 0.9088948787 | I19: ='CV Rotina <2A - procedência'!R19 -> 0.8460916442 | J19: ='CV Rotina <2A - procedência'!T19 -> 0.6619946092 | K19: ='CV Rotina <2A - procedência'!V19 -> 0.630458221 | L19: ='CV Rotina <2A - procedência'!Z19 -> 0.3226415094 | M19: 0 | N19: 0 | O19: 0 | P19: 0
A20: Sul | B20: Castelo | C20: ='CV Rotina <2A - procedência'!H20 -> 0.5944272446 | D20: ='CV Rotina <2A - procedência'!P20 -> 0.9969040248 | E20: ='CV Rotina <2A - procedência'!J20 -> 0.9938080495 | F20: ='CV Rotina <2A - procedência'!L20 -> 0.9969040248 | G20: ='CV Rotina <2A - procedência'!N20 -> 1.009287926 | H20: ='CV Rotina <2A - procedência'!X20 -> 1.095975232 | I20: ='CV Rotina <2A - procedência'!R20 -> 0.9628482972 | J20: ='CV Rotina <2A - procedência'!T20 -> 0.866873065 | K20: ='CV Rotina <2A - procedência'!V20 -> 0.7987616099 | L20: ='CV Rotina <2A - procedência'!Z20 -> 0.4736842105 | M20: 1 | N20: 5 | O20: 6 | P20: 4
A21: Central | B21: Colatina | C21: ='CV Rotina <2A - procedência'!H21 -> 2.116994022 | D21: ='CV Rotina <2A - procedência'!P21 -> 0.951323655 | E21: ='CV Rotina <2A - procedência'!J21 -> 0.9854824936 | F21: ='CV Rotina <2A - procedência'!L21 -> 0.976088813 | G21: ='CV Rotina <2A - procedência'!N21 -> 1.006831768 | H21: ='CV Rotina <2A - procedência'!X21 -> 1.032450897 | I21: ='CV Rotina <2A - procedência'!R21 -> 0.9180187874 | J21: ='CV Rotina <2A - procedência'!T21 -> 0.7839453459 | K21: ='CV Rotina <2A - procedência'!V21 -> 0.7224594364 | L21: ='CV Rotina <2A - procedência'!Z21 -> 0.5004269855 | M21: 2 | N21: 4 | O21: 6 | P21: 4
A22: Norte | B22: Conceição da Barra | C22: ='CV Rotina <2A - procedência'!H22 -> 0.05633802817 | D22: ='CV Rotina <2A - procedência'!P22 -> 1.021126761 | E22: ='CV Rotina <2A - procedência'!J22 -> 0.9542253521 | F22: ='CV Rotina <2A - procedência'!L22 -> 0.9577464789 | G22: ='CV Rotina <2A - procedência'!N22 -> 1.045774648 | H22: ='CV Rotina <2A - procedência'!X22 -> 1.021126761 | I22: ='CV Rotina <2A - procedência'!R22 -> 0.9929577465 | J22: ='CV Rotina <2A - procedência'!T22 -> 0.8838028169 | K22: ='CV Rotina <2A - procedência'!V22 -> 0.7429577465 | L22: ='CV Rotina <2A - procedência'!Z22 -> 0.4507042254 | M22: 1 | N22: 5 | O22: 6 | P22: 4
A23: Metropolitana | B23: Conceição do Castelo | C23: ='CV Rotina <2A - procedência'!H23 -> 0 | D23: ='CV Rotina <2A - procedência'!P23 -> 0.7857142857 | E23: ='CV Rotina <2A - procedência'!J23 -> 0.8174603175 | F23: ='CV Rotina <2A - procedência'!L23 -> 0.8015873016 | G23: ='CV Rotina <2A - procedência'!N23 -> 0.8095238095 | H23: ='CV Rotina <2A - procedência'!X23 -> 0.8968253968 | I23: ='CV Rotina <2A - procedência'!R23 -> 0.7936507937 | J23: ='CV Rotina <2A - procedência'!T23 -> 0.8095238095 | K23: ='CV Rotina <2A - procedência'!V23 -> 0.880952381 | L23: ='CV Rotina <2A - procedência'!Z23 -> 0.4682539683 | M23: 0 | N23: 0 | O23: 0 | P23: 0
A24: Sul | B24: Divino de São Lourenço | C24: ='CV Rotina <2A - procedência'!H24 -> 0.7090909091 | D24: ='CV Rotina <2A - procedência'!P24 -> 1.181818182 | E24: ='CV Rotina <2A - procedência'!J24 -> 1.054545455 | F24: ='CV Rotina <2A - procedência'!L24 -> 1.036363636 | G24: ='CV Rotina <2A - procedência'!N24 -> 1.2 | H24: ='CV Rotina <2A - procedência'!X24 -> 0.8181818182 | I24: ='CV Rotina <2A - procedência'!R24 -> 1.145454545 | J24: ='CV Rotina <2A - procedência'!T24 -> 0.8545454545 | K24: ='CV Rotina <2A - procedência'!V24 -> 0.7454545455 | L24: ='CV Rotina <2A - procedência'!Z24 -> 0.4545454545 | M24: 1 | N24: 4 | O24: 5 | P24: 3
A25: Metropolitana | B25: Domingos Martins | C25: ='CV Rotina <2A - procedência'!H25 -> 0.2145214521 | D25: ='CV Rotina <2A - procedência'!P25 -> 1.00330033 | E25: ='CV Rotina <2A - procedência'!J25 -> 0.9273927393 | F25: ='CV Rotina <2A - procedência'!L25 -> 0.9306930693 | G25: ='CV Rotina <2A - procedência'!N25 -> 1.01650165 | H25: ='CV Rotina <2A - procedência'!X25 -> 0.9801980198 | I25: ='CV Rotina <2A - procedência'!R25 -> 0.9867986799 | J25: ='CV Rotina <2A - procedência'!T25 -> 0.900990099 | K25: ='CV Rotina <2A - procedência'!V25 -> 0.9141914191 | L25: ='CV Rotina <2A - procedência'!Z25 -> 0.6204620462 | M25: 1 | N25: 3 | O25: 4 | P25: 2
A26: Sul | B26: Dores do Rio Preto | C26: ='CV Rotina <2A - procedência'!H26 -> 0.6756756757 | D26: ='CV Rotina <2A - procedência'!P26 -> 1.067567568 | E26: ='CV Rotina <2A - procedência'!J26 -> 1.040540541 | F26: ='CV Rotina <2A - procedência'!L26 -> 1.081081081 | G26: ='CV Rotina <2A - procedência'!N26 -> 1.108108108 | H26: ='CV Rotina <2A - procedência'!X26 -> 1.081081081 | I26: ='CV Rotina <2A - procedência'!R26 -> 1.081081081 | J26: ='CV Rotina <2A - procedência'!T26 -> 0.8783783784 | K26: ='CV Rotina <2A - procedência'!V26 -> 0.7702702703 | L26: ='CV Rotina <2A - procedência'!Z26 -> 0.3918918919 | M26: 1 | N26: 5 | O26: 6 | P26: 4
A27: Norte | B27: Ecoporanga | C27: ='CV Rotina <2A - procedência'!H27 -> 0.5024630542 | D27: ='CV Rotina <2A - procedência'!P27 -> 0.960591133 | E27: ='CV Rotina <2A - procedência'!J27 -> 0.8719211823 | F27: ='CV Rotina <2A - procedência'!L27 -> 0.8571428571 | G27: ='CV Rotina <2A - procedência'!N27 -> 1.009852217 | H27: ='CV Rotina <2A - procedência'!X27 -> 0.9802955665 | I27: ='CV Rotina <2A - procedência'!R27 -> 0.9458128079 | J27: ='CV Rotina <2A - procedência'!T27 -> 0.7586206897 | K27: ='CV Rotina <2A - procedência'!V27 -> 0.8177339901 | L27: ='CV Rotina <2A - procedência'!Z27 -> 0.4876847291 | M27: 1 | N27: 2 | O27: 3 | P27: 2
A28: Metropolitana | B28: Fundão | C28: ='CV Rotina <2A - procedência'!H28 -> 0.4204545455 | D28: ='CV Rotina <2A - procedência'!P28 -> 1.068181818 | E28: ='CV Rotina <2A - procedência'!J28 -> 1.017045455 | F28: ='CV Rotina <2A - procedência'!L28 -> 1.017045455 | G28: ='CV Rotina <2A - procedência'!N28 -> 1.068181818 | H28: ='CV Rotina <2A - procedência'!X28 -> 0.8579545455 | I28: ='CV Rotina <2A - procedência'!R28 -> 0.9204545455 | J28: ='CV Rotina <2A - procedência'!T28 -> 0.75 | K28: ='CV Rotina <2A - procedência'!V28 -> 1.011363636 | L28: ='CV Rotina <2A - procedência'!Z28 -> 0.5454545455 | M28: 1 | N28: 4 | O28: 5 | P28: 3
A29: Central | B29: Governador Lindenberg | C29: ='CV Rotina <2A - procedência'!H29 -> 0.1836734694 | D29: ='CV Rotina <2A - procedência'!P29 -> 0.9183673469 | E29: ='CV Rotina <2A - procedência'!J29 -> 0.9183673469 | F29: ='CV Rotina <2A - procedência'!L29 -> 0.887755102 | G29: ='CV Rotina <2A - procedência'!N29 -> 0.887755102 | H29: ='CV Rotina <2A - procedência'!X29 -> 1.12244898 | I29: ='CV Rotina <2A - procedência'!R29 -> 0.9591836735 | J29: ='CV Rotina <2A - procedência'!T29 -> 1.020408163 | K29: ='CV Rotina <2A - procedência'!V29 -> 1.102040816 | L29: ='CV Rotina <2A - procedência'!Z29 -> 0.4591836735 | M29: 1 | N29: 4 | O29: 5 | P29: 1
A30: Sul | B30: Guaçuí | C30: ='CV Rotina <2A - procedência'!H30 -> 0.5714285714 | D30: ='CV Rotina <2A - procedência'!P30 -> 0.9094076655 | E30: ='CV Rotina <2A - procedência'!J30 -> 0.9825783972 | F30: ='CV Rotina <2A - procedência'!L30 -> 0.9547038328 | G30: ='CV Rotina <2A - procedência'!N30 -> 0.968641115 | H30: ='CV Rotina <2A - procedência'!X30 -> 1.108013937 | I30: ='CV Rotina <2A - procedência'!R30 -> 0.9268292683 | J30: ='CV Rotina <2A - procedência'!T30 -> 0.7770034843 | K30: ='CV Rotina <2A - procedência'!V30 -> 0.8641114983 | L30: ='CV Rotina <2A - procedência'!Z30 -> 0.3588850174 | M30: 1 | N30: 4 | O30: 5 | P30: 4
A31: Metropolitana | B31: Guarapari | C31: ='CV Rotina <2A - procedência'!H31 -> 0.9799086758 | D31: ='CV Rotina <2A - procedência'!P31 -> 1.026484018 | E31: ='CV Rotina <2A - procedência'!J31 -> 0.9315068493 | F31: ='CV Rotina <2A - procedência'!L31 -> 0.9095890411 | G31: ='CV Rotina <2A - procedência'!N31 -> 1.068493151 | H31: ='CV Rotina <2A - procedência'!X31 -> 0.999086758 | I31: ='CV Rotina <2A - procedência'!R31 -> 0.9753424658 | J31: ='CV Rotina <2A - procedência'!T31 -> 0.700456621 | K31: ='CV Rotina <2A - procedência'!V31 -> 0.8593607306 | L31: ='CV Rotina <2A - procedência'!Z31 -> 0.4821917808 | M31: 2 | N31: 3 | O31: 5 | P31: 2
A32: Metropolitana | B32: Ibatiba | C32: ='CV Rotina <2A - procedência'!H32 -> 0.8402777778 | D32: ='CV Rotina <2A - procedência'!P32 -> 0.9618055556 | E32: ='CV Rotina <2A - procedência'!J32 -> 0.96875 | F32: ='CV Rotina <2A - procedência'!L32 -> 0.96875 | G32: ='CV Rotina <2A - procedência'!N32 -> 0.9965277778 | H32: ='CV Rotina <2A - procedência'!X32 -> 0.9895833333 | I32: ='CV Rotina <2A - procedência'!R32 -> 0.9930555556 | J32: ='CV Rotina <2A - procedência'!T32 -> 0.8506944444 | K32: ='CV Rotina <2A - procedência'!V32 -> 0.875 | L32: ='CV Rotina <2A - procedência'!Z32 -> 0.1944444444 | M32: 1 | N32: 5 | O32: 6 | P32: 4
A33: Metropolitana | B33: Ibiraçu | C33: ='CV Rotina <2A - procedência'!H33 -> 0.1848739496 | D33: ='CV Rotina <2A - procedência'!P33 -> 0.8823529412 | E33: ='CV Rotina <2A - procedência'!J33 -> 0.7899159664 | F33: ='CV Rotina <2A - procedência'!L33 -> 0.781512605 | G33: ='CV Rotina <2A - procedência'!N33 -> 0.8907563025 | H33: ='CV Rotina <2A - procedência'!X33 -> 0.8907563025 | I33: ='CV Rotina <2A - procedência'!R33 -> 0.9495798319 | J33: ='CV Rotina <2A - procedência'!T33 -> 0.7899159664 | K33: ='CV Rotina <2A - procedência'!V33 -> 0.7142857143 | L33: ='CV Rotina <2A - procedência'!Z33 -> 0.3697478992 | M33: 0 | N33: 0 | O33: 0 | P33: 0
A34: Sul | B34: Ibitirama | C34: ='CV Rotina <2A - procedência'!H34 -> 0.7019230769 | D34: ='CV Rotina <2A - procedência'!P34 -> 0.9326923077 | E34: ='CV Rotina <2A - procedência'!J34 -> 0.9134615385 | F34: ='CV Rotina <2A - procedência'!L34 -> 0.9615384615 | G34: ='CV Rotina <2A - procedência'!N34 -> 0.9230769231 | H34: ='CV Rotina <2A - procedência'!X34 -> 1.028846154 | I34: ='CV Rotina <2A - procedência'!R34 -> 0.7307692308 | J34: ='CV Rotina <2A - procedência'!T34 -> 0.7307692308 | K34: ='CV Rotina <2A - procedência'!V34 -> 0.875 | L34: ='CV Rotina <2A - procedência'!Z34 -> 0.4615384615 | M34: 1 | N34: 2 | O34: 3 | P34: 2
A35: Sul | B35: Iconha | C35: ='CV Rotina <2A - procedência'!H35 -> 0.3 | D35: ='CV Rotina <2A - procedência'!P35 -> 0.9555555556 | E35: ='CV Rotina <2A - procedência'!J35 -> 0.8777777778 | F35: ='CV Rotina <2A - procedência'!L35 -> 0.8555555556 | G35: ='CV Rotina <2A - procedência'!N35 -> 0.9222222222 | H35: ='CV Rotina <2A - procedência'!X35 -> 1.266666667 | I35: ='CV Rotina <2A - procedência'!R35 -> 0.8777777778 | J35: ='CV Rotina <2A - procedência'!T35 -> 1.066666667 | K35: ='CV Rotina <2A - procedência'!V35 -> 1.144444444 | L35: ='CV Rotina <2A - procedência'!Z35 -> 0.3444444444 | M35: =COUNTIF(C35:D35,">=0,9") -> 1 | N35: =COUNTIFS(E35:L35,">=0,95") -> 3 | O35: 4 | P35: 1
A36: Sul | B36: Irupi | C36: ='CV Rotina <2A - procedência'!H36 -> 0.7074829932 | D36: ='CV Rotina <2A - procedência'!P36 -> 1.136054422 | E36: ='CV Rotina <2A - procedência'!J36 -> 1.047619048 | F36: ='CV Rotina <2A - procedência'!L36 -> 1.027210884 | G36: ='CV Rotina <2A - procedência'!N36 -> 1.136054422 | H36: ='CV Rotina <2A - procedência'!X36 -> 1.12244898 | I36: ='CV Rotina <2A - procedência'!R36 -> 1.136054422 | J36: ='CV Rotina <2A - procedência'!T36 -> 0.9115646259 | K36: ='CV Rotina <2A - procedência'!V36 -> 0.9795918367 | L36: ='CV Rotina <2A - procedência'!Z36 -> 0.2040816327 | M36: 1 | N36: 6 | O36: 7 | P36: 4
A37: Metropolitana | B37: Itaguaçu | C37: ='CV Rotina <2A - procedência'!H37 -> 0.6972477064 | D37: ='CV Rotina <2A - procedência'!P37 -> 1.027522936 | E37: ='CV Rotina <2A - procedência'!J37 -> 0.880733945 | F37: ='CV Rotina <2A - procedência'!L37 -> 0.880733945 | G37: ='CV Rotina <2A - procedência'!N37 -> 1.036697248 | H37: ='CV Rotina <2A - procedência'!X37 -> 1.04587156 | I37: ='CV Rotina <2A - procedência'!R37 -> 0.9266055046 | J37: ='CV Rotina <2A - procedência'!T37 -> 0.9449541284 | K37: ='CV Rotina <2A - procedência'!V37 -> 1.073394495 | L37: ='CV Rotina <2A - procedência'!Z37 -> 0.6513761468 | M37: 1 | N37: 3 | O37: 4 | P37: 2
A38: Sul | B38: Itapemirim | C38: ='CV Rotina <2A - procedência'!H38 -> 0.4865591398 | D38: ='CV Rotina <2A - procedência'!P38 -> 0.8709677419 | E38: ='CV Rotina <2A - procedência'!J38 -> 0.9274193548 | F38: ='CV Rotina <2A - procedência'!L38 -> 0.9220430108 | G38: ='CV Rotina <2A - procedência'!N38 -> 0.9543010753 | H38: ='CV Rotina <2A - procedência'!X38 -> 0.9784946237 | I38: ='CV Rotina <2A - procedência'!R38 -> 0.8978494624 | J38: ='CV Rotina <2A - procedência'!T38 -> 0.561827957 | K38: ='CV Rotina <2A - procedência'!V38 -> 0.8467741935 | L38: ='CV Rotina <2A - procedência'!Z38 -> 0.3897849462 | M38: 0 | N38: 2 | O38: 2 | P38: 2
A39: Metropolitana | B39: Itarana | C39: ='CV Rotina <2A - procedência'!H39 -> 0.9126213592 | D39: ='CV Rotina <2A - procedência'!P39 -> 0.932038835 | E39: ='CV Rotina <2A - procedência'!J39 -> 0.9514563107 | F39: ='CV Rotina <2A - procedência'!L39 -> 0.9514563107 | G39: ='CV Rotina <2A - procedência'!N39 -> 0.9126213592 | H39: ='CV Rotina <2A - procedência'!X39 -> 1.019417476 | I39: ='CV Rotina <2A - procedência'!R39 -> 0.9029126214 | J39: ='CV Rotina <2A - procedência'!T39 -> 0.9805825243 | K39: ='CV Rotina <2A - procedência'!V39 -> 0.7281553398 | L39: ='CV Rotina <2A - procedência'!Z39 -> 0.5922330097 | M39: 2 | N39: 4 | O39: 6 | P39: 3
A40: Sul | B40: Iúna | C40: ='CV Rotina <2A - procedência'!H40 -> 0.6666666667 | D40: ='CV Rotina <2A - procedência'!P40 -> 0.9350282486 | E40: ='CV Rotina <2A - procedência'!J40 -> 0.9096045198 | F40: ='CV Rotina <2A - procedência'!L40 -> 0.9039548023 | G40: ='CV Rotina <2A - procedência'!N40 -> 0.9435028249 | H40: ='CV Rotina <2A - procedência'!X40 -> 0.9293785311 | I40: ='CV Rotina <2A - procedência'!R40 -> 0.9039548023 | J40: ='CV Rotina <2A - procedência'!T40 -> 0.8785310734 | K40: ='CV Rotina <2A - procedência'!V40 -> 0.6723163842 | L40: ='CV Rotina <2A - procedência'!Z40 -> 0.4463276836 | M40: 1 | N40: 0 | O40: 1 | P40: 0
A41: Norte | B41: Jaguaré | C41: ='CV Rotina <2A - procedência'!H41 -> 0.7558441558 | D41: ='CV Rotina <2A - procedência'!P41 -> 0.8805194805 | E41: ='CV Rotina <2A - procedência'!J41 -> 0.8883116883 | F41: ='CV Rotina <2A - procedência'!L41 -> 0.8805194805 | G41: ='CV Rotina <2A - procedência'!N41 -> 0.8909090909 | H41: ='CV Rotina <2A - procedência'!X41 -> 0.9714285714 | I41: ='CV Rotina <2A - procedência'!R41 -> 0.8597402597 | J41: ='CV Rotina <2A - procedência'!T41 -> 0.812987013 | K41: ='CV Rotina <2A - procedência'!V41 -> 0.7454545455 | L41: ='CV Rotina <2A - procedência'!Z41 -> 0.3428571429 | M41: 0 | N41: 1 | O41: 1 | P41: 1
A42: Sul | B42: Jerônimo Monteiro | C42: ='CV Rotina <2A - procedência'!H42 -> 0.09401709402 | D42: ='CV Rotina <2A - procedência'!P42 -> 0.9743589744 | E42: ='CV Rotina <2A - procedência'!J42 -> 1.042735043 | F42: ='CV Rotina <2A - procedência'!L42 -> 1.051282051 | G42: ='CV Rotina <2A - procedência'!N42 -> 0.9743589744 | H42: ='CV Rotina <2A - procedência'!X42 -> 1.05982906 | I42: ='CV Rotina <2A - procedência'!R42 -> 0.9743589744 | J42: ='CV Rotina <2A - procedência'!T42 -> 0.9914529915 | K42: ='CV Rotina <2A - procedência'!V42 -> 1.05982906 | L42: ='CV Rotina <2A - procedência'!Z42 -> 0.2735042735 | M42: 1 | N42: 7 | O42: 8 | P42: 4
A43: Metropolitana | B43: João Neiva | C43: ='CV Rotina <2A - procedência'!H43 -> 0.275 | D43: ='CV Rotina <2A - procedência'!P43 -> 1.025 | E43: ='CV Rotina <2A - procedência'!J43 -> 0.9583333333 | F43: ='CV Rotina <2A - procedência'!L43 -> 0.975 | G43: ='CV Rotina <2A - procedência'!N43 -> 1.016666667 | H43: ='CV Rotina <2A - procedência'!X43 -> 1.266666667 | I43: ='CV Rotina <2A - procedência'!R43 -> 0.9666666667 | J43: ='CV Rotina <2A - procedência'!T43 -> 1.025 | K43: ='CV Rotina <2A - procedência'!V43 -> 0.9416666667 | L43: ='CV Rotina <2A - procedência'!Z43 -> 0.5166666667 | M43: 1 | N43: 6 | O43: 7 | P43: 4
A44: Metropolitana | B44: Laranja da Terra | C44: ='CV Rotina <2A - procedência'!H44 -> 0.8955223881 | D44: ='CV Rotina <2A - procedência'!P44 -> 1.014925373 | E44: ='CV Rotina <2A - procedência'!J44 -> 1.074626866 | F44: ='CV Rotina <2A - procedência'!L44 -> 1.074626866 | G44: ='CV Rotina <2A - procedência'!N44 -> 1.029850746 | H44: ='CV Rotina <2A - procedência'!X44 -> 1.552238806 | I44: ='CV Rotina <2A - procedência'!R44 -> 1.134328358 | J44: ='CV Rotina <2A - procedência'!T44 -> 1.313432836 | K44: ='CV Rotina <2A - procedência'!V44 -> 1.373134328 | L44: ='CV Rotina <2A - procedência'!Z44 -> 0.9701492537 | M44: 1 | N44: 8 | O44: 9 | P44: 4
A45: Central | B45: Linhares | C45: ='CV Rotina <2A - procedência'!H45 -> 0.9379344588 | D45: ='CV Rotina <2A - procedência'!P45 -> 0.8624627607 | E45: ='CV Rotina <2A - procedência'!J45 -> 0.8138033764 | F45: ='CV Rotina <2A - procedência'!L45 -> 0.8123138034 | G45: ='CV Rotina <2A - procedência'!N45 -> 0.8624627607 | H45: ='CV Rotina <2A - procedência'!X45 -> 0.8594836147 | I45: ='CV Rotina <2A - procedência'!R45 -> 0.8376365442 | J45: ='CV Rotina <2A - procedência'!T45 -> 0.6787487587 | K45: ='CV Rotina <2A - procedência'!V45 -> 0.7884806356 | L45: ='CV Rotina <2A - procedência'!Z45 -> 0.4016881827 | M45: 1 | N45: 0 | O45: 1 | P45: 0
A46: Central | B46: Mantenópolis | C46: ='CV Rotina <2A - procedência'!H46 -> 0.5 | D46: ='CV Rotina <2A - procedência'!P46 -> 0.8793103448 | E46: ='CV Rotina <2A - procedência'!J46 -> 0.9568965517 | F46: ='CV Rotina <2A - procedência'!L46 -> 0.974137931 | G46: ='CV Rotina <2A - procedência'!N46 -> 0.8965517241 | H46: ='CV Rotina <2A - procedência'!X46 -> 1.068965517 | I46: ='CV Rotina <2A - procedência'!R46 -> 0.8879310345 | J46: ='CV Rotina <2A - procedência'!T46 -> 0.9482758621 | K46: ='CV Rotina <2A - procedência'!V46 -> 0.9310344828 | L46: ='CV Rotina <2A - procedência'!Z46 -> 0.474137931 | M46: 0 | N46: 3 | O46: 3 | P46: 3
A47: Sul | B47: Marataízes | C47: ='CV Rotina <2A - procedência'!H47 -> 0.4212962963 | D47: ='CV Rotina <2A - procedência'!P47 -> 1.013888889 | E47: ='CV Rotina <2A - procedência'!J47 -> 1 | F47: ='CV Rotina <2A - procedência'!L47 -> 1 | G47: ='CV Rotina <2A - procedência'!N47 -> 1.05787037 | H47: ='CV Rotina <2A - procedência'!X47 -> 1 | I47: ='CV Rotina <2A - procedência'!R47 -> 1.002314815 | J47: ='CV Rotina <2A - procedência'!T47 -> 0.6388888889 | K47: ='CV Rotina <2A - procedência'!V47 -> 0.9166666667 | L47: ='CV Rotina <2A - procedência'!Z47 -> 0.4513888889 | M47: 1 | N47: 5 | O47: 6 | P47: 4
A48: Metropolitana | B48: Marechal Floriano | C48: ='CV Rotina <2A - procedência'!H48 -> 0.2088607595 | D48: ='CV Rotina <2A - procedência'!P48 -> 1.025316456 | E48: ='CV Rotina <2A - procedência'!J48 -> 0.9746835443 | F48: ='CV Rotina <2A - procedência'!L48 -> 0.9683544304 | G48: ='CV Rotina <2A - procedência'!N48 -> 1.037974684 | H48: ='CV Rotina <2A - procedência'!X48 -> 1.044303797 | I48: ='CV Rotina <2A - procedência'!R48 -> 1.012658228 | J48: ='CV Rotina <2A - procedência'!T48 -> 0.7911392405 | K48: ='CV Rotina <2A - procedência'!V48 -> 1.063291139 | L48: ='CV Rotina <2A - procedência'!Z48 -> 0.6772151899 | M48: 1 | N48: 6 | O48: 7 | P48: 4
A49: Central | B49: Marilândia | C49: ='CV Rotina <2A - procedência'!H49 -> 0.4513274336 | D49: ='CV Rotina <2A - procedência'!P49 -> 0.9646017699 | E49: ='CV Rotina <2A - procedência'!J49 -> 0.8495575221 | F49: ='CV Rotina <2A - procedência'!L49 -> 0.8495575221 | G49: ='CV Rotina <2A - procedência'!N49 -> 0.8584070796 | H49: ='CV Rotina <2A - procedência'!X49 -> 0.9557522124 | I49: ='CV Rotina <2A - procedência'!R49 -> 0.9380530973 | J49: ='CV Rotina <2A - procedência'!T49 -> 0.9469026549 | K49: ='CV Rotina <2A - procedência'!V49 -> 0.9203539823 | L49: ='CV Rotina <2A - procedência'!Z49 -> 0.6017699115 | M49: 1 | N49: 1 | O49: 2 | P49: 1
A50: Sul | B50: Mimoso do Sul | C50: ='CV Rotina <2A - procedência'!H50 -> 0.19 | D50: ='CV Rotina <2A - procedência'!P50 -> 0.725 | E50: ='CV Rotina <2A - procedência'!J50 -> 0.7 | F50: ='CV Rotina <2A - procedência'!L50 -> 0.695 | G50: ='CV Rotina <2A - procedência'!N50 -> 0.735 | H50: ='CV Rotina <2A - procedência'!X50 -> 0.82 | I50: ='CV Rotina <2A - procedência'!R50 -> 0.68 | J50: ='CV Rotina <2A - procedência'!T50 -> 0.66 | K50: ='CV Rotina <2A - procedência'!V50 -> 0.66 | L50: ='CV Rotina <2A - procedência'!Z50 -> 0.415 | M50: 0 | N50: 0 | O50: 0 | P50: 0
A51: Norte | B51: Montanha | C51: ='CV Rotina <2A - procedência'!H51 -> 0.432748538 | D51: ='CV Rotina <2A - procedência'!P51 -> 1.134502924 | E51: ='CV Rotina <2A - procedência'!J51 -> 1.228070175 | F51: ='CV Rotina <2A - procedência'!L51 -> 1.245614035 | G51: ='CV Rotina <2A - procedência'!N51 -> 1.157894737 | H51: ='CV Rotina <2A - procedência'!X51 -> 1.216374269 | I51: ='CV Rotina <2A - procedência'!R51 -> 1.175438596 | J51: ='CV Rotina <2A - procedência'!T51 -> 1.140350877 | K51: ='CV Rotina <2A - procedência'!V51 -> 1.122807018 | L51: ='CV Rotina <2A - procedência'!Z51 -> 0.5964912281 | M51: 1 | N51: 7 | O51: 8 | P51: 4
A52: Norte | B52: Mucurici | C52: ='CV Rotina <2A - procedência'!H52 -> 0.1923076923 | D52: ='CV Rotina <2A - procedência'!P52 -> 1.115384615 | E52: ='CV Rotina <2A - procedência'!J52 -> 1.153846154 | F52: ='CV Rotina <2A - procedência'!L52 -> 1.153846154 | G52: ='CV Rotina <2A - procedência'!N52 -> 1.134615385 | H52: ='CV Rotina <2A - procedência'!X52 -> 1.346153846 | I52: ='CV Rotina <2A - procedência'!R52 -> 1.076923077 | J52: ='CV Rotina <2A - procedência'!T52 -> 1.307692308 | K52: ='CV Rotina <2A - procedência'!V52 -> 0.9423076923 | L52: ='CV Rotina <2A - procedência'!Z52 -> 0.5576923077 | M52: 1 | N52: 6 | O52: 7 | P52: 4
A53: Sul | B53: Muniz Freire | C53: ='CV Rotina <2A - procedência'!H53 -> 0.6459627329 | D53: ='CV Rotina <2A - procedência'!P53 -> 1.080745342 | E53: ='CV Rotina <2A - procedência'!J53 -> 1.055900621 | F53: ='CV Rotina <2A - procedência'!L53 -> 1.02484472 | G53: ='CV Rotina <2A - procedência'!N53 -> 1.074534161 | H53: ='CV Rotina <2A - procedência'!X53 -> 1.186335404 | I53: ='CV Rotina <2A - procedência'!R53 -> 1.043478261 | J53: ='CV Rotina <2A - procedência'!T53 -> 1.01242236 | K53: ='CV Rotina <2A - procedência'!V53 -> 1.02484472 | L53: ='CV Rotina <2A - procedência'!Z53 -> 0.4472049689 | M53: 1 | N53: 7 | O53: 8 | P53: 4
A54: Sul | B54: Muqui | C54: ='CV Rotina <2A - procedência'!H54 -> 0.1379310345 | D54: ='CV Rotina <2A - procedência'!P54 -> 1.017241379 | E54: ='CV Rotina <2A - procedência'!J54 -> 1.146551724 | F54: ='CV Rotina <2A - procedência'!L54 -> 1.146551724 | G54: ='CV Rotina <2A - procedência'!N54 -> 1 | H54: ='CV Rotina <2A - procedência'!X54 -> 1.146551724 | I54: ='CV Rotina <2A - procedência'!R54 -> 1.00862069 | J54: ='CV Rotina <2A - procedência'!T54 -> 1.051724138 | K54: ='CV Rotina <2A - procedência'!V54 -> 0.8189655172 | L54: ='CV Rotina <2A - procedência'!Z54 -> 0.4396551724 | M54: 1 | N54: 6 | O54: 7 | P54: 4
A55: Norte | B55: Nova Venécia | C55: ='CV Rotina <2A - procedência'!H55 -> 0.6474226804 | D55: ='CV Rotina <2A - procedência'!P55 -> 0.9298969072 | E55: ='CV Rotina <2A - procedência'!J55 -> 0.9711340206 | F55: ='CV Rotina <2A - procedência'!L55 -> 0.9711340206 | G55: ='CV Rotina <2A - procedência'!N55 -> 0.9195876289 | H55: ='CV Rotina <2A - procedência'!X55 -> 1.103092784 | I55: ='CV Rotina <2A - procedência'!R55 -> 0.975257732 | J55: ='CV Rotina <2A - procedência'!T55 -> 0.9237113402 | K55: ='CV Rotina <2A - procedência'!V55 -> 0.8309278351 | L55: ='CV Rotina <2A - procedência'!Z55 -> 0.4701030928 | M55: 1 | N55: 4 | O55: 5 | P55: 3
A56: Central | B56: Pancas | C56: ='CV Rotina <2A - procedência'!H56 -> 0.4935897436 | D56: ='CV Rotina <2A - procedência'!P56 -> 1.025641026 | E56: ='CV Rotina <2A - procedência'!J56 -> 1.051282051 | F56: ='CV Rotina <2A - procedência'!L56 -> 1.051282051 | G56: ='CV Rotina <2A - procedência'!N56 -> 1.032051282 | H56: ='CV Rotina <2A - procedência'!X56 -> 1 | I56: ='CV Rotina <2A - procedência'!R56 -> 1.032051282 | J56: ='CV Rotina <2A - procedência'!T56 -> 1.006410256 | K56: ='CV Rotina <2A - procedência'!V56 -> 0.9743589744 | L56: ='CV Rotina <2A - procedência'!Z56 -> 0.7371794872 | M56: 1 | N56: 7 | O56: 8 | P56: 4
A57: Norte | B57: Pedro Canário | C57: ='CV Rotina <2A - procedência'!H57 -> 0.07264957265 | D57: ='CV Rotina <2A - procedência'!P57 -> 1.004273504 | E57: ='CV Rotina <2A - procedência'!J57 -> 1.072649573 | F57: ='CV Rotina <2A - procedência'!L57 -> 1.064102564 | G57: ='CV Rotina <2A - procedência'!N57 -> 1.021367521 | H57: ='CV Rotina <2A - procedência'!X57 -> 1.179487179 | I57: ='CV Rotina <2A - procedência'!R57 -> 1.055555556 | J57: ='CV Rotina <2A - procedência'!T57 -> 0.8846153846 | K57: ='CV Rotina <2A - procedência'!V57 -> 0.7222222222 | L57: ='CV Rotina <2A - procedência'!Z57 -> 0.5512820513 | M57: 1 | N57: 5 | O57: 6 | P57: 4
A58: Norte | B58: Pinheiros | C58: ='CV Rotina <2A - procedência'!H58 -> 0.04761904762 | D58: ='CV Rotina <2A - procedência'!P58 -> 0.9404761905 | E58: ='CV Rotina <2A - procedência'!J58 -> 1 | F58: ='CV Rotina <2A - procedência'!L58 -> 0.9841269841 | G58: ='CV Rotina <2A - procedência'!N58 -> 0.9365079365 | H58: ='CV Rotina <2A - procedência'!X58 -> 0.9484126984 | I58: ='CV Rotina <2A - procedência'!R58 -> 0.9087301587 | J58: ='CV Rotina <2A - procedência'!T58 -> 0.8134920635 | K58: ='CV Rotina <2A - procedência'!V58 -> 0.7698412698 | L58: ='CV Rotina <2A - procedência'!Z58 -> 0.3134920635 | M58: 1 | N58: 2 | O58: 3 | P58: 2
A59: Sul | B59: Piúma | C59: ='CV Rotina <2A - procedência'!H59 -> 0.6067961165 | D59: ='CV Rotina <2A - procedência'!P59 -> 0.9902912621 | E59: ='CV Rotina <2A - procedência'!J59 -> 1 | F59: ='CV Rotina <2A - procedência'!L59 -> 0.9951456311 | G59: ='CV Rotina <2A - procedência'!N59 -> 1.053398058 | H59: ='CV Rotina <2A - procedência'!X59 -> 0.9368932039 | I59: ='CV Rotina <2A - procedência'!R59 -> 0.9029126214 | J59: ='CV Rotina <2A - procedência'!T59 -> 0.6650485437 | K59: ='CV Rotina <2A - procedência'!V59 -> 0.8009708738 | L59: ='CV Rotina <2A - procedência'!Z59 -> 0.3932038835 | M59: 1 | N59: 3 | O59: 4 | P59: 3
A60: Norte | B60: Ponto Belo | C60: ='CV Rotina <2A - procedência'!H60 -> 0.1346153846 | D60: ='CV Rotina <2A - procedência'!P60 -> 1.076923077 | E60: ='CV Rotina <2A - procedência'!J60 -> 1.019230769 | F60: ='CV Rotina <2A - procedência'!L60 -> 1 | G60: ='CV Rotina <2A - procedência'!N60 -> 1.057692308 | H60: ='CV Rotina <2A - procedência'!X60 -> 1.326923077 | I60: ='CV Rotina <2A - procedência'!R60 -> 0.9615384615 | J60: ='CV Rotina <2A - procedência'!T60 -> 1.096153846 | K60: ='CV Rotina <2A - procedência'!V60 -> 0.6923076923 | L60: ='CV Rotina <2A - procedência'!Z60 -> 0.4807692308 | M60: 1 | N60: 6 | O60: 7 | P60: 4
A61: Sul | B61: Presidente Kennedy | C61: ='CV Rotina <2A - procedência'!H61 -> 0.07975460123 | D61: ='CV Rotina <2A - procedência'!P61 -> 0.8343558282 | E61: ='CV Rotina <2A - procedência'!J61 -> 0.7607361963 | F61: ='CV Rotina <2A - procedência'!L61 -> 0.773006135 | G61: ='CV Rotina <2A - procedência'!N61 -> 0.8404907975 | H61: ='CV Rotina <2A - procedência'!X61 -> 1.049079755 | I61: ='CV Rotina <2A - procedência'!R61 -> 0.8773006135 | J61: ='CV Rotina <2A - procedência'!T61 -> 0.6871165644 | K61: ='CV Rotina <2A - procedência'!V61 -> 0.9202453988 | L61: ='CV Rotina <2A - procedência'!Z61 -> 0.4478527607 | M61: 0 | N61: 1 | O61: 1 | P61: 1
A62: Central | B62: Rio Bananal | C62: ='CV Rotina <2A - procedência'!H62 -> 0.1813953488 | D62: ='CV Rotina <2A - procedência'!P62 -> 1 | E62: ='CV Rotina <2A - procedência'!J62 -> 1.009302326 | F62: ='CV Rotina <2A - procedência'!L62 -> 1.004651163 | G62: ='CV Rotina <2A - procedência'!N62 -> 0.9720930233 | H62: ='CV Rotina <2A - procedência'!X62 -> 1.181395349 | I62: ='CV Rotina <2A - procedência'!R62 -> 0.8697674419 | J62: ='CV Rotina <2A - procedência'!T62 -> 0.9627906977 | K62: ='CV Rotina <2A - procedência'!V62 -> 1.088372093 | L62: ='CV Rotina <2A - procedência'!Z62 -> 0.5534883721 | M62: 1 | N62: 6 | O62: 7 | P62: 4
A63: Sul | B63: Rio Novo do Sul | C63: ='CV Rotina <2A - procedência'!H63 -> 0.3636363636 | D63: ='CV Rotina <2A - procedência'!P63 -> 0.987012987 | E63: ='CV Rotina <2A - procedência'!J63 -> 1.168831169 | F63: ='CV Rotina <2A - procedência'!L63 -> 1.142857143 | G63: ='CV Rotina <2A - procedência'!N63 -> 0.974025974 | H63: ='CV Rotina <2A - procedência'!X63 -> 1.142857143 | I63: ='CV Rotina <2A - procedência'!R63 -> 1.051948052 | J63: ='CV Rotina <2A - procedência'!T63 -> 0.974025974 | K63: ='CV Rotina <2A - procedência'!V63 -> 1.090909091 | L63: ='CV Rotina <2A - procedência'!Z63 -> 0.6623376623 | M63: 1 | N63: 7 | O63: 8 | P63: 4
A64: Metropolitana | B64: Santa Leopoldina | C64: ='CV Rotina <2A - procedência'!H64 -> 0.2898550725 | D64: ='CV Rotina <2A - procedência'!P64 -> 1.144927536 | E64: ='CV Rotina <2A - procedência'!J64 -> 1.130434783 | F64: ='CV Rotina <2A - procedência'!L64 -> 1.144927536 | G64: ='CV Rotina <2A - procedência'!N64 -> 1.115942029 | H64: ='CV Rotina <2A - procedência'!X64 -> 1.246376812 | I64: ='CV Rotina <2A - procedência'!R64 -> 1.15942029 | J64: ='CV Rotina <2A - procedência'!T64 -> 1.043478261 | K64: ='CV Rotina <2A - procedência'!V64 -> 1.362318841 | L64: ='CV Rotina <2A - procedência'!Z64 -> 0.2173913043 | M64: 1 | N64: 7 | O64: 8 | P64: 4
A65: Metropolitana | B65: Santa Maria de Jetibá | C65: ='CV Rotina <2A - procedência'!H65 -> 0.762 | D65: ='CV Rotina <2A - procedência'!P65 -> 0.894 | E65: ='CV Rotina <2A - procedência'!J65 -> 0.852 | F65: ='CV Rotina <2A - procedência'!L65 -> 0.85 | G65: ='CV Rotina <2A - procedência'!N65 -> 0.868 | H65: ='CV Rotina <2A - procedência'!X65 -> 0.918 | I65: ='CV Rotina <2A - procedência'!R65 -> 0.874 | J65: ='CV Rotina <2A - procedência'!T65 -> 0.712 | K65: ='CV Rotina <2A - procedência'!V65 -> 0.946 | L65: ='CV Rotina <2A - procedência'!Z65 -> 0.392 | M65: 0 | N65: 0 | O65: 0 | P65: 0
A66: Metropolitana | B66: Santa Teresa | C66: ='CV Rotina <2A - procedência'!H66 -> 0.7094017094 | D66: ='CV Rotina <2A - procedência'!P66 -> 0.8974358974 | E66: ='CV Rotina <2A - procedência'!J66 -> 0.8974358974 | F66: ='CV Rotina <2A - procedência'!L66 -> 0.8974358974 | G66: ='CV Rotina <2A - procedência'!N66 -> 0.9316239316 | H66: ='CV Rotina <2A - procedência'!X66 -> 0.8931623932 | I66: ='CV Rotina <2A - procedência'!R66 -> 0.8461538462 | J66: ='CV Rotina <2A - procedência'!T66 -> 0.7222222222 | K66: ='CV Rotina <2A - procedência'!V66 -> 0.7692307692 | L66: ='CV Rotina <2A - procedência'!Z66 -> 0.5170940171 | M66: 0 | N66: 0 | O66: 0 | P66: 0
A67: Central | B67: São Domingos do Norte | C67: ='CV Rotina <2A - procedência'!H67 -> 0.4823529412 | D67: ='CV Rotina <2A - procedência'!P67 -> 1.011764706 | E67: ='CV Rotina <2A - procedência'!J67 -> 0.9411764706 | F67: ='CV Rotina <2A - procedência'!L67 -> 0.9411764706 | G67: ='CV Rotina <2A - procedência'!N67 -> 1.035294118 | H67: ='CV Rotina <2A - procedência'!X67 -> 1.035294118 | I67: ='CV Rotina <2A - procedência'!R67 -> 0.9529411765 | J67: ='CV Rotina <2A - procedência'!T67 -> 0.9529411765 | K67: ='CV Rotina <2A - procedência'!V67 -> 0.6117647059 | L67: ='CV Rotina <2A - procedência'!Z67 -> 0.3882352941 | M67: =COUNTIF(C67:D67,">=0,9") -> 1 | N67: =COUNTIFS(E67:L67,">=0,95") -> 4 | O67: 5 | P67: 2
A68: Central | B68: São Gabriel da Palha | C68: ='CV Rotina <2A - procedência'!H68 -> 0.5838150289 | D68: ='CV Rotina <2A - procedência'!P68 -> 0.9277456647 | E68: ='CV Rotina <2A - procedência'!J68 -> 0.9075144509 | F68: ='CV Rotina <2A - procedência'!L68 -> 0.9132947977 | G68: ='CV Rotina <2A - procedência'!N68 -> 0.9595375723 | H68: ='CV Rotina <2A - procedência'!X68 -> 0.8612716763 | I68: ='CV Rotina <2A - procedência'!R68 -> 0.9248554913 | J68: ='CV Rotina <2A - procedência'!T68 -> 0.7312138728 | K68: ='CV Rotina <2A - procedência'!V68 -> 0.7832369942 | L68: ='CV Rotina <2A - procedência'!Z68 -> 0.3786127168 | M68: 1 | N68: 1 | O68: =SUM(M68:N68) -> 2 | P68: =COUNTIF(E68:H68,">=0,95") -> 1
A69: Sul | B69: São José do Calçado | C69: ='CV Rotina <2A - procedência'!H69 -> 0.7195121951 | D69: ='CV Rotina <2A - procedência'!P69 -> 0.9268292683 | E69: ='CV Rotina <2A - procedência'!J69 -> 1.109756098 | F69: ='CV Rotina <2A - procedência'!L69 -> 1.109756098 | G69: ='CV Rotina <2A - procedência'!N69 -> 1.036585366 | H69: ='CV Rotina <2A - procedência'!X69 -> 1.231707317 | I69: ='CV Rotina <2A - procedência'!R69 -> 1.12195122 | J69: ='CV Rotina <2A - procedência'!T69 -> 0.8780487805 | K69: ='CV Rotina <2A - procedência'!V69 -> 0.9024390244 | L69: ='CV Rotina <2A - procedência'!Z69 -> 0.5243902439 | M69: 1 | N69: 5 | O69: 6 | P69: 4
A70: Norte | B70: São Mateus | C70: ='CV Rotina <2A - procedência'!H70 -> 1.428958051 | D70: ='CV Rotina <2A - procedência'!P70 -> 0.847767253 | E70: ='CV Rotina <2A - procedência'!J70 -> 0.8700947226 | F70: ='CV Rotina <2A - procedência'!L70 -> 0.8538565629 | G70: ='CV Rotina <2A - procedência'!N70 -> 0.9120433018 | H70: ='CV Rotina <2A - procedência'!X70 -> 0.8558863329 | I70: ='CV Rotina <2A - procedência'!R70 -> 0.8139377537 | J70: ='CV Rotina <2A - procedência'!T70 -> 0.6387009472 | K70: ='CV Rotina <2A - procedência'!V70 -> 0.7138024357 | L70: ='CV Rotina <2A - procedência'!Z70 -> 0.3531799729 | M70: 1 | N70: 0 | O70: 1 | P70: 0
A71: Central | B71: São Roque do Canaã | C71: ='CV Rotina <2A - procedência'!H71 -> 0.2962962963 | D71: ='CV Rotina <2A - procedência'!P71 -> 0.7962962963 | E71: ='CV Rotina <2A - procedência'!J71 -> 0.8148148148 | F71: ='CV Rotina <2A - procedência'!L71 -> 0.8148148148 | G71: ='CV Rotina <2A - procedência'!N71 -> 0.712962963 | H71: ='CV Rotina <2A - procedência'!X71 -> 1.009259259 | I71: ='CV Rotina <2A - procedência'!R71 -> 0.8333333333 | J71: ='CV Rotina <2A - procedência'!T71 -> 0.7777777778 | K71: ='CV Rotina <2A - procedência'!V71 -> 0.8796296296 | L71: ='CV Rotina <2A - procedência'!Z71 -> 0.3796296296 | M71: 0 | N71: 1 | O71: 1 | P71: 1
A72: Metropolitana | B72: Serra | C72: ='CV Rotina <2A - procedência'!H72 -> 1.142300195 | D72: ='CV Rotina <2A - procedência'!P72 -> 0.8433457381 | E72: ='CV Rotina <2A - procedência'!J72 -> 0.8167641326 | F72: ='CV Rotina <2A - procedência'!L72 -> 0.8091440723 | G72: ='CV Rotina <2A - procedência'!N72 -> 0.8699273436 | H72: ='CV Rotina <2A - procedência'!X72 -> 0.8527379054 | I72: ='CV Rotina <2A - procedência'!R72 -> 0.8234981393 | J72: ='CV Rotina <2A - procedência'!T72 -> 0.6411483254 | K72: ='CV Rotina <2A - procedência'!V72 -> 0.4876838561 | L72: ='CV Rotina <2A - procedência'!Z72 -> 0.2675881623 | M72: 1 | N72: 0 | O72: 1 | P72: 0
A73: Central | B73: Sooretama | C73: ='CV Rotina <2A - procedência'!H73 -> 0.09316770186 | D73: ='CV Rotina <2A - procedência'!P73 -> 1.02173913 | E73: ='CV Rotina <2A - procedência'!J73 -> 0.9285714286 | F73: ='CV Rotina <2A - procedência'!L73 -> 0.9347826087 | G73: ='CV Rotina <2A - procedência'!N73 -> 1.02484472 | H73: ='CV Rotina <2A - procedência'!X73 -> 0.9782608696 | I73: ='CV Rotina <2A - procedência'!R73 -> 0.8633540373 | J73: ='CV Rotina <2A - procedência'!T73 -> 0.8198757764 | K73: ='CV Rotina <2A - procedência'!V73 -> 0.9254658385 | L73: ='CV Rotina <2A - procedência'!Z73 -> 0.3416149068 | M73: 1 | N73: 2 | O73: 3 | P73: 2
A74: Sul | B74: Vargem Alta | C74: ='CV Rotina <2A - procedência'!H74 -> 0.09852216749 | D74: ='CV Rotina <2A - procedência'!P74 -> 0.9014778325 | E74: ='CV Rotina <2A - procedência'!J74 -> 0.8078817734 | F74: ='CV Rotina <2A - procedência'!L74 -> 0.8078817734 | G74: ='CV Rotina <2A - procedência'!N74 -> 0.8719211823 | H74: ='CV Rotina <2A - procedência'!X74 -> 0.9556650246 | I74: ='CV Rotina <2A - procedência'!R74 -> 0.8768472906 | J74: ='CV Rotina <2A - procedência'!T74 -> 0.7783251232 | K74: ='CV Rotina <2A - procedência'!V74 -> 0.881773399 | L74: ='CV Rotina <2A - procedência'!Z74 -> 0.4384236453 | M74: 1 | N74: 1 | O74: 2 | P74: 1
A75: Metropolitana | B75: Venda Nova do Imigrante | C75: ='CV Rotina <2A - procedência'!H75 -> 1.194852941 | D75: ='CV Rotina <2A - procedência'!P75 -> 0.9375 | E75: ='CV Rotina <2A - procedência'!J75 -> 1.069852941 | F75: ='CV Rotina <2A - procedência'!L75 -> 1.069852941 | G75: ='CV Rotina <2A - procedência'!N75 -> 0.9595588235 | H75: ='CV Rotina <2A - procedência'!X75 -> 1.264705882 | I75: ='CV Rotina <2A - procedência'!R75 -> 0.9705882353 | J75: ='CV Rotina <2A - procedência'!T75 -> 1.011029412 | K75: ='CV Rotina <2A - procedência'!V75 -> 0.7573529412 | L75: ='CV Rotina <2A - procedência'!Z75 -> 0.4889705882 | M75: 2 | N75: 6 | O75: 8 | P75: 4
A76: Metropolitana | B76: Viana | C76: ='CV Rotina <2A - procedência'!H76 -> 0.1744186047 | D76: ='CV Rotina <2A - procedência'!P76 -> 0.9593023256 | E76: ='CV Rotina <2A - procedência'!J76 -> 0.9389534884 | F76: ='CV Rotina <2A - procedência'!L76 -> 0.9215116279 | G76: ='CV Rotina <2A - procedência'!N76 -> 1.00872093 | H76: ='CV Rotina <2A - procedência'!X76 -> 0.9302325581 | I76: ='CV Rotina <2A - procedência'!R76 -> 0.9738372093 | J76: ='CV Rotina <2A - procedência'!T76 -> 0.6671511628 | K76: ='CV Rotina <2A - procedência'!V76 -> 0.8313953488 | L76: ='CV Rotina <2A - procedência'!Z76 -> 0.2688953488 | M76: 1 | N76: 2 | O76: 3 | P76: 1
A77: Norte | B77: Vila Pavão | C77: ='CV Rotina <2A - procedência'!H77 -> 0.5731707317 | D77: ='CV Rotina <2A - procedência'!P77 -> 0.8902439024 | E77: ='CV Rotina <2A - procedência'!J77 -> 0.9146341463 | F77: ='CV Rotina <2A - procedência'!L77 -> 0.9024390244 | G77: ='CV Rotina <2A - procedência'!N77 -> 0.8902439024 | H77: ='CV Rotina <2A - procedência'!X77 -> 1.134146341 | I77: ='CV Rotina <2A - procedência'!R77 -> 0.9512195122 | J77: ='CV Rotina <2A - procedência'!T77 -> 0.9146341463 | K77: ='CV Rotina <2A - procedência'!V77 -> 1.158536585 | L77: ='CV Rotina <2A - procedência'!Z77 -> 0.5243902439 | M77: 0 | N77: 3 | O77: 3 | P77: 1
A78: Central | B78: Vila Valério | C78: ='CV Rotina <2A - procedência'!H78 -> 0.2819148936 | D78: ='CV Rotina <2A - procedência'!P78 -> 0.9414893617 | E78: ='CV Rotina <2A - procedência'!J78 -> 0.8882978723 | F78: ='CV Rotina <2A - procedência'!L78 -> 0.8723404255 | G78: ='CV Rotina <2A - procedência'!N78 -> 0.9308510638 | H78: ='CV Rotina <2A - procedência'!X78 -> 1.005319149 | I78: ='CV Rotina <2A - procedência'!R78 -> 0.9574468085 | J78: ='CV Rotina <2A - procedência'!T78 -> 0.8829787234 | K78: ='CV Rotina <2A - procedência'!V78 -> 0.835106383 | L78: ='CV Rotina <2A - procedência'!Z78 -> 0.3723404255 | M78: 1 | N78: 2 | O78: 3 | P78: 1
A79: Metropolitana | B79: Vila Velha | C79: ='CV Rotina <2A - procedência'!H79 -> 0.7530204461 | D79: ='CV Rotina <2A - procedência'!P79 -> 0.8375929368 | E79: ='CV Rotina <2A - procedência'!J79 -> 0.8013475836 | F79: ='CV Rotina <2A - procedência'!L79 -> 0.8013475836 | G79: ='CV Rotina <2A - procedência'!N79 -> 0.8526951673 | H79: ='CV Rotina <2A - procedência'!X79 -> 0.8838289963 | I79: ='CV Rotina <2A - procedência'!R79 -> 0.8255111524 | J79: ='CV Rotina <2A - procedência'!T79 -> 0.6538104089 | K79: ='CV Rotina <2A - procedência'!V79 -> 0.7367565056 | L79: ='CV Rotina <2A - procedência'!Z79 -> 0.3680297398 | M79: 0 | N79: 0 | O79: 0 | P79: 0
A80: Metropolitana | B80: Vitória | C80: ='CV Rotina <2A - procedência'!H80 -> 1.942971304 | D80: ='CV Rotina <2A - procedência'!P80 -> 1.048310934 | E80: ='CV Rotina <2A - procedência'!J80 -> 1.120958954 | F80: ='CV Rotina <2A - procedência'!L80 -> 1.120595714 | G80: ='CV Rotina <2A - procedência'!N80 -> 1.099891028 | H80: ='CV Rotina <2A - procedência'!X80 -> 1.151471122 | I80: ='CV Rotina <2A - procedência'!R80 -> 1.051216854 | J80: ='CV Rotina <2A - procedência'!T80 -> 0.7293861242 | K80: ='CV Rotina <2A - procedência'!V80 -> 1.094079186 | L80: ='CV Rotina <2A - procedência'!Z80 -> 0.5706501998 | M80: 2 | N80: 6 | O80: 8 | P80: 4
B82: Total Norte | C82: ='CV Rotina <2A - procedência'!H82 -> 0.7881584872 | D82: ='CV Rotina <2A - procedência'!P82 -> 0.9160288158 | E82: ='CV Rotina <2A - procedência'!J82 -> 0.9203061684 | F82: ='CV Rotina <2A - procedência'!L82 -> 0.9131022062 | G82: ='CV Rotina <2A - procedência'!N82 -> 0.9441692931 | H82: ='CV Rotina <2A - procedência'!X82 -> 0.9707339036 | I82: ='CV Rotina <2A - procedência'!R82 -> 0.9025213868 | J82: ='CV Rotina <2A - procedência'!T82 -> 0.7832057632 | K82: ='CV Rotina <2A - procedência'!V82 -> 0.766096353 | L82: ='CV Rotina <2A - procedência'!Z82 -> 0.4135524538 | M82: =COUNTIF(C82:D82,">=0,9") -> 1 | N82: =COUNTIFS(E82:L82,">=0,95") -> 1 | O82: =SUM(M82:N82) -> 2 | P82: =COUNTIF(E82:H82,">=0,95") -> 1
B83: Total Central | C83: ='CV Rotina <2A - procedência'!H83 -> 0.9673009422 | D83: ='CV Rotina <2A - procedência'!P83 -> 0.9309070756 | E83: ='CV Rotina <2A - procedência'!J83 -> 0.905043414 | F83: ='CV Rotina <2A - procedência'!L83 -> 0.902087567 | G83: ='CV Rotina <2A - procedência'!N83 -> 0.9410677997 | H83: ='CV Rotina <2A - procedência'!X83 -> 0.9560317754 | I83: ='CV Rotina <2A - procedência'!R83 -> 0.8991317199 | J83: ='CV Rotina <2A - procedência'!T83 -> 0.7773877702 | K83: ='CV Rotina <2A - procedência'!V83 -> 0.8259745058 | L83: ='CV Rotina <2A - procedência'!Z83 -> 0.4396822464 | M83: =COUNTIF(C83:D83,">=0,9") -> 2 | N83: =COUNTIFS(E83:L83,">=0,95") -> 1 | O83: =SUM(M83:N83) -> 3 | P83: =COUNTIF(E83:H83,">=0,95") -> 1
B84: Total Metropolitana | C84: ='CV Rotina <2A - procedência'!H84 -> 0.9432326122 | D84: ='CV Rotina <2A - procedência'!P84 -> 0.902780261 | E84: ='CV Rotina <2A - procedência'!J84 -> 0.8863758269 | F84: ='CV Rotina <2A - procedência'!L84 -> 0.8811907742 | G84: ='CV Rotina <2A - procedência'!N84 -> 0.9295548006 | H84: ='CV Rotina <2A - procedência'!X84 -> 0.9448417665 | I84: ='CV Rotina <2A - procedência'!R84 -> 0.8875826927 | J84: ='CV Rotina <2A - procedência'!T84 -> 0.6988199535 | K84: ='CV Rotina <2A - procedência'!V84 -> 0.7464688003 | L84: ='CV Rotina <2A - procedência'!Z84 -> 0.3832916145 | M84: =COUNTIF(C84:D84,">=0,9") -> 2 | N84: =COUNTIFS(E84:L84,">=0,95") -> 0 | O84: =SUM(M84:N84) -> 2 | P84: =COUNTIF(E84:H84,">=0,95") -> 0
B85: Total Sul | C85: ='CV Rotina <2A - procedência'!H85 -> 0.9329741721 | D85: ='CV Rotina <2A - procedência'!P85 -> 0.94739344 | E85: ='CV Rotina <2A - procedência'!J85 -> 0.9385200444 | F85: ='CV Rotina <2A - procedência'!L85 -> 0.9334495326 | G85: ='CV Rotina <2A - procedência'!N85 -> 0.9708445571 | H85: ='CV Rotina <2A - procedência'!X85 -> 0.9982570116 | I85: ='CV Rotina <2A - procedência'!R85 -> 0.9248930439 | J85: ='CV Rotina <2A - procedência'!T85 -> 0.752020282 | K85: ='CV Rotina <2A - procedência'!V85 -> 0.8607193789 | L85: ='CV Rotina <2A - procedência'!Z85 -> 0.390746316 | M85: =COUNTIF(C85:D85,">=0,9") -> 2 | N85: =COUNTIFS(E85:L85,">=0,95") -> 2 | O85: =SUM(M85:N85) -> 4 | P85: =COUNTIF(E85:H85,">=0,95") -> 2
B86: Total Espírito Santo | C86: ='CV Rotina <2A - procedência'!H86 -> 0.9270590067 | D86: ='CV Rotina <2A - procedência'!P86 -> 0.915563859 | E86: ='CV Rotina <2A - procedência'!J86 -> 0.9014479215 | F86: ='CV Rotina <2A - procedência'!L86 -> 0.8963620323 | G86: ='CV Rotina <2A - procedência'!N86 -> 0.9396180393 | H86: ='CV Rotina <2A - procedência'!X86 -> 0.9581452073 | I86: ='CV Rotina <2A - procedência'!R86 -> 0.8970366911 | J86: ='CV Rotina <2A - procedência'!T86 -> 0.7282941512 | K86: ='CV Rotina <2A - procedência'!V86 -> 0.778608127 | L86: ='CV Rotina <2A - procedência'!Z86 -> 0.3959209092 | M86: =COUNTIF(C86:D86,">=0,9") -> 2 | N86: =COUNTIFS(E86:L86,">=0,95") -> 1 | O86: =SUM(M86:N86) -> 3 | P86: =COUNTIF(E86:H86,">=0,95") -> 1
A89: Fonte: SIPNI/DATASUS, em 09 de junho de 2023.*
A90: Vacina e Confia, em 12 de junho de 2023.**
A91: *Dados referentes às doses aplicadas pelas clínicas particulares de janeiro a maio de 2023
A92: **Dados referente às doses aplicadas no período de janeiro a maio de 2023
A93: Cobertura Calculada por município de vacinação
A94: 1 População proporcional extraída do MS/SVS/DASIS - Sistema de Informações sobre Nascidos Vivos - SINASC
A95: 2000 a 2021 – Estimativas preliminares elaboradas pelo Ministério da Saúde/SVS/DASNT/CGIAE
A96: Nota: Dados preliminares 2021

Sheet cálculos2 (hidden)
C1: 0.9 | E1: 0.95
A2: Regional | B2: Município | C2: Cobertura Vacinal BCG | D2: Cobertura Vacinal Rotavírus | E2: Cobertura Vacinal Pentavalente | F2: Cobertura Vacinal Poliomielite | G2: Cobertura Vacinal Pneumo 10 | H2: Cobertura Vacinal Tríplice Viral | I2: Cobertura Vacinal Meningo C | J2: Cobertura Vacinal Febre Amarela | K2: Cobertura Vacinal Hepatite A | L2: Cobertura Varicela | M2: META 90% | N2: META 95% | O2: ATINGIRAM META | P2: PQA-VS
A3: Metropolitana | B3: Afonso Cláudio | C3: ='CV Rotina <2A - residência'!H3 -> 0.8078175896 | D3: ='CV Rotina <2A - residência'!P3 -> 0.8892508143 | E3: ='CV Rotina <2A - residência'!J3 -> 0.9478827362 | F3: ='CV Rotina <2A - residência'!L3 -> 0.9674267101 | G3: ='CV Rotina <2A - residência'!N3 -> 0.8957654723 | H3: ='CV Rotina <2A - residência'!X3 -> 1.016286645 | I3: ='CV Rotina <2A - residência'!R3 -> 0.9120521173 | J3: ='CV Rotina <2A - residência'!T3 -> 0.9022801303 | K3: ='CV Rotina <2A - residência'!V3 -> 0.9446254072 | L3: ='CV Rotina <2A - residência'!Z3 -> 0.4755700326 | M3: =COUNTIF(C3:D3,">=0,9") -> 0 | N3: =COUNTIFS(E3:L3,">=0,95") -> 2 | O3: =SUM(M3:N3) -> 2 | P3: =COUNTIF(E3:H3,">=0,95") -> 2
A4: Norte | B4: Água Doce do Norte | C4: ='CV Rotina <2A - residência'!H4 -> 0.8869047619 | D4: ='CV Rotina <2A - residência'!P4 -> 0.8214285714 | E4: ='CV Rotina <2A - residência'!J4 -> 0.7857142857 | F4: ='CV Rotina <2A - residência'!L4 -> 0.7678571429 | G4: ='CV Rotina <2A - residência'!N4 -> 0.8452380952 | H4: ='CV Rotina <2A - residência'!X4 -> 0.6845238095 | I4: ='CV Rotina <2A - residência'!R4 -> 0.7857142857 | J4: ='CV Rotina <2A - residência'!T4 -> 0.5416666667 | K4: ='CV Rotina <2A - residência'!V4 -> 0.6071428571 | L4: ='CV Rotina <2A - residência'!Z4 -> 0.2142857143 | M4: 0 | N4: 0 | O4: =SUM(M4:N4) -> 0 | P4: =COUNTIF(E4:H4,">=0,95") -> 0
A5: Central | B5: Águia Branca | C5: ='CV Rotina <2A - residência'!H5 -> 0.9022556391 | D5: ='CV Rotina <2A - residência'!P5 -> 0.984962406 | E5: ='CV Rotina <2A - residência'!J5 -> 0.9097744361 | F5: ='CV Rotina <2A - residência'!L5 -> 0.9172932331 | G5: ='CV Rotina <2A - residência'!N5 -> 0.992481203 | H5: ='CV Rotina <2A - residência'!X5 -> 0.8496240602 | I5: ='CV Rotina <2A - residência'!R5 -> 0.9172932331 | J5: ='CV Rotina <2A - residência'!T5 -> 0.7819548872 | K5: ='CV Rotina <2A - residência'!V5 -> 0.7368421053 | L5: ='CV Rotina <2A - residência'!Z5 -> 0.3082706767 | M5: 2 | N5: 1 | O5: 3 | P5: 1
A6: Sul | B6: Alegre | C6: ='CV Rotina <2A - residência'!H6 -> 0.9579831933 | D6: ='CV Rotina <2A - residência'!P6 -> 1.004201681 | E6: ='CV Rotina <2A - residência'!J6 -> 1 | F6: ='CV Rotina <2A - residência'!L6 -> 1.016806723 | G6: ='CV Rotina <2A - residência'!N6 -> 1.033613445 | H6: ='CV Rotina <2A - residência'!X6 -> 0.9621848739 | I6: ='CV Rotina <2A - residência'!R6 -> 0.9957983193 | J6: ='CV Rotina <2A - residência'!T6 -> 0.9537815126 | K6: ='CV Rotina <2A - residência'!V6 -> 0.9243697479 | L6: ='CV Rotina <2A - residência'!Z6 -> 0.2605042017 | M6: 2 | N6: 6 | O6: 8 | P6: 4
A7: Sul | B7: Alfredo Chaves | C7: ='CV Rotina <2A - residência'!H7 -> 0.7692307692 | D7: ='CV Rotina <2A - residência'!P7 -> 1.076923077 | E7: ='CV Rotina <2A - residência'!J7 -> 1.057692308 | F7: ='CV Rotina <2A - residência'!L7 -> 1.057692308 | G7: ='CV Rotina <2A - residência'!N7 -> 1.057692308 | H7: ='CV Rotina <2A - residência'!X7 -> 1 | I7: ='CV Rotina <2A - residência'!R7 -> 1.067307692 | J7: ='CV Rotina <2A - residência'!T7 -> 1.009615385 | K7: ='CV Rotina <2A - residência'!V7 -> 0.9519230769 | L7: ='CV Rotina <2A - residência'!Z7 -> 0.6057692308 | M7: 1 | N7: 7 | O7: 8 | P7: 4
A8: Central | B8: Alto Rio Novo | C8: ='CV Rotina <2A - residência'!H8 -> 1.061538462 | D8: ='CV Rotina <2A - residência'!P8 -> 1.061538462 | E8: ='CV Rotina <2A - residência'!J8 -> 1.046153846 | F8: ='CV Rotina <2A - residência'!L8 -> 1.030769231 | G8: ='CV Rotina <2A - residência'!N8 -> 1.076923077 | H8: ='CV Rotina <2A - residência'!X8 -> 1.061538462 | I8: ='CV Rotina <2A - residência'!R8 -> 1.092307692 | J8: ='CV Rotina <2A - residência'!T8 -> 0.9076923077 | K8: ='CV Rotina <2A - residência'!V8 -> 0.9692307692 | L8: ='CV Rotina <2A - residência'!Z8 -> 0.4461538462 | M8: 2 | N8: 6 | O8: 8 | P8: 4
A9: Sul | B9: Anchieta | C9: ='CV Rotina <2A - residência'!H9 -> 0.9464285714 | D9: ='CV Rotina <2A - residência'!P9 -> 1.060714286 | E9: ='CV Rotina <2A - residência'!J9 -> 1.1 | F9: ='CV Rotina <2A - residência'!L9 -> 1.128571429 | G9: ='CV Rotina <2A - residência'!N9 -> 1.085714286 | H9: ='CV Rotina <2A - residência'!X9 -> 1.107142857 | I9: ='CV Rotina <2A - residência'!R9 -> 1.071428571 | J9: ='CV Rotina <2A - residência'!T9 -> 0.8642857143 | K9: ='CV Rotina <2A - residência'!V9 -> 1.028571429 | L9: ='CV Rotina <2A - residência'!Z9 -> 0.4714285714 | M9: 2 | N9: 6 | O9: 8 | P9: 4
A10: Sul | B10: Apiacá | C10: ='CV Rotina <2A - residência'!H10 -> 0.9433962264 | D10: ='CV Rotina <2A - residência'!P10 -> 0.9622641509 | E10: ='CV Rotina <2A - residência'!J10 -> 0.9245283019 | F10: ='CV Rotina <2A - residência'!L10 -> 0.9245283019 | G10: ='CV Rotina <2A - residência'!N10 -> 0.9433962264 | H10: ='CV Rotina <2A - residência'!X10 -> 0.9811320755 | I10: ='CV Rotina <2A - residência'!R10 -> 0.9245283019 | J10: ='CV Rotina <2A - residência'!T10 -> 0.8113207547 | K10: ='CV Rotina <2A - residência'!V10 -> 0.8490566038 | L10: ='CV Rotina <2A - residência'!Z10 -> 0.1320754717 | M10: 2 | N10: 1 | O10: 3 | P10: 1
A11: Metropolitana | B11: Aracruz | C11: ='CV Rotina <2A - residência'!H11 -> 0.9547134935 | D11: ='CV Rotina <2A - residência'!P11 -> 0.9473197782 | E11: ='CV Rotina <2A - residência'!J11 -> 0.9140480591 | F11: ='CV Rotina <2A - residência'!L11 -> 0.9288354898 | G11: ='CV Rotina <2A - residência'!N11 -> 0.9584103512 | H11: ='CV Rotina <2A - residência'!X11 -> 0.9852125693 | I11: ='CV Rotina <2A - residência'!R11 -> 0.9094269871 | J11: ='CV Rotina <2A - residência'!T11 -> 0.7652495379 | K11: ='CV Rotina <2A - residência'!V11 -> 0.96025878 | L11: ='CV Rotina <2A - residência'!Z11 -> 0.4648798521 | M11: 2 | N11: 3 | O11: 5 | P11: 2
A12: Sul | B12: Atilio Vivacqua | C12: ='CV Rotina <2A - residência'!H12 -> 0.9906542056 | D12: ='CV Rotina <2A - residência'!P12 -> 0.9065420561 | E12: ='CV Rotina <2A - residência'!J12 -> 0.9065420561 | F12: ='CV Rotina <2A - residência'!L12 -> 0.9065420561 | G12: ='CV Rotina <2A - residência'!N12 -> 0.9158878505 | H12: ='CV Rotina <2A - residência'!X12 -> 0.953271028 | I12: ='CV Rotina <2A - residência'!R12 -> 0.8971962617 | J12: ='CV Rotina <2A - residência'!T12 -> 0.7102803738 | K12: ='CV Rotina <2A - residência'!V12 -> 0.9065420561 | L12: ='CV Rotina <2A - residência'!Z12 -> 0.4205607477 | M12: 2 | N12: 1 | O12: 3 | P12: 1
A13: Central | B13: Baixo Guandu | C13: ='CV Rotina <2A - residência'!H13 -> 0.9717314488 | D13: ='CV Rotina <2A - residência'!P13 -> 1.070671378 | E13: ='CV Rotina <2A - residência'!J13 -> 1 | F13: ='CV Rotina <2A - residência'!L13 -> 1.014134276 | G13: ='CV Rotina <2A - residência'!N13 -> 1.09540636 | H13: ='CV Rotina <2A - residência'!X13 -> 0.9823321555 | I13: ='CV Rotina <2A - residência'!R13 -> 1.056537102 | J13: ='CV Rotina <2A - residência'!T13 -> 0.8021201413 | K13: ='CV Rotina <2A - residência'!V13 -> 0.9929328622 | L13: ='CV Rotina <2A - residência'!Z13 -> 0.4522968198 | M13: 2 | N13: 6 | O13: 8 | P13: 4
A14: Norte | B14: Barra de São Francisco | C14: ='CV Rotina <2A - residência'!H14 -> 0.9660633484 | D14: ='CV Rotina <2A - residência'!P14 -> 0.8778280543 | E14: ='CV Rotina <2A - residência'!J14 -> 0.850678733 | F14: ='CV Rotina <2A - residência'!L14 -> 0.8642533937 | G14: ='CV Rotina <2A - residência'!N14 -> 0.9095022624 | H14: ='CV Rotina <2A - residência'!X14 -> 0.9502262443 | I14: ='CV Rotina <2A - residência'!R14 -> 0.9049773756 | J14: ='CV Rotina <2A - residência'!T14 -> 0.8009049774 | K14: ='CV Rotina <2A - residência'!V14 -> 0.7488687783 | L14: ='CV Rotina <2A - residência'!Z14 -> 0.4547511312 | M14: 1 | N14: 1 | O14: 2 | P14: 1
A15: Norte | B15: Boa Esperança | C15: ='CV Rotina <2A - residência'!H15 -> 0.7142857143 | D15: ='CV Rotina <2A - residência'!P15 -> 0.9935064935 | E15: ='CV Rotina <2A - residência'!J15 -> 0.9155844156 | F15: ='CV Rotina <2A - residência'!L15 -> 0.974025974 | G15: ='CV Rotina <2A - residência'!N15 -> 0.987012987 | H15: ='CV Rotina <2A - residência'!X15 -> 0.974025974 | I15: ='CV Rotina <2A - residência'!R15 -> 0.9480519481 | J15: ='CV Rotina <2A - residência'!T15 -> 0.8506493506 | K15: ='CV Rotina <2A - residência'!V15 -> 0.6818181818 | L15: ='CV Rotina <2A - residência'!Z15 -> 0.5779220779 | M15: 1 | N15: 3 | O15: 4 | P15: 3
A16: Sul | B16: Bom Jesus do Norte | C16: ='CV Rotina <2A - residência'!H16 -> 0.7397260274 | D16: ='CV Rotina <2A - residência'!P16 -> 0.9726027397 | E16: ='CV Rotina <2A - residência'!J16 -> 1.068493151 | F16: ='CV Rotina <2A - residência'!L16 -> 1.04109589 | G16: ='CV Rotina <2A - residência'!N16 -> 1 | H16: ='CV Rotina <2A - residência'!X16 -> 1.068493151 | I16: ='CV Rotina <2A - residência'!R16 -> 0.9315068493 | J16: ='CV Rotina <2A - residência'!T16 -> 0.8767123288 | K16: ='CV Rotina <2A - residência'!V16 -> 0.5342465753 | L16: ='CV Rotina <2A - residência'!Z16 -> 0.1780821918 | M16: 1 | N16: 4 | O16: 5 | P16: 4
A17: Metropolitana | B17: Brejetuba | C17: ='CV Rotina <2A - residência'!H17 -> 0.9520547945 | D17: ='CV Rotina <2A - residência'!P17 -> 1.034246575 | E17: ='CV Rotina <2A - residência'!J17 -> 1.047945205 | F17: ='CV Rotina <2A - residência'!L17 -> 1.047945205 | G17: ='CV Rotina <2A - residência'!N17 -> 0.9931506849 | H17: ='CV Rotina <2A - residência'!X17 -> 0.9931506849 | I17: ='CV Rotina <2A - residência'!R17 -> 1.01369863 | J17: ='CV Rotina <2A - residência'!T17 -> 0.9246575342 | K17: ='CV Rotina <2A - residência'!V17 -> 0.801369863 | L17: ='CV Rotina <2A - residência'!Z17 -> 0.397260274 | M17: 2 | N17: 5 | O17: 7 | P17: 4
A18: Sul | B18: Cachoeiro de Itapemirim | C18: ='CV Rotina <2A - residência'!H18 -> 1.085050185 | D18: ='CV Rotina <2A - residência'!P18 -> 0.8874801902 | E18: ='CV Rotina <2A - residência'!J18 -> 0.8425779186 | F18: ='CV Rotina <2A - residência'!L18 -> 0.8499735869 | G18: ='CV Rotina <2A - residência'!N18 -> 0.9022715267 | H18: ='CV Rotina <2A - residência'!X18 -> 0.9091389329 | I18: ='CV Rotina <2A - residência'!R18 -> 0.8320126783 | J18: ='CV Rotina <2A - residência'!T18 -> 0.6376122557 | K18: ='CV Rotina <2A - residência'!V18 -> 0.8293713682 | L18: ='CV Rotina <2A - residência'!Z18 -> 0.3460116218 | M18: 1 | N18: 0 | O18: 1 | P18: 0
A19: Metropolitana | B19: Cariacica | C19: ='CV Rotina <2A - residência'!H19 -> 0.9148247978 | D19: ='CV Rotina <2A - residência'!P19 -> 0.8800539084 | E19: ='CV Rotina <2A - residência'!J19 -> 0.8687331536 | F19: ='CV Rotina <2A - residência'!L19 -> 0.8716981132 | G19: ='CV Rotina <2A - residência'!N19 -> 0.9250673854 | H19: ='CV Rotina <2A - residência'!X19 -> 0.9110512129 | I19: ='CV Rotina <2A - residência'!R19 -> 0.860916442 | J19: ='CV Rotina <2A - residência'!T19 -> 0.6603773585 | K19: ='CV Rotina <2A - residência'!V19 -> 0.671967655 | L19: ='CV Rotina <2A - residência'!Z19 -> 0.34393531 | M19: 1 | N19: 0 | O19: 1 | P19: 0
A20: Sul | B20: Castelo | C20: ='CV Rotina <2A - residência'!H20 -> 0.8297213622 | D20: ='CV Rotina <2A - residência'!P20 -> 0.9938080495 | E20: ='CV Rotina <2A - residência'!J20 -> 1.018575851 | F20: ='CV Rotina <2A - residência'!L20 -> 1.092879257 | G20: ='CV Rotina <2A - residência'!N20 -> 1.021671827 | H20: ='CV Rotina <2A - residência'!X20 -> 1.037151703 | I20: ='CV Rotina <2A - residência'!R20 -> 0.9814241486 | J20: ='CV Rotina <2A - residência'!T20 -> 0.8823529412 | K20: ='CV Rotina <2A - residência'!V20 -> 0.8018575851 | L20: ='CV Rotina <2A - residência'!Z20 -> 0.4643962848 | M20: 1 | N20: 5 | O20: 6 | P20: 4
A21: Central | B21: Colatina | C21: ='CV Rotina <2A - residência'!H21 -> 0.9931682323 | D21: ='CV Rotina <2A - residência'!P21 -> 0.9299743809 | E21: ='CV Rotina <2A - residência'!J21 -> 0.9402220325 | F21: ='CV Rotina <2A - residência'!L21 -> 0.9820666097 | G21: ='CV Rotina <2A - residência'!N21 -> 0.9487617421 | H21: ='CV Rotina <2A - residência'!X21 -> 0.9803586678 | I21: ='CV Rotina <2A - residência'!R21 -> 0.9043552519 | J21: ='CV Rotina <2A - residência'!T21 -> 0.7873612297 | K21: ='CV Rotina <2A - residência'!V21 -> 0.7421007686 | L21: ='CV Rotina <2A - residência'!Z21 -> 0.4842015371 | M21: 2 | N21: 2 | O21: 4 | P21: 2
A22: Norte | B22: Conceição da Barra | C22: ='CV Rotina <2A - residência'!H22 -> 0.5281690141 | D22: ='CV Rotina <2A - residência'!P22 -> 0.9647887324 | E22: ='CV Rotina <2A - residência'!J22 -> 0.9718309859 | F22: ='CV Rotina <2A - residência'!L22 -> 1.003521127 | G22: ='CV Rotina <2A - residência'!N22 -> 1.003521127 | H22: ='CV Rotina <2A - residência'!X22 -> 1.038732394 | I22: ='CV Rotina <2A - residência'!R22 -> 0.9788732394 | J22: ='CV Rotina <2A - residência'!T22 -> 0.9049295775 | K22: ='CV Rotina <2A - residência'!V22 -> 0.7816901408 | L22: ='CV Rotina <2A - residência'!Z22 -> 0.4718309859 | M22: 1 | N22: 5 | O22: 6 | P22: 4
A23: Metropolitana | B23: Conceição do Castelo | C23: ='CV Rotina <2A - residência'!H23 -> 0.8333333333 | D23: ='CV Rotina <2A - residência'!P23 -> 0.7063492063 | E23: ='CV Rotina <2A - residência'!J23 -> 0.7222222222 | F23: ='CV Rotina <2A - residência'!L23 -> 0.7063492063 | G23: ='CV Rotina <2A - residência'!N23 -> 0.7222222222 | H23: ='CV Rotina <2A - residência'!X23 -> 0.8253968254 | I23: ='CV Rotina <2A - residência'!R23 -> 0.7142857143 | J23: ='CV Rotina <2A - residência'!T23 -> 0.7142857143 | K23: ='CV Rotina <2A - residência'!V23 -> 0.8015873016 | L23: ='CV Rotina <2A - residência'!Z23 -> 0.4365079365 | M23: 0 | N23: 0 | O23: 0 | P23: 0
A24: Sul | B24: Divino de São Lourenço | C24: ='CV Rotina <2A - residência'!H24 -> 0.8909090909 | D24: ='CV Rotina <2A - residência'!P24 -> 1.181818182 | E24: ='CV Rotina <2A - residência'!J24 -> 1.072727273 | F24: ='CV Rotina <2A - residência'!L24 -> 1.072727273 | G24: ='CV Rotina <2A - residência'!N24 -> 1.2 | H24: ='CV Rotina <2A - residência'!X24 -> 0.7636363636 | I24: ='CV Rotina <2A - residência'!R24 -> 1.145454545 | J24: ='CV Rotina <2A - residência'!T24 -> 0.8545454545 | K24: ='CV Rotina <2A - residência'!V24 -> 0.6909090909 | L24: ='CV Rotina <2A - residência'!Z24 -> 0.3818181818 | M24: 1 | N24: 4 | O24: 5 | P24: 3
A25: Metropolitana | B25: Domingos Martins | C25: ='CV Rotina <2A - residência'!H25 -> 0.9669966997 | D25: ='CV Rotina <2A - residência'!P25 -> 1.00990099 | E25: ='CV Rotina <2A - residência'!J25 -> 0.9339933993 | F25: ='CV Rotina <2A - residência'!L25 -> 0.9537953795 | G25: ='CV Rotina <2A - residência'!N25 -> 1.02970297 | H25: ='CV Rotina <2A - residência'!X25 -> 0.9438943894 | I25: ='CV Rotina <2A - residência'!R25 -> 0.9735973597 | J25: ='CV Rotina <2A - residência'!T25 -> 0.8415841584 | K25: ='CV Rotina <2A - residência'!V25 -> 0.904290429 | L25: ='CV Rotina <2A - residência'!Z25 -> 0.6237623762 | M25: 2 | N25: 3 | O25: 5 | P25: 2
A26: Sul | B26: Dores do Rio Preto | C26: ='CV Rotina <2A - residência'!H26 -> 0.6486486486 | D26: ='CV Rotina <2A - residência'!P26 -> 0.9459459459 | E26: ='CV Rotina <2A - residência'!J26 -> 0.8783783784 | F26: ='CV Rotina <2A - residência'!L26 -> 0.9189189189 | G26: ='CV Rotina <2A - residência'!N26 -> 0.9864864865 | H26: ='CV Rotina <2A - residência'!X26 -> 0.7432432432 | I26: ='CV Rotina <2A - residência'!R26 -> 0.9594594595 | J26: ='CV Rotina <2A - residência'!T26 -> 0.7702702703 | K26: ='CV Rotina <2A - residência'!V26 -> 0.6891891892 | L26: ='CV Rotina <2A - residência'!Z26 -> 0.2972972973 | M26: 1 | N26: 2 | O26: 3 | P26: 1
A27: Norte | B27: Ecoporanga | C27: ='CV Rotina <2A - residência'!H27 -> 1 | D27: ='CV Rotina <2A - residência'!P27 -> 1.009852217 | E27: ='CV Rotina <2A - residência'!J27 -> 0.9113300493 | F27: ='CV Rotina <2A - residência'!L27 -> 0.9014778325 | G27: ='CV Rotina <2A - residência'!N27 -> 1.0591133 | H27: ='CV Rotina <2A - residência'!X27 -> 0.9507389163 | I27: ='CV Rotina <2A - residência'!R27 -> 0.9753694581 | J27: ='CV Rotina <2A - residência'!T27 -> 0.7881773399 | K27: ='CV Rotina <2A - residência'!V27 -> 0.8472906404 | L27: ='CV Rotina <2A - residência'!Z27 -> 0.4926108374 | M27: 2 | N27: 3 | O27: 5 | P27: 2
A28: Metropolitana | B28: Fundão | C28: ='CV Rotina <2A - residência'!H28 -> 0.875 | D28: ='CV Rotina <2A - residência'!P28 -> 0.9943181818 | E28: ='CV Rotina <2A - residência'!J28 -> 0.9602272727 | F28: ='CV Rotina <2A - residência'!L28 -> 0.9659090909 | G28: ='CV Rotina <2A - residência'!N28 -> 0.9829545455 | H28: ='CV Rotina <2A - residência'!X28 -> 0.8863636364 | I28: ='CV Rotina <2A - residência'!R28 -> 0.8522727273 | J28: ='CV Rotina <2A - residência'!T28 -> 0.7670454545 | K28: ='CV Rotina <2A - residência'!V28 -> 0.9261363636 | L28: ='CV Rotina <2A - residência'!Z28 -> 0.5284090909 | M28: 1 | N28: 3 | O28: 4 | P28: 3
A29: Central | B29: Governador Lindenberg | C29: ='CV Rotina <2A - residência'!H29 -> 0.7755102041 | D29: ='CV Rotina <2A - residência'!P29 -> 1 | E29: ='CV Rotina <2A - residência'!J29 -> 0.9591836735 | F29: ='CV Rotina <2A - residência'!L29 -> 0.9591836735 | G29: ='CV Rotina <2A - residência'!N29 -> 0.9897959184 | H29: ='CV Rotina <2A - residência'!X29 -> 1.142857143 | I29: ='CV Rotina <2A - residência'!R29 -> 0.9897959184 | J29: ='CV Rotina <2A - residência'!T29 -> 1.112244898 | K29: ='CV Rotina <2A - residência'!V29 -> 1.071428571 | L29: ='CV Rotina <2A - residência'!Z29 -> 0.5306122449 | M29: 1 | N29: 7 | O29: 8 | P29: 4
A30: Sul | B30: Guaçuí | C30: ='CV Rotina <2A - residência'!H30 -> 0.8013937282 | D30: ='CV Rotina <2A - residência'!P30 -> 0.93728223 | E30: ='CV Rotina <2A - residência'!J30 -> 1.027874564 | F30: ='CV Rotina <2A - residência'!L30 -> 1.017421603 | G30: ='CV Rotina <2A - residência'!N30 -> 1.006968641 | H30: ='CV Rotina <2A - residência'!X30 -> 0.7770034843 | I30: ='CV Rotina <2A - residência'!R30 -> 0.9756097561 | J30: ='CV Rotina <2A - residência'!T30 -> 0.7944250871 | K30: ='CV Rotina <2A - residência'!V30 -> 0.881533101 | L30: ='CV Rotina <2A - residência'!Z30 -> 0.3902439024 | M30: 1 | N30: 4 | O30: 5 | P30: 3
A31: Metropolitana | B31: Guarapari | C31: ='CV Rotina <2A - residência'!H31 -> 1.146118721 | D31: ='CV Rotina <2A - residência'!P31 -> 1.076712329 | E31: ='CV Rotina <2A - residência'!J31 -> 0.9716894977 | F31: ='CV Rotina <2A - residência'!L31 -> 0.9716894977 | G31: ='CV Rotina <2A - residência'!N31 -> 1.116894977 | H31: ='CV Rotina <2A - residência'!X31 -> 1.012785388 | I31: ='CV Rotina <2A - residência'!R31 -> 1.015525114 | J31: ='CV Rotina <2A - residência'!T31 -> 0.7433789954 | K31: ='CV Rotina <2A - residência'!V31 -> 0.8867579909 | L31: ='CV Rotina <2A - residência'!Z31 -> 0.4794520548 | M31: 2 | N31: 5 | O31: 7 | P31: 4
A32: Metropolitana | B32: Ibatiba | C32: ='CV Rotina <2A - residência'!H32 -> 1.003472222 | D32: ='CV Rotina <2A - residência'!P32 -> 0.9548611111 | E32: ='CV Rotina <2A - residência'!J32 -> 0.9375 | F32: ='CV Rotina <2A - residência'!L32 -> 0.9340277778 | G32: ='CV Rotina <2A - residência'!N32 -> 0.9895833333 | H32: ='CV Rotina <2A - residência'!X32 -> 0.9201388889 | I32: ='CV Rotina <2A - residência'!R32 -> 0.96875 | J32: ='CV Rotina <2A - residência'!T32 -> 0.8298611111 | K32: ='CV Rotina <2A - residência'!V32 -> 0.8402777778 | L32: ='CV Rotina <2A - residência'!Z32 -> 0.2256944444 | M32: 2 | N32: 2 | O32: 4 | P32: 1
A33: Metropolitana | B33: Ibiraçu | C33: ='CV Rotina <2A - residência'!H33 -> 0.9495798319 | D33: ='CV Rotina <2A - residência'!P33 -> 0.8823529412 | E33: ='CV Rotina <2A - residência'!J33 -> 0.8151260504 | F33: ='CV Rotina <2A - residência'!L33 -> 0.8235294118 | G33: ='CV Rotina <2A - residência'!N33 -> 0.8907563025 | H33: ='CV Rotina <2A - residência'!X33 -> 0.8151260504 | I33: ='CV Rotina <2A - residência'!R33 -> 0.8907563025 | J33: ='CV Rotina <2A - residência'!T33 -> 0.7899159664 | K33: ='CV Rotina <2A - residência'!V33 -> 0.7058823529 | L33: ='CV Rotina <2A - residência'!Z33 -> 0.2941176471 | M33: 1 | N33: 0 | O33: 1 | P33: 0
A34: Sul | B34: Ibitirama | C34: ='CV Rotina <2A - residência'!H34 -> 0.9903846154 | D34: ='CV Rotina <2A - residência'!P34 -> 0.9134615385 | E34: ='CV Rotina <2A - residência'!J34 -> 0.8942307692 | F34: ='CV Rotina <2A - residência'!L34 -> 0.9038461538 | G34: ='CV Rotina <2A - residência'!N34 -> 0.8942307692 | H34: ='CV Rotina <2A - residência'!X34 -> 0.875 | I34: ='CV Rotina <2A - residência'!R34 -> 0.75 | J34: ='CV Rotina <2A - residência'!T34 -> 0.7307692308 | K34: ='CV Rotina <2A - residência'!V34 -> 0.8076923077 | L34: ='CV Rotina <2A - residência'!Z34 -> 0.3942307692 | M34: 2 | N34: 0 | O34: 2 | P34: 0
A35: Sul | B35: Iconha | C35: ='CV Rotina <2A - residência'!H35 -> 0.6888888889 | D35: ='CV Rotina <2A - residência'!P35 -> 0.9333333333 | E35: ='CV Rotina <2A - residência'!J35 -> 0.9444444444 | F35: ='CV Rotina <2A - residência'!L35 -> 0.9777777778 | G35: ='CV Rotina <2A - residência'!N35 -> 0.9333333333 | H35: ='CV Rotina <2A - residência'!X35 -> 1.244444444 | I35: ='CV Rotina <2A - residência'!R35 -> 0.8555555556 | J35: ='CV Rotina <2A - residência'!T35 -> 0.9666666667 | K35: ='CV Rotina <2A - residência'!V35 -> 1.133333333 | L35: ='CV Rotina <2A - residência'!Z35 -> 0.5111111111 | M35: =COUNTIF(C35:D35,">=0,9") -> 1 | N35: 4 | O35: =SUM(M35:N35) -> 5 | P35: 2
A36: Sul | B36: Irupi | C36: ='CV Rotina <2A - residência'!H36 -> 0.8231292517 | D36: ='CV Rotina <2A - residência'!P36 -> 1.081632653 | E36: ='CV Rotina <2A - residência'!J36 -> 1.006802721 | F36: ='CV Rotina <2A - residência'!L36 -> 0.9795918367 | G36: ='CV Rotina <2A - residência'!N36 -> 1.081632653 | H36: ='CV Rotina <2A - residência'!X36 -> 1.068027211 | I36: ='CV Rotina <2A - residência'!R36 -> 1.06122449 | J36: ='CV Rotina <2A - residência'!T36 -> 0.9047619048 | K36: ='CV Rotina <2A - residência'!V36 -> 0.9591836735 | L36: ='CV Rotina <2A - residência'!Z36 -> 0.2653061224 | M36: 1 | N36: 6 | O36: 7 | P36: 4
A37: Metropolitana | B37: Itaguaçu | C37: ='CV Rotina <2A - residência'!H37 -> 1.036697248 | D37: ='CV Rotina <2A - residência'!P37 -> 1.009174312 | E37: ='CV Rotina <2A - residência'!J37 -> 0.9266055046 | F37: ='CV Rotina <2A - residência'!L37 -> 0.9449541284 | G37: ='CV Rotina <2A - residência'!N37 -> 1.027522936 | H37: ='CV Rotina <2A - residência'!X37 -> 1.018348624 | I37: ='CV Rotina <2A - residência'!R37 -> 0.9266055046 | J37: ='CV Rotina <2A - residência'!T37 -> 0.880733945 | K37: ='CV Rotina <2A - residência'!V37 -> 1.064220183 | L37: ='CV Rotina <2A - residência'!Z37 -> 0.6055045872 | M37: 2 | N37: 3 | O37: 5 | P37: 2
A38: Sul | B38: Itapemirim | C38: ='CV Rotina <2A - residência'!H38 -> 0.8951612903 | D38: ='CV Rotina <2A - residência'!P38 -> 0.9139784946 | E38: ='CV Rotina <2A - residência'!J38 -> 0.9596774194 | F38: ='CV Rotina <2A - residência'!L38 -> 0.9650537634 | G38: ='CV Rotina <2A - residência'!N38 -> 1.01344086 | H38: ='CV Rotina <2A - residência'!X38 -> 0.9731182796 | I38: ='CV Rotina <2A - residência'!R38 -> 0.9489247312 | J38: ='CV Rotina <2A - residência'!T38 -> 0.6102150538 | K38: ='CV Rotina <2A - residência'!V38 -> 0.9086021505 | L38: ='CV Rotina <2A - residência'!Z38 -> 0.4086021505 | M38: 1 | N38: 4 | O38: 5 | P38: 4
A39: Metropolitana | B39: Itarana | C39: ='CV Rotina <2A - residência'!H39 -> 1.13592233 | D39: ='CV Rotina <2A - residência'!P39 -> 1.009708738 | E39: ='CV Rotina <2A - residência'!J39 -> 0.9805825243 | F39: ='CV Rotina <2A - residência'!L39 -> 1 | G39: ='CV Rotina <2A - residência'!N39 -> 1.038834951 | H39: ='CV Rotina <2A - residência'!X39 -> 1.009708738 | I39: ='CV Rotina <2A - residência'!R39 -> 0.9708737864 | J39: ='CV Rotina <2A - residência'!T39 -> 0.9708737864 | K39: ='CV Rotina <2A - residência'!V39 -> 0.7281553398 | L39: ='CV Rotina <2A - residência'!Z39 -> 0.5922330097 | M39: 2 | N39: 6 | O39: 8 | P39: 4
A40: Sul | B40: Iúna | C40: ='CV Rotina <2A - residência'!H40 -> 0.7062146893 | D40: ='CV Rotina <2A - residência'!P40 -> 0.9293785311 | E40: ='CV Rotina <2A - residência'!J40 -> 0.9039548023 | F40: ='CV Rotina <2A - residência'!L40 -> 0.9039548023 | G40: ='CV Rotina <2A - residência'!N40 -> 0.9406779661 | H40: ='CV Rotina <2A - residência'!X40 -> 0.9548022599 | I40: ='CV Rotina <2A - residência'!R40 -> 0.9039548023 | J40: ='CV Rotina <2A - residência'!T40 -> 0.8531073446 | K40: ='CV Rotina <2A - residência'!V40 -> 0.7118644068 | L40: ='CV Rotina <2A - residência'!Z40 -> 0.418079096 | M40: 1 | N40: 1 | O40: 2 | P40: 1
A41: Norte | B41: Jaguaré | C41: ='CV Rotina <2A - residência'!H41 -> 0.9064935065 | D41: ='CV Rotina <2A - residência'!P41 -> 0.9402597403 | E41: ='CV Rotina <2A - residência'!J41 -> 0.9558441558 | F41: ='CV Rotina <2A - residência'!L41 -> 0.9584415584 | G41: ='CV Rotina <2A - residência'!N41 -> 0.9636363636 | H41: ='CV Rotina <2A - residência'!X41 -> 0.9480519481 | I41: ='CV Rotina <2A - residência'!R41 -> 0.8935064935 | J41: ='CV Rotina <2A - residência'!T41 -> 0.812987013 | K41: ='CV Rotina <2A - residência'!V41 -> 0.7688311688 | L41: ='CV Rotina <2A - residência'!Z41 -> 0.3688311688 | M41: 2 | N41: 3 | O41: 5 | P41: 3
A42: Sul | B42: Jerônimo Monteiro | C42: ='CV Rotina <2A - residência'!H42 -> 0.8290598291 | D42: ='CV Rotina <2A - residência'!P42 -> 1.042735043 | E42: ='CV Rotina <2A - residência'!J42 -> 1.068376068 | F42: ='CV Rotina <2A - residência'!L42 -> 1.076923077 | G42: ='CV Rotina <2A - residência'!N42 -> 1.05982906 | H42: ='CV Rotina <2A - residência'!X42 -> 0.9316239316 | I42: ='CV Rotina <2A - residência'!R42 -> 0.9829059829 | J42: ='CV Rotina <2A - residência'!T42 -> 0.9914529915 | K42: ='CV Rotina <2A - residência'!V42 -> 0.9914529915 | L42: ='CV Rotina <2A - residência'!Z42 -> 0.2905982906 | M42: 1 | N42: 6 | O42: 7 | P42: 3
A43: Metropolitana | B43: João Neiva | C43: ='CV Rotina <2A - residência'!H43 -> 0.9333333333 | D43: ='CV Rotina <2A - residência'!P43 -> 1.008333333 | E43: ='CV Rotina <2A - residência'!J43 -> 0.95 | F43: ='CV Rotina <2A - residência'!L43 -> 0.9666666667 | G43: ='CV Rotina <2A - residência'!N43 -> 1.008333333 | H43: ='CV Rotina <2A - residência'!X43 -> 1.225 | I43: ='CV Rotina <2A - residência'!R43 -> 0.9666666667 | J43: ='CV Rotina <2A - residência'!T43 -> 0.975 | K43: ='CV Rotina <2A - residência'!V43 -> 0.9666666667 | L43: ='CV Rotina <2A - residência'!Z43 -> 0.5416666667 | M43: 2 | N43: 7 | O43: 9 | P43: 4
A44: Metropolitana | B44: Laranja da Terra | C44: ='CV Rotina <2A - residência'!H44 -> 1.089552239 | D44: ='CV Rotina <2A - residência'!P44 -> 0.9104477612 | E44: ='CV Rotina <2A - residência'!J44 -> 0.9552238806 | F44: ='CV Rotina <2A - residência'!L44 -> 0.9701492537 | G44: ='CV Rotina <2A - residência'!N44 -> 0.9253731343 | H44: ='CV Rotina <2A - residência'!X44 -> 1.432835821 | I44: ='CV Rotina <2A - residência'!R44 -> 1.044776119 | J44: ='CV Rotina <2A - residência'!T44 -> 1.134328358 | K44: ='CV Rotina <2A - residência'!V44 -> 1.313432836 | L44: ='CV Rotina <2A - residência'!Z44 -> 0.8955223881 | M44: 2 | N44: 6 | O44: 8 | P44: 3
A45: Central | B45: Linhares | C45: ='CV Rotina <2A - residência'!H45 -> 0.7363455809 | D45: ='CV Rotina <2A - residência'!P45 -> 0.868917577 | E45: ='CV Rotina <2A - residência'!J45 -> 0.8252234359 | F45: ='CV Rotina <2A - residência'!L45 -> 0.8470705065 | G45: ='CV Rotina <2A - residência'!N45 -> 0.8624627607 | H45: ='CV Rotina <2A - residência'!X45 -> 0.8589870904 | I45: ='CV Rotina <2A - residência'!R45 -> 0.8366434955 | J45: ='CV Rotina <2A - residência'!T45 -> 0.6891757696 | K45: ='CV Rotina <2A - residência'!V45 -> 0.7969215492 | L45: ='CV Rotina <2A - residência'!Z45 -> 0.3887785501 | M45: 0 | N45: 0 | O45: 0 | P45: 0
A46: Central | B46: Mantenópolis | C46: ='CV Rotina <2A - residência'!H46 -> 1.025862069 | D46: ='CV Rotina <2A - residência'!P46 -> 0.8965517241 | E46: ='CV Rotina <2A - residência'!J46 -> 0.9396551724 | F46: ='CV Rotina <2A - residência'!L46 -> 0.9568965517 | G46: ='CV Rotina <2A - residência'!N46 -> 0.9310344828 | H46: ='CV Rotina <2A - residência'!X46 -> 1.060344828 | I46: ='CV Rotina <2A - residência'!R46 -> 0.8793103448 | J46: ='CV Rotina <2A - residência'!T46 -> 0.9482758621 | K46: ='CV Rotina <2A - residência'!V46 -> 0.9224137931 | L46: ='CV Rotina <2A - residência'!Z46 -> 0.4396551724 | M46: 1 | N46: 2 | O46: 3 | P46: 2
A47: Sul | B47: Marataízes | C47: ='CV Rotina <2A - residência'!H47 -> 0.8888888889 | D47: ='CV Rotina <2A - residência'!P47 -> 1 | E47: ='CV Rotina <2A - residência'!J47 -> 0.962962963 | F47: ='CV Rotina <2A - residência'!L47 -> 0.974537037 | G47: ='CV Rotina <2A - residência'!N47 -> 1.032407407 | H47: ='CV Rotina <2A - residência'!X47 -> 0.9606481481 | I47: ='CV Rotina <2A - residência'!R47 -> 0.9814814815 | J47: ='CV Rotina <2A - residência'!T47 -> 0.6064814815 | K47: ='CV Rotina <2A - residência'!V47 -> 0.8240740741 | L47: ='CV Rotina <2A - residência'!Z47 -> 0.4050925926 | M47: 1 | N47: 5 | O47: 6 | P47: 4
A48: Metropolitana | B48: Marechal Floriano | C48: ='CV Rotina <2A - residência'!H48 -> 0.8987341772 | D48: ='CV Rotina <2A - residência'!P48 -> 1.037974684 | E48: ='CV Rotina <2A - residência'!J48 -> 1.03164557 | F48: ='CV Rotina <2A - residência'!L48 -> 1.037974684 | G48: ='CV Rotina <2A - residência'!N48 -> 1.050632911 | H48: ='CV Rotina <2A - residência'!X48 -> 0.9810126582 | I48: ='CV Rotina <2A - residência'!R48 -> 1.050632911 | J48: ='CV Rotina <2A - residência'!T48 -> 0.7784810127 | K48: ='CV Rotina <2A - residência'!V48 -> 1.012658228 | L48: ='CV Rotina <2A - residência'!Z48 -> 0.6012658228 | M48: 1 | N48: 6 | O48: 7 | P48: 4
A49: Central | B49: Marilândia | C49: ='CV Rotina <2A - residência'!H49 -> 0.9557522124 | D49: ='CV Rotina <2A - residência'!P49 -> 1.017699115 | E49: ='CV Rotina <2A - residência'!J49 -> 1.07079646 | F49: ='CV Rotina <2A - residência'!L49 -> 1.115044248 | G49: ='CV Rotina <2A - residência'!N49 -> 1 | H49: ='CV Rotina <2A - residência'!X49 -> 1.053097345 | I49: ='CV Rotina <2A - residência'!R49 -> 1.123893805 | J49: ='CV Rotina <2A - residência'!T49 -> 1 | K49: ='CV Rotina <2A - residência'!V49 -> 0.9646017699 | L49: ='CV Rotina <2A - residência'!Z49 -> 0.6460176991 | M49: 2 | N49: 7 | O49: 9 | P49: 4
A50: Sul | B50: Mimoso do Sul | C50: ='CV Rotina <2A - residência'!H50 -> 0.86 | D50: ='CV Rotina <2A - residência'!P50 -> 0.85 | E50: ='CV Rotina <2A - residência'!J50 -> 0.84 | F50: ='CV Rotina <2A - residência'!L50 -> 0.85 | G50: ='CV Rotina <2A - residência'!N50 -> 0.85 | H50: ='CV Rotina <2A - residência'!X50 -> 0.885 | I50: ='CV Rotina <2A - residência'!R50 -> 0.805 | J50: ='CV Rotina <2A - residência'!T50 -> 0.725 | K50: ='CV Rotina <2A - residência'!V50 -> 0.725 | L50: ='CV Rotina <2A - residência'!Z50 -> 0.435 | M50: 0 | N50: 0 | O50: 0 | P50: 0
A51: Norte | B51: Montanha | C51: ='CV Rotina <2A - residência'!H51 -> 0.701754386 | D51: ='CV Rotina <2A - residência'!P51 -> 0.9239766082 | E51: ='CV Rotina <2A - residência'!J51 -> 1.076023392 | F51: ='CV Rotina <2A - residência'!L51 -> 1.093567251 | G51: ='CV Rotina <2A - residência'!N51 -> 0.9239766082 | H51: ='CV Rotina <2A - residência'!X51 -> 1.116959064 | I51: ='CV Rotina <2A - residência'!R51 -> 0.9590643275 | J51: ='CV Rotina <2A - residência'!T51 -> 1.081871345 | K51: ='CV Rotina <2A - residência'!V51 -> 1.035087719 | L51: ='CV Rotina <2A - residência'!Z51 -> 0.5263157895 | M51: 1 | N51: 6 | O51: 7 | P51: 3
A52: Norte | B52: Mucurici | C52: ='CV Rotina <2A - residência'!H52 -> 0.6538461538 | D52: ='CV Rotina <2A - residência'!P52 -> 1.115384615 | E52: ='CV Rotina <2A - residência'!J52 -> 1.173076923 | F52: ='CV Rotina <2A - residência'!L52 -> 1.173076923 | G52: ='CV Rotina <2A - residência'!N52 -> 1.115384615 | H52: ='CV Rotina <2A - residência'!X52 -> 1.230769231 | I52: ='CV Rotina <2A - residência'!R52 -> 1.057692308 | J52: ='CV Rotina <2A - residência'!T52 -> 1.288461538 | K52: ='CV Rotina <2A - residência'!V52 -> 0.9807692308 | L52: ='CV Rotina <2A - residência'!Z52 -> 0.6153846154 | M52: 1 | N52: 7 | O52: 8 | P52: 4
A53: Sul | B53: Muniz Freire | C53: ='CV Rotina <2A - residência'!H53 -> 0.9813664596 | D53: ='CV Rotina <2A - residência'!P53 -> 1.068322981 | E53: ='CV Rotina <2A - residência'!J53 -> 1.055900621 | F53: ='CV Rotina <2A - residência'!L53 -> 1.055900621 | G53: ='CV Rotina <2A - residência'!N53 -> 1.093167702 | H53: ='CV Rotina <2A - residência'!X53 -> 1.074534161 | I53: ='CV Rotina <2A - residência'!R53 -> 1.055900621 | J53: ='CV Rotina <2A - residência'!T53 -> 1 | K53: ='CV Rotina <2A - residência'!V53 -> 0.9565217391 | L53: ='CV Rotina <2A - residência'!Z53 -> 0.4099378882 | M53: 2 | N53: 7 | O53: 9 | P53: 4
A54: Sul | B54: Muqui | C54: ='CV Rotina <2A - residência'!H54 -> 0.8534482759 | D54: ='CV Rotina <2A - residência'!P54 -> 0.9224137931 | E54: ='CV Rotina <2A - residência'!J54 -> 1.051724138 | F54: ='CV Rotina <2A - residência'!L54 -> 1.060344828 | G54: ='CV Rotina <2A - residência'!N54 -> 0.9051724138 | H54: ='CV Rotina <2A - residência'!X54 -> 1.00862069 | I54: ='CV Rotina <2A - residência'!R54 -> 0.9396551724 | J54: ='CV Rotina <2A - residência'!T54 -> 1 | K54: ='CV Rotina <2A - residência'!V54 -> 0.8362068966 | L54: ='CV Rotina <2A - residência'!Z54 -> 0.4224137931 | M54: 1 | N54: 4 | O54: 5 | P54: 3
A55: Norte | B55: Nova Venécia | C55: ='CV Rotina <2A - residência'!H55 -> 0.9463917526 | D55: ='CV Rotina <2A - residência'!P55 -> 0.9690721649 | E55: ='CV Rotina <2A - residência'!J55 -> 1.043298969 | F55: ='CV Rotina <2A - residência'!L55 -> 1.070103093 | G55: ='CV Rotina <2A - residência'!N55 -> 1.012371134 | H55: ='CV Rotina <2A - residência'!X55 -> 1.098969072 | I55: ='CV Rotina <2A - residência'!R55 -> 1.030927835 | J55: ='CV Rotina <2A - residência'!T55 -> 0.9298969072 | K55: ='CV Rotina <2A - residência'!V55 -> 0.8268041237 | L55: ='CV Rotina <2A - residência'!Z55 -> 0.5072164948 | M55: 2 | N55: 5 | O55: 7 | P55: 4
A56: Central | B56: Pancas | C56: ='CV Rotina <2A - residência'!H56 -> 0.9551282051 | D56: ='CV Rotina <2A - residência'!P56 -> 1.108974359 | E56: ='CV Rotina <2A - residência'!J56 -> 1.147435897 | F56: ='CV Rotina <2A - residência'!L56 -> 1.166666667 | G56: ='CV Rotina <2A - residência'!N56 -> 1.115384615 | H56: ='CV Rotina <2A - residência'!X56 -> 1.096153846 | I56: ='CV Rotina <2A - residência'!R56 -> 1.08974359 | J56: ='CV Rotina <2A - residência'!T56 -> 1.012820513 | K56: ='CV Rotina <2A - residência'!V56 -> 1.025641026 | L56: ='CV Rotina <2A - residência'!Z56 -> 0.7884615385 | M56: 2 | N56: 7 | O56: 9 | P56: 4
A57: Norte | B57: Pedro Canário | C57: ='CV Rotina <2A - residência'!H57 -> 0.6282051282 | D57: ='CV Rotina <2A - residência'!P57 -> 0.8717948718 | E57: ='CV Rotina <2A - residência'!J57 -> 1.042735043 | F57: ='CV Rotina <2A - residência'!L57 -> 1.034188034 | G57: ='CV Rotina <2A - residência'!N57 -> 0.8974358974 | H57: ='CV Rotina <2A - residência'!X57 -> 1.205128205 | I57: ='CV Rotina <2A - residência'!R57 -> 0.9658119658 | J57: ='CV Rotina <2A - residência'!T57 -> 0.8632478632 | K57: ='CV Rotina <2A - residência'!V57 -> 0.7948717949 | L57: ='CV Rotina <2A - residência'!Z57 -> 0.5854700855 | M57: 0 | N57: 4 | O57: 4 | P57: 3
A58: Norte | B58: Pinheiros | C58: ='CV Rotina <2A - residência'!H58 -> 0.4087301587 | D58: ='CV Rotina <2A - residência'!P58 -> 0.753968254 | E58: ='CV Rotina <2A - residência'!J58 -> 0.9285714286 | F58: ='CV Rotina <2A - residência'!L58 -> 0.9246031746 | G58: ='CV Rotina <2A - residência'!N58 -> 0.7658730159 | H58: ='CV Rotina <2A - residência'!X58 -> 0.9087301587 | I58: ='CV Rotina <2A - residência'!R58 -> 0.8055555556 | J58: ='CV Rotina <2A - residência'!T58 -> 0.7698412698 | K58: ='CV Rotina <2A - residência'!V58 -> 0.7777777778 | L58: ='CV Rotina <2A - residência'!Z58 -> 0.3333333333 | M58: 0 | N58: 0 | O58: 0 | P58: 0
